Workbook

Sheet Welcome
B2: Welcome to ATLAS report
B11: With the support of:
B16: With the participation of:
B22: Managed by:

Sheet Essential
C2: =L!$A$205 -> Please complete these mandatory data | G2: =L!$A$205 -> Please complete these mandatory data
C3: =L!A14 -> Language | G3: =L!A161 -> Transparency option | H3: =L!A166 -> Confidentiality | I3: =L!A165&": "&L!A170 -> Advantage: Benchmark report | J3: =L!A165&": "&L!A183 -> Advantage: Price Disclosure Award | K3: =L!A165&": "&L!A174 -> Advantage: International visibility
B4: E1 | C4: =L!A14 -> Language | D4: English | F4: E14 | G4: =IF(D16=AB16,L!A162&D15&L!A167,L!A162&D15&L!A177) -> 1 Full transparency has received the consent of the Financial Service Provider to share the data in this report with the subscribers to ATLAS. | H4: =IF(D16=AB16,L!A179&L!A180&L!A182&"*",AB16&L!A179&AB16&L!A180&AB16&L!A182&"*") -> Financial Service ProviderData will not be publicly available. Financial Service Provider Data will only be visible to subscribers to ATLAS. Financial Service Provider Individual data will be anonymized to subscribers who operate in the same country.* | I4: =IF(D16=AB16,L!A171&D15&L!A172,L!A171&AB16&L!A172) -> Overview benchmark report, comparing Financial Service Provider to the other Financial Service Providers in the region and globally on some key indicators. | J4: =IF(AB23<>TRUE,L!A188,IF(D16=AB16,L!A184&D15&L!A185,L!A184&AB16&L!A185)) -> Gold Price Disclosure Award to Financial Service Provider: certificate and name shown on the Price Disclosure Award webpage of ATLAS, section Gold, if the Price data are filled-in in this report. | K4: =IF(D16=AB16,L!A175&D15&".",L!A175&AB16&".") -> International visibility with the subscribing investors for Financial Service Provider.
C6: =IF($D$62="Financial Services",L!A22,L!C4617) -> Financial Service Provider
B7: E2 | C7: =IF($D$62="Financial Services",L!A45,L!A4618) -> Financial Service Provider name
B8: E3 | C8: =IF($D$62="Financial Services",L!A46,L!A4619) -> Financial Service Provider full name
B9: E4 | C9: =IF($D$62="Financial Services",L!$A$48,L!C4620) -> Financial Service Provider ID
B10: E5 | C10: =L!$A$225 -> Country
B11: E6 | C11: =L!A504 -> Charter type | AA11: =B11 -> E6 | AB11: =IF(D11="","",HLOOKUP(D11,AC11:AG12,2,FALSE)) ->  | AC11: =L!A499 -> Bank | AD11: =L!A500 -> Cooperative | AE11: =L!A501 -> Non Bank Financial Institution | AF11: =L!A502 -> NGO | AG11: =L!A503 -> Other
B12: E7 | C12: =L!A505 -> Name of specific charter type | AC12: 1 | AD12: 2 | AE12: 3 | AF12: 4 | AG12: 5
C13: =L!A23 -> Reporting entity | J13: =L!A189 -> See Price Disclosure Award webpage
B14: E8 | C14: =L!$A$24 -> Data report is filled-in by | D14: the same Financial Service Provider | G14: =IF(D16=AB16,L!A163&D15&L!A168,L!A163&D15&L!A178) -> 2 Partial transparency has received the consent of the Financial Service Provider to share the data in this report with the subscribers to ATLAS in an anonymized manner. | H14: =IF(D16=AB16,L!A179&L!A181&"*",AB16&L!A179&AB16&L!A181&"*") -> Financial Service ProviderData will not be publicly available. Financial Service Provider Anonymized data will only be visible to subscribers to ATLAS. * | I14: =IF(D16=AB16,L!A171&D15&L!A173,L!A171&AB16&L!A173) -> Overview benchmark report, comparing Financial Service Provider to the other Financial Service Providers globally on some key indicators. | J14: =IF(AB23<>TRUE,L!A188,IF(D16=AB16,L!A186&D15&L!A187,L!A186&AB16&L!A187)) -> Silver Price Disclosure Award to Financial Service Provider: certificate and name shown on the Price Disclosure Award webpage of ATLAS, section Silver, if the Price data are filled-in in this report. | K14: =L!A176 -> No additional international visibility | AB14: =L!$A$25 -> the same Financial Service Provider | AC14: =L!$A$26 -> a different entity
B15: E9 | C15: =L!A28 -> Reporting entity name
B16: E10 | C16: =L!A30 -> Reporting entity type | AB16: =L!A2 -> Financial Service Provider | AC16: =L!A3 -> Network of Financial Service Providers | AD16: =L!A4 -> Professional association | AE16: =L!A5 -> Investor | AF16: =L!A6 -> Standard setting body, fora | AG16: =L!A7 -> Rating agency | AH16: =L!A8 -> Research institute | AI16: =L!A9 -> Regulator | AJ16: =L!$A$10 -> Consultant | AK16: =L!A11 -> Other | AL16: ="" -> 
B17: E11 | C17: =L!A50 -> Data report type | D17: Self reporting | AB17: 2016 | AC17: 2017 | AD17: 2018 | AE17: 2019 | AF17: 2020 | AG17: 2021 | AH17: 2022 | AI17: 2023 | AJ17: 2024 | AK17: 2025 | AL17: 2026
B18: E12 | C18: =L!A126 -> Year when data are reported
C19: =L!A21&":" -> Modules reported:
C20: =L!A146&": "&L!A148&", "&L!A149 -> Mandatory: Essential, General
C21: =L!A147 -> Optional: please choose one or more of the following modules if you wish.
B22: E13 | C22: =L!A150 -> Products | AB22: TRUE
C23: =L!A151 -> Social | AB23: TRUE
C24: =L!A152 -> Financial | G24: =L!$A$15 -> Instructions | AB24: TRUE
C25: =L!$A$153 -> Investor | F25: E15 | G25: =L!$A$20 -> Ok, understood | H25: =L!$A$16 -> -Please fill in grey cells only
C26: =L!A154 -> Client Protection | H26: =L!$A$17 -> -Don't use commas or points to separate thousands (2000 and not 2,000 or 2.000); don't use any currency symbol (2000 and not 2000USD)
C27: =L!$A$155 -> Rating | H27: =L!$A$18 -> -If the amount is 0, put 0
H28: =L!$A$19 -> -If you do not know the amount or the indicator is not applicable, leave empty (don't write n/a, nd, don't write anything).
C33: =IF(AB33=TRUE,IF(AND(AC33="",AD33="",AE33="",AF33="",AG33="",AH33="",AI33="",AJ33="",AK33="",AL33=""),L!$A$195,L!$A$197),L!$A$194) -> Check the box to verify if data is complete | AC33: =IF(D7="",C7,"") -> Financial Service Provider name | AD33: =IF(D8="",C8,"") -> Financial Service Provider full name | AE33: =IF(D10="",C10,"") -> Country | AF33: =IF(D11="",C11,"") -> Charter type | AG33: =IF(D14="",C14,"") ->  | AH33: =IF(OR(D15="",D15=L!$A$27),C15,"") -> Reporting entity name | AI33: =IF(D16="",C16,"") -> Reporting entity type | AJ33: =IF(D17="",C17,"") ->  | AK33: =IF(D18="",C18,"") -> Year when data are reported | AL33: =IF(AB4="",G3,"") -> Transparency option
C35: =L!$A$158 -> Terms and conditions: by submitting this report to ATLAS, the reporting entity accepts the terms and conditions for data provision described at: https://www.atlasdata.org/terms-and-conditions.
C38: =L!$A$159 -> GDPR: to give your consent for the processing of your personal data, go to https://mf-rating.gdpr.oa2000.com/atti_informativi_eng.html
C40: ATLAS security policy
C41: =L!$A$160 -> © 2023 MicroFinanza Rating (MFR). ALL RIGHTS RESERVED.
C45: =L!$A$214 -> Calculations
C46: =L!$A$218 -> Back end
B47: E16 | C47: =L!A40 -> Reporting entity ID
B48: E17 | C48: =L!A125 -> Data report type ID | D48: =IF(D17="","",HLOOKUP(D17,AB54:CS57,2,FALSE)) -> 000
B49: E18 | C49: =L!A192 -> Reliability ID | D49: =IF(D17="","",HLOOKUP(D17,AB54:CS57,3,FALSE)) -> 1
B50: E19 | C50: =L!A193 -> Financial data validated | D50: =IF(D17="","",HLOOKUP(D17,AB54:CS57,4,FALSE)) -> 0
C51: =L!A164 -> 3 Locked transparency
B52: E21 | C52: =L!A191 -> Transparency ID | D52: 1
B53: E22 | C53: =L!A190 -> Confidentiality ID | AB53: =L!A12 -> Yes | AC53: =L!A13 -> No
B54: E23 | C54: =L!A127 -> Data report version number | D54: 1 | AB54: Name | AC54: =L!A$51 -> Self reporting | AD54: =IF($D$16=$AG$16,L!A$52,"") ->  | AE54: =L!A$53 -> Factsheet | AF54: =L!A$54 -> Monitoring / Due diligence | AG54: =L!$A$55 -> Portfolio | AH54: =IF($D$16=$AG$16,L!A$56,"") ->  | AI54: =L!A$57 -> Client Protection assessment | AJ54: =L!A$58 -> Client Protection self-assessment | AK54: =IF($D$16=$AG$16,L!A$59,"") ->  | AL54: =IF($D$16=$AG$16,L!A$60,"") ->  | AM54: =IF($D$16=$AG$16,L!A$61,"") ->  | AN54: =IF($D$16=$AG$16,L!A$62,"") ->  | AO54: =IF($D$16=$AG$16,L!A$63,"") ->  | AP54: =IF($D$16=$AG$16,L!A$64,"") ->  | AQ54: =IF($D$16=$AG$16,L!$A$65,"") ->  | AR54: =IF($D$16=$AG$16,L!$A$66,"") ->  | AS54: =IF($D$16=$AG$16,L!$A$67,"") ->  | AT54: =IF($D$16=$AG$16,L!$A$68,"") ->  | AU54: =IF($D$16=$AG$16,L!$A$69,"") ->  | AV54: =IF($D$16=$AG$16,L!$A$70,"") ->  | AW54: =IF($D$16=$AG$16,L!$A$71,"") ->  | AX54: =IF($D$16=$AG$16,L!$A$72,"") ->  | AY54: =IF($D$16=$AG$16,L!A$73,"") ->  | AZ54: =IF($D$16=$AG$16,L!A$74,"") ->  | BA54: =IF($D$16=$AG$16,L!A$75,"") ->  | BB54: =IF($D$16=$AG$16,L!A$76,"") ->  | BC54: =IF($D$16=$AG$16,L!A$77,"") ->  | BD54: =IF($D$16=$AG$16,L!$A$78,"") ->  | BE54: =IF($D$16=$AG$16,L!$A$79,"") ->  | BF54: =IF($D$16=$AG$16,L!$A$80,"") ->  | BG54: =IF($D$16=$AG$16,L!$A$81,"") ->  | BH54: =IF($D$16=$AG$16,L!$A$82,"") ->  | BI54: =IF($D$16=$AG$16,L!$A$83,"") ->  | BJ54: =IF($D$16=$AG$16,L!$A$84,"") ->  | BK54: =IF($D$16=$AG$16,L!$A$85,"") ->  | BL54: =IF($D$16=$AG$16,L!$A$86,"") ->  | BM54: =IF($D$16=$AG$16,L!$A$87,"") ->  | BN54: =IF($D$16=$AG$16,L!A$88,"") ->  | BO54: =IF($D$16=$AG$16,L!A$89,"") ->  | BP54: =IF($D$16=$AG$16,L!$A$90,"") ->  | BQ54: =IF($D$16=$AG$16,L!$A$91,"") ->  | BR54: =IF($D$16=$AG$16,L!$A$92,"") ->  | BS54: =IF($D$16=$AG$16,L!A$93,"") ->  | BT54: =IF($D$16=$AG$16,L!A$94,"") ->  | BU54: =IF($D$16=$AG$16,L!A$95,"") ->  | BV54: =IF($D$16=$AG$16,L!$A$96,"") ->  | BW54: =IF($D$16=$AG$16,L!$A$97,"") ->  | BX54: =IF($D$16=$AG$16,L!$A$98,"") ->  | BY54: =IF($D$16=$AG$16,L!A$99,"") ->  | BZ54: =IF($D$16=$AG$16,L!A$100,"") ->  | CA54: =IF($D$16=$AG$16,L!A$101,"") ->  | CB54: =IF($D$16=$AG$16,L!A$102,"") ->  | CC54: =IF($D$16=$AG$16,L!A$103,"") ->  | CD54: =IF($D$16=$AG$16,L!A$104,"") ->  | CE54: =IF($D$16=$AG$16,L!A$105,"") ->  | CF54: =IF($D$16=$AG$16,L!A$106,"") ->  | CG54: =IF($D$16=$AG$16,L!A$107,"") ->  | CH54: =IF($D$16=$AG$16,L!A$108,"") ->  | CI54: =IF($D$16=$AG$16,L!A$109,"") ->  | CJ54: =IF($D$16=$AG$16,L!A$110,"") ->  | CK54: =IF($D$16=$AG$16,L!A$111,"") ->  | CL54: =IF($D$16=$AG$16,L!A$112,"") ->  | CM54: =IF($D$16=$AG$16,L!A$113,"") ->  | CN54: =IF($D$16=$AG$16,L!A$114,"") ->  | CO54: =IF($D$16=$AG$16,L!A$115,"") ->  | CP54: =IF($D$16=$AG$16,L!A$116,"") ->  | CQ54: =IF($D$16=$AG$16,L!A$117,"") ->  | CR54: =IF($D$16=$AG$16,L!A$118,"") ->  | CS54: =L!A119 -> Microfinance Transparency | CT54: =L!A$120 -> SA | CU54: =L!$A$121 -> ASA | CV54: =L!$A$122 -> ASAQ | CW54: =IF(OR($D$16=$AE$16,$D$16=$AG$16),"Investor Module","") -> 
B55: E24 | C55: =L!A128 -> Report tool version number | D55: 7 | AB55: Report type ID | AC55: 000 | AD55: 010 | AE55: 711 | AF55: 2011 | AG55: 2012 | AH55: 1111 | AI55: 331 | AJ55: 332 | AK55: 111 | AL55: 112 | AM55: 113 | AN55: 114 | AO55: 115 | AP55: 116 | AQ55: 117 | AR55: 118 | AS55: 119 | AT55: 1110 | AU55: 1111 | AV55: 1112 | AW55: 1113 | AX55: 1114 | AY55: 121 | AZ55: 122 | BA55: 123 | BB55: 124 | BC55: 125 | BD55: 126 | BE55: 127 | BF55: 128 | BG55: 129 | BH55: 1210 | BI55: 1211 | BJ55: 1212 | BK55: 1213 | BL55: 1214 | BM55: 311 | BN55: 312 | BO55: 313 | BP55: 314 | BQ55: 315 | BR55: 316 | BS55: 321 | BT55: 322 | BU55: 323 | BV55: 324 | BW55: 325 | BX55: 326 | BY55: 411 | BZ55: 412 | CA55: 413 | CB55: 421 | CC55: 422 | CD55: 423 | CE55: 424 | CF55: 425 | CG55: 426 | CH55: 431 | CI55: 432 | CJ55: 433 | CK55: 434 | CL55: 435 | CM55: 436 | CN55: 511 | CO55: 512 | CP55: 611 | CQ55: 811 | CR55: 911 | CS55: 1011 | CT55: 211 | CU55: 221 | CV55: 231 | CW55: 001
B56: E25 | C56: =L!A129 -> Data report ID | D56: =IF(OR(D48="",General!D12="",D47="",D9="",General!D112="",D52="",D49="",D54="",D55=""),"",IF(MONTH(General!D12)<10,D48&"-"&YEAR(General!D12)&"0"&MONTH(General!D12)&"-"&D47&"-"&D9&"-"&General!D112&"-"&D52&"-"&D49&"-"&D54&"-"&D55,D48&"-"&YEAR(General!D12)&MONTH(General!D12)&"-"&D47&"-"&D9&"-"&General!D112&"-"&D52&"-"&D49&"-"&D54&"-"&D55)) ->  | AB56: Reliability ID | AC56: 1 | AD56: 3 | AE56: 1 | AF56: 2 | AG56: 4 | AH56: 4 | AI56: 3 | AJ56: 1 | AK56: 4 | AL56: 4 | AM56: 4 | AN56: 4 | AO56: 4 | AP56: 4 | AQ56: 4 | AR56: 4 | AS56: 4 | AT56: 4 | AU56: 4 | AV56: 4 | AW56: 4 | AX56: 4 | AY56: 4 | AZ56: 4 | BA56: 4 | BB56: 4 | BC56: 4 | BD56: 4 | BE56: 4 | BF56: 4 | BG56: 4 | BH56: 4 | BI56: 4 | BJ56: 4 | BK56: 4 | BL56: 4 | BM56: 4 | BN56: 4 | BO56: 4 | BP56: 4 | BQ56: 4 | BR56: 4 | BS56: 4 | BT56: 4 | BU56: 4 | BV56: 4 | BW56: 4 | BX56: 4 | BY56: 4 | BZ56: 4 | CA56: 4 | CB56: 4 | CC56: 4 | CD56: 4 | CE56: 4 | CF56: 4 | CG56: 4 | CH56: 4 | CI56: 4 | CJ56: 4 | CK56: 4 | CL56: 4 | CM56: 4 | CN56: 4 | CO56: 4 | CP56: 4 | CQ56: 4 | CR56: 4 | CS56: 4 | CT56: 1 | CU56: 2 | CV56: 3 | CW56: 1
B57: E26 | C57: =L!A29 -> Name of other entity reporting | AB57: Financial validated | AC57: 0 | AD57: 0 | AE57: 0 | AF57: 1 | AG57: 1 | AH57: 0 | AI57: 0 | AJ57: 0 | AK57: 0 | AL57: 0 | AM57: 0 | AN57: 1 | AO57: 0 | AP57: 0 | AQ57: 1 | AR57: 0 | AS57: 0 | AT57: 1 | AU57: 1 | AV57: 0 | AW57: 1 | AX57: 0 | AY57: 0 | AZ57: 0 | BA57: 0 | BB57: 1 | BC57: 0 | BD57: 0 | BE57: 1 | BF57: 0 | BG57: 0 | BH57: 1 | BI57: 0 | BJ57: 0 | BK57: 1 | BL57: 0 | BM57: 0 | BN57: 1 | BO57: 0 | BP57: 0 | BQ57: 1 | BR57: 0 | BS57: 0 | BT57: 1 | BU57: 0 | BV57: 0 | BW57: 1 | BX57: 1 | BY57: 1 | BZ57: 1 | CA57: 1 | CB57: 1 | CC57: 1 | CD57: 1 | CE57: 1 | CF57: 1 | CG57: 1 | CH57: 1 | CI57: 1 | CJ57: 1 | CK57: 1 | CL57: 1 | CM57: 1 | CN57: 0 | CO57: 0 | CP57: 0 | CQ57: 0 | CR57: 1 | CS57: 0 | CT57: 0 | CU57: 0 | CV57: 0 | CW57: 0
B58: E27 | C58: =L!A31 -> Type of other entity reporting | AB58: 1 | AC58: 2 | AD58: 3 | AE58: 4 | AF58: 5 | AG58: 6
B59: E28 | C59: =L!A41 -> Other reporting entity ID
B60: E29 | C60: =L!A42 -> Publicly available data | AA60: =B60 -> E29 | AB60: =IF(D60="","",IF(D60=AB53,1,IF(D60=AC53,0,""))) -> 
B61: E30 | C61: =L!A43 -> Source of publicly available data
B62: E31 | C62: =L!A130 -> Main sector of the data report | D62: Financial services | AA62: =B62 -> E31 | AB62: =IF(D62="","",HLOOKUP(D62,AC62:AK63,2,FALSE)) -> 5 | AC62: =L!A132 -> Agriculture | AD62: =L!A133 -> Education | AE62: =L!A134 -> Energy | AF62: =L!A135 -> Environment | AG62: =L!A136 -> Financial services | AH62: =L!A137 -> Health | AI62: =L!A138 -> Housing/Community facilities | AJ62: =L!A139 -> Land conservation | AK62: =L!A140 -> Water
B63: E32 | C63: =L!A2044 -> Comment | AC63: 1 | AD63: 2 | AE63: 3 | AF63: 4 | AG63: 5 | AH63: 6 | AI63: 7 | AJ63: 8 | AK63: 9
C64: =L!$A$141 -> Mandatory to report
C65: =L!$A$142 -> Optional to report
C66: =L!$A$143 -> Optional to report, priority 2
C67: =L!$A$144 -> Calculations / back-end
C68: =L!A32 -> Consistency check
C69: =L!A33 -> Consistency check view | AB69: FALSE
C70: =L!A34 -> Empty / 0 value
C71: =L!A35 -> Value out of typical range
C72: =L!A36 -> Important data to check

Sheet General
C2: =L!$A$205 -> Please complete these mandatory data | G2: =L!$A$205 -> Please complete these mandatory data | H2: =L!$A$2732 -> Year | I2: =L!$A$2732 -> Year | J2: =L!$A$2732 -> Year | K2: =IF($M$64=12,"",L!$A$2737) ->  | L2: =L!$A$2732 -> Year | M2: =IF($M$64=12,L!$A$2732,L!$A$2737) -> Year | N2: =L!$A$2732 -> Year | O2: =IF(O$4="","",L!$A$2737) -> Year to date | P2: =IF(P$4="","",L!$A$2737) -> Year to date | Q2: =IF(Q$4="","",L!$A$2737) -> Year to date | R2: =IF(R$4="","",L!$A$2737) -> Year to date | S2: =IF(S$4="","",L!$A$2737) -> Year to date | T2: =IF(T$4="","",L!$A$2737) -> Year to date | U2: =IF(U$4="","",L!$A$2737) -> Year to date | V2: =IF(V$4="","",L!$A$2737) -> Year to date | W2: =IF(W$4="","",L!$A$2737) -> Year to date | X2: =IF(X$4="","",L!$A$2737) -> Year to date | Y2: =IF(Y$4="","",L!$A$2737) -> Year to date | Z2: =IF(Z$4="","",L!$A$2737) ->  | AA2: =IF(AA4="","",L!$A$2736) -> Month | AB2: =IF(AB4="","",L!$A$2736) -> Month | AC2: =IF(AC4="","",L!$A$2736) -> Month | AD2: =IF(AD4="","",L!$A$2736) -> Month | AE2: =IF(AE4="","",L!$A$2736) -> Month | AF2: =IF(AF4="","",L!$A$2736) -> Month | AG2: =IF(AG4="","",L!$A$2736) -> Month | AH2: =IF(AH4="","",L!$A$2736) -> Month | AI2: =IF(AI4="","",L!$A$2736) -> Month | AJ2: =IF(AJ4="","",L!$A$2736) -> Month | AK2: =IF(AK4="","",L!$A$2736) -> Month | AL2: =IF(AL4="","",L!$A$2736) -> Month | AM2: =IF(AM4="","",L!$A$2733) -> Quarter | AN2: =IF(AN4="","",L!$A$2733) -> Quarter | AO2: =IF(AO4="","",L!$A$2733) -> Quarter | AP2: =IF(AP4="","",L!$A$2733) -> Quarter
C3: =L!$A$216 -> General information | G3: =IF(Essential!D62="Financial Services",L!A668,L!A4622) -> Loan portfolio
B4: =Essential!B7 -> E2 | C4: =IF(Essential!D62="Financial Services",L!A45,L!C4618) -> Financial Service Provider name | D4: =IF(Essential!D7="","",Essential!D7) ->  | F4: =B13 -> G9 | G4: =L!$A$671 -> Beginning of period | H4: =DATE(YEAR(I4)-1,MONTH(I4),DAY(I4)) -> 2021-01-01 | I4: =DATE(YEAR(J4)-1,MONTH(J4),DAY(J4)) -> 2022-01-01 | J4: =DATE(YEAR(J5)-1,MONTH(J5),DAY(J5)+1) -> 2023-01-01 | K4: =IF(M64=12,"",DATE(YEAR(M4)-1,MONTH(M4),DAY(M4))) ->  | L4: =DATE(YEAR(L5)-1,MONTH(L5),DAY(L5)+1) -> 2024-01-01 | M4: =D13 -> 2025-01-01 | N4: =DATE(YEAR(N5)-1,MONTH(N5),DAY(N5)+1) -> 2025-01-01 | O4: =$M$4 -> 2025-01-01 | P4: =IF(DATE(YEAR($M$4),MONTH($M$4)+1,DAY($M$4))=$M$5,"",$M$4) -> 2025-01-01 | Q4: =IF(OR(P4="",Q5=""),"",IF(DATE(YEAR($M$4),MONTH($M$4)+2,DAY($M$4))=$M$5,"",$M$4)) -> 2025-01-01 | R4: =IF(OR(Q4="",R5=""),"",IF(DATE(YEAR($M$4),MONTH($M$4)+2,DAY($M$4))=$M$5,"",$M$4)) -> 2025-01-01 | S4: 2025-01-01 | T4: 2025-01-01 | U4: 2025-01-01 | V4: 2025-01-01 | W4: 2025-01-01 | X4: 2025-01-01 | Y4: 2025-01-01 | AA4: =DATE(YEAR(N5)-1,MONTH(N5),DAY(N5)+1) -> 2025-01-01 | AB4: =DATE(YEAR(AA4),MONTH(AA4)+1,DAY(AA4)) -> 2025-02-01 | AC4: =DATE(YEAR(AB4),MONTH(AB4)+1,DAY(AB4)) -> 2025-03-01 | AD4: =DATE(YEAR(AC4),MONTH(AC4)+1,DAY(AC4)) -> 2025-04-01 | AE4: 2025-05-01 | AF4: 2025-06-01 | AG4: 2025-07-01 | AH4: 2025-08-01 | AI4: =DATE(YEAR(AH4),MONTH(AH4)+1,DAY(AH4)) -> 2025-09-01 | AJ4: 2025-10-01 | AK4: 2025-11-01 | AL4: =DATE(YEAR(AK4),MONTH(AK4)+1,DAY(AK4)) -> 2025-12-01 | AM4: =DATE(YEAR(M5)-1,MONTH(M5),DAY(M5)+1) -> 2025-01-01 | AN4: =DATE(YEAR(AM4),MONTH(AM4)+3,DAY(AM4)) -> 2025-04-01 | AO4: =DATE(YEAR(AN4),MONTH(AN4)+3,DAY(AN4)) -> 2025-07-01 | AP4: =IF(AP5="","",DATE(YEAR(AO4),MONTH(AO4)+3,DAY(AO4))) -> 2025-10-01
B5: G1 | C5: =L!A219 -> Address | F5: =B12 -> G8 | G5: =L!$A$672 -> End of period | H5: =DATE(YEAR(I5)-1,MONTH(I5),DAY(I5)) -> 2021-12-31 | I5: =DATE(YEAR(J5)-1,MONTH(J5),DAY(J5)) -> 2022-12-31 | J5: =DATE(YEAR(L4),MONTH(L4),DAY(L4)-1) -> 2023-12-31 | K5: =IF(M64=12,"",DATE(YEAR(M5)-1,MONTH(M5),DAY(M5))) ->  | L5: =DATE(YEAR(M4),MONTH(M4),DAY(M4)-1) -> 2024-12-31 | M5: =D12 -> 2025-12-31 | N5: =M5 -> 2025-12-31 | O5: =DATE(YEAR(O4),MONTH(O4)+1,DAY(O4)-1) -> 2025-01-31 | P5: =IF(DATE(YEAR($M$4),MONTH($M$4)+2,DAY($M$4)-1)=$M$5,"",DATE(YEAR($M$4),MONTH($M$4)+2,DAY($M$4)-1)) -> 2025-02-28 | Q5: =IF(P5="","",IF(DATE(YEAR($M$4),MONTH($M$4)+3,DAY($M$4)-1)=$M$5,"",DATE(YEAR($M$4),MONTH($M$4)+3,DAY($M$4)-1))) -> 2025-03-31 | R5: =IF(Q5="","",IF(DATE(YEAR($M$4),MONTH($M$4)+4,DAY($M$4)-1)=$M$5,"",DATE(YEAR($M$4),MONTH($M$4)+4,DAY($M$4)-1))) -> 2025-04-30 | S5: =IF(R5="","",IF(DATE(YEAR($M$4),MONTH($M$4)+5,DAY($M$4)-1)=$M$5,"",DATE(YEAR($M$4),MONTH($M$4)+5,DAY($M$4)-1))) -> 2025-05-31 | T5: =IF(S5="","",IF(DATE(YEAR($M$4),MONTH($M$4)+6,DAY($M$4)-1)=$M$5,"",DATE(YEAR($M$4),MONTH($M$4)+6,DAY($M$4)-1))) -> 2025-06-30 | U5: =IF(T5="","",IF(DATE(YEAR($M$4),MONTH($M$4)+7,DAY($M$4)-1)=$M$5,"",DATE(YEAR($M$4),MONTH($M$4)+7,DAY($M$4)-1))) -> 2025-07-31 | V5: =IF(U5="","",IF(DATE(YEAR($M$4),MONTH($M$4)+8,DAY($M$4)-1)=$M$5,"",DATE(YEAR($M$4),MONTH($M$4)+8,DAY($M$4)-1))) -> 2025-08-31 | W5: =IF(V5="","",IF(DATE(YEAR($M$4),MONTH($M$4)+9,DAY($M$4)-1)=$M$5,"",DATE(YEAR($M$4),MONTH($M$4)+9,DAY($M$4)-1))) -> 2025-09-30 | X5: =IF(W5="","",IF(DATE(YEAR($M$4),MONTH($M$4)+10,DAY($M$4)-1)=$M$5,"",DATE(YEAR($M$4),MONTH($M$4)+10,DAY($M$4)-1))) -> 2025-10-31 | Y5: =IF(X5="","",IF(DATE(YEAR($M$4),MONTH($M$4)+11,DAY($M$4)-1)=$M$5,"",DATE(YEAR($M$4),MONTH($M$4)+11,DAY($M$4)-1))) -> 2025-11-30 | Z5: =IF(Y5="","",IF(DATE(YEAR($M$4),MONTH($M$4)+12,DAY($M$4)-1)=$M$5,"",DATE(YEAR($M$4),MONTH($M$4)+12,DAY($M$4)-1))) ->  | AA5: =DATE(YEAR(AA4),MONTH(AA4)+1,DAY(AA4)-1) -> 2025-01-31 | AB5: 2025-02-28 | AC5: 2025-03-31 | AD5: 2025-04-30 | AE5: 2025-05-31 | AF5: 2025-06-30 | AG5: 2025-07-31 | AH5: 2025-08-31 | AI5: 2025-09-30 | AJ5: 2025-10-31 | AK5: 2025-11-30 | AL5: =$M$5 -> 2025-12-31 | AM5: =DATE(YEAR(AM4),MONTH(AM4)+3,DAY(AM4)-1) -> 2025-03-31 | AN5: =DATE(YEAR(AN4),MONTH(AN4)+3,DAY(AN4)-1) -> 2025-06-30 | AO5: =DATE(YEAR(AO4),MONTH(AO4)+3,DAY(AO4)-1) -> 2025-09-30 | AP5: =IF($M64=3,"",$M5) -> 2025-12-31
B6: G2 | C6: =L!A220 -> City | F6: =B14 -> G10 | G6: =L!$A$691 -> Currency of the data reported | H6: =IF($D$14="","",$D$14) ->  | I6: =IF($D$14="","",$D$14) ->  | O6: =IF(O4="","",$D$14) -> 00:00:00 | P6: 00:00:00 | Q6: 00:00:00 | R6: 00:00:00 | S6: 00:00:00 | T6: 00:00:00 | U6: 00:00:00 | V6: 00:00:00 | W6: 00:00:00 | X6: 00:00:00 | Y6: 00:00:00 | AA6: 00:00:00 | AB6: 00:00:00 | AC6: 00:00:00 | AD6: 00:00:00 | AE6: 00:00:00 | AF6: 00:00:00 | AG6: 00:00:00 | AH6: 00:00:00 | AI6: 00:00:00 | AJ6: 00:00:00 | AK6: 00:00:00 | AL6: 00:00:00 | AM6: 00:00:00 | AN6: 00:00:00 | AO6: 00:00:00 | AP6: 00:00:00
B7: G3 | C7: =L!A221 -> Telephone number | F7: G11 | G7: =IF(Essential!D62="Financial Services",L!$A$692,L!$A$4385) -> Gross loan portfolio | N7: =IF(M7="","",M7) ->  | BW7: =L!$A$1076 -> Usual Min | BX7: =L!$A$1077 -> Usual Max | BY7: Last update
B8: G4 | C8: =L!A222 -> Website | F8: G12 | G8: =IF(Essential!D62="Financial Services",L!$A$1092,L!$A$4614) -> Portfolio >30 days in arrears | N8: =IF(M8="","",M8) ->  | BV8: =L!A1092&" / "&L!$A$692 -> Portfolio >30 days in arrears / Gross loan portfolio | BW8: 0.001 | BX8: 0.5 | BY8: 2020-01-01
B9: G5 | C9: =L!A224 -> Email CEO or CFO | F9: G13 | G9: =IF(Essential!D62="Financial Services",L!A1102,L!$A$4404) -> Restructured portfolio | N9: =IF(M9="","",M9) ->  | BV9: =L!$A$1102&" / "&L!$A$692 -> Restructured portfolio / Gross loan portfolio | BW9: 0 | BX9: 0.25 | BY9: 2020-01-01
B10: G6 | C10: =L!$A$514 -> Regulated | F10: G14 | G10: =IF(Essential!D62="Financial Services",L!A1438,L!$A$4405) -> Written-off portfolio amount | N10: =IF(M$64=12,IF(M10="","",M10),IF(AND(K10<>"",L10<>"",M10<>""),M10+L10-K10,IF(M10="","",M10*12/M$64))) ->  | BH10: =B10 -> G6 | BI10: =IF(D10="","",HLOOKUP(D10,BJ10:BK11,2,FALSE)) ->  | BJ10: =L!A514 -> Regulated | BK10: =L!A515 -> Not regulated | BV10: =L!$A$1438&" / "&L!$A$692 -> Written-off portfolio amount / Gross loan portfolio | BW10: 0 | BX10: 0.2 | BY10: 2020-01-01
B11: G7 | C11: =L!A516 -> Year of inception | G11: =L!A669 -> Balance sheet | BJ11: 1 | BK11: 0
B12: G8 | C12: =L!A674 -> Data available as of date | D12: 2025-12-31 | F12: G15 | G12: =L!A694 -> Total assets | N12: =IF(M12="","",M12) ->  | BI12: =L!A676 -> January | BJ12: =L!A677 -> February | BK12: =L!A678 -> March | BL12: =L!A679 -> April | BM12: =L!A680 -> May | BN12: =L!A681 -> June | BO12: =L!A682 -> July | BP12: =L!A683 -> August | BQ12: =L!A684 -> September | BR12: =L!A685 -> October | BS12: =L!A686 -> November | BT12: =L!A687 -> December
B13: G9 | C13: =L!A675 -> Beginning of the fiscal year | D13: 2025-01-01 | F13: G16 | G13: =L!A1078 -> Total deposits | H13: =IF(AND(H14="",H15=""),"",SUM(H14:H15)) ->  | N13: =IF(M13="","",M13) ->  | O13: =IF(AND(O14="",O15=""),"",SUM(O14:O15)) ->  | BI13: 1 | BJ13: 2 | BK13: 3 | BL13: 4 | BM13: 5 | BN13: 6 | BO13: 7 | BP13: 8 | BQ13: 9 | BR13: 10 | BS13: 11 | BT13: 12
B14: G10 | C14: =L!$A$691 -> Currency of the data reported | F14: =$F$13&Definitions!$AC$14&Definitions!$AE2 -> G16.13.1 | G14: =L!A1079 -> Voluntary deposits | N14: =IF(M14="","",M14) ->  | BI14: =L!A677 -> February | BJ14: =L!A678 -> March | BK14: =L!A679 -> April | BL14: =L!A680 -> May | BM14: =L!A681 -> June | BN14: =L!A682 -> July | BO14: =L!A683 -> August | BP14: =L!A684 -> September | BQ14: =L!A685 -> October | BR14: =L!A686 -> November | BS14: =L!A687 -> December | BT14: =L!A676 -> January
B15: G93 | C15: =L!A522 -> Services offered | F15: =$F$13&Definitions!$AC$14&Definitions!$AE3 -> G16.13.2 | G15: =L!A1080 -> Compulsory deposits | N15: =IF(M15="","",M15) ->  | BI15: 2 | BJ15: 3 | BK15: 4 | BL15: 5 | BM15: 6 | BN15: 7 | BO15: 8 | BP15: 9 | BQ15: 10 | BR15: 11 | BS15: 12 | BT15: 1
C16: =L!A523 -> Credit | D16: =L!A528 -> Debit / credit card | F16: G17 | G16: =L!A695 -> Total equity | N16: =IF(M16="","",M16) ->  | BH16: =B15 -> G93 | BI16: =$B$15&Definitions!$AC$29&Definitions!$AE2 -> G93.28.1 | BJ16: =IF(AND($BM$16="",$BM$17="",$BM$18="",$BM$19="",$BM$20="",$BN$16="",$BN$17="",$BN$18="",$BN$19="",$BN$20=""),"",IF(BM16=TRUE,1,0)) -> 0 | BK16: =$B$15&Definitions!$AC$29&Definitions!$AE7 -> G93.28.6 | BL16: =IF(AND($BM$16="",$BM$17="",$BM$18="",$BM$19="",$BM$20="",$BN$16="",$BN$17="",$BN$18="",$BN$19="",$BN$20=""),"",IF(BN16=TRUE,1,0)) -> 0 | BM16: FALSE
C17: =L!A524 -> Deposits | D17: =L!A529 -> Leasing | G17: =L!A670 -> Profit and loss | BI17: =$B$15&Definitions!$AC$29&Definitions!$AE3 -> G93.28.2 | BJ17: =IF(AND($BM$16="",$BM$17="",$BM$18="",$BM$19="",$BM$20="",$BN$16="",$BN$17="",$BN$18="",$BN$19="",$BN$20=""),"",IF(BM17=TRUE,1,0)) -> 0 | BK17: =$B$15&Definitions!$AC$29&Definitions!$AE8 -> G93.28.7 | BL17: =IF(AND($BM$16="",$BM$17="",$BM$18="",$BM$19="",$BM$20="",$BN$16="",$BN$17="",$BN$18="",$BN$19="",$BN$20=""),"",IF(BN17=TRUE,1,0)) -> 0 | BW17: =L!$A$1076 -> Usual Min | BX17: =L!$A$1077 -> Usual Max | BY17: Last update
C18: =L!A525 -> Insurance | D18: =L!A530 -> Factoring | F18: G18 | G18: =L!$A$2565 -> Interest and fee income from loan portfolio | N18: =IF(M$64=12,IF(M18="","",M18),IF(AND(K18<>"",L18<>"",M18<>""),M18+L18-K18,IF(M18="","",M18*12/M$64))) ->  | BI18: =$B$15&Definitions!$AC$29&Definitions!$AE4 -> G93.28.3 | BJ18: =IF(AND($BM$16="",$BM$17="",$BM$18="",$BM$19="",$BM$20="",$BN$16="",$BN$17="",$BN$18="",$BN$19="",$BN$20=""),"",IF(BM18=TRUE,1,0)) -> 0 | BK18: =$B$15&Definitions!$AC$29&Definitions!$AE9 -> G93.28.8 | BL18: =IF(AND($BM$16="",$BM$17="",$BM$18="",$BM$19="",$BM$20="",$BN$16="",$BN$17="",$BN$18="",$BN$19="",$BN$20=""),"",IF(BN18=TRUE,1,0)) -> 0 | BV18: =L!$A$1439&" / "&L!$A$692 -> Income from loan portfolio / Gross loan portfolio | BW18: 0.05 | BX18: 1 | BY18: 2020-01-01
C19: =L!A526 -> Payments | D19: =L!A531 -> Other financial services | F19: G19 | G19: =L!$A$2568 -> Interest and fee income from investments | BI19: =$B$15&Definitions!$AC$29&Definitions!$AE5 -> G93.28.4 | BJ19: =IF(AND($BM$16="",$BM$17="",$BM$18="",$BM$19="",$BM$20="",$BN$16="",$BN$17="",$BN$18="",$BN$19="",$BN$20=""),"",IF(BM19=TRUE,1,0)) -> 0 | BK19: =$B$15&Definitions!$AC$29&Definitions!$AE10 -> G93.28.9 | BL19: =IF(AND($BM$16="",$BM$17="",$BM$18="",$BM$19="",$BM$20="",$BN$16="",$BN$17="",$BN$18="",$BN$19="",$BN$20=""),"",IF(BN19=TRUE,1,0)) -> 0
C20: =L!A527 -> Remittances | D20: =L!A532 -> Non financial services | F20: G20 | G20: =L!$A$2569 -> Other income from financial services | BI20: =$B$15&Definitions!$AC$29&Definitions!$AE6 -> G93.28.5 | BJ20: =IF(AND($BM$16="",$BM$17="",$BM$18="",$BM$19="",$BM$20="",$BN$16="",$BN$17="",$BN$18="",$BN$19="",$BN$20=""),"",IF(BM20=TRUE,1,0)) -> 0 | BK20: =$B$15&Definitions!$AC$29&Definitions!$AE11 -> G93.28.10 | BL20: =IF(AND($BM$16="",$BM$17="",$BM$18="",$BM$19="",$BM$20="",$BN$16="",$BN$17="",$BN$18="",$BN$19="",$BN$20=""),"",IF(BN20=TRUE,1,0)) -> 0
B21: G94 | C21: =L!$A$533 -> Loan products purpose | F21: G21 | G21: =L!$A$2579 -> Other operating income (non-extraordinary)
C22: =L!A534 -> Microenterprise | D22: =L!A537 -> Housing | F22: G22 | G22: =L!$A$2571 -> Interest and fee expenses | BH22: =B21 -> G94 | BI22: =$B$21&Definitions!$AC$17&Definitions!$AE2 -> G94.16.1 | BJ22: =IF(AND($BM$22="",$BM$23="",$BM$24="",$BM$25="",$BN$22="",$BM$26="",$BN$23="",$BN$24="",$BN$25="",$BN$26=""),"",IF(BM22=TRUE,1,0)) ->  | BK22: =$B$21&Definitions!$AC$17&Definitions!$AE5 -> G94.16.4 | BL22: =IF(AND($BM$22="",$BM$23="",$BM$24="",$BM$25="",$BN$22="",$BM$26="",$BN$23="",$BN$24="",$BN$25="",$BN$26=""),"",IF(BN22=TRUE,1,0)) ->  | BV22: =L!$A$2571&" / "&L!A692 -> Interest and fee expenses / Gross loan portfolio | BW22: 0.01 | BX22: 0.6 | BY22: 2020-01-01
C23: =L!A535 -> SME | D23: =L!A538 -> Personal | F23: G23 | G23: =L!$A$2574 -> Other financial expenses | BI23: =$B$21&Definitions!$AC$17&Definitions!$AE3 -> G94.16.2 | BJ23: =IF(AND($BM$22="",$BM$23="",$BM$24="",$BM$25="",$BN$22="",$BM$26="",$BN$23="",$BN$24="",$BN$25="",$BN$26=""),"",IF(BM23=TRUE,1,0)) ->  | BK23: =$B$21&Definitions!$AC$17&Definitions!$AE6 -> G94.16.5 | BL23: =IF(AND($BM$22="",$BM$23="",$BM$24="",$BM$25="",$BN$22="",$BM$26="",$BN$23="",$BN$24="",$BN$25="",$BN$26=""),"",IF(BN23=TRUE,1,0)) ->  | BV23: Operating exense ratio proxy | BW23: 0.03 | BX23: 0.6 | BY23: 2020-01-01
C24: =L!A536 -> Corporate | D24: =L!A2085 -> Agriculture | F24: G24 | G24: =L!$A$2576 -> Net loan loss provision expenses | BI24: =$B$21&Definitions!$AC$17&Definitions!$AE4 -> G94.16.3 | BJ24: =IF(AND($BM$22="",$BM$23="",$BM$24="",$BM$25="",$BN$22="",$BM$26="",$BN$23="",$BN$24="",$BN$25="",$BN$26=""),"",IF(BM24=TRUE,1,0)) ->  | BK24: =$B$21&Definitions!$AC$17&Definitions!$AE10 -> G94.16.9 | BL24: =IF(AND($BM$22="",$BM$23="",$BM$24="",$BM$25="",$BN$22="",$BM$26="",$BN$23="",$BN$24="",$BN$25="",$BN$26=""),"",IF(BN24=TRUE,1,0)) ->  | BV24: =L!$A$1399 -> Provision expense ratio | BW24: -0.01 | BX24: 0.3 | BY24: 2020-01-01
C25: =L!A133 -> Education | D25: =L!A4134 -> Green | F25: G25 | G25: =L!$A$2580 -> Operating expenses | BI25: =$B$21&Definitions!$AC$17&Definitions!$AE8 -> G94.16.7 | BJ25: =IF(AND($BM$22="",$BM$23="",$BM$24="",$BM$25="",$BN$22="",$BM$26="",$BN$23="",$BN$24="",$BN$25="",$BN$26=""),"",IF(BM25=TRUE,1,0)) ->  | BK25: =$B$21&Definitions!$AC$17&Definitions!$AE11 -> G94.16.10 | BL25: =IF(AND($BM$22="",$BM$23="",$BM$24="",$BM$25="",$BN$22="",$BM$26="",$BN$23="",$BN$24="",$BN$25="",$BN$26=""),"",IF(BN25=TRUE,1,0)) ->  | BV25: ROA | BW25: -0.05 | BX25: 0.1
C26: =L!A2087 -> Emergency | D26: =L!A539 -> Other | F26: G26 | G26: =L!$A$2595 -> Net income | BI26: =$B$21&Definitions!$AC$17&Definitions!$AE9 -> G94.16.8 | BJ26: =IF(AND($BM$22="",$BM$23="",$BM$24="",$BM$25="",$BN$22="",$BM$26="",$BN$23="",$BN$24="",$BN$25="",$BN$26=""),"",IF(BM26=TRUE,1,0)) ->  | BK26: =$B$21&Definitions!$AC$17&Definitions!$AE7 -> G94.16.6 | BL26: =IF(AND($BM$22="",$BM$23="",$BM$24="",$BM$25="",$BN$22="",$BM$26="",$BN$23="",$BN$24="",$BN$25="",$BN$26=""),"",IF(BN26=TRUE,1,0)) -> 
B27: G95 | C27: =L!A541 -> Saving services offered | G27: =L!A667 -> Clients
C28: =L!A542 -> Compulsory savings | D28: =L!A544 -> Voluntary time deposits | F28: G27 | G28: =L!A702 -> Number of clients | N28: =IF(M28="","",M28) ->  | BH28: =B27 -> G95 | BI28: =$B$27&Definitions!$AC$14&Definitions!$AE3 -> G95.13.2 | BJ28: =IF(AND($BM$28="",$BM$29="",$BN$28="",$BN$29=""),"",IF(BM28=TRUE,1,0)) ->  | BK28: =$B$27&Definitions!$AC$14&Definitions!$AE2&Definitions!$AC$21&Definitions!$AE3 -> G95.13.1.20.2 | BL28: =IF(AND($BM$28="",$BM$29="",$BN$28="",$BN$29=""),"",IF(BN28=TRUE,1,0)) -> 
C29: =L!A543 -> Voluntary sight deposits | D29: =L!A545 -> None | F29: G28 | G29: =L!$A$708 -> Number of borrowers | BI29: =$B$27&Definitions!$AC$14&Definitions!$AE2&Definitions!$AC$21&Definitions!$AE2 -> G95.13.1.20.1 | BJ29: =IF(AND($BM$28="",$BM$29="",$BN$28="",$BN$29=""),"",IF(BM29=TRUE,1,0)) ->  | BK29: =$B$27&Definitions!$AC$14&Definitions!$AE4 -> G95.13.3 | BL29: =IF(AND($BM$28="",$BM$29="",$BN$28="",$BN$29=""),"",IF(BN29=TRUE,1,0)) -> 
B30: G96 | C30: =L!A548 -> Insurance services offered | F30: G29 | G30: =L!A721 -> Number of savers | BI30: G95.13.1 | BJ30: =IF(AND(BJ29="",BL28=""),"",IF(OR(BJ29=1,BL28=1),1,0)) -> 
C31: =L!A550 -> Mandatory life insurance | D31: =L!A554 -> Property insurance | F31: G124 | G31: =L!A4796 -> Number of non-credit (cash) clients | BH31: =B30 -> G96 | BI31: =$B$30&Definitions!$AC$14&Definitions!$AE3&Definitions!$AC$25&Definitions!AE2 -> G96.13.2.24.1 | BJ31: =IF(AND($BM$31="",$BM$32="",$BM$33="",$BM$34="",$BN$31="",$BN$32="",$BN$33=""),"",IF(BM31=TRUE,1,0)) ->  | BK31: =$B$30&Definitions!$AC$25&Definitions!AE5 -> G96.24.4 | BL31: =IF(AND($BM$31="",$BM$32="",$BM$33="",$BM$34="",$BN$31="",$BN$32="",$BN$33=""),"",IF(BN31=TRUE,1,0)) -> 
C32: =L!A551 -> Voluntary life insurance | D32: =L!A555 -> Other insurance | F32: G30 | G32: =L!A729 -> Number of staff | BI32: =$B$30&Definitions!$AC$14&Definitions!$AE2&Definitions!$AC$25&Definitions!AE2 -> G96.13.1.24.1 | BJ32: =IF(AND($BM$31="",$BM$32="",$BM$33="",$BM$34="",$BN$31="",$BN$32="",$BN$33=""),"",IF(BM32=TRUE,1,0)) ->  | BK32: =$B$30&Definitions!$AC$25&Definitions!AE6 -> G96.24.5 | BL32: =IF(AND($BM$31="",$BM$32="",$BM$33="",$BM$34="",$BN$31="",$BN$32="",$BN$33=""),"",IF(BN32=TRUE,1,0)) -> 
C33: =L!A552 -> Agriculture insurance | D33: =L!A556 -> None | F33: G31 | G33: =L!A2044 -> Comment | BI33: =$B$30&Definitions!$AC$25&Definitions!AE3 -> G96.24.2 | BJ33: =IF(AND($BM$31="",$BM$32="",$BM$33="",$BM$34="",$BN$31="",$BN$32="",$BN$33=""),"",IF(BM33=TRUE,1,0)) ->  | BK33: =$B$30&Definitions!$AC$25&Definitions!AE7 -> G96.24.6 | BL33: =IF(AND($BM$31="",$BM$32="",$BM$33="",$BM$34="",$BN$31="",$BN$32="",$BN$33=""),"",IF(BN33=TRUE,1,0)) -> 
C34: =L!A553 -> Health insurance | BI34: =$B$30&Definitions!$AC$25&Definitions!AE4 -> G96.24.3 | BJ34: =IF(AND($BM$31="",$BM$32="",$BM$33="",$BM$34="",$BN$31="",$BN$32="",$BN$33=""),"",IF(BM34=TRUE,1,0)) ->  | BK34: G96.13.1 | BL34: =IF(BL33=1,0,IF(AND(BJ32="",BJ33="",BJ34="",BL31="",BL32=""),"",IF(OR(BJ32=1,BJ33=1,BJ34=1,BL31=1,BL32=1),1,0))) -> 
C35: =IF(D13="",L!$A$197,IF(BI35=TRUE,IF(AND(BJ35="",BK35="",BL35="",BM35="",BN35="",BO35="",BP35="",BQ35="",BR35="",BS35="",BT35="",BU35="",BV35="",BW35="",BX35="",BY35="",BZ35="",CA35="",CB35="",CC35="",CD35=""),L!$A$195,L!$A$197),L!$A$194)) -> Check the box to verify if data is complete | BH35: Check | BJ35: =IF(D10="",C10,"") -> Regulated | BK35: =IF(D12="",C12,"") ->  | BL35: =IF(D13="",C13,"") ->  | BM35: =IF(D14="",C14,"") -> Currency of the data reported | BN35: =IF(AND(BM16=FALSE,BM17=FALSE,BM18=FALSE,BM19=FALSE,BM20=FALSE,BN16=FALSE,BN17=FALSE,BN18=FALSE,BN19=FALSE,BN20=FALSE),C15,"") -> Services offered | BO35: =IF(M64<>12,IF(OR(K7="",L7="",M7=""),G7,""),IF(M7="",G7,"")) -> Gross loan portfolio | BP35: =IF(M8="",G8,"") -> Portfolio >30 days in arrears | BQ35: =IF(M64<>12,IF(OR(K12="",L12="",M12=""),G12,""),IF(M12="",G12,"")) -> Total assets | BR35: =IF(M14="",G14,"") -> Voluntary deposits | BS35: =IF(M15="",G15,"") -> Compulsory deposits | BT35: =IF(M64<>12,IF(OR(K16="",L16="",M16=""),G16,""),IF(M16="",G16,"")) -> Total equity | BU35: =IF(M64<>12,IF(OR(K18="",L18="",M18=""),G18,""),IF(M18="",G18,"")) -> Interest and fee income from loan portfolio | BV35: =IF(M64<>12,IF(OR(K19="",L19="",M19=""),G19,""),IF(M19="",G19,"")) -> Interest and fee income from investments | BW35: =IF(M64<>12,IF(OR(K21="",L21="",M21=""),G21,""),IF(M21="",G21,"")) -> Other operating income (non-extraordinary) | BX35: =IF(M64<>12,IF(OR(K22="",L22="",M22=""),G22,""),IF(M22="",G22,"")) -> Interest and fee expenses | BY35: =IF(M64<>12,IF(OR(K25="",L25="",M25=""),G25,""),IF(M25="",G25,"")) -> Operating expenses | BZ35: =IF(M64<>12,IF(OR(K24="",L24="",M24=""),G24,""),IF(M24="",G24,"")) -> Net loan loss provision expenses | CA35: =IF(M64<>12,IF(OR(K26="",L26="",M26=""),G26,""),IF(M26="",G26,"")) -> Net income | CB35: =IF(M28="",G28,"") -> Number of clients | CC35: =IF(M64<>12,IF(OR(K29="",L29="",M29=""),G29,""),IF(OR(L29="",M29=""),G29,"")) -> Number of borrowers | CD35: =IF(M30="",G30,"") -> Number of savers
C37: =L!$A$208 -> If possible, please complete this optional information | G37: =L!$A$208 -> If possible, please complete this optional information
C38: =L!A576 -> Main delivery model | G38: =L!$A$1456 -> Paid in capital | H38: G58 | I38: G58 | J38: G58 | K38: G58 | L38: G58 | M38: G58 | N38: G58 | O38: G58 | P38: G58 | Q38: G58 | R38: G58 | S38: G58 | T38: G58 | U38: G58 | V38: G58 | W38: G58 | X38: G58 | Y38: G58 | Z38: G58 | AA38: G58 | AB38: G58 | AC38: G58 | AD38: G58 | AE38: G58 | AF38: G58 | AG38: G58 | AH38: G58 | AI38: G58 | AJ38: G58 | AK38: G58 | AL38: G58 | AM38: G58 | AN38: G58 | AO38: G58 | AP38: G58 | AQ38: G59 | AR38: G60
B39: G32 | C39: =L!A577 -> Physical channels | F39: =F5 -> G8 | G39: =L!A672 -> End of period | H39: =H5 -> 2021-12-31 | I39: 2022-12-31 | J39: 2023-12-31 | L39: 2024-12-31 | M39: 2025-12-31 | N39: 2025-12-31 | O39: 2025-01-31 | P39: 2025-02-28 | Q39: 2025-03-31 | R39: 2025-04-30 | S39: 2025-05-31 | T39: 2025-06-30 | U39: 2025-07-31 | V39: 2025-08-31 | W39: 2025-09-30 | X39: 2025-10-31 | Y39: 2025-11-30 | AA39: 2025-01-31 | AB39: 2025-02-28 | AC39: 2025-03-31 | AD39: 2025-04-30 | AE39: 2025-05-31 | AF39: 2025-06-30 | AG39: 2025-07-31 | AH39: 2025-08-31 | AI39: 2025-09-30 | AJ39: 2025-10-31 | AK39: 2025-11-30 | AL39: 2025-12-31 | AM39: 2025-03-31 | AN39: 2025-06-30 | AO39: 2025-09-30 | AP39: 2025-12-31 | AQ39: =$M$5 -> 2025-12-31 | AR39: =$M$5 -> 2025-12-31 | BH39: =B39 -> G32
C40: =L!A578 -> Physical channels and digital filed applications | G40: =L!$A$1458 -> Shareholder name | H40: =IF(H39="","",L!$A$1456) -> Paid in capital | I40: =IF(I39="","",L!$A$1456) -> Paid in capital | J40: =IF(J39="","",L!$A$1456) -> Paid in capital | K40: =IF(K39="","",L!$A$1456) ->  | L40: =IF(L39="","",L!$A$1456) -> Paid in capital | M40: =IF(M39="","",L!$A$1456) -> Paid in capital | N40: =IF(N39="","",L!$A$1456) -> Paid in capital | O40: =IF(O39="","",L!$A$1456) -> Paid in capital | P40: =IF(P39="","",L!$A$1456) -> Paid in capital | Q40: =IF(Q39="","",L!$A$1456) -> Paid in capital | R40: =IF(R39="","",L!$A$1456) -> Paid in capital | S40: =IF(S39="","",L!$A$1456) -> Paid in capital | T40: =IF(T39="","",L!$A$1456) -> Paid in capital | U40: =IF(U39="","",L!$A$1456) -> Paid in capital | V40: =IF(V39="","",L!$A$1456) -> Paid in capital | W40: =IF(W39="","",L!$A$1456) -> Paid in capital | X40: =IF(X39="","",L!$A$1456) -> Paid in capital | Y40: =IF(Y39="","",L!$A$1456) -> Paid in capital | Z40: =IF(Z39="","",L!$A$1456) ->  | AA40: =IF(AA39="","",L!$A$1456) -> Paid in capital | AB40: =IF(AB39="","",L!$A$1456) -> Paid in capital | AC40: =IF(AC39="","",L!$A$1456) -> Paid in capital | AD40: =IF(AD39="","",L!$A$1456) -> Paid in capital | AE40: =IF(AE39="","",L!$A$1456) -> Paid in capital | AF40: =IF(AF39="","",L!$A$1456) -> Paid in capital | AG40: =IF(AG39="","",L!$A$1456) -> Paid in capital | AH40: =IF(AH39="","",L!$A$1456) -> Paid in capital | AI40: =IF(AI39="","",L!$A$1456) -> Paid in capital | AJ40: =IF(AJ39="","",L!$A$1456) -> Paid in capital | AK40: =IF(AK39="","",L!$A$1456) -> Paid in capital | AL40: =IF(AL39="","",L!$A$1456) -> Paid in capital | AM40: =IF(AM39="","",L!$A$1456) -> Paid in capital | AN40: =IF(AN39="","",L!$A$1456) -> Paid in capital | AO40: =IF(AO39="","",L!$A$1456) -> Paid in capital | AP40: =IF(AP39="","",L!$A$1456) -> Paid in capital | AQ40: =L!A1459 -> Shareholder type | AR40: =L!$A$1460 -> Shareholder information | BH40: =AQ38 -> G59 | BI40: =$AQ$38&F41 -> G59.1.1 | BJ40: =IF(AQ41="","",HLOOKUP(AQ41,$BK$40:$BW$41,2,FALSE)) ->  | BK40: =L!A1462 -> Members (cooperative) | BL40: =L!A1463 -> Not applicable (NGO) | BM40: =L!A1464 -> Microfinance Investment Vehicle (MIV) | BN40: =L!A1465 -> Development Finance Institution (DFI) | BO40: =L!A1466 -> International financial institution (holding company, int. bank, other) | BP40: =L!A1467 -> Local financial institution (local fund, local bank, other) | BQ40: =L!A1468 -> Government related institution (public bank, government fund, other) | BR40: =L!A1469 -> Local NGO | BS40: =L!A1470 -> International NGO (holding NGO, other international NGOs) | BT40: =L!A1471 -> Private individual (founders, BoD, CEO, management) | BU40: =L!A1472 -> Private individual (other) | BV40: =L!A1473 -> Employees | BW40: =L!A1474 -> Other
C41: =L!A579 -> Physical channels and mobile loan disbursement / repayment | F41: =Definitions!$AC$2&Definitions!$AE2 -> .1.1 | N41: =IF(M41="","",M41) ->  | BI41: G59.1.2 | BK41: 1 | BL41: 2 | BM41: 3 | BN41: 4 | BO41: 5 | BP41: 6 | BQ41: 7 | BR41: 8 | BS41: 9 | BT41: 10 | BU41: 11 | BV41: 12 | BW41: 13
C42: =L!A580 -> Physical channels, digital filed app, mobile loan disbursement / repayment | F42: =Definitions!$AC$2&Definitions!$AE3 -> .1.2 | N42: =IF(M42="","",M42) ->  | BI42: G59.1.3
C43: =L!A581 -> Physical channels, digital filed app, mobile lending | F43: =Definitions!$AC$2&Definitions!$AE4 -> .1.3 | BI43: G59.1.4
C44: =L!A582 -> Online lending | F44: =Definitions!$AC$2&Definitions!$AE5 -> .1.4 | BI44: G59.1.5
C45: =L!A583 -> Mobile lending | F45: =Definitions!$AC$2&Definitions!$AE6 -> .1.5 | BI45: G59.1.6
C46: =L!A584 -> Other mobile financial services | F46: =Definitions!$AC$2&Definitions!$AE7 -> .1.6 | BI46: G59.1.7
C47: =L!A585 -> Pay as you go | F47: =Definitions!$AC$2&Definitions!$AE8 -> .1.7 | BI47: G59.1.8
C48: =L!A586 -> Other | F48: =Definitions!$AC$2&Definitions!$AE9 -> .1.8 | BI48: G59.1.9
B49: G101 | C49: =L!$A$614 -> % digital transactions | F49: =Definitions!$AC$2&Definitions!$AE10 -> .1.9 | BI49: G59.1.10
B50: G33 | C50: =L!$A$2044 -> Comment | F50: =Definitions!$AC$2&Definitions!$AE11 -> .1.10 | BH50: =B49 -> G101 | BI50: 0 | BJ50: 1%-10% | BK50: 11%-30% | BL50: 31%-100%
B51: G34 | C51: =L!$A$597 -> Delivery model with agents | G51: =L!$A$1461 -> Total | H51: =IF(H41="","",SUM(H41:H50)) ->  | BH51: =B51 -> G34 | BI51: =IF(D51="","",IF(D51=BJ51,1,IF(D51=BK51,0,""))) ->  | BJ51: =L!$A$12 -> Yes | BK51: =L!$A$13 -> No | BL51: ="" -> 
C52: =L!A604 -> Main loan approval basis | BH52: =B53 -> G35
B53: G35 | C53: =L!A605 -> Repayment analysis made by people
C54: =L!A606 -> Algorithm mainly using financial data
C55: =L!A607 -> Algorithm mainly using market data
C56: =L!A608 -> Algorithm mainly using alternative data
C57: =L!A609 -> Other
B58: G36 | C58: =L!$A$2044 -> Comment
C60: =L!A215 -> Additional data | G60: =L!A215 -> Additional data
C61: =L!A558 -> Delivery model | G61: =L!$A$217 -> General data | BH61: =B62 -> G37 | BI61: =$B$62&Definitions!$AE2 -> G37.1 | BJ61: =IF(AND($BK$61="",$BK$62="",$BK$63="",$BK$64="",$BK$65="",$BK$66="",$BK$67="",$BK$68="",$BK$69="",$BK$70=""),"",IF(BK61=TRUE,1,0)) -> 0
B62: G37 | C62: =L!A559 -> Physical channels | F62: =F4 -> G9 | G62: =L!$A$671 -> Beginning of period | H62: =H4 -> 2021-01-01 | I62: 2022-01-01 | J62: 2023-01-01 | L62: 2024-01-01 | M62: 2025-01-01 | N62: 2025-01-01 | O62: 2025-01-01 | P62: 2025-01-01 | Q62: 2025-01-01 | R62: 2025-01-01 | S62: 2025-01-01 | T62: 2025-01-01 | U62: 2025-01-01 | V62: 2025-01-01 | W62: 2025-01-01 | X62: 2025-01-01 | Y62: 2025-01-01 | AA62: 2025-01-01 | AB62: 2025-02-01 | AC62: 2025-03-01 | AD62: 2025-04-01 | AE62: 2025-05-01 | AF62: 2025-06-01 | AG62: 2025-07-01 | AH62: 2025-08-01 | AI62: 2025-09-01 | AJ62: 2025-10-01 | AK62: 2025-11-01 | AL62: 2025-12-01 | AM62: 2025-01-01 | AN62: 2025-04-01 | AO62: 2025-07-01 | AP62: 2025-10-01 | BI62: =$B$62&Definitions!$AE3 -> G37.2 | BJ62: =IF(AND($BK$61="",$BK$62="",$BK$63="",$BK$64="",$BK$65="",$BK$66="",$BK$67="",$BK$68="",$BK$69="",$BK$70=""),"",IF(BK62=TRUE,1,0)) -> 0
C63: =L!A560 -> Digital filed applications for staff | F63: =F5 -> G8 | G63: =L!$A$672 -> End of period | H63: =H5 -> 2021-12-31 | I63: 2022-12-31 | J63: 2023-12-31 | L63: 2024-12-31 | M63: 2025-12-31 | N63: 2025-12-31 | O63: 2025-01-31 | P63: 2025-02-28 | Q63: 2025-03-31 | R63: 2025-04-30 | S63: 2025-05-31 | T63: 2025-06-30 | U63: 2025-07-31 | V63: 2025-08-31 | W63: 2025-09-30 | X63: 2025-10-31 | Y63: 2025-11-30 | AA63: 2025-01-31 | AB63: 2025-02-28 | AC63: 2025-03-31 | AD63: 2025-04-30 | AE63: 2025-05-31 | AF63: 2025-06-30 | AG63: 2025-07-31 | AH63: 2025-08-31 | AI63: 2025-09-30 | AJ63: 2025-10-31 | AK63: 2025-11-30 | AL63: 2025-12-31 | AM63: 2025-03-31 | AN63: 2025-06-30 | AO63: 2025-09-30 | AP63: 2025-12-31 | BI63: =$B$62&Definitions!$AE4 -> G37.3 | BJ63: 0
C64: =L!A561 -> Mobile loan disbursement / repayment | F64: G61 | G64: Number of months in period | H64: =IF(H62="","",DAYS360(H4,H5)/30) -> 12 | I64: 12 | J64: 12 | L64: 12 | M64: 12 | N64: 12 | O64: 1 | P64: 1.9 | Q64: 3 | R64: 3.966666667 | S64: 5 | T64: 5.966666667 | U64: 7 | V64: 8 | W64: 8.966666667 | X64: 10 | Y64: 10.96666667 | AA64: 1 | AB64: 0.9 | AC64: 1 | AD64: 0.9666666667 | AE64: 1 | AF64: 0.9666666667 | AG64: 1 | AH64: 1 | AI64: 0.9666666667 | AJ64: 1 | AK64: 0.9666666667 | AL64: 1 | AM64: 3 | AN64: 2.966666667 | AO64: 2.966666667 | AP64: 3 | BI64: =$B$62&Definitions!$AE5 -> G37.4 | BJ64: 0
C65: =L!A562 -> ATM, debit/credit cards, internet banking | F65: G62 | G65: =L!A703 -> Number of active clients | N65: =IF(M65="","",M65) ->  | BI65: =$B$62&Definitions!$AE6 -> G37.5 | BJ65: 0
C66: =L!A563 -> Online lending | F66: G63 | G66: =L!$A$704 -> Number of inactive clients | BI66: =$B$62&Definitions!$AE7 -> G37.6 | BJ66: 0
C67: =L!A564 -> Mobile lending | F67: G64 | G67: =L!A709 -> Number of loans | BI67: =$B$62&Definitions!$AE8 -> G37.7 | BJ67: 0
C68: =L!A565 -> Other mobile financial services | F68: G65 | G68: =L!$A$707 -> Number of voluntary savers | BI68: =$B$62&Definitions!$AE9 -> G37.8 | BJ68: 0
C69: =L!A566 -> Pay as you go | F69: G29.13.1.22.4 | G69: =L!$A$3976 -> Number of retail voluntary savers | BI69: =$B$62&Definitions!$AE10 -> G37.9 | BJ69: 0
C70: =L!A567 -> Other | F70: G29.5.2.13.1.22.4 | G70: =L!$A$3977 -> Number of female retail voluntary savers | BI70: =$B$62&Definitions!$AE11 -> G37.10 | BJ70: 0 | BK70: FALSE
C71: =L!A4135 -> Digital financial products or services | F71: G66 | G71: =L!A723 -> Number of saving accounts | N71: =IF(M71="","",M71) ->  | BH71: =B73 -> G38 | BI71: =$B$73&Definitions!$AE2 -> G38.1 | BJ71: =IF(AND($BK$71="",$BK$72="",$BK$73="",$BK$74="",$BK$75=""),"",IF(BK71=TRUE,1,0)) -> 
C72: =L!A598 -> Loan approval basis | F72: G67 | G72: =L!A724 -> Number of active savings accounts | BI72: =$B$73&Definitions!$AE3 -> G38.2 | BJ72: =IF(AND($BK$71="",$BK$72="",$BK$73="",$BK$74="",$BK$75=""),"",IF(BK72=TRUE,1,0)) -> 
B73: G38 | C73: =L!A599 -> Repayment analysis made by people | F73: G117 | G73: =L!$A$3978 -> Number of dormant retail voluntary savings accounts (>12mths inactivity) | BI73: =$B$73&Definitions!$AE4 -> G38.3 | BJ73: =IF(AND($BK$71="",$BK$72="",$BK$73="",$BK$74="",$BK$75=""),"",IF(BK73=TRUE,1,0)) -> 
C74: =L!A600 -> Algorithm mainly using financial data | F74: G68 | G74: =L!$A$725 -> Number of new savers | BI74: =$B$73&Definitions!$AE5 -> G38.4 | BJ74: =IF(AND($BK$71="",$BK$72="",$BK$73="",$BK$74="",$BK$75=""),"",IF(BK74=TRUE,1,0)) -> 
C75: =L!A601 -> Algorithm mainly using market data | F75: G16.13.1.22.4 | G75: =L!$A$3979 -> Retail voluntary deposits | BI75: =$B$73&Definitions!$AE6 -> G38.5 | BJ75: =IF(AND($BK$71="",$BK$72="",$BK$73="",$BK$74="",$BK$75=""),"",IF(BK75=TRUE,1,0)) -> 
C76: =L!A602 -> Algorithm mainly using alternative data | F76: G118 | G76: =L!$A$3982 -> Number of digital transactions
C77: =L!A603 -> Other | F77: G119 | G77: =L!$A$3983 -> Total number of transactions | BH77: =G81 -> Role in the BoD | BI77: =F82 -> .3.1 | BJ77: =IF(G82="","",HLOOKUP(G82,$BK$77:$BL$78,2,FALSE)) ->  | BK77: =L!$A$1447 -> Chairperson | BL77: =L!$A$1448 -> Member
F78: G120 | G78: =L!$A$3984 -> Number of registered digital clients | BI78: .3.2 | BK78: 1 | BL78: 2
G79: =L!A1445 -> Board of Directors | H79: G69 | I79: G69 | J79: G69 | K79: G69 | L79: G69 | M79: G69 | N79: G69 | O79: G69 | P79: G69 | Q79: G69 | R79: G69 | S79: G69 | T79: G69 | U79: G69 | V79: G69 | W79: G69 | X79: G69 | Y79: G69 | Z79: G69 | AA79: G69 | AB79: G69 | AC79: G69 | AD79: G69 | AE79: G69 | AF79: G69 | AG79: G69 | AH79: G69 | AI79: G69 | AJ79: G69 | AK79: G69 | AL79: G69 | AM79: G69 | AN79: G69 | AO79: G69 | AP79: G69 | AQ79: G70 | BI79: .3.3
F80: =F5 -> G8 | G80: =L!$A$672 -> End of period | H80: =H5 -> 2021-12-31 | I80: 2022-12-31 | J80: 2023-12-31 | L80: 2024-12-31 | M80: 2025-12-31 | N80: 2025-12-31 | O80: 2025-01-31 | P80: 2025-02-28 | Q80: 2025-03-31 | R80: 2025-04-30 | S80: 2025-05-31 | T80: 2025-06-30 | U80: 2025-07-31 | V80: 2025-08-31 | W80: 2025-09-30 | X80: 2025-10-31 | Y80: 2025-11-30 | AA80: 2025-01-31 | AB80: 2025-02-28 | AC80: 2025-03-31 | AD80: 2025-04-30 | AE80: 2025-05-31 | AF80: 2025-06-30 | AG80: 2025-07-31 | AH80: 2025-08-31 | AI80: 2025-09-30 | AJ80: 2025-10-31 | AK80: 2025-11-30 | AL80: 2025-12-31 | AM80: 2025-03-31 | AN80: 2025-06-30 | AO80: 2025-09-30 | AP80: 2025-12-31 | AQ80: =$M$5 -> 2025-12-31 | BI80: .3.4
G81: =L!A1446 -> Role in the BoD | H81: =L!$A$1449 -> BoD member expertise | I81: =L!$A$1449 -> BoD member expertise | J81: =L!$A$1449 -> BoD member expertise | K81: =L!$A$1449 -> BoD member expertise | L81: =L!$A$1449 -> BoD member expertise | M81: =L!$A$1449 -> BoD member expertise | N81: =L!$A$1449 -> BoD member expertise | O81: =L!$A$1449 -> BoD member expertise | P81: =L!$A$1449 -> BoD member expertise | Q81: =L!$A$1449 -> BoD member expertise | R81: =L!$A$1449 -> BoD member expertise | S81: =L!$A$1449 -> BoD member expertise | T81: =L!$A$1449 -> BoD member expertise | U81: =L!$A$1449 -> BoD member expertise | V81: =L!$A$1449 -> BoD member expertise | W81: =L!$A$1449 -> BoD member expertise | X81: =L!$A$1449 -> BoD member expertise | Y81: =L!$A$1449 -> BoD member expertise | Z81: =L!$A$1449 -> BoD member expertise | AA81: =L!$A$1449 -> BoD member expertise | AB81: =L!$A$1449 -> BoD member expertise | AC81: =L!$A$1449 -> BoD member expertise | AD81: =L!$A$1449 -> BoD member expertise | AE81: =L!$A$1449 -> BoD member expertise | AF81: =L!$A$1449 -> BoD member expertise | AG81: =L!$A$1449 -> BoD member expertise | AH81: =L!$A$1449 -> BoD member expertise | AI81: =L!$A$1449 -> BoD member expertise | AJ81: =L!$A$1449 -> BoD member expertise | AK81: =L!$A$1449 -> BoD member expertise | AL81: =L!$A$1449 -> BoD member expertise | AM81: =L!$A$1449 -> BoD member expertise | AN81: =L!$A$1449 -> BoD member expertise | AO81: =L!$A$1449 -> BoD member expertise | AP81: =L!$A$1449 -> BoD member expertise | AQ81: =L!$A$1450 -> BoD member other information | BI81: .3.5
F82: =Definitions!$AC$4&Definitions!$AE2 -> .3.1 | N82: =IF(M82="","",M82) ->  | BI82: .3.6
F83: =Definitions!$AC$4&Definitions!$AE3 -> .3.2 | BI83: .3.7
F84: =Definitions!$AC$4&Definitions!$AE4 -> .3.3 | BI84: .3.8
F85: =Definitions!$AC$4&Definitions!$AE5 -> .3.4 | BI85: .3.9
F86: =Definitions!$AC$4&Definitions!$AE6 -> .3.5 | BI86: .3.10
F87: =Definitions!$AC$4&Definitions!$AE7 -> .3.6
F88: =Definitions!$AC$4&Definitions!$AE8 -> .3.7
F89: =Definitions!$AC$4&Definitions!$AE9 -> .3.8
F90: =Definitions!$AC$4&Definitions!$AE10 -> .3.9
F91: =Definitions!$AC$4&Definitions!$AE11 -> .3.10
G92: =L!$A$1451 -> Loans to related parties
F93: =$F$7&Definitions!$AC$3&Definitions!$AE$2 -> G11.2.1 | G93: =L!$A$692 -> Gross loan portfolio | H93: =IF(AND(H94="",H95="",H96="",H97=""),"",SUM(H94:H97)) -> 
F94: =$F$7&Definitions!$AC$3&Definitions!$AE$2&Definitions!$AC$5&Definitions!$AE2 -> G11.2.1.4.1 | G94: =L!$A$1452 -> BoD | N94: =IF(M94="","",M94) -> 
F95: =$F$7&Definitions!$AC$3&Definitions!$AE$2&Definitions!$AC$5&Definitions!$AE3 -> G11.2.1.4.2 | G95: =L!$A$1453 -> Management | N95: =IF(M95="","",M95) -> 
F96: =$F$7&Definitions!$AC$3&Definitions!$AE$2&Definitions!$AC$5&Definitions!$AE4 -> G11.2.1.4.3 | G96: =L!$A$1834 -> Personnel | N96: =IF(M96="","",M96) -> 
F97: =$F$7&Definitions!$AC$3&Definitions!$AE$2&Definitions!$AC$5&Definitions!$AE5 -> G11.2.1.4.4 | G97: =L!$A$1454 -> Other related parties | N97: =IF(M97="","",M97) -> 
F98: =$F$8&Definitions!$AC$3&Definitions!$AE$2 -> G12.2.1 | G98: =L!$A$1092 -> Portfolio >30 days in arrears | H98: =IF(AND(H99="",H100="",H101="",H102=""),"",SUM(H99:H102)) -> 
F99: =$F$8&Definitions!$AC$3&Definitions!$AE$2&Definitions!$AC$5&Definitions!$AE7 -> G12.2.1.4.6 | G99: =L!$A$1452 -> BoD | N99: =IF(M99="","",M99) -> 
F100: =$F$8&Definitions!$AC$3&Definitions!$AE$2&Definitions!$AC$5&Definitions!$AE8 -> G12.2.1.4.7 | G100: =L!$A$1453 -> Management | N100: =IF(M100="","",M100) -> 
F101: =$F$8&Definitions!$AC$3&Definitions!$AE$2&Definitions!$AC$5&Definitions!$AE9 -> G12.2.1.4.8 | G101: =L!$A$1834 -> Personnel | N101: =IF(M101="","",M101) -> 
F102: =$F$8&Definitions!$AC$3&Definitions!$AE$2&Definitions!$AC$5&Definitions!$AE10 -> G12.2.1.4.9 | G102: =L!$A$1454 -> Other related parties | N102: =IF(M102="","",M102) -> 
G103: =L!$A$1475 -> Macroeconomic data
F104: G71 | G104: =L!$A$633 -> Exchange rate reporting currency / USD | H104: =IF($M104="","",$M104) ->  | N104: =IF($M104="","",$M104) ->  | X104: =IF($M104="","",$M104) ->  | AH104: =IF($M104="","",$M104) -> 
F105: G72 | G105: =L!$A$642 -> Inflation rate (average)
BH108: =B114 -> G41 | BI108: =IF(D114="","",HLOOKUP(D114,BJ108:BW109,2,FALSE)) ->  | BJ108: =L!A481 -> EAF | BK108: =L!A482 -> MAF | BL108: =L!A483 -> SAF | BM108: =L!A484 -> WAF | BN108: =L!A485 -> WAS | BO108: =L!A486 -> NAF | BP108: =L!A487 -> WEU | BQ108: =L!A488 -> EEU | BR108: =L!A489 -> CAS | BS108: =L!A490 -> SAS | BT108: =L!A491 -> EAP | BU108: =L!A492 -> CAM | BV108: =L!A493 -> SAM | BW108: =L!A494 -> NAM
AN109: =IF(AM$62<>"",IF(OR(AN112="",AM112=""),"",AVERAGE(AN112,AM112)),IF(OR(AN112="",HLOOKUP(DATE(YEAR(AN$62),MONTH(AN$62)-1,DAY(AN$62)),$O$5:$Z$114,66,FALSE)=""),"",AVERAGE(AN112,HLOOKUP(DATE(YEAR(AN$62),MONTH(AN$62)-1,DAY(AN$62)),$O$5:$Z$114,66,FALSE)))) ->  | BJ109: 1 | BK109: 2 | BL109: 3 | BM109: 4 | BN109: 5 | BO109: 6 | BP109: 7 | BQ109: 8 | BR109: 9 | BS109: 10 | BT109: 11 | BU109: 12 | BV109: 13 | BW109: 14
C110: =L!$A$214 -> Calculations | G110: =L!$A$214 -> Calculations | BH110: =B116 -> G43 | BI110: =IF(D116="","",HLOOKUP(D116,BJ110:BO111,2,FALSE)) ->  | BJ110: =L!A445 -> SSA | BK110: =L!A446 -> SSEA | BL110: =L!A447 -> ECA | BM110: =L!A448 -> LAC | BN110: =L!A449 -> MENA | BO110: =L!A450 -> NA
C111: =L!$A$216 -> General information | G111: =L!$A$217 -> General data | BJ111: 1 | BK111: 2 | BL111: 3 | BM111: 4 | BN111: 5 | BO111: 6
B112: G39 | C112: =L!$A$226 -> Country ID | D112: =IF(Essential!D10="","",VLOOKUP(Essential!D$10,BI$148:BO$361,6,FALSE)) ->  | F112: G73 | G112: =L!$A$710 -> Number of clients / borrowers / loans | H112: =IF(H28<>"",H28,IF(H29<>"",H29,IF(H67<>"",H67,""))) -> 
B113: G40 | C113: =L!A227 -> Subregion | D113: =IF(Essential!D10="","",VLOOKUP(Essential!D$10,BI$148:BO$361,4,FALSE)) ->  | F113: G74 | G113: =L!$A$705 -> Active clients rate | H113: =IF(AND(H65<>"",H28<>"",H65<H28),H65/H28,"") -> 
B114: G41 | C114: =L!A228 -> Subregion ID | D114: =IF(Essential!D10="","",VLOOKUP(Essential!D$10,BI$148:BO$361,5,FALSE)) ->  | F114: G75 | G114: =L!$A$706 -> Inactive clients rate | H114: =IF(AND(H66<>"",H28<>"",H66<H28),H66/H28,"") -> 
B115: G42 | C115: =L!A229 -> Region | D115: =IF(Essential!D10="","",VLOOKUP(Essential!D$10,BI$148:BO$361,2,FALSE)) ->  | F115: G121 | G115: =L!$A$3985 -> % of transactions - Digital | H115: =IF(AND(H76<>"",H77<>""),H76/H77,"") ->  | I115: =IF(AND(I76<>"",I77<>""),I76/I77,"") ->  | BH115: =B123 -> G46 | BI115: =IF(D123="","",IF(D123=BJ115,1,IF(D123=BK115,0,""))) ->  | BJ115: =L!A512 -> For profit | BK115: =L!A513 -> Non profit
B116: G43 | C116: =L!A230 -> Region ID | D116: =IF(Essential!D10="","",VLOOKUP(Essential!D$10,BI$148:BO$361,3,FALSE)) ->  | G116: =L!$A$1456 -> Paid in capital | H116: G76 | I116: G76 | J116: G76 | K116: G76 | L116: G76 | M116: G76 | N116: G76 | O116: G76 | P116: G76 | Q116: G76 | R116: G76 | S116: G76 | T116: G76 | U116: G76 | V116: G76 | W116: G76 | X116: G76 | Y116: G76 | Z116: G76 | AA116: G76 | AB116: G76 | AC116: G76 | AD116: G76 | AE116: G76 | AF116: G76 | AG116: G76 | AH116: G76 | AI116: G76 | AJ116: G76 | AK116: G76 | AL116: G76 | AM116: G76 | AN116: G76 | AO116: G76 | AP116: G76 | BH116: =B124 -> G47 | BI116: =IF(D124="","",IF(D124=BJ116,1,IF(D124=BK116,2,IF(D124=BL116,3,"")))) ->  | BJ116: =L!A519 -> Start-up | BK116: =L!A520 -> Young | BL116: =L!A521 -> Mature
B117: G44 | C117: =L!A498 -> Local currency | D117: =IF(Essential!D10="","",VLOOKUP(Essential!D$10,BI$148:BO$361,7,FALSE)) ->  | G117: =L!$A$1458 -> Shareholder name | H117: =IF(H39="","",L!$A$1457) -> % paid in capital | I117: =IF(I39="","",L!$A$1457) -> % paid in capital | J117: =IF(J39="","",L!$A$1457) -> % paid in capital | K117: =IF(K39="","",L!$A$1457) ->  | L117: =IF(L39="","",L!$A$1457) -> % paid in capital | M117: =IF(M39="","",L!$A$1457) -> % paid in capital | N117: =IF(N39="","",L!$A$1457) -> % paid in capital | O117: =IF(O39="","",L!$A$1457) -> % paid in capital | P117: =IF(P39="","",L!$A$1457) -> % paid in capital | Q117: =IF(Q39="","",L!$A$1457) -> % paid in capital | R117: =IF(R39="","",L!$A$1457) -> % paid in capital | S117: =IF(S39="","",L!$A$1457) -> % paid in capital | T117: =IF(T39="","",L!$A$1457) -> % paid in capital | U117: =IF(U39="","",L!$A$1457) -> % paid in capital | V117: =IF(V39="","",L!$A$1457) -> % paid in capital | W117: =IF(W39="","",L!$A$1457) -> % paid in capital | X117: =IF(X39="","",L!$A$1457) -> % paid in capital | Y117: =IF(Y39="","",L!$A$1457) -> % paid in capital | Z117: =IF(Z39="","",L!$A$1457) ->  | AA117: =IF(AA39="","",L!$A$1457) -> % paid in capital | AB117: =IF(AB39="","",L!$A$1457) -> % paid in capital | AC117: =IF(AC39="","",L!$A$1457) -> % paid in capital | AD117: =IF(AD39="","",L!$A$1457) -> % paid in capital | AE117: =IF(AE39="","",L!$A$1457) -> % paid in capital | AF117: =IF(AF39="","",L!$A$1457) -> % paid in capital | AG117: =IF(AG39="","",L!$A$1457) -> % paid in capital | AH117: =IF(AH39="","",L!$A$1457) -> % paid in capital | AI117: =IF(AI39="","",L!$A$1457) -> % paid in capital | AJ117: =IF(AJ39="","",L!$A$1457) -> % paid in capital | AK117: =IF(AK39="","",L!$A$1457) -> % paid in capital | AL117: =IF(AL39="","",L!$A$1457) -> % paid in capital | AM117: =IF(AM39="","",L!$A$1457) -> % paid in capital | AN117: =IF(AN39="","",L!$A$1457) -> % paid in capital | AO117: =IF(AO39="","",L!$A$1457) -> % paid in capital | AP117: =IF(AP39="","",L!$A$1457) -> % paid in capital | BH117: =B126 -> G49 | BI117: =IF(D126="","",IF(D126=BJ117,1,IF(D126=BK117,2,IF(D126=BL117,3,"")))) ->  | BJ117: =L!A627 -> No voluntary deposits | BK117: =L!A628 -> Low deposit taking | BL117: =L!A629 -> High deposit taking
B118: G45 | C118: =L!$A$506 -> Regulator / supervisory authority | F118: =F41 -> .1.1 | G118: =IF(G41<>"",G41,"") ->  | H118: =IF(H41="","",H41/SUM(H$41:H$50)) ->  | BH118: =B127 -> G50 | BI118: =IF(D127="","",IF(D127=BJ119,1,IF(D127=BK119,2,IF(D127=BL119,3,"")))) ->  | BJ118: =IF(AND(Financial!CP215="",Financial!CP205=""),0,IF(OR(Financial!CP215>=1,AND(Financial!CP215="",Financial!CP205>=0)),1,0)) -> 0 | BK118: =IF(OR(AND(Financial!CP215<>"",Financial!CP215<1),AND(Financial!CP215="",Financial!CP205<0)),1,0) -> 0 | BL118: =IF(AND(Financial!CP215="",Financial!CP205=""),1,0) -> 1
B119: G106 | C119: =L!$A$507 -> FSP network name | F119: .1.2 | H119: =IF(H42="","",H42/SUM(H$41:H$50)) ->  | BJ119: =L!A631 -> Financially self sustainable | BK119: =L!A632 -> Not financially self sustainable
B120: G114 | C120: =L!$A$509 -> Professional association | F120: .1.3 | H120: =IF(H43="","",H43/SUM(H$41:H$50)) ->  | BH120: =B128 -> G51 | BI120: =IF(D128="","",IF(D128=BJ121,1,IF(D128=BK121,2,IF(D128=BL121,3,"")))) ->  | BJ120: =IF(OR(M104="",AND(M12="",M7="")),"",IF(M12<>"",IF(M12/M104<10000000,1,0),IF(M7<>"",IF(M7/M104<10000000,1,0)))) ->  | BK120: =IF(OR(M104="",AND(M12="",M7="")),"",IF(M12<>"",IF(AND(M12/M104>=10000000,M12/M104<100000000),1,0),IF(M7<>"",IF(AND(M7/M104>=10000000,M7/M104<100000000),1,0),""))) ->  | BL120: =IF(OR(M104="",AND(M12="",M7="")),"",IF(M12<>"",IF(M12/M104>=100000000,1,0),IF(M7<>"",IF(M7/M104>=100000000,1,0),""))) ->  | BM120: =IF(AND(BJ120="",BK120="",BL120=""),1,"") -> 1
B121: G113 | C121: =L!$A$508 -> FSP network ID | F121: .1.4 | H121: =IF(H44="","",H44/SUM(H$41:H$50)) ->  | BJ121: =L!A644 -> Small size | BK121: =L!A645 -> Medium size | BL121: =L!A646 -> Large size
B122: G115 | C122: =L!$A$510 -> Professional association ID | F122: .1.5 | H122: =IF(H45="","",H45/SUM(H$41:H$50)) ->  | BH122: =B130 -> G53 | BI122: =IF(D130="","",IF(D130=BJ122,1,IF(D130=BK122,2,IF(D130=BL122,3,"")))) ->  | BJ122: =L!A655 -> Small outreach | BK122: =L!A656 -> Medium outreach | BL122: =L!A657 -> Large outreach
B123: G46 | C123: =L!A511 -> Profit status | D123: =IF(OR(Essential!D11=Essential!AC11,Essential!D11=Essential!AE11),BJ115,IF(OR(Essential!D11=Essential!AD11,Essential!D11=Essential!AF11),BK115,"")) ->  | F123: .1.6 | H123: =IF(H46="","",H46/SUM(H$41:H$50)) ->  | BH123: =B131 -> G54 | BI123: =IF(D131="","",IF(D131=BJ124,1,IF(D131=BK124,2,IF(D131=BL124,3,IF(D131=BM124,4,""))))) ->  | BJ123: =IF(OR(M7="",M29="",M104="",D132="",D132=0),"",IF(M7/M29/M104/D132<20%,1,0)) ->  | BK123: =IF(OR(M7="",M29="",M104="",D132="",D132=0),"",IF(AND(M7/M29/M104/D132>=20%,M7/M29/M104/D132<150%),1,0)) ->  | BL123: =IF(OR(M7="",M29="",M104="",D132="",D132=0),"",IF(AND(M7/M29/M104/D132>=150%,M7/M29/M104/D132<250%),1,0)) ->  | BM123: =IF(OR(M7="",M29="",M104="",D132="",D132=0),"",IF(M7/M29/M104/D132>=250%,1,0)) -> 
B124: G47 | C124: =L!A518 -> Age (category) | D124: =IF(D125="","",IF(D125<3,L!A519,IF(AND(D125>=3,D125<8),L!A520,IF(D125>=8,L!A521,"")))) ->  | F124: .1.7 | H124: =IF(H47="","",H47/SUM(H$41:H$50)) ->  | BJ124: =L!A659 -> Low end microfinance target | BK124: =L!A660 -> Broad microfinance target | BL124: =L!A661 -> High end microfinance target | BM124: =L!A662 -> Small enterprise target | BO124: ="" -> 
B125: G48 | C125: =L!A517 -> Age (years) | D125: =IF(OR(Essential!D18="",D11=""),"",Essential!D18-D11) ->  | F125: .1.8 | H125: =IF(H48="","",H48/SUM(H$41:H$50)) ->  | BH125: =B129 -> G52 | BI125: =IF(OR(AND(N12="",N7=""),M104="",AND(BJ128="",BJ129="",BJ130=""),AND(BL128="",BL129="",BL130="")),"",IF(AND(OR(BI131=1,BI132=1),IF(BJ128<>"",BJ128=1,IF(BJ129<>"",BJ129=1,BJ130=1)),IF(BL128<>"",BL128=1,IF(BL129<>"",BL129=1,BL130=1))),1,0)) ->  | BJ125: =IF(OR(AND(N12="",N7=""),M104="",AND(BL128="",BL129="",BL130=""),AND(BK128="",BK129="",BK130="",BM128="",BM129="",BM130=""),),"",IF(AND(OR(AND(BJ131=1,BJ132=1),AND(BJ133=1,BJ134=1)),IF(BL128<>"",BL128=1,IF(BL129<>"",BL129=1,BL130=1)),OR(IF(BK128<>"",BK128=1,IF(BK129<>"",BK129=1,BK130=1)),IF(BM128<>"",BM128=1,IF(BM129<>"",BM129=1,BM130=1)))),1,0)) ->  | BK125: =IF(OR(BI125=1,BJ125=1),0,IF(AND(BI125=0,BJ125=0),1,"")) ->  | BL125: =IF(AND(BI125="",BJ125="",BK125=""),1,"") -> 1
B126: G49 | C126: =L!A625 -> Deposit taking | D126: =IF(M14="",IF(BM17="","",IF(BM17=FALSE,BJ117,BK117)),IF(M14=0,BJ117,IF(M12="",BK117,IF(M14/M12>=20%,BL117,IF(M14/M12<20%,BK117))))) ->  | F126: .1.9 | H126: =IF(H49="","",H49/SUM(H$41:H$50)) ->  | BI126: =L!$A$648 -> 1 | BJ126: =L!$A$649 -> 2 | BK126: =L!$A$650 -> 3
B127: G50 | C127: =L!A630 -> Financial sustainability | D127: =IF(BL118=1,"",HLOOKUP(1,BJ118:BL119,2,FALSE)) ->  | F127: .1.10 | H127: =IF(H50="","",H50/SUM(H$41:H$50)) ->  | BJ127: >0 for at least 2 of the last 3 years | BK127: >0 for at least 1 of the last 3 years | BL127: >-5% | BM127: Positive trend in last 2 years
B128: G51 | C128: =L!A643 -> Size | D128: =IF(BM120=1,"",HLOOKUP(1,BJ120:BM121,2,FALSE)) ->  | G128: =L!$A$1461 -> Total | H128: =IF(AND(H118="",H119="",H120="",H121="",H122="",H123="",H124="",H125="",H126="",H127=""),"",SUM(H118:H127)) ->  | I128: =IF(AND(I118="",I119="",I120="",I121="",I122="",I123="",I124="",I125="",I126="",I127=""),"",SUM(I118:I127)) ->  | BI128: ROA | BJ128: =IF(AND(Financial!CP205="",Financial!CN205="",Financial!CL205=""),"",IF(SUM(IF(Financial!CP205>0,1,0),IF(Financial!CN205>0,1,0),IF(Financial!CL205>0,1,0))>=2,1,0)) ->  | BK128: =IF(AND(Financial!CP205="",Financial!CN205="",Financial!CL205=""),"",IF(SUM(IF(Financial!CP205>0,1,0),IF(Financial!CN205>0,1,0),IF(Financial!CL205>0,1,0))>=1,1,0)) ->  | BL128: =IF(AND(Financial!CP205="",Financial!CN205="",Financial!CL205=""),"",IF(AND(Financial!CP205>-5%,Financial!CN205>-5%,Financial!CL205>-5%),1,0)) ->  | BM128: =IF(OR(Financial!CP205="",Financial!CN205=""),"",IF(Financial!CP205>Financial!CN205,1,0)) -> 
B129: G52 | C129: =L!$A$647 -> Tier | D129: =IF(BL125=1,"",HLOOKUP(1,BI125:BK126,2,FALSE)) ->  | G129: =L!$A$893 -> Growth and average | BI129: ROE | BJ129: =IF(AND(Financial!CP200="",Financial!CN200="",Financial!CL200=""),"",IF(SUM(IF(Financial!CP200>0,1,0),IF(Financial!CN200>0,1,0),IF(Financial!CL200>0,1,0))>=2,1,0)) ->  | BK129: =IF(AND(Financial!CP200="",Financial!CN200="",Financial!CL200=""),"",IF(SUM(IF(Financial!CP200>0,1,0),IF(Financial!CN200>0,1,0),IF(Financial!CL200>0,1,0))>=1,1,0)) ->  | BL129: =IF(AND(Financial!CP200="",Financial!CN200="",Financial!CL200=""),"",IF(AND(Financial!CP200>-20%,Financial!CN200>-20%,Financial!CL200>-20%),1,0)) ->  | BM129: =IF(OR(Financial!CP200="",Financial!CN200=""),"",IF(Financial!CP200>Financial!CN200,1,0)) -> 
B130: G53 | C130: =L!A654 -> Outreach | D130: =IF(M29="","",IF(M29<10000,BJ122,IF(M29>=100000,BL122,BK122))) ->  | F130: G77 | G130: =L!$A913 -> Growth in number of clients | I130: =IF(OR(I28="",H28="",H28=0),"",(I28-H28)/H28) ->  | J130: =IF(OR(J28="",I28="",I28=0),"",(J28-I28)/I28) ->  | K130: =IF(OR(K28="",J28="",J28=0),"",(K28-J28)/J28) ->  | L130: =IF(OR(L28="",J28="",J28=0),"",(L28-J28)/J28) ->  | M130: =IF(OR(M28="",L28="",L28=0),"",(M28-L28)/L28) ->  | N130: =IF(AND(M$64=12,M130<>""),M130,IF(AND(K28<>"",M28<>"",K28<>0),(M28-K28)/K28,IF(AND(L28<>"",M28<>"",L28<>0),(M28-L28)/L28*12/M$64,""))) ->  | O130: =IF(OR(O28="",$L28="",$L28=0),"",(O28-$L28)/$L28) ->  | AA130: =IF(AND(AA$62<>"",$M$64<>12,K28<>"",AA28<>"",K28<>0),(AA28-K28)/K28,"") ->  | AB130: =IF(AA$62<>"",IF(OR(AB28="",AA28="",AA28=0),"",(AB28-AA28)/AA28),IF(OR(AB28="",$O28="",$O28=0),"",(AB28-$O28)/$O28)) ->  | AM130: =IF($M$64=12,IF(OR(AM28="",L28="",L28=0),"",(AM28-L28)/L28),IF(OR(AM28="",K28="",K28=0),"",(AM28-K28)/K28)) ->  | AN130: =IF(AM$62<>"",IF(OR(AN28="",AM28="",AM28=0),"",(AN28-AM28)/AM28),IF(OR(AN28="",HLOOKUP(DATE(YEAR(AN$62),MONTH(AN$62)-1,DAY(AN$62)),$O$5:$Z$114,24,FALSE)="",HLOOKUP(DATE(YEAR(AN$62),MONTH(AN$62)-1,DAY(AN$62)),$O$5:$Z$114,24,FALSE)=0),"",(AN28-HLOOKUP(DATE(YEAR(AN$62),MONTH(AN$62)-1,DAY(AN$62)),$O$5:$Z$114,24,FALSE))/HLOOKUP(DATE(YEAR(AN$62),MONTH(AN$62)-1,DAY(AN$62)),$O$5:$Z$114,24,FALSE))) ->  | AO130: =IF(AN$62<>"",IF(OR(AO28="",AN28="",AN28=0),"",(AO28-AN28)/AN28),IF(OR(AO28="",HLOOKUP(DATE(YEAR(AO$62),MONTH(AO$62)-1,DAY(AO$62)),$O$5:$Z$114,24,FALSE)="",HLOOKUP(DATE(YEAR(AO$62),MONTH(AO$62)-1,DAY(AO$62)),$O$5:$Z$114,24,FALSE)=0),"",(AO28-HLOOKUP(DATE(YEAR(AO$62),MONTH(AO$62)-1,DAY(AO$62)),$O$5:$Z$114,24,FALSE))/HLOOKUP(DATE(YEAR(AO$62),MONTH(AO$62)-1,DAY(AO$62)),$O$5:$Z$114,24,FALSE))) ->  | AP130: =IF(AO$62<>"",IF(OR(AP28="",AO28="",AO28=0),"",(AP28-AO28)/AO28),IF(OR(AP28="",HLOOKUP(DATE(YEAR(AP$62),MONTH(AP$62)-1,DAY(AP$62)),$O$5:$Z$114,24,FALSE)="",HLOOKUP(DATE(YEAR(AP$62),MONTH(AP$62)-1,DAY(AP$62)),$O$5:$Z$114,24,FALSE)=0),"",(AP28-HLOOKUP(DATE(YEAR(AP$62),MONTH(AP$62)-1,DAY(AP$62)),$O$5:$Z$114,24,FALSE))/HLOOKUP(DATE(YEAR(AP$62),MONTH(AP$62)-1,DAY(AP$62)),$O$5:$Z$114,24,FALSE))) ->  | BI130: OSS | BJ130: =IF(AND(Financial!CP215="",Financial!CN215="",Financial!CL215=""),"",IF(SUM(IF(Financial!CP215>0,1,0),IF(Financial!CN215>0,1,0),IF(Financial!CL215>0,1,0))>=2,1,0)) ->  | BK130: =IF(AND(Financial!CP215="",Financial!CN215="",Financial!CL215=""),"",IF(SUM(IF(Financial!CP215>0,1,0),IF(Financial!CN215>0,1,0),IF(Financial!CL215>0,1,0))>=1,1,0)) ->  | BL130: =IF(AND(Financial!CP215="",Financial!CN215="",Financial!CL215=""),"",IF(AND(Financial!CP215>70%,Financial!CN215>70%,Financial!CL215>70%),1,0)) ->  | BM130: =IF(OR(Financial!CP215="",Financial!CN215=""),"",IF(Financial!CP215>Financial!CN215,1,0)) -> 
B131: G54 | C131: =L!A658 -> Target market | D131: =IF(OR(M7="",M29="",M104="",D132="",D132=0),"",HLOOKUP(1,BJ123:BO124,2,FALSE)) ->  | F131: G78 | G131: =L!$A914 -> Growth in number of active clients | I131: =IF(OR(I65="",H65="",H65=0),"",(I65-H65)/H65) ->  | J131: =IF(OR(J65="",I65="",I65=0),"",(J65-I65)/I65) ->  | K131: =IF(OR(K65="",J65="",J65=0),"",(K65-J65)/J65) ->  | L131: =IF(OR(L65="",J65="",J65=0),"",(L65-J65)/J65) ->  | M131: =IF(OR(M65="",L65="",L65=0),"",(M65-L65)/L65) ->  | N131: =IF(AND(M$64=12,M131<>""),M131,IF(AND(K65<>"",M65<>"",K65<>0),(M65-K65)/K65,IF(AND(L65<>"",M65<>"",L65<>0),(M65-L65)/L65*12/M$64,""))) ->  | O131: =IF(OR(O65="",$L65="",$L65=0),"",(O65-$L65)/$L65) ->  | AA131: =IF(AND(AA$62<>"",$M$64<>12,K65<>"",AA65<>"",K65<>0),(AA65-K65)/K65,"") ->  | AB131: =IF(AA$62<>"",IF(OR(AB65="",AA65="",AA65=0),"",(AB65-AA65)/AA65),IF(OR(AB65="",$O65="",,$O65=0),"",(AB65-$O65)/$O65)) ->  | AM131: =IF($M$64=12,IF(OR(AM65="",L65="",L65=0),"",(AM65-L65)/L65),IF(OR(AM65="",K65="",K65=0),"",(AM65-K65)/K65)) ->  | AN131: =IF(AM$62<>"",IF(OR(AN65="",AM65="",AM65=0),"",(AN65-AM65)/AM65),IF(OR(AN65="",HLOOKUP(DATE(YEAR(AN$62),MONTH(AN$62)-1,DAY(AN$62)),$O$5:$Z$114,60,FALSE)="",HLOOKUP(DATE(YEAR(AN$62),MONTH(AN$62)-1,DAY(AN$62)),$O$5:$Z$114,60,FALSE)=0),"",(AN65-HLOOKUP(DATE(YEAR(AN$62),MONTH(AN$62)-1,DAY(AN$62)),$O$5:$Z$114,60,FALSE))/HLOOKUP(DATE(YEAR(AN$62),MONTH(AN$62)-1,DAY(AN$62)),$O$5:$Z$114,60,FALSE))) ->  | AO131: =IF(AN$62<>"",IF(OR(AO65="",AN65="",AN65=0),"",(AO65-AN65)/AN65),IF(OR(AO65="",HLOOKUP(DATE(YEAR(AO$62),MONTH(AO$62)-1,DAY(AO$62)),$O$5:$Z$114,60,FALSE)="",HLOOKUP(DATE(YEAR(AO$62),MONTH(AO$62)-1,DAY(AO$62)),$O$5:$Z$114,60,FALSE)=0),"",(AO65-HLOOKUP(DATE(YEAR(AO$62),MONTH(AO$62)-1,DAY(AO$62)),$O$5:$Z$114,60,FALSE))/HLOOKUP(DATE(YEAR(AO$62),MONTH(AO$62)-1,DAY(AO$62)),$O$5:$Z$114,60,FALSE))) ->  | AP131: =IF(AO$62<>"",IF(OR(AP65="",AO65="",AO65=0),"",(AP65-AO65)/AO65),IF(OR(AP65="",HLOOKUP(DATE(YEAR(AP$62),MONTH(AP$62)-1,DAY(AP$62)),$O$5:$Z$114,60,FALSE)="",HLOOKUP(DATE(YEAR(AP$62),MONTH(AP$62)-1,DAY(AP$62)),$O$5:$Z$114,60,FALSE)=0),"",(AP65-HLOOKUP(DATE(YEAR(AP$62),MONTH(AP$62)-1,DAY(AP$62)),$O$5:$Z$114,60,FALSE))/HLOOKUP(DATE(YEAR(AP$62),MONTH(AP$62)-1,DAY(AP$62)),$O$5:$Z$114,60,FALSE))) ->  | BI131: =IF(OR(N12="",M104=""),"",IF(N12/M104>50000000,1,"")) ->  | BJ131: =IF(OR(N12="",M104="",),"",IF(N12/M104<=50000000,1,"")) -> 
B132: G55 | C132: =L!A634 -> GNI per capita, Athlas method, current USD | D132: =IF(Essential!D10="","",VLOOKUP(Essential!D$10,BI$148:BU$361,10,FALSE)) ->  | F132: G79 | G132: =L!$A$916 -> Growth in number of borrowers | I132: =IF(OR(I29="",H29="",H29=0),"",(I29-H29)/H29) ->  | J132: =IF(OR(J29="",I29="",I29=0),"",(J29-I29)/I29) ->  | K132: =IF(OR(K29="",J29="",J29=0),"",(K29-J29)/J29) ->  | L132: =IF(OR(L29="",J29="",J29=0),"",(L29-J29)/J29) ->  | M132: =IF(OR(M29="",L29="",L29=0),"",(M29-L29)/L29) ->  | N132: =IF(AND(M$64=12,M132<>""),M132,IF(AND(K29<>"",M29<>"",K29<>0),(M29-K29)/K29,IF(AND(L29<>"",M29<>"",L29<>0),(M29-L29)/L29*12/M$64,""))) ->  | O132: =IF(OR(O29="",$L29="",$L29=0),"",(O29-$L29)/$L29) ->  | AA132: =IF(AND(AA$62<>"",$M$64<>12,K29<>"",AA29<>"",K29<>0),(AA29-K29)/K29,"") ->  | AB132: =IF(AA$62<>"",IF(OR(AB29="",AA29="",AA29=0),"",(AB29-AA29)/AA29),IF(OR(AB29="",$O29="",$O29=0),"",(AB29-$O29)/$O29)) ->  | AM132: =IF($M$64=12,IF(OR(AM29="",L29="",L29=0),"",(AM29-L29)/L29),IF(OR(AM29="",K29="",K29=0),"",(AM29-K29)/K29)) ->  | AN132: =IF(AM$62<>"",IF(OR(AN29="",AM29="",AM29=0),"",(AN29-AM29)/AM29),IF(OR(AN29="",HLOOKUP(DATE(YEAR(AN$62),MONTH(AN$62)-1,DAY(AN$62)),$O$5:$Z$114,25,FALSE)="",HLOOKUP(DATE(YEAR(AN$62),MONTH(AN$62)-1,DAY(AN$62)),$O$5:$Z$114,25,FALSE)=0),"",(AN29-HLOOKUP(DATE(YEAR(AN$62),MONTH(AN$62)-1,DAY(AN$62)),$O$5:$Z$114,25,FALSE))/HLOOKUP(DATE(YEAR(AN$62),MONTH(AN$62)-1,DAY(AN$62)),$O$5:$Z$114,25,FALSE))) ->  | AO132: =IF(AN$62<>"",IF(OR(AO29="",AN29="",AN29=0),"",(AO29-AN29)/AN29),IF(OR(AO29="",HLOOKUP(DATE(YEAR(AO$62),MONTH(AO$62)-1,DAY(AO$62)),$O$5:$Z$114,25,FALSE)="",HLOOKUP(DATE(YEAR(AO$62),MONTH(AO$62)-1,DAY(AO$62)),$O$5:$Z$114,25,FALSE)=0),"",(AO29-HLOOKUP(DATE(YEAR(AO$62),MONTH(AO$62)-1,DAY(AO$62)),$O$5:$Z$114,25,FALSE))/HLOOKUP(DATE(YEAR(AO$62),MONTH(AO$62)-1,DAY(AO$62)),$O$5:$Z$114,25,FALSE))) ->  | AP132: =IF(AO$62<>"",IF(OR(AP29="",AO29="",AO29=0),"",(AP29-AO29)/AO29),IF(OR(AP29="",HLOOKUP(DATE(YEAR(AP$62),MONTH(AP$62)-1,DAY(AP$62)),$O$5:$Z$114,25,FALSE)="",HLOOKUP(DATE(YEAR(AP$62),MONTH(AP$62)-1,DAY(AP$62)),$O$5:$Z$114,25,FALSE)=0),"",(AP29-HLOOKUP(DATE(YEAR(AP$62),MONTH(AP$62)-1,DAY(AP$62)),$O$5:$Z$114,25,FALSE))/HLOOKUP(DATE(YEAR(AP$62),MONTH(AP$62)-1,DAY(AP$62)),$O$5:$Z$114,25,FALSE))) ->  | BI132: =IF(OR(N7="",M104=""),"",IF(N7/M104>50000000,1,"")) ->  | BJ132: =IF(OR(N12="",M104="",),"",IF(N12/M104>5000000,1,"")) -> 
B133: G56 | C133: =L!$A$635 -> Human Development Index | D133: =IF(Essential!D10="","",VLOOKUP(Essential!D$10,BI$148:BU$361,11,FALSE)) ->  | F133: G80 | G133: =L!$A$915 -> Growth in number of borrowers, average last 3 periods | J133: =IF(AND(H132="",I132="",J132=""),"",AVERAGE(H132:J132)) ->  | K133: =IF(AND(I132="",J132="",K132=""),"",AVERAGE(I132:K132)) ->  | L133: =IF(AND(L132="",J132="",I132=""),"",AVERAGE(I132,J132,L132)) ->  | M133: =IF(AND(M132="",L132="",J132=""),"",AVERAGE(J132,L132,M132)) ->  | N133: =IF(AND(M$64=12,M133<>""),M133,IF(AND(K132<>"",M132<>""),AVERAGE(M132,K132),IF(AND(L132<>"",M132<>""),AVERAGE(M132,L132),""))) ->  | BJ133: =IF(OR(N7="",M104="",),"",IF(N7/M104<=50000000,1,"")) -> 
B134: G57 | C134: =L!$A$641 -> Rural population density | D134: =IF(Essential!D10="","",VLOOKUP(Essential!D$10,BI$148:BU$361,13,FALSE)) ->  | F134: G81 | G134: =L!$A917 -> Growth in number of loans | I134: =IF(OR(I67="",H67="",H67=0),"",(I67-H67)/H67) ->  | J134: =IF(OR(J67="",I67="",I67=0),"",(J67-I67)/I67) ->  | K134: =IF(OR(K67="",J67="",J67=0),"",(K67-J67)/J67) ->  | L134: =IF(OR(L67="",J67="",J67=0),"",(L67-J67)/J67) ->  | M134: =IF(OR(M67="",L67="",L67=0),"",(M67-L67)/L67) ->  | N134: =IF(AND(M$64=12,M134<>""),M134,IF(AND(K67<>"",M67<>"",K67<>0),(M67-K67)/K67,IF(AND(L67<>"",M67<>"",L67<>0),(M67-L67)/L67*12/M$64,""))) ->  | O134: =IF(OR(O67="",$L67="",$L67=0),"",(O67-$L67)/$L67) ->  | AA134: =IF(AND(AA$62<>"",$M$64<>12,K67<>"",AA67<>"",K67<>0),(AA67-K67)/K67,"") ->  | AB134: =IF(AA$62<>"",IF(OR(AB67="",AA67="",AA67=0),"",(AB67-AA67)/AA67),IF(OR(AB67="",$O67="",$O67=0),"",(AB67-$O67)/$O67)) ->  | AM134: =IF($M$64=12,IF(OR(AM67="",L67="",L67=0),"",(AM67-L67)/L67),IF(OR(AM67="",K67="",K67=0),"",(AM67-K67)/K67)) ->  | AN134: =IF(AM$62<>"",IF(OR(AN67="",AM67="",AM67=0),"",(AN67-AM67)/AM67),IF(OR(AN67="",HLOOKUP(DATE(YEAR(AN$62),MONTH(AN$62)-1,DAY(AN$62)),$O$5:$Z$114,62,FALSE)="",HLOOKUP(DATE(YEAR(AN$62),MONTH(AN$62)-1,DAY(AN$62)),$O$5:$Z$114,62,FALSE)=0),"",(AN67-HLOOKUP(DATE(YEAR(AN$62),MONTH(AN$62)-1,DAY(AN$62)),$O$5:$Z$114,62,FALSE))/HLOOKUP(DATE(YEAR(AN$62),MONTH(AN$62)-1,DAY(AN$62)),$O$5:$Z$114,62,FALSE))) ->  | AO134: =IF(AN$62<>"",IF(OR(AO67="",AN67="",AN67=0),"",(AO67-AN67)/AN67),IF(OR(AO67="",HLOOKUP(DATE(YEAR(AO$62),MONTH(AO$62)-1,DAY(AO$62)),$O$5:$Z$114,62,FALSE)="",HLOOKUP(DATE(YEAR(AO$62),MONTH(AO$62)-1,DAY(AO$62)),$O$5:$Z$114,62,FALSE)=0),"",(AO67-HLOOKUP(DATE(YEAR(AO$62),MONTH(AO$62)-1,DAY(AO$62)),$O$5:$Z$114,62,FALSE))/HLOOKUP(DATE(YEAR(AO$62),MONTH(AO$62)-1,DAY(AO$62)),$O$5:$Z$114,62,FALSE))) ->  | AP134: =IF(AO$62<>"",IF(OR(AP67="",AO67="",AO67=0),"",(AP67-AO67)/AO67),IF(OR(AP67="",HLOOKUP(DATE(YEAR(AP$62),MONTH(AP$62)-1,DAY(AP$62)),$O$5:$Z$114,62,FALSE)="",HLOOKUP(DATE(YEAR(AP$62),MONTH(AP$62)-1,DAY(AP$62)),$O$5:$Z$114,62,FALSE)=0),"",(AP67-HLOOKUP(DATE(YEAR(AP$62),MONTH(AP$62)-1,DAY(AP$62)),$O$5:$Z$114,62,FALSE))/HLOOKUP(DATE(YEAR(AP$62),MONTH(AP$62)-1,DAY(AP$62)),$O$5:$Z$114,62,FALSE))) ->  | BJ134: =IF(OR(N7="",M104="",),"",IF(N7/M104>5000000,1,"")) -> 
B135: G123 | C135: =L!$A$4698 -> Average number of household members | D135: =IF(Essential!D10="","",VLOOKUP(Essential!D$10,BI$148:BV$361,14,FALSE)) ->  | F135: G82 | G135: =L!$A918 -> Growth in number of savers | I135: =IF(OR(I30="",H30="",H30=0),"",(I30-H30)/H30) ->  | L135: =IF(OR(L30="",J30="",J30=0),"",(L30-J30)/J30) ->  | M135: =IF(OR(M30="",L30="",L30=0),"",(M30-L30)/L30) ->  | N135: =IF(AND(M$64=12,M135<>""),M135,IF(AND(K30<>"",M30<>"",K30<>0),(M30-K30)/K30,IF(AND(L30<>"",M30<>"",L30<>0),(M30-L30)/L30*12/M$64,""))) ->  | O135: =IF(OR(O30="",$L30="",$L30=0),"",(O30-$L30)/$L30) ->  | AA135: =IF(AND(AA$62<>"",$M$64<>12,K30<>"",AA30<>"",K30<>0),(AA30-K30)/K30,"") ->  | AB135: =IF(AA$62<>"",IF(OR(AB30="",AA30="",AA30=0),"",(AB30-AA30)/AA30),IF(OR(AB30="",$O30="",$O30=0),"",(AB30-$O30)/$O30)) ->  | AM135: =IF($M$64=12,IF(OR(AM30="",L30="",L30=0),"",(AM30-L30)/L30),IF(OR(AM30="",K30="",K30=0),"",(AM30-K30)/K30)) ->  | AN135: =IF(AM$62<>"",IF(OR(AN30="",AM30="",AM30=0),"",(AN30-AM30)/AM30),IF(OR(AN30="",HLOOKUP(DATE(YEAR(AN$62),MONTH(AN$62)-1,DAY(AN$62)),$O$5:$Z$114,26,FALSE)="",HLOOKUP(DATE(YEAR(AN$62),MONTH(AN$62)-1,DAY(AN$62)),$O$5:$Z$114,26,FALSE)=0),"",(AN30-HLOOKUP(DATE(YEAR(AN$62),MONTH(AN$62)-1,DAY(AN$62)),$O$5:$Z$114,26,FALSE))/HLOOKUP(DATE(YEAR(AN$62),MONTH(AN$62)-1,DAY(AN$62)),$O$5:$Z$114,26,FALSE))) ->  | AO135: =IF(AN$62<>"",IF(OR(AO30="",AN30="",AN30=0),"",(AO30-AN30)/AN30),IF(OR(AO30="",HLOOKUP(DATE(YEAR(AO$62),MONTH(AO$62)-1,DAY(AO$62)),$O$5:$Z$114,27,FALSE)="",HLOOKUP(DATE(YEAR(AO$62),MONTH(AO$62)-1,DAY(AO$62)),$O$5:$Z$114,27,FALSE)=0),"",(AO30-HLOOKUP(DATE(YEAR(AO$62),MONTH(AO$62)-1,DAY(AO$62)),$O$5:$Z$114,27,FALSE))/HLOOKUP(DATE(YEAR(AO$62),MONTH(AO$62)-1,DAY(AO$62)),$O$5:$Z$114,27,FALSE))) ->  | AP135: =IF(AO$62<>"",IF(OR(AP30="",AO30="",AO30=0),"",(AP30-AO30)/AO30),IF(OR(AP30="",HLOOKUP(DATE(YEAR(AP$62),MONTH(AP$62)-1,DAY(AP$62)),$O$5:$Z$114,26,FALSE)="",HLOOKUP(DATE(YEAR(AP$62),MONTH(AP$62)-1,DAY(AP$62)),$O$5:$Z$114,26,FALSE)=0),"",(AP30-HLOOKUP(DATE(YEAR(AP$62),MONTH(AP$62)-1,DAY(AP$62)),$O$5:$Z$114,26,FALSE))/HLOOKUP(DATE(YEAR(AP$62),MONTH(AP$62)-1,DAY(AP$62)),$O$5:$Z$114,26,FALSE))) -> 
F136: G125 | G136: =L!$A4797 -> Growth in number of non-credit (cash) clients | L136: =IF(OR(L31="",J31="",J31=0),"",(L31-J31)/J31) ->  | M136: =IF(OR(M31="",L31="",L31=0),"",(M31-L31)/L31) ->  | N136: =IF(AND(M$64=12,M136<>""),M136,IF(AND(K31<>"",M31<>"",K31<>0),(M31-K31)/K31,IF(AND(L31<>"",M31<>"",L31<>0),(M31-L31)/L31*12/M$64,""))) ->  | AA136: =IF(AND(AA$62<>"",$M$64<>12,K31<>"",AA31<>"",K31<>0),(AA31-K31)/K31,"") ->  | AB136: =IF(AA$62<>"",IF(OR(AB31="",AA31="",AA31=0),"",(AB31-AA31)/AA31),IF(OR(AB31="",$O31="",$O31=0),"",(AB31-$O31)/$O31)) ->  | AC136: =IF(AB$62<>"",IF(OR(AC31="",AB31="",AB31=0),"",(AC31-AB31)/AB31),IF(OR(AC31="",$O31="",$O31=0),"",(AC31-$O31)/$O31)) ->  | AD136: =IF(AC$62<>"",IF(OR(AD31="",AC31="",AC31=0),"",(AD31-AC31)/AC31),IF(OR(AD31="",$O31="",$O31=0),"",(AD31-$O31)/$O31)) ->  | AE136: =IF(AD$62<>"",IF(OR(AE31="",AD31="",AD31=0),"",(AE31-AD31)/AD31),IF(OR(AE31="",$O31="",$O31=0),"",(AE31-$O31)/$O31)) ->  | AF136: =IF(AE$62<>"",IF(OR(AF31="",AE31="",AE31=0),"",(AF31-AE31)/AE31),IF(OR(AF31="",$O31="",$O31=0),"",(AF31-$O31)/$O31)) ->  | AG136: =IF(AF$62<>"",IF(OR(AG31="",AF31="",AF31=0),"",(AG31-AF31)/AF31),IF(OR(AG31="",$O31="",$O31=0),"",(AG31-$O31)/$O31)) ->  | AH136: =IF(AG$62<>"",IF(OR(AH31="",AG31="",AG31=0),"",(AH31-AG31)/AG31),IF(OR(AH31="",$O31="",$O31=0),"",(AH31-$O31)/$O31)) ->  | AI136: =IF(AH$62<>"",IF(OR(AI31="",AH31="",AH31=0),"",(AI31-AH31)/AH31),IF(OR(AI31="",$O31="",$O31=0),"",(AI31-$O31)/$O31)) ->  | AJ136: =IF(AI$62<>"",IF(OR(AJ31="",AI31="",AI31=0),"",(AJ31-AI31)/AI31),IF(OR(AJ31="",$O31="",$O31=0),"",(AJ31-$O31)/$O31)) ->  | AK136: =IF(AJ$62<>"",IF(OR(AK31="",AJ31="",AJ31=0),"",(AK31-AJ31)/AJ31),IF(OR(AK31="",$O31="",$O31=0),"",(AK31-$O31)/$O31)) ->  | AL136: =IF(AK$62<>"",IF(OR(AL31="",AK31="",AK31=0),"",(AL31-AK31)/AK31),IF(OR(AL31="",$O31="",$O31=0),"",(AL31-$O31)/$O31)) ->  | AM136: =IF($M$64=12,IF(OR(AM31="",L31="",L31=0),"",(AM31-L31)/L31),IF(OR(AM31="",K31="",K31=0),"",(AM31-K31)/K31)) ->  | AN136: =IF(AM$62<>"",IF(OR(AN31="",AM31="",AM31=0),"",(AN31-AM31)/AM31),IF(OR(AN31="",HLOOKUP(DATE(YEAR(AN$62),MONTH(AN$62)-1,DAY(AN$62)),$O$5:$Z$114,26,FALSE)="",HLOOKUP(DATE(YEAR(AN$62),MONTH(AN$62)-1,DAY(AN$62)),$O$5:$Z$114,26,FALSE)=0),"",(AN31-HLOOKUP(DATE(YEAR(AN$62),MONTH(AN$62)-1,DAY(AN$62)),$O$5:$Z$114,26,FALSE))/HLOOKUP(DATE(YEAR(AN$62),MONTH(AN$62)-1,DAY(AN$62)),$O$5:$Z$114,26,FALSE))) ->  | AO136: =IF(AN$62<>"",IF(OR(AO31="",AN31="",AN31=0),"",(AO31-AN31)/AN31),IF(OR(AO31="",HLOOKUP(DATE(YEAR(AO$62),MONTH(AO$62)-1,DAY(AO$62)),$O$5:$Z$114,27,FALSE)="",HLOOKUP(DATE(YEAR(AO$62),MONTH(AO$62)-1,DAY(AO$62)),$O$5:$Z$114,27,FALSE)=0),"",(AO31-HLOOKUP(DATE(YEAR(AO$62),MONTH(AO$62)-1,DAY(AO$62)),$O$5:$Z$114,27,FALSE))/HLOOKUP(DATE(YEAR(AO$62),MONTH(AO$62)-1,DAY(AO$62)),$O$5:$Z$114,27,FALSE))) ->  | AP136: =IF(AO$62<>"",IF(OR(AP31="",AO31="",AO31=0),"",(AP31-AO31)/AO31),IF(OR(AP31="",HLOOKUP(DATE(YEAR(AP$62),MONTH(AP$62)-1,DAY(AP$62)),$O$5:$Z$114,26,FALSE)="",HLOOKUP(DATE(YEAR(AP$62),MONTH(AP$62)-1,DAY(AP$62)),$O$5:$Z$114,26,FALSE)=0),"",(AP31-HLOOKUP(DATE(YEAR(AP$62),MONTH(AP$62)-1,DAY(AP$62)),$O$5:$Z$114,26,FALSE))/HLOOKUP(DATE(YEAR(AP$62),MONTH(AP$62)-1,DAY(AP$62)),$O$5:$Z$114,26,FALSE))) -> 
F137: G83 | G137: =L!$A919 -> Growth in number of saving accounts | I137: =IF(OR(I71="",H71="",H71=0),"",(I71-H71)/H71) ->  | L137: =IF(OR(L71="",J71="",J71=0),"",(L71-J71)/J71) ->  | M137: =IF(OR(M71="",L71="",L71=0),"",(M71-L71)/L71) ->  | N137: =IF(AND(M$64=12,M137<>""),M137,IF(AND(K71<>"",M71<>"",K71<>0),(M71-K71)/K71,IF(AND(L71<>"",M71<>"",L71<>0),(M71-L71)/L71*12/M$64,""))) ->  | O137: =IF(OR(O71="",$L71="",$L71=0),"",(O71-$L71)/$L71) ->  | AA137: =IF(AND(AA$62<>"",$M$64<>12,K71<>"",AA71<>"",K71<>0),(AA71-K71)/K71,"") ->  | AB137: =IF(AA$62<>"",IF(OR(AB71="",AA71="",AA71=0),"",(AB71-AA71)/AA71),IF(OR(AB71="",$O71="",$O71=0),"",(AB71-$O71)/$O71)) ->  | AM137: =IF($M$64=12,IF(OR(AM71="",L71="",L71=0),"",(AM71-L71)/L71),IF(OR(AM71="",K71="",K71=0),"",(AM71-K71)/K71)) ->  | AN137: =IF(AM$62<>"",IF(OR(AN71="",AM71="",AM71=0),"",(AN71-AM71)/AM71),IF(OR(AN71="",HLOOKUP(DATE(YEAR(AN$62),MONTH(AN$62)-1,DAY(AN$62)),$O$5:$Z$114,64,FALSE)="",HLOOKUP(DATE(YEAR(AN$62),MONTH(AN$62)-1,DAY(AN$62)),$O$5:$Z$114,64,FALSE)=0),"",(AN71-HLOOKUP(DATE(YEAR(AN$62),MONTH(AN$62)-1,DAY(AN$62)),$O$5:$Z$114,64,FALSE))/HLOOKUP(DATE(YEAR(AN$62),MONTH(AN$62)-1,DAY(AN$62)),$O$5:$Z$114,64,FALSE))) ->  | AO137: =IF(AN$62<>"",IF(OR(AO71="",AN71="",AN71=0),"",(AO71-AN71)/AN71),IF(OR(AO71="",HLOOKUP(DATE(YEAR(AO$62),MONTH(AO$62)-1,DAY(AO$62)),$O$5:$Z$114,64,FALSE)="",HLOOKUP(DATE(YEAR(AO$62),MONTH(AO$62)-1,DAY(AO$62)),$O$5:$Z$114,64,FALSE)=0),"",(AO71-HLOOKUP(DATE(YEAR(AO$62),MONTH(AO$62)-1,DAY(AO$62)),$O$5:$Z$114,64,FALSE))/HLOOKUP(DATE(YEAR(AO$62),MONTH(AO$62)-1,DAY(AO$62)),$O$5:$Z$114,64,FALSE))) ->  | AP137: =IF(AO$62<>"",IF(OR(AP71="",AO71="",AO71=0),"",(AP71-AO71)/AO71),IF(OR(AP71="",HLOOKUP(DATE(YEAR(AP$62),MONTH(AP$62)-1,DAY(AP$62)),$O$5:$Z$114,64,FALSE)="",HLOOKUP(DATE(YEAR(AP$62),MONTH(AP$62)-1,DAY(AP$62)),$O$5:$Z$114,64,FALSE)=0),"",(AP71-HLOOKUP(DATE(YEAR(AP$62),MONTH(AP$62)-1,DAY(AP$62)),$O$5:$Z$114,64,FALSE))/HLOOKUP(DATE(YEAR(AP$62),MONTH(AP$62)-1,DAY(AP$62)),$O$5:$Z$114,64,FALSE))) -> 
F138: G84 | G138: =L!$A920 -> Growth in number of active savings accounts | L138: =IF(OR(L72="",J72="",J72=0),"",(L72-J72)/J72) ->  | M138: =IF(OR(M72="",L72="",L72=0),"",(M72-L72)/L72) ->  | N138: =IF(AND(M$64=12,M138<>""),M138,IF(AND(K72<>"",M72<>"",K72<>0),(M72-K72)/K72,IF(AND(L72<>"",M72<>"",L72<>0),(M72-L72)/L72*12/M$64,""))) ->  | O138: =IF(OR(O72="",$L72="",$L72=0),"",(O72-$L72)/$L72) ->  | AA138: =IF(AND(AA$62<>"",$M$64<>12,K72<>"",AA72<>"",K72<>0),(AA72-K72)/K72,"") ->  | AB138: =IF(AA$62<>"",IF(OR(AB72="",AA72="",AA72=0),"",(AB72-AA72)/AA72),IF(OR(AB72="",$O72="",$O72=0),"",(AB72-$O72)/$O72)) ->  | AM138: =IF($M$64=12,IF(OR(AM72="",L72="",L72=0),"",(AM72-L72)/L72),IF(OR(AM72="",K72="",K72=0),"",(AM72-K72)/K72)) ->  | AN138: =IF(AM$62<>"",IF(OR(AN72="",AM72="",AM72=0),"",(AN72-AM72)/AM72),IF(OR(AN72="",HLOOKUP(DATE(YEAR(AN$62),MONTH(AN$62)-1,DAY(AN$62)),$O$5:$Z$114,65,FALSE)="",HLOOKUP(DATE(YEAR(AN$62),MONTH(AN$62)-1,DAY(AN$62)),$O$5:$Z$114,65,FALSE)=0),"",(AN72-HLOOKUP(DATE(YEAR(AN$62),MONTH(AN$62)-1,DAY(AN$62)),$O$5:$Z$114,65,FALSE))/HLOOKUP(DATE(YEAR(AN$62),MONTH(AN$62)-1,DAY(AN$62)),$O$5:$Z$114,65,FALSE))) ->  | AO138: =IF(AN$62<>"",IF(OR(AO72="",AN72="",AN72=0),"",(AO72-AN72)/AN72),IF(OR(AO72="",HLOOKUP(DATE(YEAR(AO$62),MONTH(AO$62)-1,DAY(AO$62)),$O$5:$Z$114,65,FALSE)="",HLOOKUP(DATE(YEAR(AO$62),MONTH(AO$62)-1,DAY(AO$62)),$O$5:$Z$114,65,FALSE)=0),"",(AO72-HLOOKUP(DATE(YEAR(AO$62),MONTH(AO$62)-1,DAY(AO$62)),$O$5:$Z$114,65,FALSE))/HLOOKUP(DATE(YEAR(AO$62),MONTH(AO$62)-1,DAY(AO$62)),$O$5:$Z$114,65,FALSE))) ->  | AP138: =IF(AO$62<>"",IF(OR(AP72="",AO72="",AO72=0),"",(AP72-AO72)/AO72),IF(OR(AP72="",HLOOKUP(DATE(YEAR(AP$62),MONTH(AP$62)-1,DAY(AP$62)),$O$5:$Z$114,65,FALSE)="",HLOOKUP(DATE(YEAR(AP$62),MONTH(AP$62)-1,DAY(AP$62)),$O$5:$Z$114,65,FALSE)=0),"",(AP72-HLOOKUP(DATE(YEAR(AP$62),MONTH(AP$62)-1,DAY(AP$62)),$O$5:$Z$114,65,FALSE))/HLOOKUP(DATE(YEAR(AP$62),MONTH(AP$62)-1,DAY(AP$62)),$O$5:$Z$114,65,FALSE))) -> 
F139: G85 | G139: =L!$A921 -> Growth in number of staff | I139: =IF(OR(I32="",H32="",H32=0),"",(I32-H32)/H32) ->  | J139: =IF(OR(J32="",I32="",I32=0),"",(J32-I32)/I32) ->  | K139: =IF(OR(K32="",J32="",J32=0),"",(K32-J32)/J32) ->  | L139: =IF(OR(L32="",J32="",J32=0),"",(L32-J32)/J32) ->  | M139: =IF(OR(M32="",L32="",L32=0),"",(M32-L32)/L32) ->  | N139: =IF(AND(M$64=12,M139<>""),M139,IF(AND(K32<>"",M32<>"",K32<>0),(M32-K32)/K32,IF(AND(L32<>"",M32<>"",L32<>0),(M32-L32)/L32*12/M$64,""))) ->  | O139: =IF(OR(O32="",$L32="",$L32=0),"",(O32-$L32)/$L32) ->  | AA139: =IF(AND(AA$62<>"",$M$64<>12,K32<>"",AA32<>"",K32<>0),(AA32-K32)/K32,"") ->  | AB139: =IF(AA$62<>"",IF(OR(AB32="",AA32="",AA32=0),"",(AB32-AA32)/AA32),IF(OR(AB32="",$O32="",$O32=0),"",(AB32-$O32)/$O32)) ->  | AM139: =IF($M$64=12,IF(OR(AM32="",L32="",L32=0),"",(AM32-L32)/L32),IF(OR(AM32="",K32="",K32=0),"",(AM32-K32)/K32)) ->  | AN139: =IF(AM$62<>"",IF(OR(AN32="",AM32="",AM32=0),"",(AN32-AM32)/AM32),IF(OR(AN32="",HLOOKUP(DATE(YEAR(AN$62),MONTH(AN$62)-1,DAY(AN$62)),$O$5:$Z$114,27,FALSE)="",HLOOKUP(DATE(YEAR(AN$62),MONTH(AN$62)-1,DAY(AN$62)),$O$5:$Z$114,27,FALSE)=0),"",(AN32-HLOOKUP(DATE(YEAR(AN$62),MONTH(AN$62)-1,DAY(AN$62)),$O$5:$Z$114,27,FALSE))/HLOOKUP(DATE(YEAR(AN$62),MONTH(AN$62)-1,DAY(AN$62)),$O$5:$Z$114,27,FALSE))) ->  | AO139: =IF(AN$62<>"",IF(OR(AO32="",AN32="",AN32=0),"",(AO32-AN32)/AN32),IF(OR(AO32="",HLOOKUP(DATE(YEAR(AO$62),MONTH(AO$62)-1,DAY(AO$62)),$O$5:$Z$114,27,FALSE)="",HLOOKUP(DATE(YEAR(AO$62),MONTH(AO$62)-1,DAY(AO$62)),$O$5:$Z$114,27,FALSE)=0),"",(AO32-HLOOKUP(DATE(YEAR(AO$62),MONTH(AO$62)-1,DAY(AO$62)),$O$5:$Z$114,27,FALSE))/HLOOKUP(DATE(YEAR(AO$62),MONTH(AO$62)-1,DAY(AO$62)),$O$5:$Z$114,27,FALSE))) ->  | AP139: =IF(AO$62<>"",IF(OR(AP32="",AO32="",AO32=0),"",(AP32-AO32)/AO32),IF(OR(AP32="",HLOOKUP(DATE(YEAR(AP$62),MONTH(AP$62)-1,DAY(AP$62)),$O$5:$Z$114,27,FALSE)="",HLOOKUP(DATE(YEAR(AP$62),MONTH(AP$62)-1,DAY(AP$62)),$O$5:$Z$114,27,FALSE)=0),"",(AP32-HLOOKUP(DATE(YEAR(AP$62),MONTH(AP$62)-1,DAY(AP$62)),$O$5:$Z$114,27,FALSE))/HLOOKUP(DATE(YEAR(AP$62),MONTH(AP$62)-1,DAY(AP$62)),$O$5:$Z$114,27,FALSE))) -> 
F140: G86 | G140: =L!$A$927 -> Average number of clients | I140: =IF(AND(I28="",H28=""),"",AVERAGE(I28,H28)) ->  | L140: =IF(AND(L28="",J28=""),"",AVERAGE(L28,J28)) ->  | M140: =IF(AND(M28="",L28=""),"",AVERAGE(M28,L28)) ->  | N140: =IF(AND(M$64=12,M140<>""),M140,IF(AND(K28<>"",M28<>""),AVERAGE(M28,K28),IF(AND(L28<>"",M28<>""),AVERAGE(M28,L28),""))) ->  | O140: =IF(OR(O28="",$L28=""),"",AVERAGE(O28,$L28)) ->  | AA140: =IF(AND(AA$62<>"",$M$64<>12,K28<>"",AA28<>""),AVERAGE(AA28,K28),"") ->  | AB140: =IF(AA$62<>"",IF(AND(AB28="",AA28=""),"",AVERAGE(AB28,AA28)),IF(AND(AB28="",$O28=""),"",AVERAGE(AB28,$O28))) ->  | AM140: =IF($M$64=12,IF(AND(AM28="",L28=""),"",AVERAGE(AM28,L28)),IF(AND(AM28="",K28=""),"",AVERAGE(AM28,K28))) ->  | AN140: =IF(AM$62<>"",IF(AND(AN28="",AM28=""),"",AVERAGE(AN28,AM28)),IF(AND(AN28="",HLOOKUP(DATE(YEAR(AN$62),MONTH(AN$62)-1,DAY(AN$62)),$O$5:$Z$114,24,FALSE)=""),"",AVERAGE(AN28,HLOOKUP(DATE(YEAR(AN$62),MONTH(AN$62)-1,DAY(AN$62)),$O$5:$Z$114,24,FALSE)))) ->  | AO140: =IF(AN$62<>"",IF(AND(AO28="",AN28=""),"",AVERAGE(AO28,AN28)),IF(AND(AO28="",HLOOKUP(DATE(YEAR(AO$62),MONTH(AO$62)-1,DAY(AO$62)),$O$5:$Z$114,24,FALSE)=""),"",AVERAGE(AO28,HLOOKUP(DATE(YEAR(AO$62),MONTH(AO$62)-1,DAY(AO$62)),$O$5:$Z$114,24,FALSE)))) ->  | AP140: =IF(AO$62<>"",IF(AND(AP28="",AO28=""),"",AVERAGE(AP28,AO28)),IF(AND(AP28="",HLOOKUP(DATE(YEAR(AP$62),MONTH(AP$62)-1,DAY(AP$62)),$O$5:$Z$114,24,FALSE)=""),"",AVERAGE(AP28,HLOOKUP(DATE(YEAR(AP$62),MONTH(AP$62)-1,DAY(AP$62)),$O$5:$Z$114,24,FALSE)))) -> 
F141: G87 | G141: =L!$A$928 -> Average number of borrowers | L141: =IF(AND(L29="",J29=""),"",AVERAGE(L29,J29)) ->  | M141: =IF(AND(M29="",L29=""),"",AVERAGE(M29,L29)) ->  | N141: =IF(AND(M$64=12,M141<>""),M141,IF(AND(K29<>"",M29<>""),AVERAGE(M29,K29),IF(AND(L29<>"",M29<>""),AVERAGE(M29,L29),""))) ->  | O141: =IF(OR(O29="",$L29=""),"",AVERAGE(O29,$L29)) ->  | AA141: =IF(AND(AA$62<>"",$M$64<>12,K29<>"",AA29<>""),AVERAGE(AA29,K29),"") ->  | AB141: =IF(AA$62<>"",IF(AND(AB29="",AA29=""),"",AVERAGE(AB29,AA29)),IF(AND(AB29="",$O29=""),"",AVERAGE(AB29,$O29))) ->  | AM141: =IF($M$64=12,IF(AND(AM29="",L29=""),"",AVERAGE(AM29,L29)),IF(AND(AM29="",K29=""),"",AVERAGE(AM29,K29))) ->  | AN141: =IF(AM$62<>"",IF(AND(AN29="",AM29=""),"",AVERAGE(AN29,AM29)),IF(AND(AN29="",HLOOKUP(DATE(YEAR(AN$62),MONTH(AN$62)-1,DAY(AN$62)),$O$5:$Z$114,25,FALSE)=""),"",AVERAGE(AN29,HLOOKUP(DATE(YEAR(AN$62),MONTH(AN$62)-1,DAY(AN$62)),$O$5:$Z$114,25,FALSE)))) -> 
F142: G127 | G142: =L!$A$4799 -> Average number of savers | L142: =IF(AND(L30="",J30=""),"",AVERAGE(L30,J30)) ->  | M142: =IF(AND(M30="",L30=""),"",AVERAGE(M30,L30)) ->  | N142: =IF(AND(M$64=12,M142<>""),M142,IF(AND(K30<>"",M30<>""),AVERAGE(M30,K30),IF(AND(L30<>"",M30<>""),AVERAGE(M30,L30),""))) ->  | O142: =IF(OR(O30="",$L30=""),"",AVERAGE(O30,$L30)) ->  | AA142: =IF(AND(AA$62<>"",$M$64<>12,K30<>"",AA30<>""),AVERAGE(AA30,K30),"") ->  | AB142: =IF(AA$62<>"",IF(AND(AB30="",AA30=""),"",AVERAGE(AB30,AA30)),IF(AND(AB30="",$O30=""),"",AVERAGE(AB30,$O30))) ->  | AM142: =IF($M$64=12,IF(AND(AM30="",L30=""),"",AVERAGE(AM30,L30)),IF(AND(AM30="",K30=""),"",AVERAGE(AM30,K30))) -> 
F143: G126 | G143: =L!$A$4798 -> Average number of non-credit (cash) clients | L143: =IF(AND(L31="",J31=""),"",AVERAGE(L31,J31)) ->  | M143: =IF(AND(M31="",L31=""),"",AVERAGE(M31,L31)) ->  | N143: =IF(AND(M$64=12,M143<>""),M143,IF(AND(K31<>"",M31<>""),AVERAGE(M31,K31),IF(AND(L31<>"",M31<>""),AVERAGE(M31,L31),""))) ->  | O143: =IF(OR(O31="",$L31=""),"",AVERAGE(O31,$L31)) ->  | AA143: =IF(AND(AA$62<>"",$M$64<>12,K31<>"",AA31<>""),AVERAGE(AA31,K31),"") ->  | AB143: =IF(AA$62<>"",IF(AND(AB31="",AA31=""),"",AVERAGE(AB31,AA31)),IF(AND(AB31="",$O31=""),"",AVERAGE(AB31,$O31))) ->  | AM143: =IF($M$64=12,IF(AND(AM31="",L31=""),"",AVERAGE(AM31,L31)),IF(AND(AM31="",K31=""),"",AVERAGE(AM31,K31))) -> 
F144: G88 | G144: =L!$A$929 -> Average number of loans | I144: =IF(AND(I67="",H67=""),"",AVERAGE(I67,H67)) ->  | J144: =IF(AND(J67="",I67=""),"",AVERAGE(J67,I67)) ->  | K144: =IF(AND(K67="",J67=""),"",AVERAGE(K67,J67)) ->  | L144: =IF(AND(L67="",J67=""),"",AVERAGE(L67,J67)) ->  | M144: =IF(AND(M67="",L67=""),"",AVERAGE(M67,L67)) ->  | N144: =IF(AND(M$64=12,M144<>""),M144,IF(AND(K67<>"",M67<>""),AVERAGE(M67,K67),IF(AND(L67<>"",M67<>""),AVERAGE(M67,L67),""))) ->  | O144: =IF(OR(O67="",$L67=""),"",AVERAGE(O67,$L67)) ->  | AA144: =IF(AND(AA$62<>"",$M$64<>12,K67<>"",AA67<>""),AVERAGE(AA67,K67),"") ->  | AB144: =IF(AA$62<>"",IF(AND(AB67="",AA67=""),"",AVERAGE(AB67,AA67)),IF(AND(AB67="",$O67=""),"",AVERAGE(AB67,$O67))) ->  | AM144: =IF($M$64=12,IF(AND(AM67="",L67=""),"",AVERAGE(AM67,L67)),IF(AND(AM67="",K67=""),"",AVERAGE(AM67,K67))) ->  | AN144: =IF(AM$62<>"",IF(AND(AN67="",AM67=""),"",AVERAGE(AN67,AM67)),IF(AND(AN67="",HLOOKUP(DATE(YEAR(AN$62),MONTH(AN$62)-1,DAY(AN$62)),$O$5:$Z$114,62,FALSE)=""),"",AVERAGE(AN67,HLOOKUP(DATE(YEAR(AN$62),MONTH(AN$62)-1,DAY(AN$62)),$O$5:$Z$114,62,FALSE)))) ->  | AO144: =IF(AN$62<>"",IF(AND(AO67="",AN67=""),"",AVERAGE(AO67,AN67)),IF(AND(AO67="",HLOOKUP(DATE(YEAR(AO$62),MONTH(AO$62)-1,DAY(AO$62)),$O$5:$Z$114,62,FALSE)=""),"",AVERAGE(AO67,HLOOKUP(DATE(YEAR(AO$62),MONTH(AO$62)-1,DAY(AO$62)),$O$5:$Z$114,62,FALSE)))) ->  | AP144: =IF(AO$62<>"",IF(AND(AP67="",AO67=""),"",AVERAGE(AP67,AO67)),IF(AND(AP67="",HLOOKUP(DATE(YEAR(AP$62),MONTH(AP$62)-1,DAY(AP$62)),$O$5:$Z$114,62,FALSE)=""),"",AVERAGE(AP67,HLOOKUP(DATE(YEAR(AP$62),MONTH(AP$62)-1,DAY(AP$62)),$O$5:$Z$114,62,FALSE)))) -> 
F145: G89 | G145: =L!$A$930 -> Average number of clients / borrowers / loans | I145: =IF(AND(I112="",H112=""),"",AVERAGE(I112,H112)) ->  | J145: =IF(AND(J112="",I112=""),"",AVERAGE(J112,I112)) ->  | K145: =IF(AND(K112="",J112=""),"",AVERAGE(K112,J112)) ->  | L145: =IF(AND(L112="",J112=""),"",AVERAGE(L112,J112)) ->  | M145: =IF(AND(M112="",L112=""),"",AVERAGE(M112,L112)) ->  | N145: =IF(AND(M$64=12,M145<>""),M145,IF(AND(K112<>"",M112<>""),AVERAGE(M112,K112),IF(AND(L112<>"",M112<>""),AVERAGE(M112,L112),""))) ->  | O145: =IF(OR(O112="",$L112=""),"",AVERAGE(O112,$L112)) ->  | AA145: =IF(AND(AA$62<>"",$M$64<>12,K112<>"",AA112<>""),AVERAGE(AA112,K112),"") ->  | AB145: =IF(AA$62<>"",IF(AND(AB112="",AA112=""),"",AVERAGE(AB112,AA112)),IF(AND(AB112="",$O112=""),"",AVERAGE(AB112,$O112))) ->  | AM145: =IF($M$64=12,IF(AND(AM112="",L112=""),"",AVERAGE(AM112,L112)),IF(AND(AM112="",K112=""),"",AVERAGE(AM112,K112))) ->  | AN145: =IF(AM$62<>"",IF(AND(AN112="",AM112=""),"",AVERAGE(AN112,AM112)),IF(AND(AN112="",HLOOKUP(DATE(YEAR(AN$62),MONTH(AN$62)-1,DAY(AN$62)),$O$5:$Z$147,103,FALSE)=""),"",AVERAGE(AN112,HLOOKUP(DATE(YEAR(AN$62),MONTH(AN$62)-1,DAY(AN$62)),$O$5:$Z$147,103,FALSE)))) ->  | AO145: =IF(AN$62<>"",IF(AND(AO112="",AN112=""),"",AVERAGE(AO112,AN112)),IF(AND(AO112="",HLOOKUP(DATE(YEAR(AO$62),MONTH(AO$62)-1,DAY(AO$62)),$O$5:$Z$147,103,FALSE)=""),"",AVERAGE(AO112,HLOOKUP(DATE(YEAR(AO$62),MONTH(AO$62)-1,DAY(AO$62)),$O$5:$Z$147,103,FALSE)))) ->  | AP145: =IF(AO$62<>"",IF(AND(AP112="",AO112=""),"",AVERAGE(AP112,AO112)),IF(AND(AP112="",HLOOKUP(DATE(YEAR(AP$62),MONTH(AP$62)-1,DAY(AP$62)),$O$5:$Z$147,103,FALSE)=""),"",AVERAGE(AP112,HLOOKUP(DATE(YEAR(AP$62),MONTH(AP$62)-1,DAY(AP$62)),$O$5:$Z$147,103,FALSE)))) -> 
F146: G90 | G146: =L!A726 -> Average saving balance | H146: =IF(OR(H13="",H30=""),"",H13/H30) -> 
F147: G91 | G147: =L!A727 -> Average saving balance / GNIpc | H147: =IF(OR(H146="",$D$132="",$D$132=0,M104=""),"",IF($D$14=$BO$350,H146/$D$132,H146/$M$104/$D$132)) ->  | AM147: =IF(OR(AM146="",$D$132="",$D$132=0,AR97=""),"",IF($D$14=$BO$350,AM146/$D$132,AM146/$M$104/$D$132)) ->  | AN147: =IF(OR(AN146="",$D$132="",$D$132=0,AS97=""),"",IF($D$14=$BO$350,AN146/$D$132,AN146/$M$104/$D$132)) ->  | AO147: =IF(OR(AO146="",$D$132="",$D$132=0,AT97=""),"",IF($D$14=$BO$350,AO146/$D$132,AO146/$M$104/$D$132)) ->  | AP147: =IF(OR(AP146="",$D$132="",$D$132=0,AU97=""),"",IF($D$14=$BO$350,AP146/$D$132,AP146/$M$104/$D$132)) ->  | BI147: =Essential!B10 -> E5 | BJ147: =B115 -> G42 | BK147: =B116 -> G43 | BL147: =B113 -> G40 | BM147: =B114 -> G41 | BN147: =B112 -> G39 | BO147: =B117 -> G44 | BR147: =B132 -> G55 | BS147: =B133 -> G56 | BU147: =B134 -> G57 | BV147: G123 | BW147: 1 | BX147: 2 | BY147: 3 | BZ147: 4 | CA147: 5 | CB147: 6 | CC147: 7 | CD147: 8 | CE147: 9 | CF147: 10 | CG147: 11 | CH147: 12 | CI147: 13 | CJ147: 14 | CK147: 15 | CL147: 16 | CM147: 17 | CN147: 18 | CO147: 19 | CP147: 20 | CQ147: 21 | CR147: 22 | CS147: 23 | CT147: 24 | CU147: 25 | CV147: 26 | CW147: 27 | CX147: 28 | CY147: 29 | CZ147: 30 | DA147: 1 | DB147: 2 | DC147: 3 | DD147: 4 | DE147: 5 | DF147: 6 | DG147: 7 | DH147: 8 | DI147: 9 | DJ147: 10 | DK147: 11 | DL147: 12 | DM147: 13 | DN147: 14 | DO147: 15 | DP147: 16 | DQ147: 17 | DR147: 18 | DS147: 19 | DT147: 20 | DU147: 21 | DV147: 22 | DW147: 23 | DX147: 24 | DY147: 25 | DZ147: 26 | EA147: 27 | EB147: 28 | EC147: 29 | ED147: 30
G148: =L!$A$1451 -> Loans to related parties | BI148: COUNTRY | BJ148: REGION | BK148: REGION ID | BL148: SUBREGION | BM148: SUBREGION ID | BN148: Country ID | BO148: Currency ID | BP148: Fiscal year end month | BQ148: Fiscal year end month number | BR148: =L!A634 -> GNI per capita, Athlas method, current USD | BS148: =L!$A$635 -> Human Development Index | BT148: =L!$A$636 -> Human Development Index level | BU148: =L!$A$641 -> Rural population density | BV148: =L!$A$4698 -> Average number of household members | BW148: =L!$A$1862&" "&BW147 -> Region name 1 | BX148: =L!$A$1862&" "&BX147 -> Region name 2 | BY148: =L!$A$1862&" "&BY147 -> Region name 3 | BZ148: =L!$A$1862&" "&BZ147 -> Region name 4 | CA148: =L!$A$1862&" "&CA147 -> Region name 5 | CB148: =L!$A$1862&" "&CB147 -> Region name 6 | CC148: =L!$A$1862&" "&CC147 -> Region name 7 | CD148: =L!$A$1862&" "&CD147 -> Region name 8 | CE148: =L!$A$1862&" "&CE147 -> Region name 9 | CF148: =L!$A$1862&" "&CF147 -> Region name 10 | CG148: =L!$A$1862&" "&CG147 -> Region name 11 | CH148: =L!$A$1862&" "&CH147 -> Region name 12 | CI148: =L!$A$1862&" "&CI147 -> Region name 13 | CJ148: =L!$A$1862&" "&CJ147 -> Region name 14 | CK148: =L!$A$1862&" "&CK147 -> Region name 15 | CL148: =L!$A$1862&" "&CL147 -> Region name 16 | CM148: =L!$A$1862&" "&CM147 -> Region name 17 | CN148: =L!$A$1862&" "&CN147 -> Region name 18 | CO148: =L!$A$1862&" "&CO147 -> Region name 19 | CP148: =L!$A$1862&" "&CP147 -> Region name 20 | CQ148: =L!$A$1862&" "&CQ147 -> Region name 21 | CR148: =L!$A$1862&" "&CR147 -> Region name 22 | CS148: =L!$A$1862&" "&CS147 -> Region name 23 | CT148: =L!$A$1862&" "&CT147 -> Region name 24 | CU148: =L!$A$1862&" "&CU147 -> Region name 25 | CV148: =L!$A$1862&" "&CV147 -> Region name 26 | CW148: =L!$A$1862&" "&CW147 -> Region name 27 | CX148: =L!$A$1862&" "&CX147 -> Region name 28 | CY148: =L!$A$1862&" "&CY147 -> Region name 29 | CZ148: =L!$A$1862&" "&CZ147 -> Region name 30 | DA148: =L!$A$1863&" "&DA147 -> Region poverty rate 1 | DB148: =L!$A$1863&" "&DB147 -> Region poverty rate 2 | DC148: =L!$A$1863&" "&DC147 -> Region poverty rate 3 | DD148: =L!$A$1863&" "&DD147 -> Region poverty rate 4 | DE148: =L!$A$1863&" "&DE147 -> Region poverty rate 5 | DF148: =L!$A$1863&" "&DF147 -> Region poverty rate 6 | DG148: =L!$A$1863&" "&DG147 -> Region poverty rate 7 | DH148: =L!$A$1863&" "&DH147 -> Region poverty rate 8 | DI148: =L!$A$1863&" "&DI147 -> Region poverty rate 9 | DJ148: =L!$A$1863&" "&DJ147 -> Region poverty rate 10 | DK148: =L!$A$1863&" "&DK147 -> Region poverty rate 11 | DL148: =L!$A$1863&" "&DL147 -> Region poverty rate 12 | DM148: =L!$A$1863&" "&DM147 -> Region poverty rate 13 | DN148: =L!$A$1863&" "&DN147 -> Region poverty rate 14 | DO148: =L!$A$1863&" "&DO147 -> Region poverty rate 15 | DP148: =L!$A$1863&" "&DP147 -> Region poverty rate 16 | DQ148: =L!$A$1863&" "&DQ147 -> Region poverty rate 17 | DR148: =L!$A$1863&" "&DR147 -> Region poverty rate 18 | DS148: =L!$A$1863&" "&DS147 -> Region poverty rate 19 | DT148: =L!$A$1863&" "&DT147 -> Region poverty rate 20 | DU148: =L!$A$1863&" "&DU147 -> Region poverty rate 21 | DV148: =L!$A$1863&" "&DV147 -> Region poverty rate 22 | DW148: =L!$A$1863&" "&DW147 -> Region poverty rate 23 | DX148: =L!$A$1863&" "&DX147 -> Region poverty rate 24 | DY148: =L!$A$1863&" "&DY147 -> Region poverty rate 25 | DZ148: =L!$A$1863&" "&DZ147 -> Region poverty rate 26 | EA148: =L!$A$1863&" "&EA147 -> Region poverty rate 27 | EB148: =L!$A$1863&" "&EB147 -> Region poverty rate 28 | EC148: =L!$A$1863&" "&EC147 -> Region poverty rate 29 | ED148: =L!$A$1863&" "&ED147 -> Region poverty rate 30 | EE148: =L!$A$1864 -> National poverty rate comparable to regionals | EG148: Year | EH148: Quarter beginning | EI148: Quarter end | EJ148: Month start | EK148: Month end
F149: =Financial!$B$205&Definitions!$AC$3&Definitions!$AE$2 -> F117.2.1 | G149: =L!$A$1146 -> PAR30 | H149: =IF(OR(H98="",H93="",H93=0),"",H98/H93) ->  | BI149: =L!A231 -> Afghanistan | BJ149: =L!A$451 -> South and South East Asia | BK149: =L!A$446 -> SSEA | BL149: =L!A$473 -> South Asia | BM149: =L!A$490 -> SAS | BN149: AFG | BO149: AFN | BP149: =L!A$687 -> December | BQ149: 12 | BR149: 550 | BS149: 0.498 | BT149: =IF(BS149="","",IF(BS149<0.55,L!$A$640,IF(BS149<0.7,L!$A$639,IF(BS149<0.8,L!$A$638,L!$A$637)))) -> low | BU149: 42.42147781 | BV149: 8.04 | BW149: Central | BX149: East | BY149: North | BZ149: North East | CA149: South | CB149: South West | CC149: West | CD149: West Central | DA149: 0.28 | DB149: 0.431 | DC149: 0.327 | DD149: 0.497 | DE149: 0.384 | DF149: 0.277 | DG149: 0.301 | DH149: 0.461 | EE149: 0.358 | EG149: 2022 | EH149: =DATE(YEAR(D12),MONTH(D12)-2,DAY(D12)) -> 2025-10-31 | EI149: =D12 -> 2025-12-31 | EJ149: =DATE(YEAR(EJ150),MONTH(EJ150)+1,DAY(EJ150)) -> 2039-02-01 | EK149: =DATE(YEAR(EJ149),MONTH(EJ149),DAY(EJ149)+27) -> 2039-02-28
F150: =Financial!$B$205&Definitions!$AC$3&Definitions!$AE$2&Definitions!$AC$5&Definitions!$AE53 -> F117.2.1.4.50 | G150: =L!$A$1452 -> BoD | H150: =IF(OR(H99="",H94="",H94=0),"",H99/H94) ->  | BI150: =L!A232 -> Albania | BJ150: =L!A$452 -> Europe and Central Asia | BK150: =L!A$447 -> ECA | BL150: =L!$A$478 -> Southern Europe | BM150: =L!$A$495 -> SEU | BN150: ALB | BO150: ALL | BP150: =L!A$687 -> December | BQ150: 12 | BR150: 4860 | BS150: 0.785 | BT150: =IF(BS150="","",IF(BS150<0.55,L!$A$640,IF(BS150<0.7,L!$A$639,IF(BS150<0.8,L!$A$638,L!$A$637)))) -> high | BU150: 41.51120438 | BV150: 3.3 | BW150: Central | BX150: Coastal | BY150: Mountain | BZ150: Tirana | DA150: 0.125 | DB150: 0.176 | DC150: 0.153 | DD150: 0.126 | EE150: 0.143 | EG150: =EG149-1 -> 2021 | EH150: =DATE(YEAR(EH149),MONTH(EH149)-3,DAY(EH149)) -> 2025-07-31 | EI150: =DATE(YEAR(EI149),MONTH(EI149)-3,DAY(EI149)) -> 2025-10-01 | EJ150: 2039-01-01 | EK150: =DATE(YEAR(EJ150),MONTH(EJ150),DAY(EJ150)+30) -> 2039-01-31
F151: =Financial!$B$205&Definitions!$AC$3&Definitions!$AE$2&Definitions!$AC$5&Definitions!$AE54 -> F117.2.1.4.51 | G151: =L!$A$1453 -> Management | H151: =IF(OR(H100="",H95="",H95=0),"",H100/H95) ->  | BI151: =L!A233 -> Algeria | BJ151: =L!A$454 -> Middle East and North Africa | BK151: =L!A$449 -> MENA | BL151: =L!A$470 -> Northern Africa | BM151: =L!A$486 -> NAF | BN151: DZA | BO151: DZD | BP151: =L!A$687 -> December | BQ151: 12 | BR151: 4060 | BS151: 0.754 | BT151: =IF(BS151="","",IF(BS151<0.55,L!$A$640,IF(BS151<0.7,L!$A$639,IF(BS151<0.8,L!$A$638,L!$A$637)))) -> high | BU151: 4.852898721 | BV151: 4.94 | EG151: =EG150-1 -> 2020 | EH151: =DATE(YEAR(EH150),MONTH(EH150)-3,DAY(EH150)) -> 2025-05-01 | EI151: 2025-07-01 | EJ151: 2038-12-01 | EK151: =DATE(YEAR(EJ151),MONTH(EJ151),DAY(EJ151)+30) -> 2038-12-31
F152: =Financial!$B$205&Definitions!$AC$3&Definitions!$AE$2&Definitions!$AC$5&Definitions!$AE55 -> F117.2.1.4.52 | G152: =L!$A$1834 -> Personnel | H152: =IF(OR(H101="",H96="",H96=0),"",H101/H96) ->  | BI152: =L!A234 -> American Samoa | BJ152: =L!A$451 -> South and South East Asia | BK152: =L!A$446 -> SSEA | BL152: =L!A$474 -> East Asia and Pacific | BM152: =L!A$491 -> EAP | BN152: ASM | BO152: USD | BP152: =L!A$684 -> September | BQ152: 9 | BT152: =IF(BS152="","",IF(BS152<0.55,L!$A$640,IF(BS152<0.7,L!$A$639,IF(BS152<0.8,L!$A$638,L!$A$637)))) ->  | BU152: 35.63 | EG152: 2019 | EH152: 2025-02-01 | EI152: 2025-04-01 | EJ152: 2038-11-01 | EK152: =DATE(YEAR(EJ152),MONTH(EJ152),DAY(EJ152)+29) -> 2038-11-30
F153: =Financial!$B$205&Definitions!$AC$3&Definitions!$AE$2&Definitions!$AC$5&Definitions!$AE56 -> F117.2.1.4.53 | G153: =L!$A$1454 -> Other related parties | H153: =IF(OR(H102="",H97="",H97=0),"",H102/H97) ->  | BI153: =L!A235 -> Andorra | BJ153: =L!A$452 -> Europe and Central Asia | BK153: =L!A$447 -> ECA | BL153: =L!$A$478 -> Southern Europe | BM153: =L!$A$495 -> SEU | BN153: AND | BO153: EUR | BP153: =L!A$687 -> December | BQ153: 12 | BS153: 0.858 | BT153: =IF(BS153="","",IF(BS153<0.55,L!$A$640,IF(BS153<0.7,L!$A$639,IF(BS153<0.8,L!$A$638,L!$A$637)))) -> very high | BU153: 19.55957447 | EG153: 2018 | EH153: 2024-11-01 | EI153: 2025-01-01 | EJ153: 2038-10-01 | EK153: =DATE(YEAR(EJ153),MONTH(EJ153),DAY(EJ153)+30) -> 2038-10-31
F154: =Products!$B$99&Definitions!$AC$3&Definitions!$AE$2 -> P56.2.1 | G154: =L!$A$2224 -> % gross loan portfolio | H154: =IF(AND(H93<>"",H7<>""),H93/H7,"") ->  | BI154: =L!A236 -> Angola | BJ154: =L!A$455 -> Sub Saharan Africa | BK154: =L!A$445 -> SSA | BL154: =L!A$463 -> Middle Africa | BM154: =L!A$482 -> MAF | BN154: AGO | BO154: AOA | BP154: =L!A$687 -> December | BQ154: 12 | BR154: 3370 | BS154: 0.581 | BT154: =IF(BS154="","",IF(BS154<0.55,L!$A$640,IF(BS154<0.7,L!$A$639,IF(BS154<0.8,L!$A$638,L!$A$637)))) -> medium | BU154: 8.522543515 | BV154: 4.82 | BW154: Capital | BX154: Centre South | BY154: East | BZ154: North | CA154: South | CB154: West | DA154: 0.567 | DB154: 0.875 | DC154: 0.865 | DD154: 0.853 | DE154: 0.709 | DF154: 0.758 | EE154: =AVERAGE(DA154:DF154) -> 0.7711666667 | EG154: 2017 | EH154: 2024-08-01 | EI154: 2024-10-01 | EJ154: 2038-09-01 | EK154: =DATE(YEAR(EJ154),MONTH(EJ154),DAY(EJ154)+29) -> 2038-09-30
F155: G92 | G155: =L!$A$1455 -> Related parties loans to equity ratio | H155: =IF(AND(H93<>"",H16<>""),H93/H16,"") ->  | BI155: =L!A237 -> Antigua and Barbuda | BJ155: =L!A$453 -> Latin America and the Caribbean | BK155: =L!A$448 -> LAC | BL155: =L!$A$480 -> Caribbean | BM155: =L!$A$497 -> CAR | BN155: ATG | BO155: XCD | BP155: =L!A$678 -> March | BQ155: 3 | BR155: 15810 | BS155: 0.78 | BT155: =IF(BS155="","",IF(BS155<0.55,L!$A$640,IF(BS155<0.7,L!$A$639,IF(BS155<0.8,L!$A$638,L!$A$637)))) -> high | BU155: 165.0022727 | EG155: 2016 | EH155: 2024-05-01 | EI155: 2024-07-01 | EJ155: 2038-08-01 | EK155: =DATE(YEAR(EJ155),MONTH(EJ155),DAY(EJ155)+30) -> 2038-08-31
BI156: =L!A238 -> Argentina | BJ156: =L!A$453 -> Latin America and the Caribbean | BK156: =L!A$448 -> LAC | BL156: =L!A$472 -> South America | BM156: =L!A$493 -> SAM | BN156: ARG | BO156: ARS | BP156: =L!A$687 -> December | BQ156: 12 | BR156: 12370 | BS156: 0.825 | BT156: =IF(BS156="","",IF(BS156<0.55,L!$A$640,IF(BS156<0.7,L!$A$639,IF(BS156<0.8,L!$A$638,L!$A$637)))) -> very high | BU156: 1.321816866 | BV156: 2.95 | BW156: Chaco | BX156: Corrientes | BY156: Salta | BZ156: Buenos Aires | CA156: Cordoba | CB156: Resto de las Provincias | CC156: Tucuman | CD156: Mendoza | DA156: 0.4852 | DB156: 0.392 | DC156: 0.4598 | DD156: 0.3306 | DE156: 0.3226 | DF156: 0.2628 | DG156: 0.373 | DH156: 0.3672 | EE156: 0.315 | EG156: 2015 | EH156: 2024-02-01 | EI156: 2024-04-01 | EJ156: 2038-07-01 | EK156: =DATE(YEAR(EJ156),MONTH(EJ156),DAY(EJ156)+30) -> 2038-07-31
BI157: =L!A239 -> Armenia | BJ157: =L!A$452 -> Europe and Central Asia | BK157: =L!A$447 -> ECA | BL157: =L!$A$469 -> Western Asia | BM157: =L!$A$485 -> WAS | BN157: ARM | BO157: AMD | BP157: =L!A$687 -> December | BQ157: 12 | BR157: 4230 | BS157: 0.755 | BT157: =IF(BS157="","",IF(BS157<0.55,L!$A$640,IF(BS157<0.7,L!$A$639,IF(BS157<0.8,L!$A$638,L!$A$637)))) -> high | BU157: 38.20720056 | BV157: 3.54 | BW157: Aragatsotn | BX157: Ararat | BY157: Armavir | BZ157: Gergharkunik | CA157: Kotayk | CB157: Lori | CC157: Shirak | CD157: Syunik | CE157: Tavush | CF157: Vayots Dzor | CG157: Yerevan | DA157: 0.212 | DB157: 0.346 | DC157: 0.343 | DD157: 0.355 | DE157: 0.425 | DF157: 0.387 | DG157: 0.46 | DH157: 0.256 | DI157: 0.275 | DJ157: 0.207 | DK157: 0.256 | EE157: 0.324 | EG157: 2014 | EH157: 2023-11-01 | EI157: 2024-01-01 | EJ157: 2038-06-01 | EK157: =DATE(YEAR(EJ157),MONTH(EJ157),DAY(EJ157)+29) -> 2038-06-30
BI158: =L!A240 -> Aruba | BJ158: =L!A$453 -> Latin America and the Caribbean | BK158: =L!A$448 -> LAC | BL158: =L!$A$480 -> Caribbean | BM158: =L!$A$497 -> CAR | BN158: ABW | BO158: AWG | BP158: =L!A$687 -> December | BQ158: 12 | BR158: 23630 | BT158: =IF(BS158="","",IF(BS158<0.55,L!$A$640,IF(BS158<0.7,L!$A$639,IF(BS158<0.8,L!$A$638,L!$A$637)))) ->  | BU158: 332.7611111 | BV158: 2.89 | EG158: 2013 | EH158: 2023-08-01 | EI158: 2023-10-01 | EJ158: 2038-05-01 | EK158: =DATE(YEAR(EJ158),MONTH(EJ158),DAY(EJ158)+30) -> 2038-05-31
BI159: =L!A241 -> Australia | BJ159: =L!A$451 -> South and South East Asia | BK159: =L!A$446 -> SSEA | BL159: =L!A$474 -> East Asia and Pacific | BM159: =L!A$491 -> EAP | BN159: AUS | BO159: AUD | BP159: =L!A$681 -> June | BQ159: 6 | BR159: 53190 | BS159: 0.939 | BT159: =IF(BS159="","",IF(BS159<0.55,L!$A$640,IF(BS159<0.7,L!$A$639,IF(BS159<0.8,L!$A$638,L!$A$637)))) -> very high | BU159: 0.4544882879 | BV159: 2.55 | EG159: 2012 | EH159: 2023-05-01 | EI159: 2023-07-01 | EJ159: 2038-04-01 | EK159: =DATE(YEAR(EJ159),MONTH(EJ159),DAY(EJ159)+29) -> 2038-04-30
BI160: =L!A242 -> Austria | BJ160: =L!A$452 -> Europe and Central Asia | BK160: =L!A$447 -> ECA | BL160: =L!A$477 -> Western Europe | BM160: =L!A$487 -> WEU | BN160: AUT | BO160: EUR | BP160: =L!A$687 -> December | BQ160: 12 | BR160: 49260 | BS160: 0.908 | BT160: =IF(BS160="","",IF(BS160<0.55,L!$A$640,IF(BS160<0.7,L!$A$639,IF(BS160<0.8,L!$A$638,L!$A$637)))) -> very high | BU160: 44.70850657 | BV160: 2.27 | EG160: 2011 | EH160: 2023-02-01 | EI160: 2023-04-01 | EJ160: 2038-03-01 | EK160: =DATE(YEAR(EJ160),MONTH(EJ160),DAY(EJ160)+30) -> 2038-03-31
BI161: =L!A243 -> Azerbaijan | BJ161: =L!A$452 -> Europe and Central Asia | BK161: =L!A$447 -> ECA | BL161: =L!$A$469 -> Western Asia | BM161: =L!$A$485 -> WAS | BN161: AZE | BO161: AZN | BP161: =L!A$687 -> December | BQ161: 12 | BR161: 4050 | BS161: 0.757 | BT161: =IF(BS161="","",IF(BS161<0.55,L!$A$640,IF(BS161<0.7,L!$A$639,IF(BS161<0.8,L!$A$638,L!$A$637)))) -> high | BU161: 53.30158461 | BV161: 4.55 | BW161: Abseron | BX161: Aran | BY161: Dagliq Sirvan | BZ161: Ganja Qazakh | CA161: Kalbajar Lachin | CB161: Lankaran | CC161: Nakhchivan | CD161: Quba Xacmaz | CE161: Shaki Zaqatala | CF161: Yukhari Karabakh | EG161: 2010 | EH161: 2022-11-01 | EI161: 2023-01-01 | EJ161: 2038-02-01 | EK161: =DATE(YEAR(EJ161),MONTH(EJ161),DAY(EJ161)+27) -> 2038-02-28
BI162: =L!A244 -> Bahamas, The | BJ162: =L!A$453 -> Latin America and the Caribbean | BK162: =L!A$448 -> LAC | BL162: =L!$A$480 -> Caribbean | BM162: =L!$A$497 -> CAR | BN162: BHS | BO162: BSD | BP162: =L!A$681 -> June | BQ162: 6 | BR162: 30210 | BS162: 0.807 | BT162: =IF(BS162="","",IF(BS162<0.55,L!$A$640,IF(BS162<0.7,L!$A$639,IF(BS162<0.8,L!$A$638,L!$A$637)))) -> very high | BU162: 6.53966034 | BV162: 3.4 | EG162: 2009 | EH162: 2022-08-01 | EI162: 2022-10-01 | EJ162: 2038-01-01 | EK162: =DATE(YEAR(EJ162),MONTH(EJ162),DAY(EJ162)+30) -> 2038-01-31
BI163: =L!A245 -> Bahrain | BJ163: =L!A$454 -> Middle East and North Africa | BK163: =L!A$449 -> MENA | BL163: =L!$A$469 -> Western Asia | BM163: =L!$A$485 -> WAS | BN163: BHR | BO163: BHD | BP163: =L!A$687 -> December | BQ163: 12 | BR163: 21890 | BS163: 0.846 | BT163: =IF(BS163="","",IF(BS163<0.55,L!$A$640,IF(BS163<0.7,L!$A$639,IF(BS163<0.8,L!$A$638,L!$A$637)))) -> very high | BU163: 216.1105314 | EG163: 2008 | EH163: 2022-05-01 | EI163: 2022-07-01 | EJ163: 2037-12-01 | EK163: =DATE(YEAR(EJ163),MONTH(EJ163),DAY(EJ163)+30) -> 2037-12-31
BI164: =L!A246 -> Bangladesh | BJ164: =L!A$451 -> South and South East Asia | BK164: =L!A$446 -> SSEA | BL164: =L!A$473 -> South Asia | BM164: =L!A$490 -> SAS | BN164: BGD | BO164: BDT | BP164: =L!A$681 -> June | BQ164: 6 | BR164: 1750 | BS164: 0.608 | BT164: =IF(BS164="","",IF(BS164<0.55,L!$A$640,IF(BS164<0.7,L!$A$639,IF(BS164<0.8,L!$A$638,L!$A$637)))) -> medium | BU164: 785.4966198 | BV164: 4.26 | BW164: Barisal | BX164: Chittagong | BY164: Dhaka | BZ164: Khulna | CA164: Rajshashi | CB164: Sylhet | DA164: 0.394 | DB164: 0.262 | DC164: 0.305 | DD164: 0.321 | DE164: 0.356 | DF164: 0.281 | EE164: =AVERAGE(DA164:DF164) -> 0.3198333333 | EG164: 2007 | EH164: 2022-02-01 | EI164: 2022-04-01 | EJ164: 2037-11-01 | EK164: =DATE(YEAR(EJ164),MONTH(EJ164),DAY(EJ164)+29) -> 2037-11-30
BI165: =L!A247 -> Barbados | BJ165: =L!A$453 -> Latin America and the Caribbean | BK165: =L!A$448 -> LAC | BL165: =L!$A$469 -> Western Asia | BM165: =L!$A$485 -> WAS | BN165: BRB | BO165: BBD | BP165: =L!A$678 -> March | BQ165: 3 | BS165: 0.8 | BT165: =IF(BS165="","",IF(BS165<0.55,L!$A$640,IF(BS165<0.7,L!$A$639,IF(BS165<0.8,L!$A$638,L!$A$637)))) -> very high | BV165: 2.85 | EG165: 2006 | EH165: 2021-11-01 | EI165: 2022-01-01 | EJ165: 2037-10-01 | EK165: =DATE(YEAR(EJ165),MONTH(EJ165),DAY(EJ165)+30) -> 2037-10-31
BI166: =L!A248 -> Belarus | BJ166: =L!A$452 -> Europe and Central Asia | BK166: =L!A$447 -> ECA | BL166: =L!A$468 -> Eastern Europe | BM166: =L!A$488 -> EEU | BN166: BLR | BO166: BYN | BP166: =L!A$687 -> December | BQ166: 12 | BR166: 5670 | BS166: 0.808 | BT166: =IF(BS166="","",IF(BS166<0.55,L!$A$640,IF(BS166<0.7,L!$A$639,IF(BS166<0.8,L!$A$638,L!$A$637)))) -> very high | BU166: 10.00230024 | BV166: 2.34 | EG166: 2005 | EH166: 2021-08-01 | EI166: 2021-10-01 | EJ166: 2037-09-01 | EK166: =DATE(YEAR(EJ166),MONTH(EJ166),DAY(EJ166)+29) -> 2037-09-30
BI167: =L!A249 -> Belgium | BJ167: =L!A$452 -> Europe and Central Asia | BK167: =L!A$447 -> ECA | BL167: =L!A$477 -> Western Europe | BM167: =L!A$487 -> WEU | BN167: BEL | BO167: EUR | BP167: =L!A$687 -> December | BQ167: 12 | BR167: 45340 | BS167: 0.916 | BT167: =IF(BS167="","",IF(BS167<0.55,L!$A$640,IF(BS167<0.7,L!$A$639,IF(BS167<0.8,L!$A$638,L!$A$637)))) -> very high | BU167: 7.540521797 | BV167: 2.36 | BW167: Bruxelles | BX167: Fiandre | BY167: Vallonia | EG167: 2004 | EH167: 2021-05-01 | EI167: 2021-07-01 | EJ167: 2037-08-01 | EK167: =DATE(YEAR(EJ167),MONTH(EJ167),DAY(EJ167)+30) -> 2037-08-31
BI168: =L!A250 -> Belize | BJ168: =L!A$453 -> Latin America and the Caribbean | BK168: =L!A$448 -> LAC | BL168: =L!A$464 -> Central America | BM168: =L!A$492 -> CAM | BN168: BLZ | BO168: BZD | BP168: =L!A$678 -> March | BQ168: 3 | BR168: 4720 | BS168: 0.708 | BT168: =IF(BS168="","",IF(BS168<0.55,L!$A$640,IF(BS168<0.7,L!$A$639,IF(BS168<0.8,L!$A$638,L!$A$637)))) -> high | BU168: 9.115124945 | BV168: 3.75 | EG168: 2003 | EH168: 2021-02-01 | EI168: 2021-04-01 | EJ168: 2037-07-01 | EK168: =DATE(YEAR(EJ168),MONTH(EJ168),DAY(EJ168)+30) -> 2037-07-31
BI169: =L!A251 -> Benin | BJ169: =L!A$455 -> Sub Saharan Africa | BK169: =L!A$445 -> SSA | BL169: =L!A$476 -> Western Africa | BM169: =L!A$484 -> WAF | BN169: BEN | BO169: XOF | BP169: =L!A$687 -> December | BQ169: 12 | BR169: 870 | BS169: 0.515 | BT169: =IF(BS169="","",IF(BS169<0.55,L!$A$640,IF(BS169<0.7,L!$A$639,IF(BS169<0.8,L!$A$638,L!$A$637)))) -> low | BU169: 53.66479248 | BV169: 5.19 | EG169: 2002 | EH169: 2020-11-01 | EI169: 2021-01-01 | EJ169: 2037-06-01 | EK169: =DATE(YEAR(EJ169),MONTH(EJ169),DAY(EJ169)+29) -> 2037-06-30
BI170: =L!A252 -> Bermuda | BJ170: =L!A$456 -> North America | BK170: =L!A$450 -> NA | BL170: =L!A$471 -> North America | BM170: =L!A$494 -> NAM | BN170: BMU | BO170: BMD | BP170: =L!A$678 -> March | BQ170: 3 | BR170: 106140 | BT170: =IF(BS170="","",IF(BS170<0.55,L!$A$640,IF(BS170<0.7,L!$A$639,IF(BS170<0.8,L!$A$638,L!$A$637)))) ->  | BV170: 2.26 | EG170: 2001 | EH170: 2020-08-01 | EI170: 2020-10-01 | EJ170: 2037-05-01 | EK170: =DATE(YEAR(EJ170),MONTH(EJ170),DAY(EJ170)+30) -> 2037-05-31
BI171: =L!A253 -> Bhutan | BJ171: =L!A$451 -> South and South East Asia | BK171: =L!A$446 -> SSEA | BL171: =L!A$473 -> South Asia | BM171: =L!A$490 -> SAS | BN171: BTN | BO171: BTN | BP171: =L!A$681 -> June | BQ171: 6 | BR171: 3080 | BS171: 0.612 | BT171: =IF(BS171="","",IF(BS171<0.55,L!$A$640,IF(BS171<0.7,L!$A$639,IF(BS171<0.8,L!$A$638,L!$A$637)))) -> medium | BU171: 11.68951897 | BV171: 4.59 | EG171: 2000 | EH171: 2020-05-01 | EI171: 2020-07-01 | EJ171: 2037-04-01 | EK171: =DATE(YEAR(EJ171),MONTH(EJ171),DAY(EJ171)+29) -> 2037-04-30
BI172: =L!A254 -> Bolivia | BJ172: =L!A$453 -> Latin America and the Caribbean | BK172: =L!A$448 -> LAC | BL172: =L!A$472 -> South America | BM172: =L!A$493 -> SAM | BN172: BOL | BO172: BOB | BP172: =L!A$687 -> December | BQ172: 12 | BR172: 3370 | BS172: 0.693 | BT172: =IF(BS172="","",IF(BS172<0.55,L!$A$640,IF(BS172<0.7,L!$A$639,IF(BS172<0.8,L!$A$638,L!$A$637)))) -> medium | BU172: 3.20430444 | BV172: 3.53 | BW172: Santa Cruz | BX172: Oruro | BY172: La Paz | BZ172: Tarija | CA172: Panto | CB172: Beni | CC172: Cochabmaba | CD172: Chuquisaca | CE172: Potosi | DA172: 0.104 | DB172: 0.172 | DC172: 0.184 | DD172: 0.184 | DE172: 0.218 | DF172: 0.233 | DG172: 0.233 | DH172: 0.318 | DI172: 0.362 | EE172: 0.205 | EG172: 1999 | EH172: 2020-02-01 | EI172: 2020-04-01 | EJ172: 2037-03-01 | EK172: =DATE(YEAR(EJ172),MONTH(EJ172),DAY(EJ172)+30) -> 2037-03-31
BI173: =L!A255 -> Bosnia and Herzegovina | BJ173: =L!A$452 -> Europe and Central Asia | BK173: =L!A$447 -> ECA | BL173: =L!$A$478 -> Southern Europe | BM173: =L!$A$495 -> SEU | BN173: BIH | BO173: BAM | BP173: =L!A$687 -> December | BQ173: 12 | BR173: 5690 | BS173: 0.768 | BT173: =IF(BS173="","",IF(BS173<0.55,L!$A$640,IF(BS173<0.7,L!$A$639,IF(BS173<0.8,L!$A$638,L!$A$637)))) -> high | BU173: 33.59958984 | BV173: 3.5 | BW173: Brcko | BX173: Federacija Bosnie I Hercegovine | BY173: Republika Srpska | DA173: 0.147 | DB173: 0.171 | DC173: 0.195 | EE173: 0.179 | EG173: 1998 | EH173: 2019-11-01 | EI173: 2020-01-01 | EJ173: 2037-02-01 | EK173: =DATE(YEAR(EJ173),MONTH(EJ173),DAY(EJ173)+27) -> 2037-02-28
BI174: =L!A256 -> Botswana | BJ174: =L!A$455 -> Sub Saharan Africa | BK174: =L!A$445 -> SSA | BL174: =L!A$475 -> Southern Africa | BM174: =L!A$483 -> SAF | BN174: BWA | BO174: BWP | BP174: =L!A$678 -> March | BQ174: 3 | BR174: 7750 | BS174: 0.717 | BT174: =IF(BS174="","",IF(BS174<0.55,L!$A$640,IF(BS174<0.7,L!$A$639,IF(BS174<0.8,L!$A$638,L!$A$637)))) -> high | BU174: 1.215263 | BV174: 3.52 | BW174: Gaborone | BX174: Francistown | BY174: Lobatse | BZ174: Selibe Phikwe | CA174: Orapa | CB174: Jwaneng | CC174: Jowa Town | CD174: Southern or Ngwaketse | CE174: Barolong | CF174: Ngwaketse West | CG174: South East | CH174: Kweneng East | CI174: Kweneng West | CJ174: Kgatleng | CK174: Central Serowe/Palapye | CL174: Central Mahalapye | CM174: Central Bobonong | CN174: Central Boteti | CO174: Central Tutume | CP174: North East | CQ174: Ngamiland East | CR174: Ngamiland West | CS174: Chobe | CT174: Okavango Delta | CU174: Ghanzi | CV174: Kgalagadi South | CW174: Kgalagadi North | DA174: 0.03 | DB174: 0.1 | DC174: 0.14 | DD174: 0.11 | DE174: 0.01 | DF174: 0.03 | DG174: 0.03 | DH174: 0.33 | DI174: 0.33 | DJ174: 0.5 | DK174: 0.12 | DL174: 0.22 | DM174: 0.35 | DN174: 0.21 | DO174: 0.27 | DP174: 0.21 | DQ174: 0.35 | DR174: 0.33 | DS174: 0.22 | DT174: 0.19 | DU174: 0.31 | DV174: 0.38 | DW174: 0.2 | DX174: 0.35 | DY174: 0.3 | DZ174: 0.23 | EA174: 0.24 | EE174: 0.22 | EG174: 1997 | EH174: 2019-08-01 | EI174: 2019-10-01 | EJ174: 2037-01-01 | EK174: =DATE(YEAR(EJ174),MONTH(EJ174),DAY(EJ174)+30) -> 2037-01-31
BI175: =L!A257 -> Brazil | BJ175: =L!A$453 -> Latin America and the Caribbean | BK175: =L!A$448 -> LAC | BL175: =L!A$472 -> South America | BM175: =L!A$493 -> SAM | BN175: BRA | BO175: BRL | BP175: =L!A$687 -> December | BQ175: 12 | BR175: 9140 | BS175: 0.759 | BT175: =IF(BS175="","",IF(BS175<0.55,L!$A$640,IF(BS175<0.7,L!$A$639,IF(BS175<0.8,L!$A$638,L!$A$637)))) -> high | BU175: 3.366039095 | BV175: 3.31 | BW175: Distrito Federal | BX175: Rio de Janeiro | BY175: Rio Grande do Sul | BZ175: São Paulo | CA175: Paraná | CB175: Goiás | CC175: Espírito Santo | CD175: Mato Grosso | CE175: Mato Grosso do Sul | CF175: Santa Catarina | CG175: Minas Gerais | CH175: Amapá | CI175: Rondônia | CJ175: Pernambuco | CK175: Bahia | CL175: Ceará | CM175: Roraima | CN175: Rio Grande do Norte | CO175: Tocantins | CP175: Paraíba | CQ175: Sergipe | CR175: Pará | CS175: Piauí | CT175: Alagoas | CU175: Amazonas | CV175: Maranhão | CW175: Acre | DA175: 0.023 | DB175: 0.029 | DC175: 0.032 | DD175: 0.034 | DE175: 0.04 | DF175: 0.041 | DG175: 0.048 | DH175: 0.045 | DI175: 0.043 | DJ175: 0.049 | DK175: 0.054 | DL175: 0.051 | DM175: 0.055 | DN175: 0.065 | DO175: 0.07 | DP175: 0.07 | DQ175: 0.071 | DR175: 0.072 | DS175: 0.073 | DT175: 0.076 | DU175: 0.08 | DV175: 0.078 | DW175: 0.088 | DX175: 0.094 | DY175: 0.103 | DZ175: 0.102 | EA175: 0.156 | EE175: 0.053 | EG175: 1996 | EH175: 2019-05-01 | EI175: 2019-07-01 | EJ175: 2036-12-01 | EK175: =DATE(YEAR(EJ175),MONTH(EJ175),DAY(EJ175)+30) -> 2036-12-31
BI176: =L!A258 -> Brunei Darussalam | BJ176: =L!A$451 -> South and South East Asia | BK176: =L!A$446 -> SSEA | BL176: =L!A$474 -> East Asia and Pacific | BM176: =L!A$491 -> EAP | BN176: BRN | BO176: BND | BP176: =L!A$678 -> March | BQ176: 3 | BR176: 31020 | BS176: 0.853 | BT176: =IF(BS176="","",IF(BS176<0.55,L!$A$640,IF(BS176<0.7,L!$A$639,IF(BS176<0.8,L!$A$638,L!$A$637)))) -> very high | BU176: 18.20929791 | EG176: 1995 | EH176: 2019-02-01 | EI176: 2019-04-01 | EJ176: 2036-11-01 | EK176: =DATE(YEAR(EJ176),MONTH(EJ176),DAY(EJ176)+29) -> 2036-11-30
BI177: =L!A259 -> Bulgaria | BJ177: =L!A$452 -> Europe and Central Asia | BK177: =L!A$447 -> ECA | BL177: =L!A$468 -> Eastern Europe | BM177: =L!A$488 -> EEU | BN177: BGR | BO177: BGN | BP177: =L!A$687 -> December | BQ177: 12 | BR177: 8860 | BS177: 0.813 | BT177: =IF(BS177="","",IF(BS177<0.55,L!$A$640,IF(BS177<0.7,L!$A$639,IF(BS177<0.8,L!$A$638,L!$A$637)))) -> very high | BU177: 16.17070744 | BV177: 2.34 | BW177: Severen Tsentralen | BX177: Severoiztochen | BY177: Severozapaden | BZ177: Yugoiztochen | CA177: Yugozapaden | CB177: Yuzhen Tsentralen | DA177: 0.236 | DB177: 0.24 | DC177: 0.294 | DD177: 0.24 | DE177: 0.109 | DF177: 0.261 | EE177: 0.212 | EG177: 1994 | EH177: 2018-11-01 | EI177: 2019-01-01 | EJ177: 2036-10-01 | EK177: =DATE(YEAR(EJ177),MONTH(EJ177),DAY(EJ177)+30) -> 2036-10-31
BI178: =L!A260 -> Burkina Faso | BJ178: =L!A$455 -> Sub Saharan Africa | BK178: =L!A$445 -> SSA | BL178: =L!A$476 -> Western Africa | BM178: =L!A$484 -> WAF | BN178: BFA | BO178: XOF | BP178: =L!A$687 -> December | BQ178: 12 | BR178: 660 | BS178: 0.423 | BT178: =IF(BS178="","",IF(BS178<0.55,L!$A$640,IF(BS178<0.7,L!$A$639,IF(BS178<0.8,L!$A$638,L!$A$637)))) -> low | BU178: 50.99736477 | BV178: 5.92 | BW178: Kadiogo | BX178: Hauts-Bassin | BY178: Cascades | BZ178: Centre Sud | CA178: Plateau Central | CB178: Boulkiemde | CC178: Centre Nord | CD178: Centre Est | CE178: Nord | CF178: Boucle du Mouhoun | CG178: Sud-Ouest | CH178: Sahel | CI178: Est | DA178: 0.439 | DB178: 0.749 | DC178: 0.844 | DD178: 0.868 | DE178: 0.876 | DF178: 0.866 | DG178: 0.936 | DH178: 0.916 | DI178: 0.892 | DJ178: 0.919 | DK178: 0.924 | DL178: 0.97 | DM178: 0.967 | EE178: 0.84 | EG178: 1993 | EH178: 2018-08-01 | EI178: 2018-10-01 | EJ178: 2036-09-01 | EK178: =DATE(YEAR(EJ178),MONTH(EJ178),DAY(EJ178)+29) -> 2036-09-30
BI179: =L!A261 -> Burundi | BJ179: =L!A$455 -> Sub Saharan Africa | BK179: =L!A$445 -> SSA | BL179: =L!A$467 -> Eastern Africa | BM179: =L!A$481 -> EAF | BN179: BDI | BO179: BIF | BP179: =L!A$687 -> December | BQ179: 12 | BR179: 280 | BS179: 0.417 | BT179: =IF(BS179="","",IF(BS179<0.55,L!$A$640,IF(BS179<0.7,L!$A$639,IF(BS179<0.8,L!$A$638,L!$A$637)))) -> low | BU179: 378.4658489 | BV179: 4.83 | BW179: Bujumbura Mairie | BX179: Sud | BY179: Centre-Est | BZ179: Ouest | CA179: Nord | DA179: 0.363 | DB179: 0.789 | DC179: 0.836 | DD179: 0.878 | DE179: 0.857 | EE179: 0.808 | EG179: 1992 | EH179: 2018-05-01 | EI179: 2018-07-01 | EJ179: 2036-08-01 | EK179: =DATE(YEAR(EJ179),MONTH(EJ179),DAY(EJ179)+30) -> 2036-08-31
BI180: =L!A262 -> Cambodia | BJ180: =L!A$451 -> South and South East Asia | BK180: =L!A$446 -> SSEA | BL180: =L!A$474 -> East Asia and Pacific | BM180: =L!A$491 -> EAP | BN180: KHM | BO180: KHR | BP180: =L!A$687 -> December | BQ180: 12 | BR180: 1380 | BS180: 0.582 | BT180: =IF(BS180="","",IF(BS180<0.55,L!$A$640,IF(BS180<0.7,L!$A$639,IF(BS180<0.8,L!$A$638,L!$A$637)))) -> medium | BU180: 70.52625765 | BV180: 4.61 | BW180: Phnom Penh | BX180: Preah Sihanouk and Kaoh Kong | BY180: Koh Kong | BZ180: Banteay Mean Chey | CA180: Svay Rieng | CB180: Battambang and Pailin | CC180: Takeo | CD180: Prey Veng | CE180: Kandal | CF180: Kampot and Kep | CG180: Kampong Cham | CH180: Kampong Speu | CI180: Kampong Thom | CJ180: Kampong Chhnang | CK180: Oddar Meanchey | CL180: Siem Reap | CM180: Pursat | CN180: Kratie | CO180: Mondol Kiri and Rattanak Kiri | CP180: Preah Vihear and Steung Treng | DA180: 0.07 | DB180: 0.198 | DC180: 0.198 | DD180: 0.226 | DE180: 0.248 | DF180: 0.228 | DG180: 0.258 | DH180: 0.281 | DI180: 0.293 | DJ180: 0.351 | DK180: 0.374 | DL180: 0.425 | DM180: 0.41 | DN180: 0.446 | DO180: 0.457 | DP180: 0.433 | DQ180: 0.472 | DR180: 0.556 | DS180: 0.544 | DT180: 0.622 | EE180: 0.33 | EG180: 1991 | EH180: 2018-02-01 | EI180: 2018-04-01 | EJ180: 2036-07-01 | EK180: =DATE(YEAR(EJ180),MONTH(EJ180),DAY(EJ180)+30) -> 2036-07-31
BI181: =L!A263 -> Cameroon | BJ181: =L!A$455 -> Sub Saharan Africa | BK181: =L!A$445 -> SSA | BL181: =L!A$463 -> Middle Africa | BM181: =L!A$482 -> MAF | BN181: CMR | BO181: XAF | BP181: =L!A$681 -> June | BQ181: 6 | BR181: 1440 | BS181: 0.556 | BT181: =IF(BS181="","",IF(BS181<0.55,L!$A$640,IF(BS181<0.7,L!$A$639,IF(BS181<0.8,L!$A$638,L!$A$637)))) -> medium | BU181: 23.27184955 | BV181: 4.99 | BW181: Douala | BX181: Yaoundé | BY181: Littoral (sans Douala) | BZ181: Sud-Ouest | CA181: Sud | CB181: Ouest | CC181: Nord-Ouest | CD181: Centre (sans Yaoundé) | CE181: Adamaoua | CF181: Est | CG181: Nord | CH181: Extrême-Nord | DA181: 0.067 | DB181: 0.065 | DC181: 0.199 | DD181: 0.293 | DE181: 0.308 | DF181: 0.351 | DG181: 0.388 | DH181: 0.418 | DI181: 0.511 | DJ181: 0.561 | DK181: 0.773 | DL181: 0.867 | EE181: 0.46 | EG181: 1990 | EH181: 2017-11-01 | EI181: 2018-01-01 | EJ181: 2036-06-01 | EK181: =DATE(YEAR(EJ181),MONTH(EJ181),DAY(EJ181)+29) -> 2036-06-30
BI182: =L!A264 -> Canada | BJ182: =L!A$456 -> North America | BK182: =L!A$450 -> NA | BL182: =L!A$471 -> North America | BM182: =L!A$494 -> NAM | BN182: CAN | BO182: CAD | BP182: =L!A$678 -> March | BQ182: 3 | BS182: 0.926 | BT182: =IF(BS182="","",IF(BS182<0.55,L!$A$640,IF(BS182<0.7,L!$A$639,IF(BS182<0.8,L!$A$638,L!$A$637)))) -> very high | BV182: 2.45 | EG182: 1989 | EH182: 2017-08-01 | EI182: 2017-10-01 | EJ182: 2036-05-01 | EK182: =DATE(YEAR(EJ182),MONTH(EJ182),DAY(EJ182)+30) -> 2036-05-31
BI183: =L!A265 -> Cabo Verde | BJ183: =L!A$455 -> Sub Saharan Africa | BK183: =L!A$445 -> SSA | BL183: =L!A$476 -> Western Africa | BM183: =L!A$484 -> WAF | BN183: CPV | BO183: CVE | BP183: =L!A$687 -> December | BQ183: 12 | BR183: 3450 | BS183: 0.654 | BT183: =IF(BS183="","",IF(BS183<0.55,L!$A$640,IF(BS183<0.7,L!$A$639,IF(BS183<0.8,L!$A$638,L!$A$637)))) -> medium | BU183: 46.23771712 | BW183: BV | BX183: SL | BY183: SV | BZ183: PR | CA183: TASN | CB183: MA | CC183: RB | CD183: SCFO | CE183: SC | CF183: RG | CG183: RGST | CH183: SM | CI183: BR | CJ183: MO | CK183: SD | CL183: SSM | CM183: PN | CN183: PL | CO183: SF | CP183: SLO | CQ183: SZ | DA183: 0.083 | DB183: 0.19 | DC183: 0.274 | DD183: 0.277 | DE183: 0.316 | DF183: 0.317 | DG183: 0.349 | DH183: 0.362 | DI183: 0.369 | DJ183: 0.385 | DK183: 0.391 | DL183: 0.407 | DM183: 0.435 | DN183: 0.452 | DO183: 0.473 | DP183: 0.497 | DQ183: 0.511 | DR183: 0.516 | DS183: 0.548 | DT183: 0.585 | DU183: 0.603 | EE183: 0.35 | EG183: 1988 | EH183: 2017-05-01 | EI183: 2017-07-01 | EJ183: 2036-04-01 | EK183: =DATE(YEAR(EJ183),MONTH(EJ183),DAY(EJ183)+29) -> 2036-04-30
BI184: =L!A266 -> Cayman Islands | BJ184: =L!A$453 -> Latin America and the Caribbean | BK184: =L!A$448 -> LAC | BL184: =L!$A$480 -> Caribbean | BM184: =L!$A$497 -> CAR | BN184: CYM | BO184: KYD | BP184: =L!A$678 -> March | BQ184: 3 | BS184: 0.926 | BT184: =IF(BS184="","",IF(BS184<0.55,L!$A$640,IF(BS184<0.7,L!$A$639,IF(BS184<0.8,L!$A$638,L!$A$637)))) -> very high | EG184: 1987 | EH184: 2017-02-01 | EI184: 2017-04-01 | EJ184: 2036-03-01 | EK184: =DATE(YEAR(EJ184),MONTH(EJ184),DAY(EJ184)+30) -> 2036-03-31
BI185: =L!A267 -> Central African Republic | BJ185: =L!A$455 -> Sub Saharan Africa | BK185: =L!A$445 -> SSA | BL185: =L!A$463 -> Middle Africa | BM185: =L!A$482 -> MAF | BN185: CAF | BO185: XAF | BP185: =L!A$687 -> December | BQ185: 12 | BS185: 0.367 | BT185: =IF(BS185="","",IF(BS185<0.55,L!$A$640,IF(BS185<0.7,L!$A$639,IF(BS185<0.8,L!$A$638,L!$A$637)))) -> low | BV185: 5.59 | EG185: 1986 | EH185: 2016-11-01 | EI185: 2017-01-01 | EJ185: 2036-02-01 | EK185: =DATE(YEAR(EJ185),MONTH(EJ185),DAY(EJ185)+28) -> 2036-02-29
BI186: =L!A268 -> Chad | BJ186: =L!A$455 -> Sub Saharan Africa | BK186: =L!A$445 -> SSA | BL186: =L!A$463 -> Middle Africa | BM186: =L!A$482 -> MAF | BN186: TCD | BO186: XAF | BP186: =L!A$687 -> December | BQ186: 12 | BR186: 670 | BS186: 0.404 | BT186: =IF(BS186="","",IF(BS186<0.55,L!$A$640,IF(BS186<0.7,L!$A$639,IF(BS186<0.8,L!$A$638,L!$A$637)))) -> low | BU186: 9.457382465 | BV186: 5.97 | EG186: 1985 | EH186: 2016-08-01 | EI186: 2016-10-01 | EJ186: 2036-01-01 | EK186: =DATE(YEAR(EJ186),MONTH(EJ186),DAY(EJ186)+30) -> 2036-01-31
BI187: =L!A269 -> Chile | BJ187: =L!A$453 -> Latin America and the Caribbean | BK187: =L!A$448 -> LAC | BL187: =L!A$472 -> South America | BM187: =L!A$493 -> SAM | BN187: CHL | BO187: CLP | BP187: =L!A$687 -> December | BQ187: 12 | BR187: 14670 | BS187: 0.843 | BT187: =IF(BS187="","",IF(BS187<0.55,L!$A$640,IF(BS187<0.7,L!$A$639,IF(BS187<0.8,L!$A$638,L!$A$637)))) -> very high | BU187: 3.132559059 | BV187: 3.04 | BW187: Antofagasta | BX187: Araucania | BY187: Arica | BZ187: Atacama | CA187: Aysen | CB187: Biobio | CC187: Coquimbo | CD187: Libertador Gral. Bernardo O'Higgins | CE187: Los Lagos | CF187: Los Rios | CG187: Magellanes | CH187: Maule | CI187: Metropolitana | CJ187: Tarapaca | CK187: Valparaiso | DA187: 0.075 | DB187: 0.229 | DC187: 0.222 | DD187: 0.133 | DE187: 0.098 | DF187: 0.215 | DG187: 0.153 | DH187: 0.101 | DI187: 0.158 | DJ187: 0.222 | DK187: 0.058 | DL187: 0.162 | DM187: 0.115 | DN187: 0.141 | DO187: 0.169 | EE187: 0.222 | EG187: 1984 | EH187: 2016-05-01 | EI187: 2016-07-01 | EJ187: 2035-12-01 | EK187: =DATE(YEAR(EJ187),MONTH(EJ187),DAY(EJ187)+30) -> 2035-12-31
BI188: =L!A270 -> China | BJ188: =L!A$451 -> South and South East Asia | BK188: =L!A$446 -> SSEA | BL188: =L!A$474 -> East Asia and Pacific | BM188: =L!A$491 -> EAP | BN188: CHN | BO188: CNY | BP188: =L!A$687 -> December | BQ188: 12 | BR188: 9470 | BS188: 0.752 | BT188: =IF(BS188="","",IF(BS188<0.55,L!$A$640,IF(BS188<0.7,L!$A$639,IF(BS188<0.8,L!$A$638,L!$A$637)))) -> high | BU188: 60.59753137 | BV188: 3.38 | BW188: East | BX188: Central | BY188: West | DA188: 0.019 | DB188: 0.032 | DC188: 0.081 | EE188: 0.04 | EG188: 1983 | EH188: 2016-02-01 | EI188: 2016-04-01 | EJ188: 2035-11-01 | EK188: =DATE(YEAR(EJ188),MONTH(EJ188),DAY(EJ188)+29) -> 2035-11-30
BI189: =L!A271 -> Colombia | BJ189: =L!A$453 -> Latin America and the Caribbean | BK189: =L!A$448 -> LAC | BL189: =L!A$472 -> South America | BM189: =L!A$493 -> SAM | BN189: COL | BO189: COP | BP189: =L!A$687 -> December | BQ189: 12 | BR189: 6190 | BS189: 0.747 | BT189: =IF(BS189="","",IF(BS189<0.55,L!$A$640,IF(BS189<0.7,L!$A$639,IF(BS189<0.8,L!$A$638,L!$A$637)))) -> high | BU189: 8.601595313 | BV189: 3.53 | BW189: Bogota | BX189: Cali AM | BY189: Medellin AM | BZ189: Barranquilla AM | CA189: Caldas, Risaralda, Quindio | CB189: Atlantico, San Andres, Bolivar Norte | CC189: Valle Sin Cali Ni Litoral | CD189: Bocaya, Cmarca, Meta | CE189: Santanderes | CF189: Tolima, Huila, Caqueta | CG189: Orinoquia y Amazonia | CH189: Antioquia Sin Medellin | CI189: Cauca y Nariño Sin Litoral | CJ189: Guajira, Cesar, Magdalena | CK189: Litoral Pacifico | CL189: Bolivar Sur, Sucre, Cordoba | DA189: 0.007 | DB189: 0.014 | DC189: 0.014 | DD189: 0.025 | DE189: 0.024 | DF189: 0.033 | DG189: 0.033 | DH189: 0.047 | DI189: 0.054 | DJ189: 0.065 | DK189: 0.071 | DL189: 0.09 | DM189: 0.089 | DN189: 0.123 | DO189: 0.142 | DP189: 0.147 | EE189: 0.054 | EG189: 1982 | EH189: 2015-11-01 | EI189: 2016-01-01 | EJ189: 2035-10-01 | EK189: =DATE(YEAR(EJ189),MONTH(EJ189),DAY(EJ189)+30) -> 2035-10-31
BI190: =L!A272 -> Comoros | BJ190: =L!A$455 -> Sub Saharan Africa | BK190: =L!A$445 -> SSA | BL190: =L!A$467 -> Eastern Africa | BM190: =L!A$481 -> EAF | BN190: COM | BO190: KMF | BP190: =L!A$687 -> December | BQ190: 12 | BR190: 1320 | BS190: 0.503 | BT190: =IF(BS190="","",IF(BS190<0.55,L!$A$640,IF(BS190<0.7,L!$A$639,IF(BS190<0.8,L!$A$638,L!$A$637)))) -> low | BU190: 317.7001508 | BV190: 5.37 | BW190: Ngazidja | BX190: Mwali | BY190: Ndzuwani | DA190: 0.276 | DB190: 0.45 | DC190: 0.428 | EE190: 0.36 | EG190: 1981 | EH190: 2015-08-01 | EI190: 2015-10-01 | EJ190: 2035-09-01 | EK190: =DATE(YEAR(EJ190),MONTH(EJ190),DAY(EJ190)+29) -> 2035-09-30
BI191: =L!A273 -> Congo, Dem. Rep. | BJ191: =L!A$455 -> Sub Saharan Africa | BK191: =L!A$445 -> SSA | BL191: =L!A$463 -> Middle Africa | BM191: =L!A$482 -> MAF | BN191: COD | BO191: CDF | BP191: =L!A$687 -> December | BQ191: 12 | BR191: 490 | BS191: 0.457 | BT191: =IF(BS191="","",IF(BS191<0.55,L!$A$640,IF(BS191<0.7,L!$A$639,IF(BS191<0.8,L!$A$638,L!$A$637)))) -> low | BU191: 20.59567191 | BV191: 5.17 | BW191: Bandundu | BX191: Bas-Congo | BY191: Equateur | BZ191: Kasai-Occidental | CA191: Kasai-Oriental | CB191: Katanga | CC191: Kinshasa | CD191: Maniema | CE191: Nord-Kivu | CF191: Orientale | CG191: Sud-Kivu | DA191: 0.891 | DB191: 0.698 | DC191: 0.936 | DD191: 0.558 | DE191: 0.623 | DF191: 0.691 | DG191: 0.416 | DH191: 0.585 | DI191: 0.729 | DJ191: 0.755 | DK191: 0.847 | EE191: =AVERAGE(DA191:DK191) -> 0.7026363636 | EG191: 1980 | EH191: 2015-05-01 | EI191: 2015-07-01 | EJ191: 2035-08-01 | EK191: =DATE(YEAR(EJ191),MONTH(EJ191),DAY(EJ191)+30) -> 2035-08-31
BI192: =L!A274 -> Congo, Rep. | BJ192: =L!A$455 -> Sub Saharan Africa | BK192: =L!A$445 -> SSA | BL192: =L!A$463 -> Middle Africa | BM192: =L!A$482 -> MAF | BN192: COG | BO192: XAF | BP192: =L!A$687 -> December | BQ192: 12 | BR192: 1640 | BS192: 0.606 | BT192: =IF(BS192="","",IF(BS192<0.55,L!$A$640,IF(BS192<0.7,L!$A$639,IF(BS192<0.8,L!$A$638,L!$A$637)))) -> medium | BU192: 5.080658858 | BV192: 4.22 | EG192: 1979 | EH192: 2015-02-01 | EI192: 2015-04-01 | EJ192: 2035-07-01 | EK192: =DATE(YEAR(EJ192),MONTH(EJ192),DAY(EJ192)+30) -> 2035-07-31
BI193: =L!A275 -> Costa Rica | BJ193: =L!A$453 -> Latin America and the Caribbean | BK193: =L!A$448 -> LAC | BL193: =L!A$464 -> Central America | BM193: =L!A$492 -> CAM | BN193: CRI | BO193: CRC | BP193: =L!A$684 -> September | BQ193: 9 | BR193: 11510 | BS193: 0.794 | BT193: =IF(BS193="","",IF(BS193<0.55,L!$A$640,IF(BS193<0.7,L!$A$639,IF(BS193<0.8,L!$A$638,L!$A$637)))) -> high | BU193: 20.22884841 | BV193: 3.21 | BW193: Brunca Region | BX193: Central Region | BY193: Guanacaste | BZ193: Huetar Atlántica Region | CA193: North Huetar Region | CB193: Pacífico Central | DA193: 0.353 | DB193: 0.161 | DC193: 0.341 | DD193: 0.271 | DE193: 0.247 | DF193: 0.306 | EE193: 0.207 | EG193: 1978 | EH193: 2014-11-01 | EI193: 2015-01-01 | EJ193: 2035-06-01 | EK193: =DATE(YEAR(EJ193),MONTH(EJ193),DAY(EJ193)+29) -> 2035-06-30
BI194: =L!A276 -> Croatia | BJ194: =L!A$452 -> Europe and Central Asia | BK194: =L!A$447 -> ECA | BL194: =L!$A$478 -> Southern Europe | BM194: =L!$A$495 -> SEU | BN194: HRV | BO194: HRK | BP194: =L!A$687 -> December | BQ194: 12 | BR194: 13830 | BS194: 0.831 | BT194: =IF(BS194="","",IF(BS194<0.55,L!$A$640,IF(BS194<0.7,L!$A$639,IF(BS194<0.8,L!$A$638,L!$A$637)))) -> very high | BU194: 31.46191923 | BV194: 2.8 | BW194: Bjelovarsko-bilogorska županija | BX194: Brodsko-posavska županija | BY194: Dubrovačko-neretvanska županija | BZ194: Istarska županija/Regione istriana | CA194: Karlovačka županija | CB194: Koprivničko-križevačka županija | CC194: Krapinsko-zagorska županija | CD194: Ličko-senjska županija | CE194: Međimurska županija | CF194: Osječko-baranjska županija | CG194: Požeško-slavonska županija | CH194: Primorsko-goranska županija | CI194: Šibensko-kninska županija | CJ194: Sisačko-moslavačka županija | CK194: Splitsko-dalmatinska županija | CL194: Varaždinska županija | CM194: Virovitičko-podravska županija | CN194: Vukovarsko-srijemska županija | CO194: Zadarska županija | CP194: Zagrebačka županija | CQ194: Grad Zagreb | EG194: 1977 | EH194: 2014-08-01 | EI194: 2014-10-01 | EJ194: 2035-05-01 | EK194: =DATE(YEAR(EJ194),MONTH(EJ194),DAY(EJ194)+30) -> 2035-05-31
BI195: =L!A277 -> Cuba | BJ195: =L!A$453 -> Latin America and the Caribbean | BK195: =L!A$448 -> LAC | BL195: =L!$A$480 -> Caribbean | BM195: =L!$A$497 -> CAR | BN195: CUB | BO195: CUP | BP195: =L!A$687 -> December | BQ195: 12 | BR195: 7230 | BS195: 0.777 | BT195: =IF(BS195="","",IF(BS195<0.55,L!$A$640,IF(BS195<0.7,L!$A$639,IF(BS195<0.8,L!$A$638,L!$A$637)))) -> high | BU195: 25.02958085 | BV195: 2.71 | EG195: 1976 | EH195: 2014-05-01 | EI195: 2014-07-01 | EJ195: 2035-04-01 | EK195: =DATE(YEAR(EJ195),MONTH(EJ195),DAY(EJ195)+29) -> 2035-04-30
BI196: =L!A278 -> Curacao | BJ196: =L!A$453 -> Latin America and the Caribbean | BK196: =L!A$448 -> LAC | BL196: =L!$A$480 -> Caribbean | BM196: =L!$A$497 -> CAR | BN196: CUW | BO196: ANG | BP196: =L!A$687 -> December | BQ196: 12 | BR196: 19070 | BT196: =IF(BS196="","",IF(BS196<0.55,L!$A$640,IF(BS196<0.7,L!$A$639,IF(BS196<0.8,L!$A$638,L!$A$637)))) ->  | EG196: 1975 | EH196: 2014-02-01 | EI196: 2014-04-01 | EJ196: 2035-03-01 | EK196: =DATE(YEAR(EJ196),MONTH(EJ196),DAY(EJ196)+30) -> 2035-03-31
BI197: =L!A279 -> Cyprus | BJ197: =L!A$452 -> Europe and Central Asia | BK197: =L!A$447 -> ECA | BL197: =L!$A$469 -> Western Asia | BM197: =L!$A$485 -> WAS | BN197: CYP | BO197: EUR | BP197: =L!A$687 -> December | BQ197: 12 | BR197: 26300 | BS197: 0.869 | BT197: =IF(BS197="","",IF(BS197<0.55,L!$A$640,IF(BS197<0.7,L!$A$639,IF(BS197<0.8,L!$A$638,L!$A$637)))) -> very high | BU197: 42.71829004 | BV197: 2.75 | EG197: 1974 | EH197: 2013-11-01 | EI197: 2014-01-01 | EJ197: 2035-02-01 | EK197: =DATE(YEAR(EJ197),MONTH(EJ197),DAY(EJ197)+27) -> 2035-02-28
BI198: =L!A280 -> Czech Republic | BJ198: =L!A$452 -> Europe and Central Asia | BK198: =L!A$447 -> ECA | BL198: =L!A$468 -> Eastern Europe | BM198: =L!A$488 -> EEU | BN198: CZE | BO198: CZK | BP198: =L!A$687 -> December | BQ198: 12 | BR198: 20260 | BS198: 0.888 | BT198: =IF(BS198="","",IF(BS198<0.55,L!$A$640,IF(BS198<0.7,L!$A$639,IF(BS198<0.8,L!$A$638,L!$A$637)))) -> very high | BU198: 36.06296296 | BV198: 2.4 | EG198: 1973 | EH198: 2013-08-01 | EI198: 2013-10-01 | EJ198: 2035-01-01 | EK198: =DATE(YEAR(EJ198),MONTH(EJ198),DAY(EJ198)+30) -> 2035-01-31
BI199: =L!A281 -> Denmark | BJ199: =L!A$452 -> Europe and Central Asia | BK199: =L!A$447 -> ECA | BL199: =L!$A$479 -> Northern Europe | BM199: =L!$A$496 -> NEU | BN199: DNK | BO199: DKK | BP199: =L!A$687 -> December | BQ199: 12 | BR199: 60190 | BS199: 0.929 | BT199: =IF(BS199="","",IF(BS199<0.55,L!$A$640,IF(BS199<0.7,L!$A$639,IF(BS199<0.8,L!$A$638,L!$A$637)))) -> very high | BU199: 16.74203382 | EG199: 1972 | EH199: 2013-05-01 | EI199: 2013-07-01 | EJ199: 2034-12-01 | EK199: =DATE(YEAR(EJ199),MONTH(EJ199),DAY(EJ199)+30) -> 2034-12-31
BI200: =L!A282 -> Djibouti | BJ200: =L!A$454 -> Middle East and North Africa | BK200: =L!A$449 -> MENA | BL200: =L!A$469 -> Western Asia | BM200: =L!A$485 -> WAS | BN200: DJI | BO200: DJF | BP200: =L!A$687 -> December | BQ200: 12 | BS200: 0.476 | BT200: =IF(BS200="","",IF(BS200<0.55,L!$A$640,IF(BS200<0.7,L!$A$639,IF(BS200<0.8,L!$A$638,L!$A$637)))) -> low | BV200: 5.89 | EG200: 1971 | EH200: 2013-02-01 | EI200: 2013-04-01 | EJ200: 2034-11-01 | EK200: =DATE(YEAR(EJ200),MONTH(EJ200),DAY(EJ200)+29) -> 2034-11-30
BI201: =L!A283 -> Dominica | BJ201: =L!A$453 -> Latin America and the Caribbean | BK201: =L!A$448 -> LAC | BL201: =L!$A$480 -> Caribbean | BM201: =L!$A$497 -> CAR | BN201: DMA | BO201: XCD | BP201: =L!A$681 -> June | BQ201: 6 | BR201: 7210 | BS201: 0.715 | BT201: =IF(BS201="","",IF(BS201<0.55,L!$A$640,IF(BS201<0.7,L!$A$639,IF(BS201<0.8,L!$A$638,L!$A$637)))) -> high | BU201: 28.18933333 | EG201: 1970 | EH201: 2012-11-01 | EI201: 2013-01-01 | EJ201: 2034-10-01 | EK201: =DATE(YEAR(EJ201),MONTH(EJ201),DAY(EJ201)+30) -> 2034-10-31
BI202: =L!A284 -> Dominican Republic | BJ202: =L!A$453 -> Latin America and the Caribbean | BK202: =L!A$448 -> LAC | BL202: =L!$A$480 -> Caribbean | BM202: =L!$A$497 -> CAR | BN202: DOM | BO202: DOP | BP202: =L!A$687 -> December | BQ202: 12 | BR202: 7370 | BS202: 0.736 | BT202: =IF(BS202="","",IF(BS202<0.55,L!$A$640,IF(BS202<0.7,L!$A$639,IF(BS202<0.8,L!$A$638,L!$A$637)))) -> high | BU202: 41.63314014 | BV202: 3.09 | BW202: Cibao Norte | BX202: Cibao Sur | BY202: Cibao Nordeste | BZ202: Cibao Noroeste | CA202: Valdesia | CB202: Enriquillo | CC202: El Valle | CD202: Yuma | CE202: Higuamo | CF202: Ozama | DA202: 0.242 | DB202: 0.307 | DC202: 0.283 | DD202: 0.345 | DE202: 0.399 | DF202: 0.559 | DG202: 0.448 | DH202: 0.276 | DI202: 0.393 | DJ202: 0.228 | EE202: 0.3 | EG202: 1969 | EH202: 2012-08-01 | EI202: 2012-10-01 | EJ202: 2034-09-01 | EK202: =DATE(YEAR(EJ202),MONTH(EJ202),DAY(EJ202)+29) -> 2034-09-30
BI203: =L!A285 -> Ecuador | BJ203: =L!A$453 -> Latin America and the Caribbean | BK203: =L!A$448 -> LAC | BL203: =L!A$472 -> South America | BM203: =L!A$493 -> SAM | BN203: ECU | BO203: USD | BP203: =L!A$687 -> December | BQ203: 12 | BR203: 6120 | BS203: 0.752 | BT203: =IF(BS203="","",IF(BS203<0.55,L!$A$640,IF(BS203<0.7,L!$A$639,IF(BS203<0.8,L!$A$638,L!$A$637)))) -> high | BU203: 24.88705911 | BV203: 3.78 | BW203: Galapagos | BX203: Coastal | BY203: Mountains | BZ203: Amazon | DA203: 0.008 | DB203: 0.026 | DC203: 0.035 | DD203: 0.112 | EE203: 0.035 | EG203: 1968 | EH203: 2012-05-01 | EI203: 2012-07-01 | EJ203: 2034-08-01 | EK203: =DATE(YEAR(EJ203),MONTH(EJ203),DAY(EJ203)+30) -> 2034-08-31
BI204: =L!A286 -> Egypt, Arab Rep. | BJ204: =L!A$454 -> Middle East and North Africa | BK204: =L!A$449 -> MENA | BL204: =L!A$470 -> Northern Africa | BM204: =L!A$486 -> NAF | BN204: EGY | BO204: EGP | BP204: December | BQ204: 12 | BR204: 2800 | BS204: 0.696 | BT204: =IF(BS204="","",IF(BS204<0.55,L!$A$640,IF(BS204<0.7,L!$A$639,IF(BS204<0.8,L!$A$638,L!$A$637)))) -> medium | BU204: 56.65054297 | BV204: 4.13 | BW204: New Valley | BX204: Pord Said | BY204: Alexandria | BZ204: Dakahlia | CA204: Kalyubia | CB204: Gharbia | CC204: Kafr El-Sheikh | CD204: Cairo | CE204: Suez | CF204: Menoufia | CG204: Ismailia | CH204: Sharkia | CI204: Damietta | CJ204: Behera | CK204: Aswan | CL204: Qena | CM204: Red Sea | CN204: Luxor | CO204: Beni Suef | CP204: Giza | CQ204: Menya | CR204: Fayoum | CS204: Souhag | CT204: Matroh | CU204: Assuit | DA204: 0.008 | DB204: 0.01 | DC204: 0.013 | DD204: 0.015 | DE204: 0.014 | DF204: 0.016 | DG204: 0.017 | DH204: 0.018 | DI204: 0.023 | DJ204: 0.022 | DK204: 0.025 | DL204: 0.024 | DM204: 0.031 | DN204: 0.029 | DO204: 0.034 | DP204: 0.042 | DQ204: 0.037 | DR204: 0.04 | DS204: 0.047 | DT204: 0.047 | DU204: 0.057 | DV204: 0.058 | DW204: 0.086 | DX204: 0.088 | DY204: 0.096 | EE204: 0.036 | EG204: 1967 | EH204: 2012-02-01 | EI204: 2012-04-01 | EJ204: 2034-07-01 | EK204: =DATE(YEAR(EJ204),MONTH(EJ204),DAY(EJ204)+30) -> 2034-07-31
BI205: =L!A287 -> El Salvador | BJ205: =L!A$453 -> Latin America and the Caribbean | BK205: =L!A$448 -> LAC | BL205: =L!A$464 -> Central America | BM205: =L!A$492 -> CAM | BN205: SLV | BO205: USD | BP205: =L!A$687 -> December | BQ205: 12 | BR205: 3820 | BS205: 0.674 | BT205: =IF(BS205="","",IF(BS205<0.55,L!$A$640,IF(BS205<0.7,L!$A$639,IF(BS205<0.8,L!$A$638,L!$A$637)))) -> medium | BU205: 86.69555985 | BV205: 3.92 | BW205: San Salvador | BX205: La Libertad | BY205: San Vicente | BZ205: Cuscatlan | CA205: Santa Ana | CB205: La Paz | CC205: Ahuachapan | CD205: San Miguel | CE205: Usulutan | CF205: Chalatenango | CG205: Morazan | CH205: Cabanas | CI205: Sonsonate | CJ205: La Union | DA205: 0.026 | DB205: 0.04 | DC205: 0.055 | DD205: 0.056 | DE205: 0.061 | DF205: 0.073 | DG205: 0.074 | DH205: 0.071 | DI205: 0.073 | DJ205: 0.087 | DK205: 0.105 | DL205: 0.116 | DM205: 0.105 | DN205: 0.13 | EE205: 0.063 | EG205: 1966 | EH205: 2011-11-01 | EI205: 2012-01-01 | EJ205: 2034-06-01 | EK205: =DATE(YEAR(EJ205),MONTH(EJ205),DAY(EJ205)+29) -> 2034-06-30
... 320 more rows

Sheet Products
C2: =L!$A$206 -> Please complete these optional data | L2: =L!$A$210 -> If you wish to report other products, please complete this optional information | Z2: =L!$A$214 -> Calculations
C3: =L!A2003 -> 5 loan products with higher portfolio amount | E3: 1 | F3: 2 | G3: 3 | H3: 4 | I3: 5 | L3: =L!$A$2004 -> Other loan products | N3: 6 | O3: 7 | P3: 8 | Q3: 9 | R3: 10 | S3: 11 | T3: 12 | U3: 13 | V3: 14 | W3: 15 | Z3: =Essential!$D$7 -> 0 | AL3: 1 | AM3: 2 | AN3: 3 | AO3: 4 | AP3: 5 | AQ3: 6 | AR3: 7 | AS3: 8 | AT3: 9 | AU3: 10 | AV3: 11 | AW3: 12 | AX3: 13 | AY3: 14 | AZ3: 15 | BA3: =Essential!$D$7 -> 0
B4: P1 | C4: =L!A2007 -> Product name | K4: =B4 -> P1 | L4: =L!$A2007 -> Product name
B5: =General!$F$7 -> G11 | C5: =L!$A2008&", "&General!$D$14 -> Gross loan portfolio, | D5: =General!$H$5 -> 2021-12-31 | K5: =B5 -> G11 | L5: =L!$A2008&", "&General!$D$14 -> Gross loan portfolio, | M5: =General!$H$5 -> 2021-12-31 | Y5: =B5 -> G11 | Z5: =L!$A2008&", "&General!$D$14 -> Gross loan portfolio, | AA5: =General!$H$5 -> 2021-12-31 | AB5: =IF(AND(E5="",F5="",G5="",H5="",I5=""),"",SUM(E5:I5,N5:W5)) -> 
B6: =General!$F$29 -> G28 | C6: =L!$A$2009 -> Number of borrowers | D6: =General!$H$5 -> 2021-12-31 | K6: G28 | L6: =L!$A$2009 -> Number of borrowers | M6: =General!$H$5 -> 2021-12-31 | Y6: =B6 -> G28 | Z6: =L!$A$2009 -> Number of borrowers | AA6: =General!$H$5 -> 2021-12-31 | AB6: =IF(AND(E6="",F6="",G6="",H6="",I6=""),"",SUM(E6:I6,N6:W6)) -> 
B7: =General!$F$7 -> G11 | C7: =L!$A2008&", "&General!$D$14 -> Gross loan portfolio, | D7: =General!$I$5 -> 2022-12-31 | K7: G11 | L7: =L!$A2008&", "&General!$D$14 -> Gross loan portfolio, | M7: =General!$I$5 -> 2022-12-31 | Y7: G11 | Z7: =L!$A2008&", "&General!$D$14 -> Gross loan portfolio, | AA7: =General!$I$5 -> 2022-12-31
B8: =General!$F$29 -> G28 | C8: =L!$A$2009 -> Number of borrowers | D8: =General!$I$5 -> 2022-12-31 | K8: G28 | L8: =L!$A$2009 -> Number of borrowers | M8: =General!$I$5 -> 2022-12-31 | Y8: G28 | Z8: =L!$A$2009 -> Number of borrowers | AA8: =General!$I$5 -> 2022-12-31
B9: =General!$F$7 -> G11 | C9: =L!$A2008&", "&General!$D$14 -> Gross loan portfolio, | D9: =General!$J$5 -> 2023-12-31 | K9: G11 | L9: =L!$A2008&", "&General!$D$14 -> Gross loan portfolio, | M9: =General!$J$5 -> 2023-12-31 | Y9: G11 | Z9: =L!$A2008&", "&General!$D$14 -> Gross loan portfolio, | AA9: =General!$J$5 -> 2023-12-31
B10: =General!$F$29 -> G28 | C10: =L!$A$2009 -> Number of borrowers | D10: =General!$J$5 -> 2023-12-31 | K10: G28 | L10: =L!$A$2009 -> Number of borrowers | M10: =General!$J$5 -> 2023-12-31 | Y10: G28 | Z10: =L!$A$2009 -> Number of borrowers | AA10: =General!$J$5 -> 2023-12-31
B11: =General!$F$7 -> G11 | C11: =L!$A$2008&", "&General!$D$14 -> Gross loan portfolio, | D11: =General!$K$5 ->  | K11: G11 | L11: =L!$A$2008&", "&General!$D$14 -> Gross loan portfolio, | M11: =General!$K$5 ->  | Y11: G11 | Z11: =L!$A$2008&", "&General!$D$14 -> Gross loan portfolio, | AA11: =General!$K$5 -> 
B12: =General!$F$29 -> G28 | C12: =L!$A$2009 -> Number of borrowers | D12: =General!$K$5 ->  | K12: G28 | L12: =L!$A$2009 -> Number of borrowers | M12: =General!$K$5 ->  | Y12: G28 | Z12: =L!$A$2009 -> Number of borrowers | AA12: =General!$K$5 -> 
B13: =General!$F$7 -> G11 | C13: =L!$A2008&", "&General!$D$14 -> Gross loan portfolio, | D13: =General!$L$5 -> 2024-12-31 | K13: G11 | L13: =L!$A2008&", "&General!$D$14 -> Gross loan portfolio, | M13: =General!$L$5 -> 2024-12-31 | Y13: G11 | Z13: =L!$A2008&", "&General!$D$14 -> Gross loan portfolio, | AA13: =General!$L$5 -> 2024-12-31
B14: =General!$F$29 -> G28 | C14: =L!$A$2009 -> Number of borrowers | D14: =General!$L$5 -> 2024-12-31 | K14: G28 | L14: =L!$A$2009 -> Number of borrowers | M14: =General!$L$5 -> 2024-12-31 | Y14: G28 | Z14: =L!$A$2009 -> Number of borrowers | AA14: =General!$L$5 -> 2024-12-31
B15: =General!$F$7 -> G11 | C15: =L!A2008&", "&General!D14 -> Gross loan portfolio, | D15: =General!$M$5 -> 2025-12-31 | K15: G11 | L15: =L!$A2008&", "&General!$D14 -> Gross loan portfolio, | M15: =General!$M$5 -> 2025-12-31 | Y15: G11 | Z15: =L!$A2008&", "&General!$D14 -> Gross loan portfolio, | AA15: =General!$M$5 -> 2025-12-31
B16: =General!$F$29 -> G28 | C16: =L!A2009 -> Number of borrowers | D16: =General!$M$5 -> 2025-12-31 | K16: G28 | L16: =L!$A2009 -> Number of borrowers | M16: =General!$M$5 -> 2025-12-31 | Y16: G28 | Z16: =L!$A2009 -> Number of borrowers | AA16: =General!$M$5 -> 2025-12-31 | CB16: =L!$A$1076 -> Usual Min | CC16: =L!$A$1077 -> Usual Max
B17: P2 | C17: =L!A2034 -> Annual Percentage Rate | K17: P2 | L17: =L!$A2034 -> Annual Percentage Rate | Y17: P2 | Z17: =L!$A2034 -> Annual Percentage Rate | AB17: =IF(AND(E17="",F17="",G17="",H17="",I17=""),"",IF(AB195=AM195,AVERAGE(E17:I17,N17:W17),SUMPRODUCT(E17:W17,E197:W197))) ->  | BD17: =L!A2090 -> MFT Pricing Analysis Tool | BE17: =L!A2091 -> MFT Pricing Calculator Tool | BF17: =L!A2092 -> SPI4 APR estimation tool | BG17: =L!A2093 -> Other, please specify in comment | CA17: =L!$A$2034 -> Annual Percentage Rate | CB17: 0.15 | CC17: 1
B18: P3 | C18: =L!A2041 -> Tool used to calculate APR | K18: P3 | L18: =L!$A2041 -> Tool used to calculate APR | Y18: P3 | Z18: =L!$A2041 -> Tool used to calculate APR | AB18: =IF(AND(E15="",F15="",G15="",H15="",I15=""),IF(E18<>"",E18,IF(F18<>"",F18,IF(G18<>"",G18,IF(H18<>"",H18,IF(I18<>"",I18,""))))),IF(HLOOKUP(MAX(E15:I15),E15:H18,COUNTA(C15:C18),FALSE)<>"",HLOOKUP(MAX(E15:I15),E15:H18,COUNTA(C15:C18),FALSE),IF(F18<>"",F18,IF(G18<>"",G18,IF(H18<>"",22,IF(I18<>"",I18,"")))))) ->  | AK18: =B18 -> P3 | AL18: =IF(E18="","",HLOOKUP(E18,$BD$17:$BG$18,2,FALSE)) ->  | AM18: =IF(F18="","",HLOOKUP(F18,$BD$17:$BG$18,2,FALSE)) ->  | AN18: =IF(G18="","",HLOOKUP(G18,$BD$17:$BG$18,2,FALSE)) ->  | AO18: =IF(H18="","",HLOOKUP(H18,$BD$17:$BG$18,2,FALSE)) ->  | AP18: =IF(I18="","",HLOOKUP(I18,$BD$17:$BG$18,2,FALSE)) ->  | AQ18: =IF(N18="","",HLOOKUP(N18,$BD$17:$BG$18,2,FALSE)) ->  | AR18: =IF(O18="","",HLOOKUP(O18,$BD$17:$BG$18,2,FALSE)) ->  | BA18: =IF(AB18="","",HLOOKUP(AB18,$BD$17:$BG$18,2,FALSE)) ->  | BD18: 1 | BE18: 2 | BF18: 3 | BG18: 4
B19: P4 | C19: =L!A2044 -> Comment | K19: P4 | L19: =L!$A2044 -> Comment | Y19: P4 | Z19: =L!$A2044 -> Comment | AB19: =IF(AND(E15="",F15="",G15="",H15="",I15=""),IF(E19<>"",E19,IF(F19<>"",F19,IF(G19<>"",G19,IF(H19<>"",H19,IF(I19<>"",I19,""))))),IF(HLOOKUP(MAX(E15:I15),E15:H19,COUNTA(C15:C19),FALSE)<>"",HLOOKUP(MAX(E15:I15),E15:H19,COUNTA(C15:C19),FALSE),IF(F19<>"",F19,IF(G19<>"",G19,IF(H19<>"",22,IF(I19<>"",I19,"")))))) ->  | BD19: =L!A2075 -> Microenterprise | BE19: =L!A2076 -> SME | BF19: =L!A2077 -> Corporate | BG19: =L!A2078 -> Housing | BH19: =L!A2079 -> Personal | BI19: =L!A2089 -> Other | BJ19: =IF(OR($E20=BD19,$F20=BD19,$G20=BD19,$H20=BD19,$I20=BD19,$N20=BD19,$O20=BD19,$P20=BD19,$Q20=BD19,$R20=BD19,$S20=BD19,$T20=BD19,$U20=BD19,$V20=BD19,$W20=BD19),IF(OR(BK19<>"",BL19<>"",BM19<>"",BN19<>"",BO19<>""),BD19&", ",BD19),"") ->  | BK19: =IF(OR($E20=BE19,$F20=BE19,$G20=BE19,$H20=BE19,$I20=BE19,$N20=BE19,$O20=BE19,$P20=BE19,$Q20=BE19,$R20=BE19,$S20=BE19,$T20=BE19,$U20=BE19,$V20=BE19,$W20=BE19),IF(OR(BL19<>"",BM19<>"",BN19<>"",BO19<>""),BE19&", ",BE19),"") ->  | BL19: =IF(OR($E20=BF19,$F20=BF19,$G20=BF19,$H20=BF19,$I20=BF19,$N20=BF19,$O20=BF19,$P20=BF19,$Q20=BF19,$R20=BF19,$S20=BF19,$T20=BF19,$U20=BF19,$V20=BF19,$W20=BF19),IF(OR(BM19<>"",BN19<>"",BO19<>""),BF19&", ",BF19),"") ->  | BM19: =IF(OR($E20=BG19,$F20=BG19,$G20=BG19,$H20=BG19,$I20=BG19,$N20=BG19,$O20=BG19,$P20=BG19,$Q20=BG19,$R20=BG19,$S20=BG19,$T20=BG19,$U20=BG19,$V20=BG19,$W20=BG19),IF(OR(BN19<>"",BO19<>""),BG19&", ",BG19),"") ->  | BN19: =IF(OR($E20=BH19,$F20=BH19,$G20=BH19,$H20=BH19,$I20=BH19,$N20=BH19,$O20=BH19,$P20=BH19,$Q20=BH19,$R20=BH19,$S20=BH19,$T20=BH19,$U20=BH19,$V20=BH19,$W20=BH19),IF(BO19<>"",BH19&", ",BH19),"") ->  | BO19: =IF(OR($E20=BI19,$F20=BI19,$G20=BI19,$H20=BI19,$I20=BI19,$N20=BI19,$O20=BI19,$P20=BI19,$Q20=BI19,$R20=BI19,$S20=BI19,$T20=BI19,$U20=BI19,$V20=BI19,$W20=BI19),BI19,"") -> 
B20: P5 | C20: =L!A2042 -> Most common loan purpose | K20: P5 | L20: =L!$A2042 -> Most common loan purpose | Y20: P5 | Z20: =L!$A2042 -> Most common loan purpose | AB20: =BJ19&BK19&BL19&BM19&BN19&BO19 ->  | AK20: =B20 -> P5 | AL20: =IF(E20="","",HLOOKUP(E20,$BD$19:$BI$20,2,FALSE)) ->  | AM20: =IF(F20="","",HLOOKUP(F20,$BD$19:$BI$20,2,FALSE)) ->  | AN20: =IF(G20="","",HLOOKUP(G20,$BD$19:$BI$20,2,FALSE)) ->  | AO20: =IF(H20="","",HLOOKUP(H20,$BD$19:$BI$20,2,FALSE)) ->  | AP20: =IF(I20="","",HLOOKUP(I20,$BD$19:$BI$20,2,FALSE)) ->  | AQ20: =IF(N20="","",HLOOKUP(N20,$BD$19:$BI$20,2,FALSE)) ->  | BD20: 1 | BE20: 2 | BF20: 3 | BG20: 4 | BH20: 5 | BI20: 6
B21: P6 | C21: =L!A2043 -> Most common loan sector | K21: P6 | L21: =L!$A2043 -> Most common loan sector | Y21: P6 | Z21: =L!$A2043 -> Most common loan sector | AB21: =BM21&BN21&BO21&BP21&BQ21&BR21&BS21&BT21&BU21 ->  | AK21: =B21 -> P6 | AL21: =IF(E21="","",HLOOKUP(E21,$BD$21:$BL$22,2,FALSE)) ->  | AM21: =IF(F21="","",HLOOKUP(F21,$BD$21:$BL$22,2,FALSE)) ->  | AN21: =IF(G21="","",HLOOKUP(G21,$BD$21:$BL$22,2,FALSE)) ->  | AO21: =IF(H21="","",HLOOKUP(H21,$BD$21:$BL$22,2,FALSE)) ->  | AP21: =IF(I21="","",HLOOKUP(I21,$BD$21:$BL$22,2,FALSE)) ->  | AQ21: =IF(N21="","",HLOOKUP(N21,$BD$21:$BL$22,2,FALSE)) ->  | BD21: =L!A1844 -> Trade | BE21: =L!A1845 -> Services | BF21: =L!A1846 -> Agriculture | BG21: =L!A1847 -> Production | BH21: =L!A1848 -> Education | BI21: =L!A1849 -> Housing | BJ21: =L!A1850 -> Consumption | BK21: =L!A1851 -> Other | BL21: =L!A2126 -> Mixed | BM21: =IF(OR($E21=BD21,$F21=BD21,$G21=BD21,$H21=BD21,$I21=BD21,$N21=BD21,$O21=BD21,$P21=BD21,$Q21=BD21,$R21=BD21,$S21=BD21,$T21=BD21,$U21=BD21,$V21=BD21,$W21=BD21),IF(OR(BN21<>"",BO21<>"",BP21<>"",BQ21<>"",BR21<>"",BS21<>"",BT21<>"",BU21<>""),BD21&", ",BD21),"") ->  | BN21: =IF(OR($E21=BE21,$F21=BE21,$G21=BE21,$H21=BE21,$I21=BE21,$N21=BE21,$O21=BE21,$P21=BE21,$Q21=BE21,$R21=BE21,$S21=BE21,$T21=BE21,$U21=BE21,$V21=BE21,$W21=BE21),IF(OR(BO21<>"",BP21<>"",BQ21<>"",BR21<>"",BS21<>"",BT21<>"",BU21<>""),BE21&", ",BE21),"") ->  | BO21: =IF(OR($E21=BF21,$F21=BF21,$G21=BF21,$H21=BF21,$I21=BF21,$N21=BF21,$O21=BF21,$P21=BF21,$Q21=BF21,$R21=BF21,$S21=BF21,$T21=BF21,$U21=BF21,$V21=BF21,$W21=BF21),IF(OR(BP21<>"",BQ21<>"",BR21<>"",BS21<>"",BT21<>"",BU21<>""),BF21&", ",BF21),"") ->  | BP21: =IF(OR($E21=BG21,$F21=BG21,$G21=BG21,$H21=BG21,$I21=BG21,$N21=BG21,$O21=BG21,$P21=BG21,$Q21=BG21,$R21=BG21,$S21=BG21,$T21=BG21,$U21=BG21,$V21=BG21,$W21=BG21),IF(OR(BQ21<>"",BR21<>"",BS21<>"",BT21<>"",BU21<>""),BG21&", ",BG21),"") ->  | BQ21: =IF(OR($E21=BH21,$F21=BH21,$G21=BH21,$H21=BH21,$I21=BH21,$N21=BH21,$O21=BH21,$P21=BH21,$Q21=BH21,$R21=BH21,$S21=BH21,$T21=BH21,$U21=BH21,$V21=BH21,$W21=BH21),IF(OR(BR21<>"",BS21<>"",BT21<>"",BU21<>""),BH21&", ",BH21),"") ->  | BR21: =IF(OR($E21=BI21,$F21=BI21,$G21=BI21,$H21=BI21,$I21=BI21,$N21=BI21,$O21=BI21,$P21=BI21,$Q21=BI21,$R21=BI21,$S21=BI21,$T21=BI21,$U21=BI21,$V21=BI21,$W21=BI21),IF(OR(BS21<>"",BT21<>"",BU21<>""),BI21&", ",BI21),"") ->  | BS21: =IF(OR($E21=BJ21,$F21=BJ21,$G21=BJ21,$H21=BJ21,$I21=BJ21,$N21=BJ21,$O21=BJ21,$P21=BJ21,$Q21=BJ21,$R21=BJ21,$S21=BJ21,$T21=BJ21,$U21=BJ21,$V21=BJ21,$W21=BJ21),IF(OR(BT21<>"",BU21<>""),BJ21&", ",BJ21),"") ->  | BT21: =IF(OR($E21=BK21,$F21=BK21,$G21=BK21,$H21=BK21,$I21=BK21,$N21=BK21,$O21=BK21,$P21=BK21,$Q21=BK21,$R21=BK21,$S21=BK21,$T21=BK21,$U21=BK21,$V21=BK21,$W21=BK21),IF(BU21<>"",BK21&", ",BK21),"") ->  | BU21: =IF(OR($E21=BL21,$F21=BL21,$G21=BL21,$H21=BL21,$I21=BL21,$N21=BL21,$O21=BL21,$P21=BL21,$Q21=BL21,$R21=BL21,$S21=BL21,$T21=BL21,$U21=BL21,$V21=BL21,$W21=BL21),BL21,"") -> 
B22: P7 | C22: =L!A2010 -> Most common currency of loans | K22: P7 | L22: =L!$A2010 -> Most common currency of loans | Y22: P7 | Z22: =L!$A2010 -> Most common currency of loans | AB22: =IF(AND(E15="",F15="",G15="",H15="",I15=""),IF(E22<>"",E22,IF(F22<>"",F22,IF(G22<>"",G22,IF(H22<>"",H22,IF(I22<>"",I22,""))))),IF(HLOOKUP(MAX(E15:I15),E15:H22,COUNTA(C15:C22),FALSE)<>"",HLOOKUP(MAX(E15:I15),E15:H22,COUNTA(C15:C22),FALSE),IF(F22<>"",F22,IF(G22<>"",G22,IF(H22<>"",22,IF(I22<>"",I22,"")))))) ->  | BD22: 1 | BE22: 2 | BF22: 3 | BG22: 4 | BH22: 5 | BI22: 6 | BJ22: 7 | BK22: 8 | BL22: 9
B23: P8 | C23: =L!$A$2012 -> Most common lending methodology | K23: P8 | L23: =L!$A$2012 -> Most common lending methodology | Y23: P8 | Z23: =L!$A$2012 -> Most common lending methodology | AB23: =IF(Social!D257<>"",Social!D257,BK23&BL23&BM23) ->  | AK23: =B23 -> P8 | AL23: =IF(E23="","",HLOOKUP(E23,$BD$23:$BF$24,2,FALSE)) ->  | AM23: =IF(F23="","",HLOOKUP(F23,$BD$23:$BF$24,2,FALSE)) ->  | AN23: =IF(G23="","",HLOOKUP(G23,$BD$23:$BF$24,2,FALSE)) ->  | AO23: =IF(H23="","",HLOOKUP(H23,$BD$23:$BF$24,2,FALSE)) ->  | AP23: =IF(I23="","",HLOOKUP(I23,$BD$23:$BF$24,2,FALSE)) ->  | AQ23: =IF(N23="","",HLOOKUP(N23,$BD$23:$BF$24,2,FALSE)) ->  | BA23: =IF(AB23="","",HLOOKUP(AB23,$BD$23:$BJ$24,2,FALSE)) ->  | BD23: =L!A617 -> Individual | BE23: =L!A618 -> Group | BF23: =L!A619 -> Village Banking | BG23: =L!$A$620 -> Group, Village Banking | BH23: =L!$A$621 -> Individual, Group | BI23: =L!$A$622 -> Individual, Village Banking | BJ23: =L!$A$623 -> Individual, Group, Village Banking | BK23: =IF(OR($E23=BD23,$F23=BD23,$G23=BD23,$H23=BD23,$I23=BD23,$N23=BD23,$O23=BD23,$P23=BD23,$Q23=BD23,$R23=BD23,$S23=BD23,$T23=BD23,$U23=BD23,$V23=BD23,$W23=BD23),IF(AND(BL23="",BM23=""),BD23,BD23&", "),"") ->  | BL23: =IF(OR($E23=BE23,$F23=BE23,$G23=BE23,$H23=BE23,$I23=BE23,$N23=BE23,$O23=BE23,$P23=BE23,$Q23=BE23,$R23=BE23,$S23=BE23,$T23=BE23,$U23=BE23,$V23=BE23,$W23=BE23),IF(BM23="",BE23,BE23&", "),"") ->  | BM23: =IF(OR($E23=BF23,$F23=BF23,$G23=BF23,$H23=BF23,$I23=BF23,$N23=BF23,$O23=BF23,$P23=BF23,$Q23=BF23,$R23=BF23,$S23=BF23,$T23=BF23,$U23=BF23,$V23=BF23,$W23=BF23),BF23,"") -> 
B24: P9 | C24: =L!A2013 -> Interest calculation | K24: P9 | L24: =L!$A2013 -> Interest calculation | Y24: P9 | Z24: =L!$A2013 -> Interest calculation | AB24: =BK25&BL25&BM25 ->  | AK24: =B24 -> P9 | AL24: =IF(E24="","",HLOOKUP(E24,$BD$25:$BJ$26,2,FALSE)) ->  | AM24: =IF(F24="","",HLOOKUP(F24,$BD$25:$BJ$26,2,FALSE)) ->  | AN24: =IF(G24="","",HLOOKUP(G24,$BD$25:$BJ$26,2,FALSE)) ->  | AO24: =IF(H24="","",HLOOKUP(H24,$BD$25:$BJ$26,2,FALSE)) ->  | AP24: =IF(I24="","",HLOOKUP(I24,$BD$25:$BJ$26,2,FALSE)) ->  | AQ24: =IF(N24="","",HLOOKUP(N24,$BD$25:$BJ$26,2,FALSE)) ->  | BA24: =IF(AB24="","",HLOOKUP(AB24,$BD$25:$BJ$26,2,FALSE)) ->  | BD24: 1 | BE24: 2 | BF24: 3 | BG24: 4 | BH24: 5 | BI24: 6 | BJ24: 7
B25: P10 | C25: =L!A2014 -> Min. annual nominal interest rate (%) | K25: P10 | L25: =L!$A2014 -> Min. annual nominal interest rate (%) | Y25: P10 | Z25: =L!$A2014 -> Min. annual nominal interest rate (%) | AB25: =IF(AND(E25="",F25="",G25="",H25="",I25=""),"",MIN(E25:I25,N25:W25)) ->  | BD25: =L!A2045 -> Declining balance | BE25: =L!A2046 -> Flat | BF25: =L!A2047 -> Upfront | BG25: =BD25&", "&BE25&", "&BF25 -> Declining balance, Flat, Upfront | BH25: =BD25&", "&BE25 -> Declining balance, Flat | BI25: =BD25&", "&BF25 -> Declining balance, Upfront | BJ25: =BE25&", "&BF25 -> Flat, Upfront | BK25: =IF(OR($E24=BD25,$F24=BD25,$G24=BD25,$H24=BD25,$I24=BD25,$N24=BD25,$O24=BD25,$P24=BD25,$Q24=BD25,$R24=BD25,$S24=BD25,$T24=BD25,$U24=BD25,$V24=BD25,$W24=BD25),IF(OR(BL25<>"",BM25<>""),BD25&", ",BD25),"") ->  | BL25: =IF(OR($E24=BE25,$F24=BE25,$G24=BE25,$H24=BE25,$I24=BE25,$N24=BE25,$O24=BE25,$P24=BE25,$Q24=BE25,$R24=BE25,$S24=BE25,$T24=BE25,$U24=BE25,$V24=BE25,$W24=BE25),IF(BM25<>"",BE25&", ",BE25),"") ->  | BM25: =IF(OR($E24=BF25,$F24=BF25,$G24=BF25,$H24=BF25,$I24=BF25,$N24=BF25,$O24=BF25,$P24=BF25,$Q24=BF25,$R24=BF25,$S24=BF25,$T24=BF25,$U24=BF25,$V24=BF25,$W24=BF25),BF25,"") -> 
B26: P11 | C26: =L!A2015 -> Max. annual nominal interest rate (%) | K26: P11 | L26: =L!$A2015 -> Max. annual nominal interest rate (%) | Y26: P11 | Z26: =L!$A2015 -> Max. annual nominal interest rate (%) | AB26: =IF(AND(E26="",F26="",G26="",H26="",I26=""),"",MAX(E26:I26,N26:W26)) ->  | BD26: 1 | BE26: 2 | BF26: 3 | BG26: 4 | BH26: 5 | BI26: 6 | BJ26: 7
B27: P12 | C27: =L!$A$2016 -> Average annual nominal interest rate (%) | K27: P12 | L27: =L!$A$2016 -> Average annual nominal interest rate (%) | Y27: P12 | Z27: =L!$A$2016 -> Average annual nominal interest rate (%) | AB27: =IF(AND(E27="",F27="",G27="",H27="",I27=""),"",SUMPRODUCT(E27:W27,E127:W127)) -> 
B28: P13 | C28: =L!A2018 -> Upfront fees charged to clients (% or amount) | K28: P13 | L28: =L!$A2018 -> Upfront fees charged to clients (% or amount) | Y28: P13 | Z28: =L!$A2018 -> Upfront fees charged to clients (% or amount) | AB28: =IF(AND(E15="",F15="",G15="",H15="",I15=""),IF(E28<>"",E28,IF(F28<>"",F28,IF(G28<>"",G28,IF(H28<>"",H28,IF(I28<>"",I28,""))))),IF(HLOOKUP(MAX(E15:I15),E15:H28,COUNTA(C15:C28),FALSE)<>"",HLOOKUP(MAX(E15:I15),E15:H28,COUNTA(C15:C28),FALSE),IF(F28<>"",F28,IF(G28<>"",G28,IF(H28<>"",22,IF(I28<>"",I28,"")))))) -> 
B29: P14 | C29: =L!A2019 -> Ongoing fees charged to clients (% or amount) | K29: P14 | L29: =L!$A2019 -> Ongoing fees charged to clients (% or amount) | Y29: P14 | Z29: =L!$A2019 -> Ongoing fees charged to clients (% or amount) | AB29: =IF(AND(E15="",F15="",G15="",H15="",I15=""),IF(E29<>"",E29,IF(F29<>"",F29,IF(G29<>"",G29,IF(H29<>"",H29,IF(I29<>"",I29,""))))),IF(HLOOKUP(MAX(E15:I15),E15:H29,COUNTA(C15:C29),FALSE)<>"",HLOOKUP(MAX(E15:I15),E15:H29,COUNTA(C15:C29),FALSE),IF(F29<>"",F29,IF(G29<>"",G29,IF(H29<>"",22,IF(I29<>"",I29,"")))))) -> 
B30: P15 | C30: =L!A2020&", "&General!$D$14 -> Min. loan amount, | K30: P15 | L30: =L!$A2020&", "&General!$D$14 -> Min. loan amount, | Y30: P15 | Z30: =L!$A2020&", "&General!$D$14 -> Min. loan amount, | AB30: =IF(AND(E30="",F30="",G30="",H30="",I30=""),"",MIN(E30:I30,N30:W30)) -> 
B31: P16 | C31: =L!A2021&", "&General!$D$14 -> Max. loan amount, | K31: P16 | L31: =L!$A2021&", "&General!$D$14 -> Max. loan amount, | Y31: P16 | Z31: =L!$A2021&", "&General!$D$14 -> Max. loan amount, | AB31: =IF(AND(E31="",F31="",G31="",H31="",I31=""),"",MAX(E31:I31,N31:W31)) -> 
B32: P17 | C32: =L!A2023 -> Min. loan term (months) | K32: P17 | L32: =L!$A2023 -> Min. loan term (months) | Y32: P17 | Z32: =L!$A2023 -> Min. loan term (months) | AB32: =IF(AND(E32="",F32="",G32="",H32="",I32=""),"",MIN(E32:I32,N32:W32)) -> 
B33: P18 | C33: =L!A2024 -> Max. loan term (months) | K33: P18 | L33: =L!$A2024 -> Max. loan term (months) | Y33: P18 | Z33: =L!$A2024 -> Max. loan term (months) | AB33: =IF(AND(E33="",F33="",G33="",H33="",I33=""),"",MAX(E33:I33,N33:W33)) -> 
B34: P19 | C34: =L!A2025 -> Main repayment frequency | K34: P19 | L34: =L!$A2025 -> Main repayment frequency | Y34: P19 | Z34: =L!$A2025 -> Main repayment frequency | AB34: =BK34&BL34&BM34&BN34&BO34&BP34&BQ34 ->  | AK34: =B34 -> P19 | AL34: =IF(E34="","",HLOOKUP(E34,$BD$34:$BJ$35,2,FALSE)) ->  | AM34: =IF(F34="","",HLOOKUP(F34,$BD$34:$BJ$35,2,FALSE)) ->  | AN34: =IF(G34="","",HLOOKUP(G34,$BD$34:$BJ$35,2,FALSE)) ->  | AO34: =IF(H34="","",HLOOKUP(H34,$BD$34:$BJ$35,2,FALSE)) ->  | AP34: =IF(I34="","",HLOOKUP(I34,$BD$34:$BJ$35,2,FALSE)) ->  | AQ34: =IF(N34="","",HLOOKUP(N34,$BD$34:$BJ$35,2,FALSE)) ->  | BD34: =L!A2049 -> Daily | BE34: =L!A2050 -> Biweekly | BF34: =L!A2051 -> Weekly | BG34: =L!A2052 -> Bimonthly | BH34: =L!A2053 -> Monthly | BI34: =L!A2054 -> Quarterly | BJ34: =L!A2055 -> End-term payment | BK34: =IF(OR($E34=BD34,$F34=BD34,$G34=BD34,$H34=BD34,$I34=BD34,$N34=BD34,$O34=BD34,$P34=BD34,$Q34=BD34,$R34=BD34,$S34=BD34,$T34=BD34,$U34=BD34,$V34=BD34,$W34=BD34),IF(OR(BL34<>"",BM34<>"",BN34<>"",BO34<>"",BP34<>"",BQ34<>""),BD34&", ",BD34),"") ->  | BL34: =IF(OR($E34=BE34,$F34=BE34,$G34=BE34,$H34=BE34,$I34=BE34,$N34=BE34,$O34=BE34,$P34=BE34,$Q34=BE34,$R34=BE34,$S34=BE34,$T34=BE34,$U34=BE34,$V34=BE34,$W34=BE34),IF(OR(BM34<>"",BN34<>"",BO34<>"",BP34<>"",BQ34<>""),BE34&", ",BE34),"") ->  | BM34: =IF(OR($E34=BF34,$F34=BF34,$G34=BF34,$H34=BF34,$I34=BF34,$N34=BF34,$O34=BF34,$P34=BF34,$Q34=BF34,$R34=BF34,$S34=BF34,$T34=BF34,$U34=BF34,$V34=BF34,$W34=BF34),IF(OR(BN34<>"",BO34<>"",BP34<>"",BQ34<>""),BF34&", ",BF34),"") ->  | BN34: =IF(OR($E34=BG34,$F34=BG34,$G34=BG34,$H34=BG34,$I34=BG34,$N34=BG34,$O34=BG34,$P34=BG34,$Q34=BG34,$R34=BG34,$S34=BG34,$T34=BG34,$U34=BG34,$V34=BG34,$W34=BG34),IF(OR(BO34<>"",BP34<>"",BQ34<>""),BG34&", ",BG34),"") ->  | BO34: =IF(OR($E34=BH34,$F34=BH34,$G34=BH34,$H34=BH34,$I34=BH34,$N34=BH34,$O34=BH34,$P34=BH34,$Q34=BH34,$R34=BH34,$S34=BH34,$T34=BH34,$U34=BH34,$V34=BH34,$W34=BH34),IF(OR(BP34<>"",BQ34<>""),BH34&", ",BH34),"") ->  | BP34: =IF(OR($E34=BI34,$F34=BI34,$G34=BI34,$H34=BI34,$I34=BI34,$N34=BI34,$O34=BI34,$P34=BI34,$Q34=BI34,$R34=BI34,$S34=BI34,$T34=BI34,$U34=BI34,$V34=BI34,$W34=BI34),IF(BQ34<>"",BI34&", ",BI34),"") ->  | BQ34: =IF(OR($E34=BJ34,$F34=BJ34,$G34=BJ34,$H34=BJ34,$I34=BJ34,$N34=BJ34,$O34=BJ34,$P34=BJ34,$Q34=BJ34,$R34=BJ34,$S34=BJ34,$T34=BJ34,$U34=BJ34,$V34=BJ34,$W34=BJ34),BJ34,"") -> 
B35: P20 | C35: =L!A2026 -> Average grace period (months) | K35: P20 | L35: =L!$A2026 -> Average grace period (months) | Y35: P20 | Z35: =L!$A2026 -> Average grace period (months) | AB35: =IF(AND(E35="",F35="",G35="",H35="",I35=""),"",SUMPRODUCT(E35:W35,E135:W135)) ->  | BD35: 1 | BE35: 2 | BF35: 3 | BG35: 4 | BH35: 5 | BI35: 6 | BJ35: 7
B36: P21 | C36: =L!$A$2028 -> Collateral | K36: P21 | L36: =L!$A2028 -> Collateral | Y36: P21 | Z36: =L!$A2028 -> Collateral
B37: =$B$36&Definitions!$AC$20&Definitions!$AE2 -> P21.19.1 | C37: =L!A2059 -> Mortgage | K37: P21.19.1 | L37: =L!$A2059 -> Mortgage | Y37: =B37 -> P21.19.1 | Z37: =L!$A$2067 -> Mortgage | AB37: =IF(BA37="","",IF(BA37=1,$CJ$37,IF(BA37=0,$CK$37,""))) ->  | AK37: =B37 -> P21.19.1 | AL37: =IF(AND(BD$37="",BD$38="",BD$39="",BD$40="",BD$41="",BD$42="",BD$43="",BD$44=""),"", IF(BD37=TRUE,1,0)) ->  | AM37: =IF(AND(BE$37="",BE$38="",BE$39="",BE$40="",BE$41="",BE$42="",BE$43="",BE$44=""),"", IF(BE37=TRUE,1,0)) ->  | AP37: =IF(AND(BH$37="",BH$38="",BH$39="",BH$40="",BH$41="",BH$42="",BH$43="",BH$44=""),"", IF(BH37=TRUE,1,0)) ->  | BA37: =IF(AND(AL37="",AM37="",AN37="",AO37="",AP37="",AQ37="",AR37="",AS37="",AT37="",AU37="",AV37="",AW37="",AX37="",AY37="",AZ37=""),"",IF(OR(AL37=1,AM37=1,AN37=1,AO37=1,AP37=1,AQ37=1,AR37=1,AS37=1,AT37=1,AU37=1,AV37=1,AW37=1,AX37=1,AY37=1,AZ37=1),1,IF(OR(AL37=0,AM37=0,AN37=0,AO37=0,AP37=0,AQ37=0,AR37=0,AS37=0,AT37=0,AU37=0,AV37=0,AW37=0,AX37=0,AY37=0,AZ37=0),0,""))) ->  | BS37: =IF(BD37=TRUE,IF(OR(BD38=TRUE,BD39=TRUE,BD40=TRUE,BD41=TRUE,BD42=TRUE,BD43=TRUE,BD44=TRUE),$Z37&", ",$Z37),"") ->  | CH37: =IF(OR(BD37=TRUE,BE37=TRUE,BF37=TRUE,BG37=TRUE,BH37=TRUE,BI37=TRUE,BJ37=TRUE,BK37=TRUE,BL37=TRUE,BM37=TRUE,BN37=TRUE,BO37=TRUE,BP37=TRUE,BQ37=TRUE,BR37=TRUE),$Z37,"") ->  | CI37: =IF(AND(CH37<>"",OR(CH38<>"",CH39<>"",CH40<>"",CH41<>"",CH42<>"",CH43<>"",CH44<>"")),", ","") ->  | CJ37: =L!$A$12 -> Yes | CK37: =L!$A$13 -> No
B38: =$B$36&Definitions!$AC$20&Definitions!$AE3 -> P21.19.2 | C38: =L!A2060 -> Deposits (cash, time deposits, gold) | K38: P21.19.2 | L38: =L!$A2060 -> Deposits (cash, time deposits, gold) | Y38: =B38 -> P21.19.2 | Z38: =L!$A$2068 -> Deposits | AB38: =IF(BA38="","",IF(BA38=1,$CJ$37,IF(BA38=0,$CK$37,""))) ->  | AK38: =B38 -> P21.19.2 | AL38: =IF(AND(BD$37="",BD$38="",BD$39="",BD$40="",BD$41="",BD$42="",BD$43="",BD$44=""),"", IF(BD38=TRUE,1,0)) ->  | BA38: =IF(AND(AL38="",AM38="",AN38="",AO38="",AP38="",AQ38="",AR38="",AS38="",AT38="",AU38="",AV38="",AW38="",AX38="",AY38="",AZ38=""),"",IF(OR(AL38=1,AM38=1,AN38=1,AO38=1,AP38=1,AQ38=1,AR38=1,AS38=1,AT38=1,AU38=1,AV38=1,AW38=1,AX38=1,AY38=1,AZ38=1),1,IF(OR(AL38=0,AM38=0,AN38=0,AO38=0,AP38=0,AQ38=0,AR38=0,AS38=0,AT38=0,AU38=0,AV38=0,AW38=0,AX38=0,AY38=0,AZ38=0),0,""))) ->  | BS38: =IF(BD38=TRUE,IF(OR(BD39=TRUE,BD40=TRUE,BD41=TRUE,BD42=TRUE,BD43=TRUE,BD44=TRUE,AL45=TRUE),$Z38&", ",$Z38),"") ->  | CI38: =IF(AND(CH38<>"",OR(CH39<>"",CH40<>"",CH41<>"",CH42<>"",CH43<>"",CH44<>"")),", ","") -> 
B39: =$B$36&Definitions!$AC$20&Definitions!$AE4 -> P21.19.3 | C39: =L!$A2061 -> Guarantee fund | K39: P21.19.3 | L39: =L!$A2061 -> Guarantee fund | Y39: P21.19.3 | Z39: =L!$A$2069 -> Guarantee fund | AK39: P21.19.3 | BS39: =IF(BD39=TRUE,IF(OR(BD40=TRUE,BD41=TRUE,BD42=TRUE,BD43=TRUE,BD44=TRUE,AL45=TRUE,AL46=TRUE),$Z39&", ",$Z39),"") ->  | CI39: =IF(AND(CH39<>"",OR(CH40<>"",CH41<>"",CH42<>"",CH43<>"",CH44<>"")),", ","") -> 
B40: =$B$36&Definitions!$AC$20&Definitions!$AE5 -> P21.19.4 | C40: =L!$A2062 -> Pledge (e.g. stock, equipment, vehicle, invoice) | K40: P21.19.4 | L40: =L!$A2062 -> Pledge (e.g. stock, equipment, vehicle, invoice) | Y40: P21.19.4 | Z40: =L!$A$2070 -> Pledge | AK40: P21.19.4 | BS40: =IF(BD40=TRUE,IF(OR(BD41=TRUE,BD42=TRUE,BD43=TRUE,BD44=TRUE,AL45=TRUE,AL46=TRUE,AL47=TRUE),$Z40&", ",$Z40),"") ->  | CI40: =IF(AND(CH40<>"",OR(CH41<>"",CH42<>"",CH43<>"",CH44<>"")),", ","") -> 
B41: =$B$36&Definitions!$AC$20&Definitions!$AE6 -> P21.19.5 | C41: =L!$A2063 -> Salary deduction | K41: P21.19.5 | L41: =L!$A2063 -> Salary deduction | Y41: P21.19.5 | Z41: =L!$A$2071 -> Salary deduction | AK41: P21.19.5 | BS41: =IF(BD41=TRUE,IF(OR(BD42=TRUE,BD43=TRUE,BD44=TRUE,AL45=TRUE,AL46=TRUE,AL47=TRUE,AM48=TRUE),$Z41&", ",$Z41),"") ->  | BT41: =IF(BE41=TRUE,IF(OR(BE42=TRUE,BE43=TRUE,BE44=TRUE,AM45=TRUE,AM46=TRUE,AM47=TRUE,AN48=TRUE),$Z41&", ",$Z41),"") ->  | BU41: =IF(BF41=TRUE,IF(OR(BF42=TRUE,BF43=TRUE,BF44=TRUE,AN45=TRUE,AN46=TRUE,AN47=TRUE,AO48=TRUE),$Z41&", ",$Z41),"") ->  | BV41: =IF(BG41=TRUE,IF(OR(BG42=TRUE,BG43=TRUE,BG44=TRUE,AO45=TRUE,AO46=TRUE,AO47=TRUE,AP48=TRUE),$Z41&", ",$Z41),"") ->  | BW41: =IF(BH41=TRUE,IF(OR(BH42=TRUE,BH43=TRUE,BH44=TRUE,AP45=TRUE,AP46=TRUE,AP47=TRUE,#REF!=TRUE),$Z41&", ",$Z41),"") ->  | BX41: =IF(BI41=TRUE,IF(OR(BI42=TRUE,BI43=TRUE,BI44=TRUE,AQ45=TRUE,AQ46=TRUE,AQ47=TRUE,AQ48=TRUE),$Z41&", ",$Z41),"") ->  | CI41: =IF(AND(CH41<>"",OR(CH42<>"",CH43<>"",CH44<>"")),", ","") -> 
B42: =$B$36&Definitions!$AC$20&Definitions!$AE7 -> P21.19.6 | C42: =L!$A2064 -> Personal (e.g. guarantor, group guarantee) | K42: P21.19.6 | L42: =L!$A2064 -> Personal (e.g. guarantor, group guarantee) | Y42: P21.19.6 | Z42: =L!$A$2072 -> Personal | AK42: P21.19.6 | BS42: =IF(BD42=TRUE,IF(OR(BD43=TRUE,BD44=TRUE,AL45=TRUE,AL46=TRUE,AL47=TRUE,AM48=TRUE,AL49=TRUE),$Z42&", ",$Z42),"") ->  | BT42: =IF(BE42=TRUE,IF(OR(BE43=TRUE,BE44=TRUE,AM45=TRUE,AM46=TRUE,AM47=TRUE,AN48=TRUE,AM49=TRUE),$Z42&", ",$Z42),"") ->  | BU42: =IF(BF42=TRUE,IF(OR(BF43=TRUE,BF44=TRUE,AN45=TRUE,AN46=TRUE,AN47=TRUE,AO48=TRUE,AN49=TRUE),$Z42&", ",$Z42),"") ->  | BV42: =IF(BG42=TRUE,IF(OR(BG43=TRUE,BG44=TRUE,AO45=TRUE,AO46=TRUE,AO47=TRUE,AP48=TRUE,AO49=TRUE),$Z42&", ",$Z42),"") ->  | BW42: =IF(BH42=TRUE,IF(OR(BH43=TRUE,BH44=TRUE,AP45=TRUE,AP46=TRUE,AP47=TRUE,#REF!=TRUE,AP49=TRUE),$Z42&", ",$Z42),"") ->  | BX42: =IF(BI42=TRUE,IF(OR(BI43=TRUE,BI44=TRUE,AQ45=TRUE,AQ46=TRUE,AQ47=TRUE,AQ48=TRUE,AQ49=TRUE),$Z42&", ",$Z42),"") ->  | CI42: =IF(AND(CH42<>"",OR(CH43<>"",CH44<>"")),", ","") -> 
B43: =$B$36&Definitions!$AC$20&Definitions!$AE8 -> P21.19.7 | C43: =L!$A2065 -> Unsecured | K43: P21.19.7 | L43: =L!$A2065 -> Unsecured | Y43: P21.19.7 | Z43: =L!$A$2073 -> Unsecured | AK43: P21.19.7 | BS43: =IF(BD43=TRUE,IF(OR(BD44=TRUE,AL45=TRUE,AL46=TRUE,AL47=TRUE,AM48=TRUE,AL49=TRUE,AL50=TRUE),$Z43&", ",$Z43),"") ->  | BT43: =IF(BE43=TRUE,IF(OR(BE44=TRUE,AM45=TRUE,AM46=TRUE,AM47=TRUE,AN48=TRUE,AM49=TRUE,AM50=TRUE),$Z43&", ",$Z43),"") ->  | BU43: =IF(BF43=TRUE,IF(OR(BF44=TRUE,AN45=TRUE,AN46=TRUE,AN47=TRUE,AO48=TRUE,AN49=TRUE,AN50=TRUE),$Z43&", ",$Z43),"") ->  | BV43: =IF(BG43=TRUE,IF(OR(BG44=TRUE,AO45=TRUE,AO46=TRUE,AO47=TRUE,AP48=TRUE,AO49=TRUE,AO50=TRUE),$Z43&", ",$Z43),"") ->  | BW43: =IF(BH43=TRUE,IF(OR(BH44=TRUE,AP45=TRUE,AP46=TRUE,AP47=TRUE,#REF!=TRUE,AP49=TRUE,AP50=TRUE),$Z43&", ",$Z43),"") ->  | BX43: =IF(BI43=TRUE,IF(OR(BI44=TRUE,AQ45=TRUE,AQ46=TRUE,AQ47=TRUE,AQ48=TRUE,AQ49=TRUE,AQ50=TRUE),$Z43&", ",$Z43),"") ->  | CI43: =IF(AND(CH43<>"",OR(CH44<>"")),", ","") -> 
B44: =$B$36&Definitions!$AC$20&Definitions!$AE9 -> P21.19.8 | C44: =L!$A2066 -> Other collateral | K44: P21.19.8 | L44: =L!$A2066 -> Other collateral | Y44: P21.19.8 | Z44: =L!$A$2066 -> Other collateral | AK44: P21.19.8 | BS44: =IF(BD44=TRUE,IF(OR(AL45=TRUE,AL46=TRUE,AL47=TRUE,AM48=TRUE,AL49=TRUE,AL50=TRUE,AL51=TRUE),$Z44&", ",$Z44),"") ->  | BT44: =IF(BE44=TRUE,IF(OR(AM45=TRUE,AM46=TRUE,AM47=TRUE,AN48=TRUE,AM49=TRUE,AM50=TRUE,AM51=TRUE),$Z44&", ",$Z44),"") ->  | BU44: =IF(BF44=TRUE,IF(OR(AN45=TRUE,AN46=TRUE,AN47=TRUE,AO48=TRUE,AN49=TRUE,AN50=TRUE,AN51=TRUE),$Z44&", ",$Z44),"") ->  | BV44: =IF(BG44=TRUE,IF(OR(AO45=TRUE,AO46=TRUE,AO47=TRUE,AP48=TRUE,AO49=TRUE,AO50=TRUE,AO51=TRUE),$Z44&", ",$Z44),"") ->  | BW44: =IF(BH44=TRUE,IF(OR(AP45=TRUE,AP46=TRUE,AP47=TRUE,#REF!=TRUE,AP49=TRUE,AP50=TRUE,AP51=TRUE),$Z44&", ",$Z44),"") ->  | BX44: =IF(BI44=TRUE,IF(OR(AQ45=TRUE,AQ46=TRUE,AQ47=TRUE,AQ48=TRUE,AQ49=TRUE,AQ50=TRUE,AQ51=TRUE),$Z44&", ",$Z44),"") -> 
B45: P22 | C45: =L!A2031&", "&General!D14 -> Compulsory savings upfront, | K45: P22 | L45: =L!$A2031&", "&General!$D$14 -> Compulsory savings upfront, | Y45: P22 | Z45: =L!$A2031&", "&General!$D$14 -> Compulsory savings upfront, | AB45: =IF(AND(E15="",F15="",G15="",H15="",I15=""),IF(E45<>"",E45,IF(F45<>"",F45,IF(G45<>"",G45,IF(H45<>"",H45,IF(I45<>"",I45,""))))),IF(HLOOKUP(MAX(E15:I15),E15:H45,COUNTA(C15:C45),FALSE)<>"",HLOOKUP(MAX(E15:I15),E15:H45,COUNTA(C15:C45),FALSE),IF(F45<>"",F45,IF(G45<>"",G45,IF(H45<>"",22,IF(I45<>"",I45,"")))))) -> 
B46: P23 | C46: =L!A2032&", "&General!D14 -> Compulsory insurance premium, | K46: P23 | L46: =L!$A2032&", "&General!$D$14 -> Compulsory insurance premium, | Y46: P23 | Z46: =L!$A2032&", "&General!$D$14 -> Compulsory insurance premium, | AB46: =IF(AND(E46="",F46="",G46="",H46="",I46=""),"",IF(AND(E15="",F15="",G15="",H15="",I15=""),E46,LOOKUP(MAX(E15:I15),E15:I15,E46:I46))) -> 
B47: P24 | C47: =L!A2033&", "&General!D14 -> Taxes paid by clients, | K47: P24 | L47: =L!$A2033&", "&General!$D$14 -> Taxes paid by clients, | Y47: P24 | Z47: =L!$A2033&", "&General!$D$14 -> Taxes paid by clients, | AB47: =IF(AND(E15="",F15="",G15="",H15="",I15=""),IF(E47<>"",E47,IF(F47<>"",F47,IF(G47<>"",G47,IF(H47<>"",H47,IF(I47<>"",I47,""))))),IF(HLOOKUP(MAX(E15:I15),E15:H47,COUNTA(C15:C47),FALSE)<>"",HLOOKUP(MAX(E15:I15),E15:H47,COUNTA(C15:C47),FALSE),IF(F47<>"",F47,IF(G47<>"",G47,IF(H47<>"",22,IF(I47<>"",I47,"")))))) ->  | AM47: 1 | AN47: 2 | AO47: 3 | AP47: 4
Y48: P48 | Z48: =L!A2080 -> SME portfolio size | AB48: =IF($AH$212="","",IF($AH$212=0,L!$A$2081,IF($AH$212<30%,L!$A$2082,IF($AH$212>=50%,L!$A$2084,L!$A$2083)))) ->  | AK48: =Y48 -> P48 | AL48: =IF(AB48="","",IF(AB48=AM48,1,IF(AB48=AN48,2,IF(AB48=AO48,3,IF(AB48=AP48,4,""))))) ->  | AM48: =L!$A$2081 -> No SME portfolio | AN48: =L!$A$2082 -> Small SME portfolio | AO48: =L!$A$2083 -> Medium SME portfolio | AP48: =L!$A$2084 -> Large SME portfolio
C49: =IF(AL49=FALSE,L!A194,IF(AND(AM49="",AN49="",AO49="",AP49="",AQ49="",AR49="",AS49="",AT49="",AU49="",AV49="",AW49="",AX49="",AY49="",AZ49="",BA49=""),L!$A$195,L!$A$197)) -> Check the box to verify if data is complete | AK49: Check | AM49: =IF(AND(E4="",E15="",E16="",E17="",E20="",E22=""),"",IF(OR(E4="",E15="",E16="",AND(E17<>"",E18=""),AND(E17="",E18<>""),E20="",E21="",E24="",E25="",E26="",E28="",E29="",E30="",E31="",E32="",E33="",E34="",E45="",E46=""),L!$A200&" 1","")) ->  | AN49: =IF(AND(F4="",F15="",F16=""),"",IF(OR(F4="",F15="",F16="",AND(F17<>"",F18=""),AND(F17="",F18<>""),F20="",F21="",F24="",F25="",F26="",F28="",F29="",F30="",F31="",F32="",F33="",F34="",F45="",F46=""),L!$A200&" 2","")) ->  | AO49: =IF(AND(G4="",G15="",G16=""),"",IF(OR(G4="",G15="",G16="",AND(G17<>"",G18=""),AND(G17="",G18<>""),G20="",G21="",G24="",G25="",G26="",G28="",G29="",G30="",G31="",G32="",G33="",G34="",G45="",G46=""),L!$A200&" 3","")) ->  | AP49: =IF(AND(H4="",H15="",H16=""),"",IF(OR(H4="",H15="",H16="",AND(H17<>"",H18=""),AND(H17="",H18<>""),H20="",H21="",H24="",H25="",H26="",H28="",H29="",H30="",H31="",H32="",H33="",H34="",H45="",H46=""),L!$A200&" 4","")) ->  | AQ49: =IF(AND(I4="",I15="",I16=""),"",IF(OR(I4="",I15="",I16="",AND(I17<>"",I18=""),AND(I17="",I18<>""),I20="",I21="",I24="",I25="",I26="",I28="",I29="",I30="",I31="",I32="",I33="",I34="",I45="",I46=""),L!$A200&" 5","")) ->  | AR49: =IF(AND(N4="",N15="",N16=""),"",IF(OR(N4="",N15="",N16="",AND(N17<>"",N18=""),AND(N17="",N18<>""),N20="",N21="",N24="",N25="",N26="",N28="",N29="",N30="",N31="",N32="",N33="",N34="",N45="",N46=""),L!$A200&" 6","")) ->  | AS49: =IF(AND(O4="",O15="",O16=""),"",IF(OR(O4="",O15="",O16="",AND(O17<>"",O18=""),AND(O17="",O18<>""),O20="",O21="",O24="",O25="",O26="",O28="",O29="",O30="",O31="",O32="",O33="",O34="",O45="",O46=""),L!$A200&" 7","")) ->  | AT49: =IF(AND(P4="",P15="",P16=""),"",IF(OR(P4="",P15="",P16="",AND(P17<>"",P18=""),AND(P17="",P18<>""),P20="",P21="",P24="",P25="",P26="",P28="",P29="",P30="",P31="",P32="",P33="",P34="",P45="",P46=""),L!$A200&" 8","")) ->  | AU49: =IF(AND(Q4="",Q15="",Q16=""),"",IF(OR(Q4="",Q15="",Q16="",AND(Q17<>"",Q18=""),AND(Q17="",Q18<>""),Q20="",Q21="",Q24="",Q25="",Q26="",Q28="",Q29="",Q30="",Q31="",Q32="",Q33="",Q34="",Q45="",Q46=""),L!$A200&" 9","")) ->  | AV49: =IF(AND(R4="",R15="",R16=""),"",IF(OR(R4="",R15="",R16="",AND(R17<>"",R18=""),AND(R17="",R18<>""),R20="",R21="",R24="",R25="",R26="",R28="",R29="",R30="",R31="",R32="",R33="",R34="",R45="",R46=""),L!$A200&" 10","")) ->  | AW49: =IF(AND(S4="",S15="",S16=""),"",IF(OR(S4="",S15="",S16="",AND(S17<>"",S18=""),AND(S17="",S18<>""),S20="",S21="",S24="",S25="",S26="",S28="",S29="",S30="",S31="",S32="",S33="",S34="",S45="",S46=""),L!$A200&" 11","")) ->  | AX49: =IF(AND(T4="",T15="",T16=""),"",IF(OR(T4="",T15="",T16="",AND(T17<>"",T18=""),AND(T17="",T18<>""),T20="",T21="",T24="",T25="",T26="",T28="",T29="",T30="",T31="",T32="",T33="",T34="",T45="",T46=""),L!$A200&" 12","")) ->  | AY49: =IF(AND(U4="",U15="",U16=""),"",IF(OR(U4="",U15="",U16="",AND(U17<>"",U18=""),AND(U17="",U18<>""),U20="",U21="",U24="",U25="",U26="",U28="",U29="",U30="",U31="",U32="",U33="",U34="",U45="",U46=""),L!$A200&" 13","")) ->  | AZ49: =IF(AND(V4="",V15="",V16=""),"",IF(OR(V4="",V15="",V16="",AND(V17<>"",V18=""),AND(V17="",V18<>""),V20="",V21="",V24="",V25="",V26="",V28="",V29="",V30="",V31="",V32="",V33="",V34="",V45="",V46=""),L!$A200&" 14","")) ->  | BA49: =IF(AND(W4="",W15="",W16=""),"",IF(OR(W4="",W15="",W16="",AND(W17<>"",W18=""),AND(W17="",W18<>""),W20="",W21="",W24="",W25="",W26="",W28="",W29="",W30="",W31="",W32="",W33="",W34="",W45="",W46=""),L!$A200&" 15","")) -> 
C51: =IF(OR(General!$BM$17=TRUE,General!$BM$29=TRUE,General!$BN$28=TRUE),L!$A$206,L!$A$207) -> If applicable, please complete this optional information; otherwise leave empty | L51: =L!$A$210 -> If you wish to report other products, please complete this optional information | Z51: =L!$A$214 -> Calculations
C52: =L!$A$2101 -> 5 saving products with higher total deposit amount | E52: 1 | F52: 2 | G52: 3 | H52: 4 | I52: 5 | L52: =L!$A$2102 -> Other saving products | N52: 6 | O52: 7 | P52: 8 | Q52: 9 | R52: 10 | S52: 11 | T52: 12 | U52: 13 | V52: 14 | W52: 15 | Z52: =Essential!$D$7 -> 0
B53: P1 | C53: =L!$A$2007 -> Product name | K53: =B53 -> P1 | L53: =L!$A2007 -> Product name
B54: =General!$F$13 -> G16 | C54: =L!$A2105&", "&General!D14 -> Amount of deposits, | D54: =General!$M$5 -> 2025-12-31 | K54: =B54 -> G16 | L54: =L!$A2105&", "&General!D14 -> Amount of deposits, | M54: =General!$M$5 -> 2025-12-31 | Y54: =B54 -> G16 | Z54: =L!$A2105&", "&General!$D$14 -> Amount of deposits, | AA54: =General!$M$5 -> 2025-12-31 | AB54: =IF(AND(E54="",F54="",G54="",H54="",I54=""),"",SUM(E54:I54,N54:W54)) -> 
B55: =General!F30 -> G29 | C55: =L!A2106 -> Number of savers | D55: =General!$M$5 -> 2025-12-31 | K55: G29 | L55: =L!A2106 -> Number of savers | M55: =General!$M$5 -> 2025-12-31 | Y55: =B55 -> G29 | Z55: =L!$A$2106 -> Number of savers | AA55: =General!$M$5 -> 2025-12-31 | AB55: =IF(AND(E55="",F55="",G55="",H55="",I55=""),"",SUM(E55:I55,N55:W55)) -> 
B56: =General!F71 -> G66 | C56: =L!$A$723 -> Number of saving accounts | D56: =General!$M$5 -> 2025-12-31 | K56: G66 | L56: =L!$A$723 -> Number of saving accounts | M56: =General!$M$5 -> 2025-12-31 | Y56: G66 | Z56: =L!$A$723 -> Number of saving accounts | AA56: =General!$M$5 -> 2025-12-31 | AB56: =IF(AND(E56="",F56="",G56="",H56="",I56=""),"",SUM(E56:I56,N56:W56)) ->  | BD56: 1 | BE56: 2 | BF56: 3
B57: P26 | C57: =L!A2107 -> Nature | K57: P26 | L57: =L!A2107 -> Nature | Y57: P26 | Z57: =L!$A$2107 -> Nature | AB57: =BG57&BH57 ->  | AK57: =B57 -> P26 | AL57: =IF(E57="","",IF(E57=$BD57,1,IF(E57=$BE57,2,""))) ->  | AQ57: =IF(N57="","",IF(N57=$BD57,1,IF(N57=$BE57,2,""))) ->  | AR57: =IF(O57="","",IF(O57=$BD57,1,IF(O57=$BE57,2,""))) ->  | AZ57: =IF(W57="","",IF(W57=$BD57,1,IF(W57=$BE57,2,""))) ->  | BA57: =IF(AB57="","",IF(AB57=$BD57,1,IF(AB57=$BE57,2,IF(AB57=BF57,3,"")))) ->  | BD57: =L!A2108 -> Voluntary | BE57: =L!A2109 -> Mandatory | BF57: =L!$A$2108&", "&L!$A$2109 -> Voluntary, Mandatory | BG57: =IF(OR($E57=BD57,$F57=BD57,$G57=BD57,$H57=BD57,$I57=BD57,$N57=BD57,$O57=BD57,$P57=BD57,$Q57=BD57,$R57=BD57,$S57=BD57,$T57=BD57,$U57=BD57,$V57=BD57,$W57=BD57),IF(BH57<>"",BD57&", ",BD57),"") ->  | BH57: =IF(OR($E57=BE57,$F57=BE57,$G57=BE57,$H57=BE57,$I57=BE57,$N57=BE57,$O57=BE57,$P57=BE57,$Q57=BE57,$R57=BE57,$S57=BE57,$T57=BE57,$U57=BE57,$V57=BE57,$W57=BE57),BE57,"") -> 
B58: P27 | C58: =L!A2110 -> Type | K58: P27 | L58: =L!A2110 -> Type | Y58: P27 | Z58: =L!$A$2110 -> Type | AB58: =BG58&BH58 ->  | AK58: =B58 -> P27 | AQ58: =IF(N58="","",IF(N58=$BD58,1,IF(N58=$BE58,2,""))) ->  | AR58: =IF(O58="","",IF(O58=$BD58,1,IF(O58=$BE58,2,""))) ->  | AZ58: =IF(W58="","",IF(W58=$BD58,1,IF(W58=$BE58,2,""))) ->  | BA58: =IF(AB58="","",IF(AB58=$BD58,1,IF(AB58=$BE58,2,IF(AB58=BF58,3,"")))) ->  | BD58: =L!A2111 -> Sight | BE58: =L!A2112 -> Time | BF58: =L!$A$2111&", "&L!$A$2112 -> Sight, Time | BG58: =IF(OR($E58=BD58,$F58=BD58,$G58=BD58,$H58=BD58,$I58=BD58,$N58=BD58,$O58=BD58,$P58=BD58,$Q58=BD58,$R58=BD58,$S58=BD58,$T58=BD58,$U58=BD58,$V58=BD58,$W58=BD58),IF(BH58<>"",BD58&", ",BD58),"") ->  | BH58: =IF(OR($E58=BE58,$F58=BE58,$G58=BE58,$H58=BE58,$I58=BE58,$N58=BE58,$O58=BE58,$P58=BE58,$Q58=BE58,$R58=BE58,$S58=BE58,$T58=BE58,$U58=BE58,$V58=BE58,$W58=BE58),BE58,"") -> 
B59: P28 | C59: =L!A2118 -> Purpose | K59: P28 | L59: =L!A2118 -> Purpose | Y59: P28 | Z59: =L!$A$2118 -> Purpose | AB59: =BL59&BM59&BN59&BO59&BP59&BQ59&BR59&BS59 ->  | AK59: =B59 -> P28 | AL59: =IF(E59="","",HLOOKUP(E59,$BD$59:$BK$60,2,FALSE)) ->  | AM59: =IF(F59="","",HLOOKUP(F59,$BD$59:$BK$60,2,FALSE)) ->  | AN59: =IF(G59="","",HLOOKUP(G59,$BD$59:$BK$60,2,FALSE)) ->  | AO59: =IF(H59="","",HLOOKUP(H59,$BD$59:$BK$60,2,FALSE)) ->  | AP59: =IF(I59="","",HLOOKUP(I59,$BD$59:$BK$60,2,FALSE)) ->  | AQ59: =IF(N59="","",HLOOKUP(N59,$BD$59:$BK$60,2,FALSE)) ->  | BD59: =L!A2119 -> Business | BE59: =L!A2120 -> Education | BF59: =L!A2121 -> Housing | BG59: =L!A2122 -> Health | BH59: =L!A2123 -> Funeral | BI59: =L!A2124 -> Pension | BJ59: =L!A2125 -> Other | BK59: =L!A2126 -> Mixed | BL59: =IF(OR($E59=BD59,$F59=BD59,$G59=BD59,$H59=BD59,$I59=BD59,$N59=BD59,$O59=BD59,$P59=BD59,$Q59=BD59,$R59=BD59,$S59=BD59,$T59=BD59,$U59=BD59,$V59=BD59,$W59=BD59),IF(OR(BM59<>"",BN59<>"",BO59<>"",BP59<>"",BQ59<>"",BR59<>"",BS59<>""),BD59&", ",BD59),"") ->  | BM59: =IF(OR($E59=BE59,$F59=BE59,$G59=BE59,$H59=BE59,$I59=BE59,$N59=BE59,$O59=BE59,$P59=BE59,$Q59=BE59,$R59=BE59,$S59=BE59,$T59=BE59,$U59=BE59,$V59=BE59,$W59=BE59),IF(OR(BN59<>"",BO59<>"",BP59<>"",BQ59<>"",BR59<>"",BS59<>""),BE59&", ",BE59),"") ->  | BN59: =IF(OR($E59=BF59,$F59=BF59,$G59=BF59,$H59=BF59,$I59=BF59,$N59=BF59,$O59=BF59,$P59=BF59,$Q59=BF59,$R59=BF59,$S59=BF59,$T59=BF59,$U59=BF59,$V59=BF59,$W59=BF59),IF(OR(BO59<>"",BP59<>"",BQ59<>"",BR59<>"",BS59<>""),BF59&", ",BF59),"") ->  | BO59: =IF(OR($E59=BG59,$F59=BG59,$G59=BG59,$H59=BG59,$I59=BG59,$N59=BG59,$O59=BG59,$P59=BG59,$Q59=BG59,$R59=BG59,$S59=BG59,$T59=BG59,$U59=BG59,$V59=BG59,$W59=BG59),IF(OR(BP59<>"",BQ59<>"",BR59<>"",BS59<>""),BG59&", ",BG59),"") ->  | BP59: =IF(OR($E59=BH59,$F59=BH59,$G59=BH59,$H59=BH59,$I59=BH59,$N59=BH59,$O59=BH59,$P59=BH59,$Q59=BH59,$R59=BH59,$S59=BH59,$T59=BH59,$U59=BH59,$V59=BH59,$W59=BH59),IF(OR(BQ59<>"",BR59<>"",BS59<>""),BH59&", ",BH59),"") ->  | BQ59: =IF(OR($E59=BI59,$F59=BI59,$G59=BI59,$H59=BI59,$I59=BI59,$N59=BI59,$O59=BI59,$P59=BI59,$Q59=BI59,$R59=BI59,$S59=BI59,$T59=BI59,$U59=BI59,$V59=BI59,$W59=BI59),IF(OR(BR59<>"",BS59<>""),BI59&", ",BI59),"") ->  | BR59: =IF(OR($E59=BJ59,$F59=BJ59,$G59=BJ59,$H59=BJ59,$I59=BJ59,$N59=BJ59,$O59=BJ59,$P59=BJ59,$Q59=BJ59,$R59=BJ59,$S59=BJ59,$T59=BJ59,$U59=BJ59,$V59=BJ59,$W59=BJ59),IF(BS59<>"",BJ59&", ",BJ59),"") ->  | BS59: =IF(OR($E59=BK59,$F59=BK59,$G59=BK59,$H59=BK59,$I59=BK59,$N59=BK59,$O59=BK59,$P59=BK59,$Q59=BK59,$R59=BK59,$S59=BK59,$T59=BK59,$U59=BK59,$V59=BK59,$W59=BK59),BK59,"") -> 
B60: P29 | C60: =L!A2114 -> Main currency of deposits | K60: P29 | L60: =L!A2114 -> Main currency of deposits | Y60: P29 | Z60: =L!$A$2114 -> Main currency of deposits | AB60: =IF(AND(E54="",F54="",G54="",H54="",I54=""),IF(E60<>"",E60,IF(F60<>"",F60,IF(G60<>"",G60,IF(H60<>"",H60,IF(I60<>"",I60,""))))),IF(HLOOKUP(MAX(E54:I54),E54:H60,COUNTA(C54:C60),FALSE)<>"",HLOOKUP(MAX(E54:I54),E54:H60,COUNTA(C54:C60),FALSE),IF(F60<>"",F60,IF(G60<>"",G60,IF(H60<>"",22,IF(I60<>"",I60,"")))))) ->  | BD60: 1 | BE60: 2 | BF60: 3 | BG60: 4 | BH60: 5 | BI60: 6 | BJ60: 7 | BK60: 8
B61: P30 | C61: =L!A2014 -> Min. annual nominal interest rate (%) | K61: P30 | L61: =L!A2014 -> Min. annual nominal interest rate (%) | Y61: P30 | Z61: =L!$A$2014 -> Min. annual nominal interest rate (%) | AB61: =IF(AND(E61="",F61="",G61="",H61="",I61=""),"",MIN(E61:I61,N61:W61)) -> 
B62: P31 | C62: =L!A2015 -> Max. annual nominal interest rate (%) | K62: P31 | L62: =L!A2015 -> Max. annual nominal interest rate (%) | Y62: P31 | Z62: =L!$A$2015 -> Max. annual nominal interest rate (%) | AB62: =IF(AND(E62="",F62="",G62="",H62="",I62=""),"",MAX(E62:I62,N62:W62)) -> 
B63: P32 | C63: =L!A2116 -> Interest payment frequency | K63: P32 | L63: =L!A2116 -> Interest payment frequency | Y63: P32 | Z63: =L!$A$2116 -> Interest payment frequency | AB63: =BL63&BM63&BN63&BO63&BP63&BQ63&BR63&BS63 ->  | AK63: =B63 -> P32 | AL63: =IF(E63="","",HLOOKUP(E63,$BD$63:$BK$64,2,FALSE)) ->  | AM63: =IF(F63="","",HLOOKUP(F63,$BD$63:$BK$64,2,FALSE)) ->  | AN63: =IF(G63="","",HLOOKUP(G63,$BD$63:$BK$64,2,FALSE)) ->  | AO63: =IF(H63="","",HLOOKUP(H63,$BD$63:$BK$64,2,FALSE)) ->  | AP63: =IF(I63="","",HLOOKUP(I63,$BD$63:$BK$64,2,FALSE)) ->  | AQ63: =IF(N63="","",HLOOKUP(N63,$BD$63:$BK$64,2,FALSE)) ->  | BD63: =L!A2049 -> Daily | BE63: =L!A2050 -> Biweekly | BF63: =L!A2051 -> Weekly | BG63: =L!A2052 -> Bimonthly | BH63: =L!A2053 -> Monthly | BI63: =L!A2054 -> Quarterly | BJ63: =L!A2056 -> Biannually | BK63: =L!A2057 -> Annually | BL63: =IF(OR($E63=BD63,$F63=BD63,$G63=BD63,$H63=BD63,$I63=BD63,$N63=BD63,$O63=BD63,$P63=BD63,$Q63=BD63,$R63=BD63,$S63=BD63,$T63=BD63,$U63=BD63,$V63=BD63,$W63=BD63),IF(OR(BM63<>"",BN63<>"",BO63<>"",BP63<>"",BQ63<>"",BR63<>"",BS63<>""),BD63&", ",BD63),"") ->  | BM63: =IF(OR($E63=BE63,$F63=BE63,$G63=BE63,$H63=BE63,$I63=BE63,$N63=BE63,$O63=BE63,$P63=BE63,$Q63=BE63,$R63=BE63,$S63=BE63,$T63=BE63,$U63=BE63,$V63=BE63,$W63=BE63),IF(OR(BN63<>"",BO63<>"",BP63<>"",BQ63<>"",BR63<>"",BS63<>""),BE63&", ",BE63),"") ->  | BN63: =IF(OR($E63=BF63,$F63=BF63,$G63=BF63,$H63=BF63,$I63=BF63,$N63=BF63,$O63=BF63,$P63=BF63,$Q63=BF63,$R63=BF63,$S63=BF63,$T63=BF63,$U63=BF63,$V63=BF63,$W63=BF63),IF(OR(BO63<>"",BP63<>"",BQ63<>"",BR63<>"",BS63<>""),BF63&", ",BF63),"") ->  | BO63: =IF(OR($E63=BG63,$F63=BG63,$G63=BG63,$H63=BG63,$I63=BG63,$N63=BG63,$O63=BG63,$P63=BG63,$Q63=BG63,$R63=BG63,$S63=BG63,$T63=BG63,$U63=BG63,$V63=BG63,$W63=BG63),IF(OR(BP63<>"",BQ63<>"",BR63<>"",BS63<>""),BG63&", ",BG63),"") ->  | BP63: =IF(OR($E63=BH63,$F63=BH63,$G63=BH63,$H63=BH63,$I63=BH63,$N63=BH63,$O63=BH63,$P63=BH63,$Q63=BH63,$R63=BH63,$S63=BH63,$T63=BH63,$U63=BH63,$V63=BH63,$W63=BH63),IF(OR(BQ63<>"",BR63<>"",BS63<>""),BH63&", ",BH63),"") ->  | BQ63: =IF(OR($E63=BI63,$F63=BI63,$G63=BI63,$H63=BI63,$I63=BI63,$N63=BI63,$O63=BI63,$P63=BI63,$Q63=BI63,$R63=BI63,$S63=BI63,$T63=BI63,$U63=BI63,$V63=BI63,$W63=BI63),IF(OR(BR63<>"",BS63<>""),BI63&", ",BI63),"") ->  | BR63: =IF(OR($E63=BJ63,$F63=BJ63,$G63=BJ63,$H63=BJ63,$I63=BJ63,$N63=BJ63,$O63=BJ63,$P63=BJ63,$Q63=BJ63,$R63=BJ63,$S63=BJ63,$T63=BJ63,$U63=BJ63,$V63=BJ63,$W63=BJ63),IF(BS63<>"",BJ63&", ",BJ63),"") ->  | BS63: =IF(OR($E63=BK63,$F63=BK63,$G63=BK63,$H63=BK63,$I63=BK63,$N63=BK63,$O63=BK63,$P63=BK63,$Q63=BK63,$R63=BK63,$S63=BK63,$T63=BK63,$U63=BK63,$V63=BK63,$W63=BK63),BK63,"") -> 
B64: P33 | C64: =L!$A$2017 -> Fees charged to clients (% or amount) | K64: P33 | L64: =L!$A$2017 -> Fees charged to clients (% or amount) | Y64: P33 | Z64: =L!$A$2017 -> Fees charged to clients (% or amount) | AB64: =IF(AND(E54="",F54="",G54="",H54="",I54=""),IF(E64<>"",E64,IF(F64<>"",F64,IF(G64<>"",G64,IF(H64<>"",H64,IF(I64<>"",I64,""))))),IF(HLOOKUP(MAX(E54:I54),E54:H64,COUNTA(C54:C64),FALSE)<>"",HLOOKUP(MAX(E54:I54),E54:H64,COUNTA(C54:C64),FALSE),IF(F64<>"",F64,IF(G64<>"",G64,IF(H64<>"",22,IF(I64<>"",I64,"")))))) ->  | BD64: 1 | BE64: 2 | BF64: 3 | BG64: 4 | BH64: 5 | BI64: 6 | BJ64: 7 | BK64: 8
B65: P34 | C65: =L!A2117 -> Anticipated withdrawal penalty | K65: P34 | L65: =L!A2117 -> Anticipated withdrawal penalty | Y65: P34 | Z65: =L!$A$2117 -> Anticipated withdrawal penalty | AB65: =IF(AND(E54="",F54="",G54="",H54="",I54=""),IF(E65<>"",E65,IF(F65<>"",F65,IF(G65<>"",G65,IF(H65<>"",H65,IF(I65<>"",I65,""))))),IF(HLOOKUP(MAX(E54:I54),E54:H65,COUNTA(C54:C65),FALSE)<>"",HLOOKUP(MAX(E54:I54),E54:H65,COUNTA(C54:C65),FALSE),IF(F65<>"",F65,IF(G65<>"",G65,IF(H65<>"",22,IF(I65<>"",I65,"")))))) -> 
B66: P35 | C66: =L!$A$2115&", "&General!$D$14 -> Min. accepted balance, | K66: P35 | L66: =L!$A$2115&", "&General!$D$14 -> Min. accepted balance, | Y66: P35 | Z66: =L!$A$2115&", "&General!$D$14 -> Min. accepted balance, | AB66: =IF(AND(E66="",F66="",G66="",H66="",I66=""),"",MIN(E66:I66,N66:W66)) -> 
B67: P36 | C67: =L!A2113 -> Deposit term (months) | K67: P36 | L67: =L!A2113 -> Deposit term (months) | Y67: P36 | Z67: =L!$A$2113 -> Deposit term (months) | AB67: =IF(AND(E67="",F67="",G67="",H67="",I67=""),"",AVERAGE(E67:I67,N67:W67)) -> 
B68: P37 | C68: =L!$A$2044 -> Comment | K68: P37 | L68: =L!$A$2044 -> Comment | N68: =IF(OR(N$4="",Essential!$D$48=331,Essential!$D$48=332,Essential!$D$48=311,Essential!$D$48=111,Essential!$D$48=121,Essential!$D$48=112,Essential!$D$48=113,Essential!$D$48=114,Essential!$D$48=115,Essential!$D$48=116,Essential!$D$48=122,Essential!$D$48=123,Essential!$D$48=124,Essential!$D$48=125,Essential!$D$48=126,Essential!$D$48=321,Essential!$D$48=312,Essential!$D$48=313,Essential!$D$48=314,Essential!$D$48=322,Essential!$D$48=323,Essential!$D$48=324,Essential!$D$48=1011),"",L!$A$2743) ->  | O68: =IF(OR(O$4="",Essential!$D$48=331,Essential!$D$48=332,Essential!$D$48=311,Essential!$D$48=111,Essential!$D$48=121,Essential!$D$48=112,Essential!$D$48=113,Essential!$D$48=114,Essential!$D$48=115,Essential!$D$48=116,Essential!$D$48=122,Essential!$D$48=123,Essential!$D$48=124,Essential!$D$48=125,Essential!$D$48=126,Essential!$D$48=321,Essential!$D$48=312,Essential!$D$48=313,Essential!$D$48=314,Essential!$D$48=322,Essential!$D$48=323,Essential!$D$48=324,Essential!$D$48=1011),"",L!$A$2743) ->  | P68: =IF(OR(P$4="",Essential!$D$48=331,Essential!$D$48=332,Essential!$D$48=311,Essential!$D$48=111,Essential!$D$48=121,Essential!$D$48=112,Essential!$D$48=113,Essential!$D$48=114,Essential!$D$48=115,Essential!$D$48=116,Essential!$D$48=122,Essential!$D$48=123,Essential!$D$48=124,Essential!$D$48=125,Essential!$D$48=126,Essential!$D$48=321,Essential!$D$48=312,Essential!$D$48=313,Essential!$D$48=314,Essential!$D$48=322,Essential!$D$48=323,Essential!$D$48=324,Essential!$D$48=1011),"",L!$A$2743) ->  | Q68: =IF(OR(Q$4="",Essential!$D$48=331,Essential!$D$48=332,Essential!$D$48=311,Essential!$D$48=111,Essential!$D$48=121,Essential!$D$48=112,Essential!$D$48=113,Essential!$D$48=114,Essential!$D$48=115,Essential!$D$48=116,Essential!$D$48=122,Essential!$D$48=123,Essential!$D$48=124,Essential!$D$48=125,Essential!$D$48=126,Essential!$D$48=321,Essential!$D$48=312,Essential!$D$48=313,Essential!$D$48=314,Essential!$D$48=322,Essential!$D$48=323,Essential!$D$48=324,Essential!$D$48=1011),"",L!$A$2743) ->  | R68: =IF(OR(R$4="",Essential!$D$48=331,Essential!$D$48=332,Essential!$D$48=311,Essential!$D$48=111,Essential!$D$48=121,Essential!$D$48=112,Essential!$D$48=113,Essential!$D$48=114,Essential!$D$48=115,Essential!$D$48=116,Essential!$D$48=122,Essential!$D$48=123,Essential!$D$48=124,Essential!$D$48=125,Essential!$D$48=126,Essential!$D$48=321,Essential!$D$48=312,Essential!$D$48=313,Essential!$D$48=314,Essential!$D$48=322,Essential!$D$48=323,Essential!$D$48=324,Essential!$D$48=1011),"",L!$A$2743) ->  | S68: =IF(OR(S$4="",Essential!$D$48=331,Essential!$D$48=332,Essential!$D$48=311,Essential!$D$48=111,Essential!$D$48=121,Essential!$D$48=112,Essential!$D$48=113,Essential!$D$48=114,Essential!$D$48=115,Essential!$D$48=116,Essential!$D$48=122,Essential!$D$48=123,Essential!$D$48=124,Essential!$D$48=125,Essential!$D$48=126,Essential!$D$48=321,Essential!$D$48=312,Essential!$D$48=313,Essential!$D$48=314,Essential!$D$48=322,Essential!$D$48=323,Essential!$D$48=324,Essential!$D$48=1011),"",L!$A$2743) ->  | T68: =IF(OR(T$4="",Essential!$D$48=331,Essential!$D$48=332,Essential!$D$48=311,Essential!$D$48=111,Essential!$D$48=121,Essential!$D$48=112,Essential!$D$48=113,Essential!$D$48=114,Essential!$D$48=115,Essential!$D$48=116,Essential!$D$48=122,Essential!$D$48=123,Essential!$D$48=124,Essential!$D$48=125,Essential!$D$48=126,Essential!$D$48=321,Essential!$D$48=312,Essential!$D$48=313,Essential!$D$48=314,Essential!$D$48=322,Essential!$D$48=323,Essential!$D$48=324,Essential!$D$48=1011),"",L!$A$2743) ->  | U68: =IF(OR(U$4="",Essential!$D$48=331,Essential!$D$48=332,Essential!$D$48=311,Essential!$D$48=111,Essential!$D$48=121,Essential!$D$48=112,Essential!$D$48=113,Essential!$D$48=114,Essential!$D$48=115,Essential!$D$48=116,Essential!$D$48=122,Essential!$D$48=123,Essential!$D$48=124,Essential!$D$48=125,Essential!$D$48=126,Essential!$D$48=321,Essential!$D$48=312,Essential!$D$48=313,Essential!$D$48=314,Essential!$D$48=322,Essential!$D$48=323,Essential!$D$48=324,Essential!$D$48=1011),"",L!$A$2743) ->  | V68: =IF(OR(V$4="",Essential!$D$48=331,Essential!$D$48=332,Essential!$D$48=311,Essential!$D$48=111,Essential!$D$48=121,Essential!$D$48=112,Essential!$D$48=113,Essential!$D$48=114,Essential!$D$48=115,Essential!$D$48=116,Essential!$D$48=122,Essential!$D$48=123,Essential!$D$48=124,Essential!$D$48=125,Essential!$D$48=126,Essential!$D$48=321,Essential!$D$48=312,Essential!$D$48=313,Essential!$D$48=314,Essential!$D$48=322,Essential!$D$48=323,Essential!$D$48=324,Essential!$D$48=1011),"",L!$A$2743) ->  | W68: =IF(OR(W$4="",Essential!$D$48=331,Essential!$D$48=332,Essential!$D$48=311,Essential!$D$48=111,Essential!$D$48=121,Essential!$D$48=112,Essential!$D$48=113,Essential!$D$48=114,Essential!$D$48=115,Essential!$D$48=116,Essential!$D$48=122,Essential!$D$48=123,Essential!$D$48=124,Essential!$D$48=125,Essential!$D$48=126,Essential!$D$48=321,Essential!$D$48=312,Essential!$D$48=313,Essential!$D$48=314,Essential!$D$48=322,Essential!$D$48=323,Essential!$D$48=324,Essential!$D$48=1011),"",L!$A$2743) ->  | Y68: P37 | Z68: =L!$A$2044 -> Comment | AB68: =IF(E68<>"",E53&": "&E68&" ","")&IF(F68<>"",F53&": "&F68&" ","")&IF(G68<>"",G53&": "&G68&" ","")&IF(H68<>"",H53&": "&H68&" ","")&IF(I68<>"",I53&": "&I68&" ","")&IF(N68<>"",N53&": "&N68&" ","")&IF(O68<>"",O53&": "&O68&" ","")&IF(P68<>"",P53&": "&P68&" ","")&IF(Q68<>"",Q53&": "&Q68&" ","")&IF(R68<>"",R53&": "&R68&" ","")&IF(S68<>"",S53&": "&S68&" ","")&IF(T68<>"",T53&": "&T68&" ","")&IF(U68<>"",U53&": "&U68&" ","")&IF(V68<>"",V53&": "&V68&" ","")&IF(W68<>"",W53&": "&W68&" ","") -> 
C70: =IF(OR(General!$BM$18=TRUE,General!$BM$32=TRUE,General!$BM$33=TRUE,General!$BM$34=TRUE,General!$BN$31=TRUE,General!$BN$32=TRUE,General!$BN$33=TRUE,General!$BL$34=TRUE),L!$A$206,L!$A$207) -> If applicable, please complete this optional information; otherwise leave empty | L70: =L!$A$211 -> If you wish to report other services, please complete this optional information | Z70: =L!$A$214 -> Calculations
C71: =L!$A$2127 -> 5 insurance services with higher total volume of premiums | E71: 1 | F71: 2 | G71: 3 | H71: 4 | I71: 5 | L71: =L!$A$2103 -> Other insurance services | N71: 6 | O71: 7 | P71: 8 | Q71: 9 | R71: 10 | S71: 11 | T71: 12 | U71: 13 | V71: 14 | W71: 15 | Z71: =Essential!$D$7 -> 0
B72: P1 | C72: =L!$A$2007 -> Product name | K72: =B72 -> P1 | L72: =L!$A$2007 -> Product name
B73: P39 | C73: =L!$A$2128 -> Number of clients insured | D73: =General!$M$5 -> 2025-12-31 | K73: =B73 -> P39 | L73: =L!$A$2128 -> Number of clients insured | M73: =General!$M$5 -> 2025-12-31 | Y73: =B73 -> P39 | Z73: =L!$A$2128 -> Number of clients insured | AA73: =General!$M$5 -> 2025-12-31 | AB73: =IF(AND(E73="",F73="",G73="",H73="",I73=""),"",SUM(E73:I73)+SUM(N73:W73)) ->  | BD73: 1 | BE73: 2 | BF73: 3
B74: =$B$57 -> P26 | C74: =L!$A$2107 -> Nature | K74: P26 | L74: =L!$A$2107 -> Nature | Y74: =B74 -> P26 | Z74: =L!$A$2107 -> Nature | AB74: =BG74&BH74 ->  | AK74: =B74 -> P26 | AL74: =IF(E74="","",IF(E74=$BD74,1,IF(E74=$BE74,2,""))) ->  | AQ74: =IF(N74="","",IF(N74=$BD74,1,IF(N74=$BE74,2,""))) ->  | BA74: =IF(AB74="","",IF(AB74=$BD74,1,IF(AB74=$BE74,2,IF(AB74=BF74,3,"")))) ->  | BD74: =L!$A$2108 -> Voluntary | BE74: =L!$A$2109 -> Mandatory | BF74: =L!$A$2108&", "&L!$A$2109 -> Voluntary, Mandatory | BG74: =IF(OR($E74=BD74,$F74=BD74,$G74=BD74,$H74=BD74,$I74=BD74,$N74=BD74,$O74=BD74,$P74=BD74,$Q74=BD74,$R74=BD74,$S74=BD74,$T74=BD74,$U74=BD74,$V74=BD74,$W74=BD74),IF(BH74<>"",BD74&", ",BD74),"") ->  | BH74: =IF(OR($E74=BE74,$F74=BE74,$G74=BE74,$H74=BE74,$I74=BE74,$N74=BE74,$O74=BE74,$P74=BE74,$Q74=BE74,$R74=BE74,$S74=BE74,$T74=BE74,$U74=BE74,$V74=BE74,$W74=BE74),BE74,"") -> 
B75: P40 | C75: =L!$A$2110 -> Type | K75: P40 | L75: =L!$A$2110 -> Type | Y75: P40 | Z75: =L!$A$2110 -> Type | AB75: =BG75&BH75 ->  | AK75: =B75 -> P40 | BA75: =IF(AB75="","",IF(AB75=$BD75,1,IF(AB75=$BE75,2,IF(AB75=BF75,3,"")))) ->  | BD75: =L!$A$2130 -> Provided by the FSP | BE75: =L!$A$2131 -> Provided by a third party | BF75: =L!$A$2130&", "&L!$A$2131 -> Provided by the FSP, Provided by a third party | BG75: =IF(OR($E75=BD75,$F75=BD75,$G75=BD75,$H75=BD75,$I75=BD75,$N75=BD75,$O75=BD75,$P75=BD75,$Q75=BD75,$R75=BD75,$S75=BD75,$T75=BD75,$U75=BD75,$V75=BD75,$W75=BD75),IF(BH75<>"",BD75&", ",BD75),"") ->  | BH75: =IF(OR($E75=BE75,$F75=BE75,$G75=BE75,$H75=BE75,$I75=BE75,$N75=BE75,$O75=BE75,$P75=BE75,$Q75=BE75,$R75=BE75,$S75=BE75,$T75=BE75,$U75=BE75,$V75=BE75,$W75=BE75),BE75,"") -> 
B76: P41 | C76: =L!$A$2118 -> Purpose | K76: P41 | L76: =L!$A$2118 -> Purpose | Y76: P41 | Z76: =L!$A$2118 -> Purpose | AB76: =BI76&BJ76&BK76&BL76&BM76 ->  | AK76: =B76 -> P41 | AL76: =IF(E76="","",HLOOKUP(E76,$BD$76:$BH$77,2,FALSE)) ->  | AM76: =IF(F76="","",HLOOKUP(F76,$BD$76:$BH$77,2,FALSE)) ->  | AN76: =IF(G76="","",HLOOKUP(G76,$BD$76:$BH$77,2,FALSE)) ->  | AO76: =IF(H76="","",HLOOKUP(H76,$BD$76:$BH$77,2,FALSE)) ->  | AP76: =IF(I76="","",HLOOKUP(I76,$BD$76:$BH$77,2,FALSE)) ->  | AQ76: =IF(N76="","",HLOOKUP(N76,$BD$76:$BH$77,2,FALSE)) ->  | BD76: =L!$A$549 -> Life insurance | BE76: =L!$A$552 -> Agriculture insurance | BF76: =L!$A$553 -> Health insurance | BG76: =L!$A$554 -> Property insurance | BH76: =L!$A$555 -> Other insurance | BI76: =IF(OR($E76=BD76,$F76=BD76,$G76=BD76,$H76=BD76,$I76=BD76,$N76=BD76,$O76=BD76,$P76=BD76,$Q76=BD76,$R76=BD76,$S76=BD76,$T76=BD76,$U76=BD76,$V76=BD76,$W76=BD76),IF(OR(BJ76<>"",BK76<>"",BL76<>"",BM76<>""),BD76&", ",BD76),"") ->  | BJ76: =IF(OR($E76=BE76,$F76=BE76,$G76=BE76,$H76=BE76,$I76=BE76,$N76=BE76,$O76=BE76,$P76=BE76,$Q76=BE76,$R76=BE76,$S76=BE76,$T76=BE76,$U76=BE76,$V76=BE76,$W76=BE76),IF(OR(BK76<>"",BL76<>"",BM76<>""),BE76&", ",BE76),"") ->  | BK76: =IF(OR($E76=BF76,$F76=BF76,$G76=BF76,$H76=BF76,$I76=BF76,$N76=BF76,$O76=BF76,$P76=BF76,$Q76=BF76,$R76=BF76,$S76=BF76,$T76=BF76,$U76=BF76,$V76=BF76,$W76=BF76),IF(OR(BL76<>"",BM76<>""),BF76&", ",BF76),"") ->  | BL76: =IF(OR($E76=BG76,$F76=BG76,$G76=BG76,$H76=BG76,$I76=BG76,$N76=BG76,$O76=BG76,$P76=BG76,$Q76=BG76,$R76=BG76,$S76=BG76,$T76=BG76,$U76=BG76,$V76=BG76,$W76=BG76),IF(BM76<>"",BG76&", ",BG76),"") ->  | BM76: =IF(OR($E76=BH76,$F76=BH76,$G76=BH76,$H76=BH76,$I76=BH76,$N76=BH76,$O76=BH76,$P76=BH76,$Q76=BH76,$R76=BH76,$S76=BH76,$T76=BH76,$U76=BH76,$V76=BH76,$W76=BH76),BH76,"") -> 
B77: P42 | C77: =L!$A$2132&", "&General!$D$14 -> Premium amount, | K77: P42 | L77: =L!$A$2132&", "&General!$D$14 -> Premium amount, | Y77: P42 | Z77: =L!$A$2132&", "&General!$D$14 -> Premium amount, | AB77: =IF(AND(E73="",F73="",G73="",H73="",I73=""),IF(E77<>"",E77,IF(F77<>"",F77,IF(G77<>"",G77,IF(H77<>"",H77,IF(I77<>"",I77,""))))),IF(HLOOKUP(MAX(E73:I73),E73:H77,COUNTA(C73:C77),FALSE)<>"",HLOOKUP(MAX(E73:I73),E73:H77,COUNTA(C73:C77),FALSE),IF(F77<>"",F77,IF(G77<>"",G77,IF(H77<>"",22,IF(I77<>"",I77,"")))))) ->  | BD77: 1 | BE77: 2 | BF77: 3 | BG77: 4 | BH77: 5
B78: P43 | C78: =L!$A$2133&", "&General!$D$14 -> Coverage amount, | K78: P43 | L78: =L!$A$2133&", "&General!$D$14 -> Coverage amount, | Y78: P43 | Z78: =L!$A$2133&", "&General!$D$14 -> Coverage amount, | AB78: =IF(AND(E73="",F73="",G73="",H73="",I73=""),IF(E78<>"",E78,IF(F78<>"",F78,IF(G78<>"",G78,IF(H78<>"",H78,IF(I78<>"",I78,""))))),IF(HLOOKUP(MAX(E73:I73),E73:H78,COUNTA(C73:C78),FALSE)<>"",HLOOKUP(MAX(E73:I73),E73:H78,COUNTA(C73:C78),FALSE),IF(F78<>"",F78,IF(G78<>"",G78,IF(H78<>"",22,IF(I78<>"",I78,"")))))) -> 
B79: P44 | C79: =L!$A$2134 -> Claims ratio | K79: P44 | L79: =L!$A$2134 -> Claims ratio | Y79: P44 | Z79: =L!$A$2134 -> Claims ratio | AB79: =IF(AND(E79="",F79="",G79="",H79="",I79=""),"",AVERAGE(E79:I79,N79:W79)) -> 
B80: P45 | C80: =L!$A$2135 -> Claims rejection ratio | K80: P45 | L80: =L!$A$2135 -> Claims rejection ratio | Y80: P45 | Z80: =L!$A$2135 -> Claims rejection ratio | AB80: =IF(AND(E80="",F80="",G80="",H80="",I80=""),"",AVERAGE(E80:I80,N80:W80)) -> 
B81: P46 | C81: =L!$A$2044 -> Comment | K81: P46 | L81: =L!$A$2044 -> Comment | Y81: P46 | Z81: =L!$A$2044 -> Comment | AB81: =IF(E81<>"",E72&": "&E81&" ","")&IF(F81<>"",F72&": "&F81&" ","")&IF(G81<>"",G72&": "&G81&" ","")&IF(H81<>"",H72&": "&H81&" ","")&IF(I81<>"",I72&": "&I81&" ","")&IF(N81<>"",N72&": "&N81&" ","")&IF(O81<>"",O72&": "&O81&" ","")&IF(P81<>"",P72&": "&P81&" ","")&IF(Q81<>"",Q72&": "&Q81&" ","")&IF(R81<>"",R72&": "&R81&" ","")&IF(S81<>"",S72&": "&S81&" ","")&IF(T81<>"",T72&": "&T81&" ","")&IF(U81<>"",U72&": "&U81&" ","")&IF(V81<>"",V72&": "&V81&" ","")&IF(W81<>"",W72&": "&W81&" ","") -> 
C83: =IF(OR(General!$BN$20=TRUE,Social!$DA$37=TRUE,Social!$DA$38=TRUE,Social!$DA$39=TRUE,Social!$DB$37=TRUE,Social!$DB$38=TRUE,Social!$DB$39=TRUE),L!$A$206,L!$A$207) -> If applicable, please complete this optional information; otherwise leave empty | L83: =L!$A$211 -> If you wish to report other services, please complete this optional information | Z83: =L!$A$214 -> Calculations
C84: =L!$A$2142 -> 5 non financial services with higher number of clients | E84: 1 | F84: 2 | G84: 3 | H84: 4 | I84: 5 | L84: =L!$A$2104 -> Other non financial services | N84: 6 | O84: 7 | P84: 8 | Q84: 9 | R84: 10 | S84: 11 | T84: 12 | U84: 13 | V84: 14 | W84: 15 | Z84: =Essential!$D$7 -> 0
B85: P1 | C85: =L!$A$2007 -> Product name | K85: =B85 -> P1 | L85: =L!$A$2007 -> Product name
B86: P79 | C86: =L!$A$2143 -> Number of clients receiving the service | D86: =General!$M$5 -> 2025-12-31 | E86: =IF(AND(E87="",E88=""),"",SUM(E87:E88)) ->  | F86: =IF(AND(F87="",F88=""),"",SUM(F87:F88)) ->  | G86: =IF(AND(G87="",G88=""),"",SUM(G87:G88)) ->  | H86: =IF(AND(H87="",H88=""),"",SUM(H87:H88)) ->  | I86: =IF(AND(I87="",I88=""),"",SUM(I87:I88)) ->  | K86: =B86 -> P79 | L86: =L!$A$2143 -> Number of clients receiving the service | M86: =General!$M$5 -> 2025-12-31 | N86: =IF(AND(N87="",N88=""),"",SUM(N87:N88)) ->  | Y86: =B86 -> P79 | Z86: =L!$A$2143 -> Number of clients receiving the service | AA86: =General!$M$5 -> 2025-12-31 | AB86: =IF(AND(E86="",F86="",G86="",H86="",I86=""),"",SUM(E86:I86)+SUM(N86:W86)) -> 
B87: P80 | C87: =L!$A$2145 -> Number of borrowers receiving the service | D87: =General!$M$5 -> 2025-12-31 | K87: P80 | L87: =L!$A$2145 -> Number of borrowers receiving the service | M87: =General!$M$5 -> 2025-12-31 | Y87: =B87 -> P80 | Z87: =L!$A$2145 -> Number of borrowers receiving the service | AA87: =General!$M$5 -> 2025-12-31 | AB87: =IF(AND(E87="",F87="",G87="",H87="",I87=""),"",SUM(E87:I87)+SUM(N87:W87)) -> 
B88: P50 | C88: =L!$A$2146 -> Number of non borrowers receiving the service | D88: =General!$M$5 -> 2025-12-31 | K88: P50 | L88: =L!$A$2146 -> Number of non borrowers receiving the service | M88: =General!$M$5 -> 2025-12-31 | Y88: P50 | Z88: =L!$A$2146 -> Number of non borrowers receiving the service | AA88: =General!$M$5 -> 2025-12-31 | AB88: =IF(AND(E88="",F88="",G88="",H88="",I88=""),"",SUM(E88:I88)+SUM(N88:W88)) ->  | BD88: 1 | BE88: 2 | BF88: 3
B89: =$B$57 -> P26 | C89: =L!$A$2107 -> Nature | K89: P26 | L89: =L!$A$2107 -> Nature | Y89: P26 | Z89: =L!$A$2107 -> Nature | AB89: =BG89&BH89 ->  | AK89: =B89 -> P26 | AL89: =IF(E89="","",IF(E89=$BD89,1,IF(E89=$BE89,2,""))) ->  | AQ89: =IF(N89="","",IF(N89=$BD89,1,IF(N89=$BE89,2,""))) ->  | BA89: =IF(AB89="","",IF(AB89=$BD89,1,IF(AB89=$BE89,2,IF(AB89=BF89,3,"")))) ->  | BD89: =L!$A$2108 -> Voluntary | BE89: =L!$A$2109 -> Mandatory | BF89: =L!$A$2108&", "&L!$A$2109 -> Voluntary, Mandatory | BG89: =IF(OR($E89=BD89,$F89=BD89,$G89=BD89,$H89=BD89,$I89=BD89,$N89=BD89,$O89=BD89,$P89=BD89,$Q89=BD89,$R89=BD89,$S89=BD89,$T89=BD89,$U89=BD89,$V89=BD89,$W89=BD89),IF(BH89<>"",BD89&", ",BD89),"") ->  | BH89: =IF(OR($E89=BE89,$F89=BE89,$G89=BE89,$H89=BE89,$I89=BE89,$N89=BE89,$O89=BE89,$P89=BE89,$Q89=BE89,$R89=BE89,$S89=BE89,$T89=BE89,$U89=BE89,$V89=BE89,$W89=BE89),BE89,"") -> 
B90: P51 | C90: =L!$A$2110 -> Type | K90: P51 | L90: =L!$A$2110 -> Type | Y90: P51 | Z90: =L!$A$2110 -> Type | AB90: =BG90&BH90 ->  | AK90: =B90 -> P51 | BA90: =IF(AB90="","",IF(AB90=$BD90,1,IF(AB90=$BE90,2,IF(AB90=BF90,3,"")))) ->  | BD90: =L!$A$2150 -> Fee charged to clients | BE90: =L!$A$2151 -> No fee charged to clients | BF90: =L!$A$2150&", "&L!$A$2151 -> Fee charged to clients, No fee charged to clients | BG90: =IF(OR($E90=BD90,$F90=BD90,$G90=BD90,$H90=BD90,$I90=BD90,$N90=BD90,$O90=BD90,$P90=BD90,$Q90=BD90,$R90=BD90,$S90=BD90,$T90=BD90,$U90=BD90,$V90=BD90,$W90=BD90),IF(BH90<>"",BD90&", ",BD90),"") ->  | BH90: =IF(OR($E90=BE90,$F90=BE90,$G90=BE90,$H90=BE90,$I90=BE90,$N90=BE90,$O90=BE90,$P90=BE90,$Q90=BE90,$R90=BE90,$S90=BE90,$T90=BE90,$U90=BE90,$V90=BE90,$W90=BE90),BE90,"") -> 
B91: P52 | C91: =L!$A$2118 -> Purpose | K91: P52 | L91: =L!$A$2118 -> Purpose | Y91: P52 | Z91: =L!$A$2118 -> Purpose | AB91: =BI91&BJ91&BK91&BL91&BM91 ->  | AK91: =B91 -> P52 | AL91: =IF(E91="","",HLOOKUP(E91,$BD$91:$BH$92,2,FALSE)) ->  | AM91: =IF(F91="","",HLOOKUP(F91,$BD$91:$BH$92,2,FALSE)) ->  | AN91: =IF(G91="","",HLOOKUP(G91,$BD$91:$BH$92,2,FALSE)) ->  | AO91: =IF(H91="","",HLOOKUP(H91,$BD$91:$BH$92,2,FALSE)) ->  | AP91: =IF(I91="","",HLOOKUP(I91,$BD$91:$BH$92,2,FALSE)) ->  | AQ91: =IF(N91="","",HLOOKUP(N91,$BD$91:$BH$92,2,FALSE)) ->  | BD91: =L!$A$1802 -> Business development | BE91: =L!$A$1803 -> Education | BF91: =L!$A$1805 -> Health | BG91: =L!$A$1804 -> Women empowerment | BH91: =L!$A$1806 -> Other | BI91: =IF(OR($E91=BD91,$F91=BD91,$G91=BD91,$H91=BD91,$I91=BD91,$N91=BD91,$O91=BD91,$P91=BD91,$Q91=BD91,$R91=BD91,$S91=BD91,$T91=BD91,$U91=BD91,$V91=BD91,$W91=BD91),IF(OR(BJ91<>"",BK91<>"",BL91<>"",BM91<>""),BD91&", ",BD91),"") ->  | BJ91: =IF(OR($E91=BE91,$F91=BE91,$G91=BE91,$H91=BE91,$I91=BE91,$N91=BE91,$O91=BE91,$P91=BE91,$Q91=BE91,$R91=BE91,$S91=BE91,$T91=BE91,$U91=BE91,$V91=BE91,$W91=BE91),IF(OR(BK91<>"",BL91<>"",BM91<>""),BE91&", ",BE91),"") ->  | BK91: =IF(OR($E91=BF91,$F91=BF91,$G91=BF91,$H91=BF91,$I91=BF91,$N91=BF91,$O91=BF91,$P91=BF91,$Q91=BF91,$R91=BF91,$S91=BF91,$T91=BF91,$U91=BF91,$V91=BF91,$W91=BF91),IF(OR(BL91<>"",BM91<>""),BF91&", ",BF91),"") ->  | BL91: =IF(OR($E91=BG91,$F91=BG91,$G91=BG91,$H91=BG91,$I91=BG91,$N91=BG91,$O91=BG91,$P91=BG91,$Q91=BG91,$R91=BG91,$S91=BG91,$T91=BG91,$U91=BG91,$V91=BG91,$W91=BG91),IF(BM91<>"",BG91&", ",BG91),"") ->  | BM91: =IF(OR($E91=BH91,$F91=BH91,$G91=BH91,$H91=BH91,$I91=BH91,$N91=BH91,$O91=BH91,$P91=BH91,$Q91=BH91,$R91=BH91,$S91=BH91,$T91=BH91,$U91=BH91,$V91=BH91,$W91=BH91),BH91,"") -> 
B92: P53 | C92: =L!$A$2152&", "&General!$D$14 -> Fee charged to clients, | K92: P53 | L92: =L!$A$2152&", "&General!$D$14 -> Fee charged to clients, | Y92: P53 | Z92: =L!$A$2152&", "&General!$D$14 -> Fee charged to clients, | AB92: =IF(AND(E86="",F86="",G86="",H86="",I86=""),IF(E92<>"",E92,IF(F92<>"",F92,IF(G92<>"",G92,IF(H92<>"",H92,IF(I92<>"",I92,""))))),IF(HLOOKUP(MAX(E86:I86),E86:H92,COUNTA(C86:C92),FALSE)<>"",HLOOKUP(MAX(E86:I86),E86:H92,COUNTA(C86:C92),FALSE),IF(F92<>"",F92,IF(G92<>"",G92,IF(H92<>"",22,IF(I92<>"",I92,"")))))) ->  | BD92: 1 | BE92: 2 | BF92: 3 | BG92: 4 | BH92: 5
B93: P54 | C93: =L!$A$2044 -> Comment | K93: P54 | L93: =L!$A$2044 -> Comment | Y93: P54 | Z93: =L!$A$2044 -> Comment | AB93: =IF(E93<>"",E85&": "&E93&" ","")&IF(F93<>"",F85&": "&F93&" ","")&IF(G93<>"",G85&": "&G93&" ","")&IF(H93<>"",H85&": "&H93&" ","")&IF(I93<>"",I85&": "&I93&" ","")&IF(N93<>"",N85&": "&N93&" ","")&IF(O93<>"",O85&": "&O93&" ","")&IF(P93<>"",P85&": "&P93&" ","")&IF(Q93<>"",Q85&": "&Q93&" ","")&IF(R93<>"",R85&": "&R93&" ","")&IF(S93<>"",S85&": "&S93&" ","")&IF(T93<>"",T85&": "&T93&" ","")&IF(U93<>"",U85&": "&U93&" ","")&IF(V93<>"",V85&": "&V93&" ","")&IF(W93<>"",W85&": "&W93&" ","") -> 
C95: =L!$A$214 -> Calculations | L95: =L!$A$214 -> Calculations | Z95: =L!$A$214 -> Calculations | AC95: =General!$F$8 -> G12 | AD95: =Financial!$B$205 -> F117
C96: =L!$A2003 -> 5 loan products with higher portfolio amount | E96: =E3 -> 1 | F96: =F3 -> 2 | G96: =G3 -> 3 | H96: =H3 -> 4 | I96: =I3 -> 5 | L96: =L!$A$2004 -> Other loan products | N96: =N3 -> 6 | O96: 7 | P96: 8 | Q96: 9 | R96: 10 | S96: 11 | T96: 12 | U96: 13 | V96: 14 | W96: 15 | Z96: =Essential!$D$7 -> 0 | AC96: =L!$A$1092 -> Portfolio >30 days in arrears | AD96: =L!$A$1146 -> PAR30
B97: P55 | C97: =L!$A2209 -> Loan product ID | E97: =IF(OR(Essential!$D$56="",E4=""),"",Essential!$D$56&"-"&Products!E3) ->  | F97: =IF(OR(Essential!$D$56="",F4=""),"",Essential!$D$56&"-"&Products!F3) ->  | G97: =IF(OR(Essential!$D$56="",G4=""),"",Essential!$D$56&"-"&Products!G3) ->  | H97: =IF(OR(Essential!$D$56="",H4=""),"",Essential!$D$56&"-"&Products!H3) ->  | I97: =IF(OR(Essential!$D$56="",I4=""),"",Essential!$D$56&"-"&Products!I3) ->  | K97: =B97 -> P55 | L97: =L!$A2209 -> Loan product ID | N97: =IF(OR(Essential!$D$56="",N4=""),"",Essential!$D$56&"-"&Products!N3) ->  | O97: =IF(OR(Essential!$D$56="",O4=""),"",Essential!$D$56&"-"&Products!O3) ->  | P97: =IF(OR(Essential!$D$56="",P4=""),"",Essential!$D$56&"-"&Products!P3) ->  | Q97: =IF(OR(Essential!$D$56="",Q4=""),"",Essential!$D$56&"-"&Products!Q3) ->  | R97: =IF(OR(Essential!$D$56="",R4=""),"",Essential!$D$56&"-"&Products!R3) ->  | S97: =IF(OR(Essential!$D$56="",S4=""),"",Essential!$D$56&"-"&Products!S3) ->  | T97: =IF(OR(Essential!$D$56="",T4=""),"",Essential!$D$56&"-"&Products!T3) ->  | U97: =IF(OR(Essential!$D$56="",U4=""),"",Essential!$D$56&"-"&Products!U3) ->  | V97: =IF(OR(Essential!$D$56="",V4=""),"",Essential!$D$56&"-"&Products!V3) ->  | W97: =IF(OR(Essential!$D$56="",W4=""),"",Essential!$D$56&"-"&Products!W3) ->  | Y97: P49 | Z97: =L!A2208 -> Effective Interest Rate (EIR) proxy | AB97: =IF(OR(Financial!CP224="",Financial!J226="",Financial!J219=""),"",Financial!CP224+Financial!J226*Financial!CP224+Financial!J219*Financial!CP224) -> 
B98: =General!$F$67 -> G64 | C98: =L!$A$709 -> Number of loans | D98: =General!$H$5 -> 2021-12-31 | K98: =B98 -> G64 | L98: =L!$A$709 -> Number of loans | M98: =General!$H$5 -> 2021-12-31 | Y98: =B98 -> G64 | Z98: =L!$A$709 -> Number of loans | AA98: =General!$H$5 -> 2021-12-31 | AB98: =IF(AND(E98="",F98="",G98="",H98="",I98=""),"",SUM(E98:I98,N98:W98)) -> 
B99: P56 | C99: =L!$A$2224 -> % gross loan portfolio | D99: =General!$H$5 -> 2021-12-31 | E99: =IF(E5="","",E5/SUM($E5,$F5,$G5,$H5,$I5,$N5,$O5,$P5,$Q5,$R5,$S5,$T5,$U5,$V5,$W5)) ->  | K99: P56 | L99: =L!$A$2224 -> % gross loan portfolio | M99: =General!$H$5 -> 2021-12-31 | N99: =IF(N5="","",N5/SUM($E5,$F5,$G5,$H5,$I5,$N5,$O5,$P5,$Q5,$R5,$S5,$T5,$U5,$V5,$W5)) ->  | Y99: =B99 -> P56 | Z99: =L!$A$2224 -> % gross loan portfolio | AA99: =General!$H$5 -> 2021-12-31 | AB99: =IF(AB5="","",AB5/SUM($E5,$F5,$G5,$H5,$I5,$N5,$O5,$P5,$Q5,$R5,$S5,$T5,$U5,$V5,$W5)) -> 
B100: P57 | C100: =L!$A$2223 -> % number of borrowers | D100: =General!$H$5 -> 2021-12-31 | K100: P57 | L100: =L!$A$2223 -> % number of borrowers | M100: =General!$H$5 -> 2021-12-31 | N100: =IF(N6="","",N6/SUM($E6,$F6,$G6,$H6,$I6,$N6,$O6,$P6,$Q6,$R6,$S6,$T6,$U6,$V6,$W6)) ->  | Y100: P57 | Z100: =L!$A$2223 -> % number of borrowers | AA100: =General!$H$5 -> 2021-12-31 | AB100: =IF(AB6="","",AB6/SUM($E6,$F6,$G6,$H6,$I6,$N6,$O6,$P6,$Q6,$R6,$S6,$T6,$U6,$V6,$W6)) -> 
B101: P58 | C101: =L!$A$2225 -> % number of loans | D101: =General!$H$5 -> 2021-12-31 | E101: =IF(E98="","",E98/SUM($E98,$F98,$G98,$H98,$I98,$N98,$O98,$P98,$Q98,$R98,$S98,$T98,$U98,$V98,$W98)) ->  | F101: =IF(F98="","",F98/SUM($E98,$F98,$G98,$H98,$I98,$N98,$O98,$P98,$Q98,$R98,$S98,$T98,$U98,$V98,$W98)) ->  | G101: =IF(G98="","",G98/SUM($E98,$F98,$G98,$H98,$I98,$N98,$O98,$P98,$Q98,$R98,$S98,$T98,$U98,$V98,$W98)) ->  | H101: =IF(H98="","",H98/SUM($E98,$F98,$G98,$H98,$I98,$N98,$O98,$P98,$Q98,$R98,$S98,$T98,$U98,$V98,$W98)) ->  | I101: =IF(I98="","",I98/SUM($E98,$F98,$G98,$H98,$I98,$N98,$O98,$P98,$Q98,$R98,$S98,$T98,$U98,$V98,$W98)) ->  | K101: P58 | L101: =L!$A$2225 -> % number of loans | M101: =General!$H$5 -> 2021-12-31 | N101: =IF(N98="","",N98/SUM($E98,$F98,$G98,$H98,$I98,$N98,$O98,$P98,$Q98,$R98,$S98,$T98,$U98,$V98,$W98)) ->  | Y101: P58 | Z101: =L!$A$2225 -> % number of loans | AA101: =General!$H$5 -> 2021-12-31 | AB101: =IF(AND(E101="",F101="",G101="",H101="",I101=""),"",SUM(E101:I101,N101:W101)) -> 
B102: =Social!$F$291 -> S81 | C102: =L!$A$2228 -> Average loan balance | D102: =General!$H$5 -> 2021-12-31 | E102: =IF(OR(E5="",E6=""),"",E5/E6) ->  | F102: =IF(OR(F5="",F6=""),"",F5/F6) ->  | G102: =IF(OR(G5="",G6=""),"",G5/G6) ->  | H102: =IF(OR(H5="",H6=""),"",H5/H6) ->  | I102: =IF(OR(I5="",I6=""),"",I5/I6) ->  | K102: S81 | L102: =L!$A$2228 -> Average loan balance | M102: =General!$H$5 -> 2021-12-31 | N102: =IF(OR(N5="",N6=""),"",N5/N6) ->  | Y102: S81 | Z102: =L!$A$2228 -> Average loan balance | AA102: =General!$H$5 -> 2021-12-31 | AB102: =IF(OR(AB5="",AB6=""),"",AB5/AB6) -> 
B103: =Social!$F$293 -> S83 | C103: =L!$A$2230 -> Average loan balance / GNI pc | D103: =General!$H$5 -> 2021-12-31 | E103: =IF(OR(E102="",General!$D$132=""),"",IF(General!$D$14=General!$BO$350,E102/General!$D$132,E102/General!$M$104/General!$D$132)) ->  | F103: =IF(OR(F102="",General!$D$132=""),"",IF(General!$D$14=General!$BO$350,F102/General!$D$132,F102/General!$M$104/General!$D$132)) ->  | G103: =IF(OR(G102="",General!$D$132=""),"",IF(General!$D$14=General!$BO$350,G102/General!$D$132,G102/General!$M$104/General!$D$132)) ->  | H103: =IF(OR(H102="",General!$D$132=""),"",IF(General!$D$14=General!$BO$350,H102/General!$D$132,H102/General!$M$104/General!$D$132)) ->  | I103: =IF(OR(I102="",General!$D$132=""),"",IF(General!$D$14=General!$BO$350,I102/General!$D$132,I102/General!$M$104/General!$D$132)) ->  | K103: S83 | L103: =L!$A$2230 -> Average loan balance / GNI pc | M103: =General!$H$5 -> 2021-12-31 | N103: =IF(OR(N102="",General!$D$132=""),"",IF(General!$D$14=General!$BO$350,N102/General!$D$132,N102/General!$M$104/General!$D$132)) ->  | O103: =IF(OR(O102="",General!$D$132=""),"",IF(General!$D$14=General!$BO$350,O102/General!$D$132,O102/General!$M$104/General!$D$132)) ->  | P103: =IF(OR(P102="",General!$D$132=""),"",IF(General!$D$14=General!$BO$350,P102/General!$D$132,P102/General!$M$104/General!$D$132)) ->  | Q103: =IF(OR(Q102="",General!$D$132=""),"",IF(General!$D$14=General!$BO$350,Q102/General!$D$132,Q102/General!$M$104/General!$D$132)) ->  | R103: =IF(OR(R102="",General!$D$132=""),"",IF(General!$D$14=General!$BO$350,R102/General!$D$132,R102/General!$M$104/General!$D$132)) ->  | S103: =IF(OR(S102="",General!$D$132=""),"",IF(General!$D$14=General!$BO$350,S102/General!$D$132,S102/General!$M$104/General!$D$132)) ->  | T103: =IF(OR(T102="",General!$D$132=""),"",IF(General!$D$14=General!$BO$350,T102/General!$D$132,T102/General!$M$104/General!$D$132)) ->  | U103: =IF(OR(U102="",General!$D$132=""),"",IF(General!$D$14=General!$BO$350,U102/General!$D$132,U102/General!$M$104/General!$D$132)) ->  | V103: =IF(OR(V102="",General!$D$132=""),"",IF(General!$D$14=General!$BO$350,V102/General!$D$132,V102/General!$M$104/General!$D$132)) ->  | W103: =IF(OR(W102="",General!$D$132=""),"",IF(General!$D$14=General!$BO$350,W102/General!$D$132,W102/General!$M$104/General!$D$132)) ->  | Y103: S83 | Z103: =L!$A$2230 -> Average loan balance / GNI pc | AA103: =General!$H$5 -> 2021-12-31 | AB103: =IF(OR(AB102="",General!$D$132=""),"",IF(General!$D$14=General!$BO$350,AB102/General!$D$132,AB102/General!$M$104/General!$D$132)) -> 
B104: =Financial!$AR$188 -> F235 | C104: =L!$A$895 -> Growth in gross loan portfolio | D104: =General!$H$5 -> 2021-12-31 | K104: F235 | L104: =L!$A$895 -> Growth in gross loan portfolio | M104: =General!$H$5 -> 2021-12-31 | Y104: F235 | Z104: =L!$A$895 -> Growth in gross loan portfolio | AA104: =General!$H$5 -> 2021-12-31
B105: =General!$F$67 -> G64 | C105: =L!$A$709 -> Number of loans | D105: =General!$I$5 -> 2022-12-31 | K105: G64 | L105: =L!$A$709 -> Number of loans | M105: =General!$I$5 -> 2022-12-31 | Y105: G64 | Z105: =L!$A$709 -> Number of loans | AA105: =General!$I$5 -> 2022-12-31 | AB105: =IF(AND(E105="",F105="",G105="",H105="",I105=""),"",SUM(E105:I105,N105:W105)) -> 
B106: =$B$99 -> P56 | C106: =L!$A$2224 -> % gross loan portfolio | D106: =General!$I$5 -> 2022-12-31 | E106: =IF(E7="","",E7/SUM($E7,$F7,$G7,$H7,$I7,$N7,$O7,$P7,$Q7,$R7,$S7,$T7,$U7,$V7,$W7)) ->  | K106: P56 | L106: =L!$A$2224 -> % gross loan portfolio | M106: =General!$I$5 -> 2022-12-31 | N106: =IF(N7="","",N7/SUM($E7,$F7,$G7,$H7,$I7,$N7,$O7,$P7,$Q7,$R7,$S7,$T7,$U7,$V7,$W7)) ->  | Y106: P56 | Z106: =L!$A$2224 -> % gross loan portfolio | AA106: =General!$I$5 -> 2022-12-31 | AB106: =IF(AB7="","",AB7/SUM($E7,$F7,$G7,$H7,$I7,$N7,$O7,$P7,$Q7,$R7,$S7,$T7,$U7,$V7,$W7)) -> 
B107: =$B$100 -> P57 | C107: =L!$A$2223 -> % number of borrowers | D107: =General!$I$5 -> 2022-12-31 | K107: P57 | L107: =L!$A$2223 -> % number of borrowers | M107: =General!$I$5 -> 2022-12-31 | N107: =IF(N8="","",N8/SUM($E8,$F8,$G8,$H8,$I8,$N8,$O8,$P8,$Q8,$R8,$S8,$T8,$U8,$V8,$W8)) ->  | Y107: P57 | Z107: =L!$A$2223 -> % number of borrowers | AA107: =General!$I$5 -> 2022-12-31 | AB107: =IF(AB8="","",AB8/SUM($E8,$F8,$G8,$H8,$I8,$N8,$O8,$P8,$Q8,$R8,$S8,$T8,$U8,$V8,$W8)) -> 
B108: =$B$101 -> P58 | C108: =L!$A$2225 -> % number of loans | D108: =General!$J$5 -> 2023-12-31 | E108: =IF(E105="","",E105/SUM($E105,$F105,$G105,$H105,$I105,$N105,$O105,$P105,$Q105,$R105,$S105,$T105,$U105,$V105,$W105)) ->  | F108: =IF(F105="","",F105/SUM($E105,$F105,$G105,$H105,$I105,$N105,$O105,$P105,$Q105,$R105,$S105,$T105,$U105,$V105,$W105)) ->  | G108: =IF(G105="","",G105/SUM($E105,$F105,$G105,$H105,$I105,$N105,$O105,$P105,$Q105,$R105,$S105,$T105,$U105,$V105,$W105)) ->  | H108: =IF(H105="","",H105/SUM($E105,$F105,$G105,$H105,$I105,$N105,$O105,$P105,$Q105,$R105,$S105,$T105,$U105,$V105,$W105)) ->  | I108: =IF(I105="","",I105/SUM($E105,$F105,$G105,$H105,$I105,$N105,$O105,$P105,$Q105,$R105,$S105,$T105,$U105,$V105,$W105)) ->  | K108: P58 | L108: =L!$A$2225 -> % number of loans | M108: =General!$J$5 -> 2023-12-31 | N108: =IF(N105="","",N105/SUM($E105,$F105,$G105,$H105,$I105,$N105,$O105,$P105,$Q105,$R105,$S105,$T105,$U105,$V105,$W105)) ->  | Y108: P58 | Z108: =L!$A$2225 -> % number of loans | AA108: =General!$J$5 -> 2023-12-31 | AB108: =IF(AND(E108="",F108="",G108="",H108="",I108=""),"",SUM(E108:I108,N108:W108)) -> 
B109: =Social!$F$291 -> S81 | C109: =L!$A$2228 -> Average loan balance | D109: =General!$I$5 -> 2022-12-31 | E109: =IF(OR(E7="",E8=""),"",E7/E8) ->  | F109: =IF(OR(F7="",F8=""),"",F7/F8) ->  | G109: =IF(OR(G7="",G8=""),"",G7/G8) ->  | H109: =IF(OR(H7="",H8=""),"",H7/H8) ->  | I109: =IF(OR(I7="",I8=""),"",I7/I8) ->  | K109: S81 | L109: =L!$A$2228 -> Average loan balance | M109: =General!$I$5 -> 2022-12-31 | N109: =IF(OR(N7="",N8=""),"",N7/N8) ->  | Y109: S81 | Z109: =L!$A$2228 -> Average loan balance | AA109: =General!$I$5 -> 2022-12-31 | AB109: =IF(OR(AB7="",AB8=""),"",AB7/AB8) -> 
B110: =Social!$F$293 -> S83 | C110: =L!$A$2230 -> Average loan balance / GNI pc | D110: =General!$I$5 -> 2022-12-31 | E110: =IF(OR(E109="",General!$D$132=""),"",IF(General!$D$14=General!$BO$350,E109/General!$D$132,E109/General!$M$104/General!$D$132)) ->  | F110: =IF(OR(F109="",General!$D$132=""),"",IF(General!$D$14=General!$BO$350,F109/General!$D$132,F109/General!$M$104/General!$D$132)) ->  | G110: =IF(OR(G109="",General!$D$132=""),"",IF(General!$D$14=General!$BO$350,G109/General!$D$132,G109/General!$M$104/General!$D$132)) ->  | H110: =IF(OR(H109="",General!$D$132=""),"",IF(General!$D$14=General!$BO$350,H109/General!$D$132,H109/General!$M$104/General!$D$132)) ->  | I110: =IF(OR(I109="",General!$D$132=""),"",IF(General!$D$14=General!$BO$350,I109/General!$D$132,I109/General!$M$104/General!$D$132)) ->  | K110: S83 | L110: =L!$A$2230 -> Average loan balance / GNI pc | M110: =General!$I$5 -> 2022-12-31 | N110: =IF(OR(N109="",General!$D$132=""),"",IF(General!$D$14=General!$BO$350,N109/General!$D$132,N109/General!$M$104/General!$D$132)) ->  | O110: =IF(OR(O109="",General!$D$132=""),"",IF(General!$D$14=General!$BO$350,O109/General!$D$132,O109/General!$M$104/General!$D$132)) ->  | P110: =IF(OR(P109="",General!$D$132=""),"",IF(General!$D$14=General!$BO$350,P109/General!$D$132,P109/General!$M$104/General!$D$132)) ->  | Q110: =IF(OR(Q109="",General!$D$132=""),"",IF(General!$D$14=General!$BO$350,Q109/General!$D$132,Q109/General!$M$104/General!$D$132)) ->  | R110: =IF(OR(R109="",General!$D$132=""),"",IF(General!$D$14=General!$BO$350,R109/General!$D$132,R109/General!$M$104/General!$D$132)) ->  | S110: =IF(OR(S109="",General!$D$132=""),"",IF(General!$D$14=General!$BO$350,S109/General!$D$132,S109/General!$M$104/General!$D$132)) ->  | T110: =IF(OR(T109="",General!$D$132=""),"",IF(General!$D$14=General!$BO$350,T109/General!$D$132,T109/General!$M$104/General!$D$132)) ->  | U110: =IF(OR(U109="",General!$D$132=""),"",IF(General!$D$14=General!$BO$350,U109/General!$D$132,U109/General!$M$104/General!$D$132)) ->  | V110: =IF(OR(V109="",General!$D$132=""),"",IF(General!$D$14=General!$BO$350,V109/General!$D$132,V109/General!$M$104/General!$D$132)) ->  | W110: =IF(OR(W109="",General!$D$132=""),"",IF(General!$D$14=General!$BO$350,W109/General!$D$132,W109/General!$M$104/General!$D$132)) ->  | Y110: S83 | Z110: =L!$A$2230 -> Average loan balance / GNI pc | AA110: =General!$I$5 -> 2022-12-31 | AB110: =IF(OR(AB109="",General!$D$132=""),"",IF(General!$D$14=General!$BO$350,AB109/General!$D$132,AB109/General!$M$104/General!$D$132)) -> 
B111: =Financial!$AR$188 -> F235 | C111: =L!$A$895 -> Growth in gross loan portfolio | D111: =General!$I$5 -> 2022-12-31 | E111: =IF(OR(E7="",E5=""),"",((E7-E5)/E5)*(12/General!$I$64)) ->  | F111: =IF(OR(F7="",F5=""),"",((F7-F5)/F5)*(12/General!$I$64)) ->  | G111: =IF(OR(G7="",G5=""),"",((G7-G5)/G5)*(12/General!$I$64)) ->  | H111: =IF(OR(H7="",H5=""),"",((H7-H5)/H5)*(12/General!$I$64)) ->  | I111: =IF(OR(I7="",I5=""),"",((I7-I5)/I5)*(12/General!$I$64)) ->  | K111: F235 | L111: =L!$A$895 -> Growth in gross loan portfolio | M111: =General!$I$5 -> 2022-12-31 | N111: =IF(OR(N7="",N5=""),"",((N7-N5)/N5)*(12/General!$I$64)) ->  | O111: =IF(OR(O7="",O5=""),"",((O7-O5)/O5)*(12/General!$I$64)) ->  | P111: =IF(OR(P7="",P5=""),"",((P7-P5)/P5)*(12/General!$I$64)) ->  | Q111: =IF(OR(Q7="",Q5=""),"",((Q7-Q5)/Q5)*(12/General!$I$64)) ->  | R111: =IF(OR(R7="",R5=""),"",((R7-R5)/R5)*(12/General!$I$64)) ->  | S111: =IF(OR(S7="",S5=""),"",((S7-S5)/S5)*(12/General!$I$64)) ->  | T111: =IF(OR(T7="",T5=""),"",((T7-T5)/T5)*(12/General!$I$64)) ->  | U111: =IF(OR(U7="",U5=""),"",((U7-U5)/U5)*(12/General!$I$64)) ->  | V111: =IF(OR(V7="",V5=""),"",((V7-V5)/V5)*(12/General!$I$64)) ->  | W111: =IF(OR(W7="",W5=""),"",((W7-W5)/W5)*(12/General!$I$64)) ->  | Y111: F235 | Z111: =L!$A$895 -> Growth in gross loan portfolio | AA111: =General!$I$5 -> 2022-12-31 | AB111: =IF(OR(AB7="",AB5=""),"",((AB7-AB5)/AB5)*(12/General!$I$64)) -> 
B112: =General!$F$67 -> G64 | C112: =L!$A$709 -> Number of loans | D112: =General!$J$5 -> 2023-12-31 | K112: G64 | L112: =L!$A$709 -> Number of loans | M112: =General!$J$5 -> 2023-12-31 | Y112: G64 | Z112: =L!$A$709 -> Number of loans | AA112: =General!$J$5 -> 2023-12-31 | AB112: =IF(AND(E112="",F112="",G112="",H112="",I112=""),"",SUM(E112:I112,N112:W112)) -> 
B113: =$B$99 -> P56 | C113: =L!$A$2224 -> % gross loan portfolio | D113: =General!$J$5 -> 2023-12-31 | E113: =IF(E9="","",E9/SUM($E9,$F9,$G9,$H9,$I9,$N9,$O9,$P9,$Q9,$R9,$S9,$T9,$U9,$V9,$W9)) ->  | K113: P56 | L113: =L!$A$2224 -> % gross loan portfolio | M113: =General!$J$5 -> 2023-12-31 | N113: =IF(N9="","",N9/SUM($E9,$F9,$G9,$H9,$I9,$N9,$O9,$P9,$Q9,$R9,$S9,$T9,$U9,$V9,$W9)) ->  | Y113: P56 | Z113: =L!$A$2224 -> % gross loan portfolio | AA113: =General!$J$5 -> 2023-12-31 | AB113: =IF(AB9="","",AB9/SUM($E9,$F9,$G9,$H9,$I9,$N9,$O9,$P9,$Q9,$R9,$S9,$T9,$U9,$V9,$W9)) -> 
B114: =$B$100 -> P57 | C114: =L!$A$2223 -> % number of borrowers | D114: =General!$J$5 -> 2023-12-31 | K114: P57 | L114: =L!$A$2223 -> % number of borrowers | M114: =General!$J$5 -> 2023-12-31 | N114: =IF(N10="","",N10/SUM($E10,$F10,$G10,$H10,$I10,$N10,$O10,$P10,$Q10,$R10,$S10,$T10,$U10,$V10,$W10)) ->  | Y114: P57 | Z114: =L!$A$2223 -> % number of borrowers | AA114: =General!$J$5 -> 2023-12-31 | AB114: =IF(AB10="","",AB10/SUM($E10,$F10,$G10,$H10,$I10,$N10,$O10,$P10,$Q10,$R10,$S10,$T10,$U10,$V10,$W10)) -> 
B115: =$B$101 -> P58 | C115: =L!$A$2225 -> % number of loans | D115: =General!$J$5 -> 2023-12-31 | E115: =IF(E112="","",E112/SUM($E112,$F112,$G112,$H112,$I112,$N112,$O112,$P112,$Q112,$R112,$S112,$T112,$U112,$V112,$W112)) ->  | F115: =IF(F112="","",F112/SUM($E112,$F112,$G112,$H112,$I112,$N112,$O112,$P112,$Q112,$R112,$S112,$T112,$U112,$V112,$W112)) ->  | G115: =IF(G112="","",G112/SUM($E112,$F112,$G112,$H112,$I112,$N112,$O112,$P112,$Q112,$R112,$S112,$T112,$U112,$V112,$W112)) ->  | H115: =IF(H112="","",H112/SUM($E112,$F112,$G112,$H112,$I112,$N112,$O112,$P112,$Q112,$R112,$S112,$T112,$U112,$V112,$W112)) ->  | I115: =IF(I112="","",I112/SUM($E112,$F112,$G112,$H112,$I112,$N112,$O112,$P112,$Q112,$R112,$S112,$T112,$U112,$V112,$W112)) ->  | K115: P58 | L115: =L!$A$2225 -> % number of loans | M115: =General!$J$5 -> 2023-12-31 | N115: =IF(N112="","",N112/SUM($E112,$F112,$G112,$H112,$I112,$N112,$O112,$P112,$Q112,$R112,$S112,$T112,$U112,$V112,$W112)) ->  | Y115: P58 | Z115: =L!$A$2225 -> % number of loans | AA115: =General!$J$5 -> 2023-12-31 | AB115: =IF(AND(E115="",F115="",G115="",H115="",I115=""),"",SUM(E115:I115,N115:W115)) -> 
B116: =Social!$F$291 -> S81 | C116: =L!$A$2228 -> Average loan balance | D116: =General!$J$5 -> 2023-12-31 | E116: =IF(OR(E9="",E10=""),"",E9/E10) ->  | F116: =IF(OR(F9="",F10=""),"",F9/F10) ->  | G116: =IF(OR(G9="",G10=""),"",G9/G10) ->  | H116: =IF(OR(H9="",H10=""),"",H9/H10) ->  | I116: =IF(OR(I9="",I10=""),"",I9/I10) ->  | K116: S81 | L116: =L!$A$2228 -> Average loan balance | M116: =General!$J$5 -> 2023-12-31 | N116: =IF(OR(N9="",N10=""),"",N9/N10) ->  | Y116: S81 | Z116: =L!$A$2228 -> Average loan balance | AA116: =General!$J$5 -> 2023-12-31 | AB116: =IF(OR(AB9="",AB10=""),"",AB9/AB10) -> 
B117: =Social!$F$293 -> S83 | C117: =L!$A$2230 -> Average loan balance / GNI pc | D117: =General!$J$5 -> 2023-12-31 | E117: =IF(OR(E116="",General!$D$132=""),"",IF(General!$D$14=General!$BO$350,E116/General!$D$132,E116/General!$M$104/General!$D$132)) ->  | F117: =IF(OR(F116="",General!$D$132=""),"",IF(General!$D$14=General!$BO$350,F116/General!$D$132,F116/General!$M$104/General!$D$132)) ->  | G117: =IF(OR(G116="",General!$D$132=""),"",IF(General!$D$14=General!$BO$350,G116/General!$D$132,G116/General!$M$104/General!$D$132)) ->  | H117: =IF(OR(H116="",General!$D$132=""),"",IF(General!$D$14=General!$BO$350,H116/General!$D$132,H116/General!$M$104/General!$D$132)) ->  | I117: =IF(OR(I116="",General!$D$132=""),"",IF(General!$D$14=General!$BO$350,I116/General!$D$132,I116/General!$M$104/General!$D$132)) ->  | K117: S83 | L117: =L!$A$2230 -> Average loan balance / GNI pc | M117: =General!$J$5 -> 2023-12-31 | N117: =IF(OR(N116="",General!$D$132=""),"",IF(General!$D$14=General!$BO$350,N116/General!$D$132,N116/General!$M$104/General!$D$132)) ->  | O117: =IF(OR(O116="",General!$D$132=""),"",IF(General!$D$14=General!$BO$350,O116/General!$D$132,O116/General!$M$104/General!$D$132)) ->  | P117: =IF(OR(P116="",General!$D$132=""),"",IF(General!$D$14=General!$BO$350,P116/General!$D$132,P116/General!$M$104/General!$D$132)) ->  | Q117: =IF(OR(Q116="",General!$D$132=""),"",IF(General!$D$14=General!$BO$350,Q116/General!$D$132,Q116/General!$M$104/General!$D$132)) ->  | R117: =IF(OR(R116="",General!$D$132=""),"",IF(General!$D$14=General!$BO$350,R116/General!$D$132,R116/General!$M$104/General!$D$132)) ->  | S117: =IF(OR(S116="",General!$D$132=""),"",IF(General!$D$14=General!$BO$350,S116/General!$D$132,S116/General!$M$104/General!$D$132)) ->  | T117: =IF(OR(T116="",General!$D$132=""),"",IF(General!$D$14=General!$BO$350,T116/General!$D$132,T116/General!$M$104/General!$D$132)) ->  | U117: =IF(OR(U116="",General!$D$132=""),"",IF(General!$D$14=General!$BO$350,U116/General!$D$132,U116/General!$M$104/General!$D$132)) ->  | V117: =IF(OR(V116="",General!$D$132=""),"",IF(General!$D$14=General!$BO$350,V116/General!$D$132,V116/General!$M$104/General!$D$132)) ->  | W117: =IF(OR(W116="",General!$D$132=""),"",IF(General!$D$14=General!$BO$350,W116/General!$D$132,W116/General!$M$104/General!$D$132)) ->  | Y117: S83 | Z117: =L!$A$2230 -> Average loan balance / GNI pc | AA117: =General!$J$5 -> 2023-12-31 | AB117: =IF(OR(AB116="",General!$D$132=""),"",IF(General!$D$14=General!$BO$350,AB116/General!$D$132,AB116/General!$M$104/General!$D$132)) -> 
B118: =Financial!$AR$188 -> F235 | C118: =L!$A$895 -> Growth in gross loan portfolio | D118: =General!$J$5 -> 2023-12-31 | E118: =IF(OR(E9="",E7=""),"",((E9-E7)/E7)*(12/General!$J$64)) ->  | F118: =IF(OR(F9="",F7=""),"",((F9-F7)/F7)*(12/General!$J$64)) ->  | G118: =IF(OR(G9="",G7=""),"",((G9-G7)/G7)*(12/General!$J$64)) ->  | H118: =IF(OR(H9="",H7=""),"",((H9-H7)/H7)*(12/General!$J$64)) ->  | I118: =IF(OR(I9="",I7=""),"",((I9-I7)/I7)*(12/General!$J$64)) ->  | K118: F235 | L118: =L!$A$895 -> Growth in gross loan portfolio | M118: =General!$J$5 -> 2023-12-31 | N118: =IF(OR(N9="",N7=""),"",((N9-N7)/N7)*(12/General!$J$64)) ->  | O118: =IF(OR(O9="",O7=""),"",((O9-O7)/O7)*(12/General!$J$64)) ->  | P118: =IF(OR(P9="",P7=""),"",((P9-P7)/P7)*(12/General!$J$64)) ->  | Q118: =IF(OR(Q9="",Q7=""),"",((Q9-Q7)/Q7)*(12/General!$J$64)) ->  | R118: =IF(OR(R9="",R7=""),"",((R9-R7)/R7)*(12/General!$J$64)) ->  | S118: =IF(OR(S9="",S7=""),"",((S9-S7)/S7)*(12/General!$J$64)) ->  | T118: =IF(OR(T9="",T7=""),"",((T9-T7)/T7)*(12/General!$J$64)) ->  | U118: =IF(OR(U9="",U7=""),"",((U9-U7)/U7)*(12/General!$J$64)) ->  | V118: =IF(OR(V9="",V7=""),"",((V9-V7)/V7)*(12/General!$J$64)) ->  | W118: =IF(OR(W9="",W7=""),"",((W9-W7)/W7)*(12/General!$J$64)) ->  | Y118: F235 | Z118: =L!$A$895 -> Growth in gross loan portfolio | AA118: =General!$J$5 -> 2023-12-31 | AB118: =IF(OR(AB9="",AB7=""),"",((AB9-AB7)/AB7)*(12/General!$J$64)) -> 
B119: =General!$F$67 -> G64 | C119: =L!$A$709 -> Number of loans | D119: =General!$K$5 ->  | K119: G64 | L119: =L!$A$709 -> Number of loans | M119: =General!$K$5 ->  | Y119: G64 | Z119: =L!$A$709 -> Number of loans | AA119: =General!$K$5 ->  | AB119: =IF(AND(E119="",F119="",G119="",H119="",I119=""),"",SUM(E119:I119,N119:W119)) -> 
B120: =$B$99 -> P56 | C120: =L!$A$2224 -> % gross loan portfolio | D120: =General!$K$5 ->  | E120: =IF(E11="","",E11/SUM($E11,$F11,$G11,$H11,$I11,$N11,$O11,$P11,$Q11,$R11,$S11,$T11,$U11,$V11,$W11)) ->  | K120: P56 | L120: =L!$A$2224 -> % gross loan portfolio | M120: =General!$K$5 ->  | N120: =IF(N11="","",N11/SUM($E11,$F11,$G11,$H11,$I11,$N11,$O11,$P11,$Q11,$R11,$S11,$T11,$U11,$V11,$W11)) ->  | Y120: P56 | Z120: =L!$A$2224 -> % gross loan portfolio | AA120: =General!$K$5 ->  | AB120: =IF(AB6="","",AB6/SUM($E6,$F6,$G6,$H6,$I6,$N6,$O6,$P6,$Q6,$R6,$S6,$T6,$U6,$V6,$W6)) -> 
B121: =$B$100 -> P57 | C121: =L!$A$2223 -> % number of borrowers | D121: =General!$K$5 ->  | K121: P57 | L121: =L!$A$2223 -> % number of borrowers | M121: =General!$K$5 ->  | N121: =IF(N12="","",N12/SUM($E12,$F12,$G12,$H12,$I12,$N12,$O12,$P12,$Q12,$R12,$S12,$T12,$U12,$V12,$W12)) ->  | Y121: P57 | Z121: =L!$A$2223 -> % number of borrowers | AA121: =General!$K$5 ->  | AB121: =IF(AB7="","",AB7/SUM($E7,$F7,$G7,$H7,$I7,$N7,$O7,$P7,$Q7,$R7,$S7,$T7,$U7,$V7,$W7)) -> 
B122: =$B$101 -> P58 | C122: =L!$A$2225 -> % number of loans | D122: =General!$K$5 ->  | E122: =IF(E119="","",E119/SUM($E119,$F119,$G119,$H119,$I119,$N119,$O119,$P119,$Q119,$R119,$S119,$T119,$U119,$V119,$W119)) ->  | F122: =IF(F119="","",F119/SUM($E119,$F119,$G119,$H119,$I119,$N119,$O119,$P119,$Q119,$R119,$S119,$T119,$U119,$V119,$W119)) ->  | G122: =IF(G119="","",G119/SUM($E119,$F119,$G119,$H119,$I119,$N119,$O119,$P119,$Q119,$R119,$S119,$T119,$U119,$V119,$W119)) ->  | H122: =IF(H119="","",H119/SUM($E119,$F119,$G119,$H119,$I119,$N119,$O119,$P119,$Q119,$R119,$S119,$T119,$U119,$V119,$W119)) ->  | I122: =IF(I119="","",I119/SUM($E119,$F119,$G119,$H119,$I119,$N119,$O119,$P119,$Q119,$R119,$S119,$T119,$U119,$V119,$W119)) ->  | K122: P58 | L122: =L!$A$2225 -> % number of loans | M122: =General!$K$5 ->  | N122: =IF(N119="","",N119/SUM($E119,$F119,$G119,$H119,$I119,$N119,$O119,$P119,$Q119,$R119,$S119,$T119,$U119,$V119,$W119)) ->  | O122: =IF(O119="","",O119/SUM($E119,$F119,$G119,$H119,$I119,$N119,$O119,$P119,$Q119,$R119,$S119,$T119,$U119,$V119,$W119)) ->  | Y122: P58 | Z122: =L!$A$2225 -> % number of loans | AA122: =General!$K$5 ->  | AB122: =IF(AND(E122="",F122="",G122="",H122="",I122=""),"",SUM(E122:I122,N122:W122)) -> 
B123: =Social!$F$291 -> S81 | C123: =L!$A$2228 -> Average loan balance | D123: =General!$K$5 ->  | E123: =IF(OR(E11="",E12=""),"",E11/E12) ->  | F123: =IF(OR(F11="",F12=""),"",F11/F12) ->  | G123: =IF(OR(G11="",G12=""),"",G11/G12) ->  | H123: =IF(OR(H11="",H12=""),"",H11/H12) ->  | I123: =IF(OR(I11="",I12=""),"",I11/I12) ->  | K123: S81 | L123: =L!$A$2228 -> Average loan balance | M123: =General!$K$5 ->  | N123: =IF(OR(N11="",N12=""),"",N11/N12) ->  | Y123: S81 | Z123: =L!$A$2228 -> Average loan balance | AA123: =General!$K$5 ->  | AB123: =IF(OR(AB6="",AB7=""),"",AB6/AB7) -> 
B124: =Social!$F$293 -> S83 | C124: =L!$A$2230 -> Average loan balance / GNI pc | D124: =General!$K$5 ->  | E124: =IF(OR(E123="",General!$D$132=""),"",IF(General!$D$14=General!$BO$350,E123/General!$D$132,E123/General!$M$104/General!$D$132)) ->  | F124: =IF(OR(F123="",General!$D$132=""),"",IF(General!$D$14=General!$BO$350,F123/General!$D$132,F123/General!$M$104/General!$D$132)) ->  | G124: =IF(OR(G123="",General!$D$132=""),"",IF(General!$D$14=General!$BO$350,G123/General!$D$132,G123/General!$M$104/General!$D$132)) ->  | H124: =IF(OR(H123="",General!$D$132=""),"",IF(General!$D$14=General!$BO$350,H123/General!$D$132,H123/General!$M$104/General!$D$132)) ->  | I124: =IF(OR(I123="",General!$D$132=""),"",IF(General!$D$14=General!$BO$350,I123/General!$D$132,I123/General!$M$104/General!$D$132)) ->  | K124: S83 | L124: =L!$A$2230 -> Average loan balance / GNI pc | M124: =General!$K$5 ->  | N124: =IF(OR(N123="",General!$D$132=""),"",IF(General!$D$14=General!$BO$350,N123/General!$D$132,N123/General!$M$104/General!$D$132)) ->  | O124: =IF(OR(O123="",General!$D$132=""),"",IF(General!$D$14=General!$BO$350,O123/General!$D$132,O123/General!$M$104/General!$D$132)) ->  | P124: =IF(OR(P123="",General!$D$132=""),"",IF(General!$D$14=General!$BO$350,P123/General!$D$132,P123/General!$M$104/General!$D$132)) ->  | Q124: =IF(OR(Q123="",General!$D$132=""),"",IF(General!$D$14=General!$BO$350,Q123/General!$D$132,Q123/General!$M$104/General!$D$132)) ->  | R124: =IF(OR(R123="",General!$D$132=""),"",IF(General!$D$14=General!$BO$350,R123/General!$D$132,R123/General!$M$104/General!$D$132)) ->  | S124: =IF(OR(S123="",General!$D$132=""),"",IF(General!$D$14=General!$BO$350,S123/General!$D$132,S123/General!$M$104/General!$D$132)) ->  | T124: =IF(OR(T123="",General!$D$132=""),"",IF(General!$D$14=General!$BO$350,T123/General!$D$132,T123/General!$M$104/General!$D$132)) ->  | U124: =IF(OR(U123="",General!$D$132=""),"",IF(General!$D$14=General!$BO$350,U123/General!$D$132,U123/General!$M$104/General!$D$132)) ->  | V124: =IF(OR(V123="",General!$D$132=""),"",IF(General!$D$14=General!$BO$350,V123/General!$D$132,V123/General!$M$104/General!$D$132)) ->  | W124: =IF(OR(W123="",General!$D$132=""),"",IF(General!$D$14=General!$BO$350,W123/General!$D$132,W123/General!$M$104/General!$D$132)) ->  | Y124: S83 | Z124: =L!$A$2230 -> Average loan balance / GNI pc | AA124: =General!$K$5 ->  | AB124: =IF(OR(AB123="",General!$D$132=""),"",IF(General!$D$14=General!$BO$350,AB123/General!$D$132,AB123/General!$M$104/General!$D$132)) -> 
B125: =Financial!$AR$188 -> F235 | C125: =L!$A$895 -> Growth in gross loan portfolio | D125: =General!$K$5 ->  | E125: =IF(OR(E9="",E11=""),"",((E11-E9)/E9)*(12/General!$L$64)) ->  | F125: =IF(OR(F9="",F11=""),"",((F11-F9)/F9)*(12/General!$L$64)) ->  | G125: =IF(OR(G9="",G11=""),"",((G11-G9)/G9)*(12/General!$L$64)) ->  | H125: =IF(OR(H9="",H11=""),"",((H11-H9)/H9)*(12/General!$L$64)) ->  | I125: =IF(OR(I9="",I11=""),"",((I11-I9)/I9)*(12/General!$L$64)) ->  | K125: F235 | L125: =L!$A$895 -> Growth in gross loan portfolio | M125: =General!$K$5 ->  | N125: =IF(OR(N9="",N11=""),"",((N11-N9)/N9)*(12/General!$L$64)) ->  | O125: =IF(OR(O9="",O11=""),"",((O11-O9)/O9)*(12/General!$L$64)) ->  | P125: =IF(OR(P9="",P11=""),"",((P11-P9)/P9)*(12/General!$L$64)) ->  | Q125: =IF(OR(Q9="",Q11=""),"",((Q11-Q9)/Q9)*(12/General!$L$64)) ->  | R125: =IF(OR(R9="",R11=""),"",((R11-R9)/R9)*(12/General!$L$64)) ->  | S125: =IF(OR(S9="",S11=""),"",((S11-S9)/S9)*(12/General!$L$64)) ->  | T125: =IF(OR(T9="",T11=""),"",((T11-T9)/T9)*(12/General!$L$64)) ->  | U125: =IF(OR(U9="",U11=""),"",((U11-U9)/U9)*(12/General!$L$64)) ->  | V125: =IF(OR(V9="",V11=""),"",((V11-V9)/V9)*(12/General!$L$64)) ->  | W125: =IF(OR(W9="",W11=""),"",((W11-W9)/W9)*(12/General!$L$64)) ->  | Y125: F235 | Z125: =L!$A$895 -> Growth in gross loan portfolio | AA125: =General!$K$5 ->  | AB125: =IF(OR(AB6="",AB2=""),"",((AB6-AB2)/AB2)*(12/General!$L$64)) -> 
B126: =General!$F$67 -> G64 | C126: =L!$A$709 -> Number of loans | D126: =General!$L$5 -> 2024-12-31 | K126: G64 | L126: =L!$A$709 -> Number of loans | M126: =General!$L$5 -> 2024-12-31 | Y126: G64 | Z126: =L!$A$709 -> Number of loans | AA126: =General!$L$5 -> 2024-12-31 | AB126: =IF(AND(E126="",F126="",G126="",H126="",I126=""),"",SUM(E126:I126,N126:W126)) -> 
B127: =$B$99 -> P56 | C127: =L!$A$2224 -> % gross loan portfolio | D127: =General!$L$5 -> 2024-12-31 | E127: =IF(E13="","",E13/SUM($E13,$F13,$G13,$H13,$I13,$N13,$O13,$P13,$Q13,$R13,$S13,$T13,$U13,$V13,$W13)) ->  | K127: P56 | L127: =L!$A$2224 -> % gross loan portfolio | M127: =General!$L$5 -> 2024-12-31 | N127: =IF(N13="","",N13/SUM($E13,$F13,$G13,$H13,$I13,$N13,$O13,$P13,$Q13,$R13,$S13,$T13,$U13,$V13,$W13)) ->  | Y127: P56 | Z127: =L!$A$2224 -> % gross loan portfolio | AA127: =General!$L$5 -> 2024-12-31 | AB127: =IF(AB13="","",AB13/SUM($E13,$F13,$G13,$H13,$I13,$N13,$O13,$P13,$Q13,$R13,$S13,$T13,$U13,$V13,$W13)) -> 
B128: =$B$100 -> P57 | C128: =L!$A$2223 -> % number of borrowers | D128: =General!$L$5 -> 2024-12-31 | K128: P57 | L128: =L!$A$2223 -> % number of borrowers | M128: =General!$L$5 -> 2024-12-31 | N128: =IF(N14="","",N14/SUM($E14,$F14,$G14,$H14,$I14,$N14,$O14,$P14,$Q14,$R14,$S14,$T14,$U14,$V14,$W14)) ->  | Y128: P57 | Z128: =L!$A$2223 -> % number of borrowers | AA128: =General!$L$5 -> 2024-12-31 | AB128: =IF(AB14="","",AB14/SUM($E14,$F14,$G14,$H14,$I14,$N14,$O14,$P14,$Q14,$R14,$S14,$T14,$U14,$V14,$W14)) -> 
B129: =$B$101 -> P58 | C129: =L!$A$2225 -> % number of loans | D129: =General!$L$5 -> 2024-12-31 | E129: =IF(E126="","",E126/SUM($E126,$F126,$G126,$H126,$I126,$N126,$O126,$P126,$Q126,$R126,$S126,$T126,$U126,$V126,$W126)) ->  | F129: =IF(F126="","",F126/SUM($E126,$F126,$G126,$H126,$I126,$N126,$O126,$P126,$Q126,$R126,$S126,$T126,$U126,$V126,$W126)) ->  | G129: =IF(G126="","",G126/SUM($E126,$F126,$G126,$H126,$I126,$N126,$O126,$P126,$Q126,$R126,$S126,$T126,$U126,$V126,$W126)) ->  | H129: =IF(H126="","",H126/SUM($E126,$F126,$G126,$H126,$I126,$N126,$O126,$P126,$Q126,$R126,$S126,$T126,$U126,$V126,$W126)) ->  | I129: =IF(I126="","",I126/SUM($E126,$F126,$G126,$H126,$I126,$N126,$O126,$P126,$Q126,$R126,$S126,$T126,$U126,$V126,$W126)) ->  | K129: P58 | L129: =L!$A$2225 -> % number of loans | M129: =General!$L$5 -> 2024-12-31 | N129: =IF(N126="","",N126/SUM($E126,$F126,$G126,$H126,$I126,$N126,$O126,$P126,$Q126,$R126,$S126,$T126,$U126,$V126,$W126)) ->  | Y129: P58 | Z129: =L!$A$2225 -> % number of loans | AA129: =General!$L$5 -> 2024-12-31 | AB129: =IF(AND(E129="",F129="",G129="",H129="",I129=""),"",SUM(E129:I129,N129:W129)) -> 
B130: =Social!$F$291 -> S81 | C130: =L!$A$2228 -> Average loan balance | D130: =General!$L$5 -> 2024-12-31 | E130: =IF(OR(E13="",E14=""),"",E13/E14) ->  | F130: =IF(OR(F13="",F14=""),"",F13/F14) ->  | G130: =IF(OR(G13="",G14=""),"",G13/G14) ->  | H130: =IF(OR(H13="",H14=""),"",H13/H14) ->  | I130: =IF(OR(I13="",I14=""),"",I13/I14) ->  | K130: S81 | L130: =L!$A$2228 -> Average loan balance | M130: =General!$L$5 -> 2024-12-31 | N130: =IF(OR(N13="",N14=""),"",N13/N14) ->  | Y130: S81 | Z130: =L!$A$2228 -> Average loan balance | AA130: =General!$L$5 -> 2024-12-31 | AB130: =IF(OR(AB13="",AB14=""),"",AB13/AB14) -> 
B131: =Social!$F$293 -> S83 | C131: =L!$A$2230 -> Average loan balance / GNI pc | D131: =General!$L$5 -> 2024-12-31 | E131: =IF(OR(E130="",General!$D$132=""),"",IF(General!$D$14=General!$BO$350,E130/General!$D$132,E130/General!$M$104/General!$D$132)) ->  | F131: =IF(OR(F130="",General!$D$132=""),"",IF(General!$D$14=General!$BO$350,F130/General!$D$132,F130/General!$M$104/General!$D$132)) ->  | G131: =IF(OR(G130="",General!$D$132=""),"",IF(General!$D$14=General!$BO$350,G130/General!$D$132,G130/General!$M$104/General!$D$132)) ->  | H131: =IF(OR(H130="",General!$D$132=""),"",IF(General!$D$14=General!$BO$350,H130/General!$D$132,H130/General!$M$104/General!$D$132)) ->  | I131: =IF(OR(I130="",General!$D$132=""),"",IF(General!$D$14=General!$BO$350,I130/General!$D$132,I130/General!$M$104/General!$D$132)) ->  | K131: S83 | L131: =L!$A$2230 -> Average loan balance / GNI pc | M131: =General!$L$5 -> 2024-12-31 | N131: =IF(OR(N130="",General!$D$132=""),"",IF(General!$D$14=General!$BO$350,N130/General!$D$132,N130/General!$M$104/General!$D$132)) ->  | O131: =IF(OR(O130="",General!$D$132=""),"",IF(General!$D$14=General!$BO$350,O130/General!$D$132,O130/General!$M$104/General!$D$132)) ->  | P131: =IF(OR(P130="",General!$D$132=""),"",IF(General!$D$14=General!$BO$350,P130/General!$D$132,P130/General!$M$104/General!$D$132)) ->  | Q131: =IF(OR(Q130="",General!$D$132=""),"",IF(General!$D$14=General!$BO$350,Q130/General!$D$132,Q130/General!$M$104/General!$D$132)) ->  | R131: =IF(OR(R130="",General!$D$132=""),"",IF(General!$D$14=General!$BO$350,R130/General!$D$132,R130/General!$M$104/General!$D$132)) ->  | S131: =IF(OR(S130="",General!$D$132=""),"",IF(General!$D$14=General!$BO$350,S130/General!$D$132,S130/General!$M$104/General!$D$132)) ->  | T131: =IF(OR(T130="",General!$D$132=""),"",IF(General!$D$14=General!$BO$350,T130/General!$D$132,T130/General!$M$104/General!$D$132)) ->  | U131: =IF(OR(U130="",General!$D$132=""),"",IF(General!$D$14=General!$BO$350,U130/General!$D$132,U130/General!$M$104/General!$D$132)) ->  | V131: =IF(OR(V130="",General!$D$132=""),"",IF(General!$D$14=General!$BO$350,V130/General!$D$132,V130/General!$M$104/General!$D$132)) ->  | W131: =IF(OR(W130="",General!$D$132=""),"",IF(General!$D$14=General!$BO$350,W130/General!$D$132,W130/General!$M$104/General!$D$132)) ->  | Y131: S83 | Z131: =L!$A$2230 -> Average loan balance / GNI pc | AA131: =General!$L$5 -> 2024-12-31 | AB131: =IF(OR(AB130="",General!$D$132=""),"",IF(General!$D$14=General!$BO$350,AB130/General!$D$132,AB130/General!$M$104/General!$D$132)) -> 
B132: =Financial!$AR$188 -> F235 | C132: =L!$A$895 -> Growth in gross loan portfolio | D132: =General!$L$5 -> 2024-12-31 | E132: =IF(OR(E13="",E9=""),"",((E13-E9)/E9)*(12/General!$L$64)) ->  | F132: =IF(OR(F13="",F9=""),"",((F13-F9)/F9)*(12/General!$L$64)) ->  | G132: =IF(OR(G13="",G9=""),"",((G13-G9)/G9)*(12/General!$L$64)) ->  | H132: =IF(OR(H13="",H9=""),"",((H13-H9)/H9)*(12/General!$L$64)) ->  | I132: =IF(OR(I13="",I9=""),"",((I13-I9)/I9)*(12/General!$L$64)) ->  | K132: F235 | L132: =L!$A$895 -> Growth in gross loan portfolio | M132: =General!$L$5 -> 2024-12-31 | N132: =IF(OR(N13="",N9=""),"",((N13-N9)/N9)*(12/General!$L$64)) ->  | O132: =IF(OR(O13="",O9=""),"",((O13-O9)/O9)*(12/General!$L$64)) ->  | P132: =IF(OR(P13="",P9=""),"",((P13-P9)/P9)*(12/General!$L$64)) ->  | Q132: =IF(OR(Q13="",Q9=""),"",((Q13-Q9)/Q9)*(12/General!$L$64)) ->  | R132: =IF(OR(R13="",R9=""),"",((R13-R9)/R9)*(12/General!$L$64)) ->  | S132: =IF(OR(S13="",S9=""),"",((S13-S9)/S9)*(12/General!$L$64)) ->  | T132: =IF(OR(T13="",T9=""),"",((T13-T9)/T9)*(12/General!$L$64)) ->  | U132: =IF(OR(U13="",U9=""),"",((U13-U9)/U9)*(12/General!$L$64)) ->  | V132: =IF(OR(V13="",V9=""),"",((V13-V9)/V9)*(12/General!$L$64)) ->  | W132: =IF(OR(W13="",W9=""),"",((W13-W9)/W9)*(12/General!$L$64)) ->  | Y132: F235 | Z132: =L!$A$895 -> Growth in gross loan portfolio | AA132: =General!$L$5 -> 2024-12-31 | AB132: =IF(OR(AB13="",AB9=""),"",((AB13-AB9)/AB9)*(12/General!$L$64)) -> 
B133: =General!$F$67 -> G64 | C133: =L!$A$709 -> Number of loans | D133: =General!$M$5 -> 2025-12-31 | K133: G64 | L133: =L!$A$709 -> Number of loans | M133: =General!$M$5 -> 2025-12-31 | Y133: G64 | Z133: =L!$A$709 -> Number of loans | AA133: =General!$M$5 -> 2025-12-31 | AB133: =IF(AND(E133="",F133="",G133="",H133="",I133=""),"",SUM(E133:I133,N133:W133)) -> 
B134: =General!F8 -> G12 | C134: =L!$A$1092 -> Portfolio >30 days in arrears | D134: =General!$M$5 -> 2025-12-31 | K134: G12 | L134: =L!$A$1092 -> Portfolio >30 days in arrears | M134: =General!$M$5 -> 46022 | Y134: G12 | Z134: =L!$A$1092 -> Portfolio >30 days in arrears | AA134: =General!$M$5 -> 2025-12-31 | AB134: =IF(AND(E134="",F134="",G134="",H134="",I134=""),"",SUM(E134:I134,N134:W134)) -> 
B135: =$B$99 -> P56 | C135: =L!$A$2224 -> % gross loan portfolio | D135: =General!$M$5 -> 2025-12-31 | E135: =IF(E15="","",E15/SUM($E15,$F15,$G15,$H15,$I15,$N15,$O15,$P15,$Q15,$R15,$S15,$T15,$U15,$V15,$W15)) ->  | K135: P56 | L135: =L!$A$2224 -> % gross loan portfolio | M135: =General!$M$5 -> 2025-12-31 | N135: =IF(N15="","",N15/SUM($E15,$F15,$G15,$H15,$I15,$N15,$O15,$P15,$Q15,$R15,$S15,$T15,$U15,$V15,$W15)) ->  | Y135: P56 | Z135: =L!$A$2224 -> % gross loan portfolio | AA135: =General!$M$5 -> 2025-12-31 | AB135: =IF(AB15="","",AB15/SUM($E15,$F15,$G15,$H15,$I15,$N15,$O15,$P15,$Q15,$R15,$S15,$T15,$U15,$V15,$W15)) -> 
B136: =$B$100 -> P57 | C136: =L!$A$2223 -> % number of borrowers | D136: =General!$M$5 -> 2025-12-31 | K136: P57 | L136: =L!$A$2223 -> % number of borrowers | M136: =General!$M$5 -> 2025-12-31 | N136: =IF(N16="","",N16/SUM($E16,$F16,$G16,$H16,$I16,$N16,$O16,$P16,$Q16,$R16,$S16,$T16,$U16,$V16,$W16)) ->  | Y136: P57 | Z136: =L!$A$2223 -> % number of borrowers | AA136: =General!$M$5 -> 2025-12-31 | AB136: =IF(AB16="","",AB16/SUM($E16,$F16,$G16,$H16,$I16,$N16,$O16,$P16,$Q16,$R16,$S16,$T16,$U16,$V16,$W16)) -> 
B137: =$B$101 -> P58 | C137: =L!$A$2225 -> % number of loans | D137: =General!$M$5 -> 2025-12-31 | E137: =IF(E133="","",E133/SUM($E133,$F133,$G133,$H133,$I133,$N133,$O133,$P133,$Q133,$R133,$S133,$T133,$U133,$V133,$W133)) ->  | F137: =IF(F133="","",F133/SUM($E133,$F133,$G133,$H133,$I133,$N133,$O133,$P133,$Q133,$R133,$S133,$T133,$U133,$V133,$W133)) ->  | G137: =IF(G133="","",G133/SUM($E133,$F133,$G133,$H133,$I133,$N133,$O133,$P133,$Q133,$R133,$S133,$T133,$U133,$V133,$W133)) ->  | H137: =IF(H133="","",H133/SUM($E133,$F133,$G133,$H133,$I133,$N133,$O133,$P133,$Q133,$R133,$S133,$T133,$U133,$V133,$W133)) ->  | I137: =IF(I133="","",I133/SUM($E133,$F133,$G133,$H133,$I133,$N133,$O133,$P133,$Q133,$R133,$S133,$T133,$U133,$V133,$W133)) ->  | K137: P58 | L137: =L!$A$2225 -> % number of loans | M137: =General!$M$5 -> 2025-12-31 | N137: =IF(N133="","",N133/SUM($E133,$F133,$G133,$H133,$I133,$N133,$O133,$P133,$Q133,$R133,$S133,$T133,$U133,$V133,$W133)) ->  | Y137: P58 | Z137: =L!$A$2225 -> % number of loans | AA137: =General!$M$5 -> 2025-12-31 | AB137: =IF(AND(E137="",F137="",G137="",H137="",I137=""),"",SUM(E137:I137,N137:W137)) -> 
B138: =Financial!$B$205 -> F117 | C138: =L!$A$1146 -> PAR30 | D138: =General!$M$5 -> 2025-12-31 | E138: =IF(OR(E15="",E134=""),"",E134/E15) ->  | F138: =IF(OR(F15="",F134=""),"",F134/F15) ->  | G138: =IF(OR(G15="",G134=""),"",G134/G15) ->  | H138: =IF(OR(H15="",H134=""),"",H134/H15) ->  | I138: =IF(OR(I15="",I134=""),"",I134/I15) ->  | K138: F117 | L138: =L!$A$1146 -> PAR30 | M138: =General!$M$5 -> 2025-12-31 | N138: =IF(OR(N15="",N134=""),"",N134/N15) ->  | Y138: F117 | Z138: =L!$A$1146 -> PAR30 | AA138: =General!$M$5 -> 2025-12-31 | AB138: =IF(OR(AB15="",AB134=""),"",AB134/AB15) -> 
B139: =Social!$F$291 -> S81 | C139: =L!$A$2228 -> Average loan balance | D139: =General!$M$5 -> 2025-12-31 | E139: =IF(OR(E15="",E16=""),"",E15/E16) ->  | F139: =IF(OR(F15="",F16=""),"",F15/F16) ->  | G139: =IF(OR(G15="",G16=""),"",G15/G16) ->  | H139: =IF(OR(H15="",H16=""),"",H15/H16) ->  | I139: =IF(OR(I15="",I16=""),"",I15/I16) ->  | K139: S81 | L139: =L!$A$2228 -> Average loan balance | M139: =General!$M$5 -> 2025-12-31 | N139: =IF(OR(N15="",N16=""),"",N15/N16) ->  | Y139: S81 | Z139: =L!$A$2228 -> Average loan balance | AA139: =General!$M$5 -> 2025-12-31 | AB139: =IF(OR(AB15="",AB16=""),"",AB15/AB16) -> 
B140: =Social!$F$293 -> S83 | C140: =L!$A$2230 -> Average loan balance / GNI pc | D140: =General!$M$5 -> 2025-12-31 | E140: =IF(OR(E139="",General!$D$132=""),"",IF(General!$D$14=General!$BO$350,E139/General!$D$132,E139/General!$M$104/General!$D$132)) ->  | F140: =IF(OR(F139="",General!$D$132=""),"",IF(General!$D$14=General!$BO$350,F139/General!$D$132,F139/General!$M$104/General!$D$132)) ->  | G140: =IF(OR(G139="",General!$D$132=""),"",IF(General!$D$14=General!$BO$350,G139/General!$D$132,G139/General!$M$104/General!$D$132)) ->  | H140: =IF(OR(H139="",General!$D$132=""),"",IF(General!$D$14=General!$BO$350,H139/General!$D$132,H139/General!$M$104/General!$D$132)) ->  | I140: =IF(OR(I139="",General!$D$132=""),"",IF(General!$D$14=General!$BO$350,I139/General!$D$132,I139/General!$M$104/General!$D$132)) ->  | K140: S83 | L140: =L!$A$2230 -> Average loan balance / GNI pc | M140: =General!$M$5 -> 2025-12-31 | N140: =IF(OR(N139="",General!$D$132=""),"",IF(General!$D$14=General!$BO$350,N139/General!$D$132,N139/General!$M$104/General!$D$132)) ->  | O140: =IF(OR(O139="",General!$D$132=""),"",IF(General!$D$14=General!$BO$350,O139/General!$D$132,O139/General!$M$104/General!$D$132)) ->  | P140: =IF(OR(P139="",General!$D$132=""),"",IF(General!$D$14=General!$BO$350,P139/General!$D$132,P139/General!$M$104/General!$D$132)) ->  | Q140: =IF(OR(Q139="",General!$D$132=""),"",IF(General!$D$14=General!$BO$350,Q139/General!$D$132,Q139/General!$M$104/General!$D$132)) ->  | R140: =IF(OR(R139="",General!$D$132=""),"",IF(General!$D$14=General!$BO$350,R139/General!$D$132,R139/General!$M$104/General!$D$132)) ->  | S140: =IF(OR(S139="",General!$D$132=""),"",IF(General!$D$14=General!$BO$350,S139/General!$D$132,S139/General!$M$104/General!$D$132)) ->  | T140: =IF(OR(T139="",General!$D$132=""),"",IF(General!$D$14=General!$BO$350,T139/General!$D$132,T139/General!$M$104/General!$D$132)) ->  | U140: =IF(OR(U139="",General!$D$132=""),"",IF(General!$D$14=General!$BO$350,U139/General!$D$132,U139/General!$M$104/General!$D$132)) ->  | V140: =IF(OR(V139="",General!$D$132=""),"",IF(General!$D$14=General!$BO$350,V139/General!$D$132,V139/General!$M$104/General!$D$132)) ->  | W140: =IF(OR(W139="",General!$D$132=""),"",IF(General!$D$14=General!$BO$350,W139/General!$D$132,W139/General!$M$104/General!$D$132)) ->  | Y140: S83 | Z140: =L!$A$2230 -> Average loan balance / GNI pc | AA140: =General!$M$5 -> 2025-12-31 | AB140: =IF(OR(AB139="",General!$D$132=""),"",IF(General!$D$14=General!$BO$350,AB139/General!$D$132,AB139/General!$M$104/General!$D$132)) -> 
B141: =Financial!$AR$188 -> F235 | C141: =L!$A$895 -> Growth in gross loan portfolio | D141: =General!$M$5 -> 2025-12-31 | E141: =IF(OR(General!$M$64=12,Products!E11=""),IF(OR(E15="",E13=""),"",((E15-E13)/E13)*(12/General!$M$64)),IF(OR(E15="",E11=""),"",((E15-E11)/E11))) ->  | F141: =IF(OR(F15="",F13=""),"",((F15-F13)/F13)*(12/General!$M$64)) ->  | G141: =IF(OR(G15="",G13=""),"",((G15-G13)/G13)*(12/General!$M$64)) ->  | H141: =IF(OR(H15="",H13=""),"",((H15-H13)/H13)*(12/General!$M$64)) ->  | I141: =IF(OR(I15="",I13=""),"",((I15-I13)/I13)*(12/General!$M$64)) ->  | K141: F235 | L141: =L!$A$895 -> Growth in gross loan portfolio | M141: =General!$M$5 -> 2025-12-31 | N141: =IF(OR(N15="",N13=""),"",((N15-N13)/N13)*(12/General!$M$64)) ->  | O141: =IF(OR(O15="",O13=""),"",((O15-O13)/O13)*(12/General!$M$64)) ->  | P141: =IF(OR(P15="",P13=""),"",((P15-P13)/P13)*(12/General!$M$64)) ->  | Q141: =IF(OR(Q15="",Q13=""),"",((Q15-Q13)/Q13)*(12/General!$M$64)) ->  | R141: =IF(OR(R15="",R13=""),"",((R15-R13)/R13)*(12/General!$M$64)) ->  | S141: =IF(OR(S15="",S13=""),"",((S15-S13)/S13)*(12/General!$M$64)) ->  | T141: =IF(OR(T15="",T13=""),"",((T15-T13)/T13)*(12/General!$M$64)) ->  | U141: =IF(OR(U15="",U13=""),"",((U15-U13)/U13)*(12/General!$M$64)) ->  | V141: =IF(OR(V15="",V13=""),"",((V15-V13)/V13)*(12/General!$M$64)) ->  | W141: =IF(OR(W15="",W13=""),"",((W15-W13)/W13)*(12/General!$M$64)) ->  | Y141: F235 | Z141: =L!$A$895 -> Growth in gross loan portfolio | AA141: =General!$M$5 -> 2025-12-31 | AB141: =IF(OR(AB15="",AB13=""),"",((AB15-AB13)/AB13)*(12/General!$M$64)) -> 
B142: P59 | C142: =L!$A2207 -> Average annual nominal interest rate (%) | D142: =General!$M$5 -> 2025-12-31 | E142: =IF(E27<>"",E27,IF(AND(E25="",E26=""),"",AVERAGE(E25:E26))) ->  | F142: =IF(F27<>"",F27,IF(AND(F25="",F26=""),"",AVERAGE(F25:F26))) ->  | G142: =IF(G27<>"",G27,IF(AND(G25="",G26=""),"",AVERAGE(G25:G26))) ->  | H142: =IF(H27<>"",H27,IF(AND(H25="",H26=""),"",AVERAGE(H25:H26))) ->  | I142: =IF(I27<>"",I27,IF(AND(I25="",I26=""),"",AVERAGE(I25:I26))) ->  | K142: P59 | L142: =L!$A2207 -> Average annual nominal interest rate (%) | M142: =General!$M$5 -> 2025-12-31 | N142: =IF(N27<>"",N27,IF(AND(N25="",N26=""),"",AVERAGE(N25:N26))) ->  | Y142: P59 | Z142: =L!$A2207 -> Average annual nominal interest rate (%) | AA142: =General!$M$5 -> 2025-12-31 | AB142: =IF(AND(E142="",F142="",G142="",H142="",I142=""),"",IF(AB198=AM195,AVERAGE(E142:I142,N142:W142),SUMPRODUCT(E142:W142,E200:W200))) -> 
B143: P60 | C143: =L!$A$2035 -> Monthly Percentage Rate | D143: =General!$M$5 -> 2025-12-31 | E143: =IF(E17="","",E17/12) ->  | F143: =IF(F17="","",F17/12) ->  | G143: =IF(G17="","",G17/12) ->  | H143: =IF(H17="","",H17/12) ->  | I143: =IF(I17="","",I17/12) ->  | K143: P60 | L143: =L!$A$2035 -> Monthly Percentage Rate | M143: =General!$M$5 -> 2025-12-31 | N143: =IF(N17="","",N17/12) ->  | Y143: P60 | Z143: =L!$A$2035 -> Monthly Percentage Rate | AA143: =General!$M$5 -> 2025-12-31 | AB143: =IF(AB17="","",AB17/12) -> 
B144: =$B$101 -> P58 | C144: =L!$A2163 -> % loans by disbursed amount, total | D144: =General!$M$5 -> 2025-12-31 | E144: =IF(AND(E145="",E146="",E147="",E148="",E149="",E150="",E151="",E152="",E153=""),"",SUM(E145:E153)) ->  | F144: =IF(AND(F145="",F146="",F147="",F148="",F149="",F150="",F151="",F152="",F153=""),"",SUM(F145:F153)) ->  | G144: =IF(AND(G145="",G146="",G147="",G148="",G149="",G150="",G151="",G152="",G153=""),"",SUM(G145:G153)) ->  | H144: =IF(AND(H145="",H146="",H147="",H148="",H149="",H150="",H151="",H152="",H153=""),"",SUM(H145:H153)) ->  | I144: =IF(AND(I145="",I146="",I147="",I148="",I149="",I150="",I151="",I152="",I153=""),"",SUM(I145:I153)) ->  | K144: P58 | L144: =L!$A2163 -> % loans by disbursed amount, total | M144: =General!$M$5 -> 2025-12-31 | N144: =IF(AND(N145="",N146="",N147="",N148="",N149="",N150="",N151="",N152="",N153=""),"",SUM(N145:N153)) ->  | Y144: P58 | Z144: =L!$A2163 -> % loans by disbursed amount, total | AA144: =General!$M$5 -> 2025-12-31 | AB144: =IF(AND(AB145="",AB146="",AB147="",AB148="",AB149="",AB150="",AB151="",AB152="",AB153=""),"",SUM(AB145:AB153)) ->  | AC144: =IF(AND(AC145="",AC146="",AC147="",AC148="",AC149="",AC150="",AC151="",AC152="",AC153=""),"",SUM(AC145:AC153)) ->  | AD144: =IF(OR(AC144="",General!M7=""),"",AC144/General!M7) -> 
B145: =B$144&Definitions!$AC$15&Definitions!$AE2 -> P58.14.1 | C145: =L!$A2164 -> % loans with disbursed amount ≤5% GNI pc | D145: =General!$M$5 -> 2025-12-31 | K145: P58.14.1 | L145: =L!$A2164 -> % loans with disbursed amount ≤5% GNI pc | M145: =General!$M$5 -> 2025-12-31 | Y145: =Definitions!$AC$15&Definitions!$AE2 -> .14.1 | Z145: =L!$A2164 -> % loans with disbursed amount ≤5% GNI pc | AA145: =General!$M$5 -> 2025-12-31 | AB145: =IF(AND(E145="",F145="",G145="",H145="",I145=""),"",AVERAGE(E145:I145,N145:W145)) ->  | AD145: =IF(OR(AC145="",E145="",E$15="",E145=0),"",AC145/(E145*E$15)) -> 
B146: =B$144&Definitions!$AC$15&Definitions!$AE3 -> P58.14.2 | C146: =L!$A2165 -> % loans with disbursed amount 5%-10% GNI pc | D146: =General!$M$5 -> 2025-12-31 | K146: P58.14.2 | L146: =L!$A2165 -> % loans with disbursed amount 5%-10% GNI pc | M146: =General!$M$5 -> 2025-12-31 | Y146: =Definitions!$AC$15&Definitions!$AE3 -> .14.2 | Z146: =L!$A2165 -> % loans with disbursed amount 5%-10% GNI pc | AA146: =General!$M$5 -> 2025-12-31 | AB146: =IF(AND(E146="",F146="",G146="",H146="",I146=""),"",AVERAGE(E146:I146,N146:W146)) ->  | AD146: =IF(OR(AC146="",E146="",E$15="",E146=0),"",AC146/(E146*E$15)) -> 
B147: =B$144&Definitions!$AC$15&Definitions!$AE4 -> P58.14.3 | C147: =L!$A2166 -> % loans with disbursed amount 10%-25% GNI pc | D147: =General!$M$5 -> 2025-12-31 | K147: P58.14.3 | L147: =L!$A2166 -> % loans with disbursed amount 10%-25% GNI pc | M147: =General!$M$5 -> 2025-12-31 | Y147: =Definitions!$AC$15&Definitions!$AE4 -> .14.3 | Z147: =L!$A2166 -> % loans with disbursed amount 10%-25% GNI pc | AA147: =General!$M$5 -> 2025-12-31
B148: =B$144&Definitions!$AC$15&Definitions!$AE5 -> P58.14.4 | C148: =L!$A2167 -> % loans with disbursed amount 25%-50% GNI pc | D148: =General!$M$5 -> 2025-12-31 | K148: P58.14.4 | L148: =L!$A2167 -> % loans with disbursed amount 25%-50% GNI pc | M148: =General!$M$5 -> 2025-12-31 | Y148: =Definitions!$AC$15&Definitions!$AE5 -> .14.4 | Z148: =L!$A2167 -> % loans with disbursed amount 25%-50% GNI pc | AA148: =General!$M$5 -> 2025-12-31
B149: =B$144&Definitions!$AC$15&Definitions!$AE6 -> P58.14.5 | C149: =L!$A2168 -> % loans with disbursed amount 50%-75% GNI pc | D149: =General!$M$5 -> 2025-12-31 | K149: P58.14.5 | L149: =L!$A2168 -> % loans with disbursed amount 50%-75% GNI pc | M149: =General!$M$5 -> 2025-12-31 | Y149: =Definitions!$AC$15&Definitions!$AE6 -> .14.5 | Z149: =L!$A2168 -> % loans with disbursed amount 50%-75% GNI pc | AA149: =General!$M$5 -> 2025-12-31
B150: =B$144&Definitions!$AC$15&Definitions!$AE7 -> P58.14.6 | C150: =L!$A2169 -> % loans with disbursed amount 75%-100% GNI pc | D150: =General!$M$5 -> 2025-12-31 | K150: P58.14.6 | L150: =L!$A2169 -> % loans with disbursed amount 75%-100% GNI pc | M150: =General!$M$5 -> 2025-12-31 | Y150: =Definitions!$AC$15&Definitions!$AE7 -> .14.6 | Z150: =L!$A2169 -> % loans with disbursed amount 75%-100% GNI pc | AA150: =General!$M$5 -> 2025-12-31
B151: =B$144&Definitions!$AC$15&Definitions!$AE8 -> P58.14.7 | C151: =L!$A2170 -> % loans with disbursed amount 100%-200% GNI pc | D151: =General!$M$5 -> 2025-12-31 | K151: P58.14.7 | L151: =L!$A2170 -> % loans with disbursed amount 100%-200% GNI pc | M151: =General!$M$5 -> 2025-12-31 | Y151: =Definitions!$AC$15&Definitions!$AE8 -> .14.7 | Z151: =L!$A2170 -> % loans with disbursed amount 100%-200% GNI pc | AA151: =General!$M$5 -> 2025-12-31
B152: =B$144&Definitions!$AC$15&Definitions!$AE9 -> P58.14.8 | C152: =L!$A2171 -> % loans with disbursed amount 200%-500% GNI pc | D152: =General!$M$5 -> 2025-12-31 | K152: P58.14.8 | L152: =L!$A2171 -> % loans with disbursed amount 200%-500% GNI pc | M152: =General!$M$5 -> 2025-12-31 | Y152: =Definitions!$AC$15&Definitions!$AE9 -> .14.8 | Z152: =L!$A2171 -> % loans with disbursed amount 200%-500% GNI pc | AA152: =General!$M$5 -> 2025-12-31
B153: =B$144&Definitions!$AC$15&Definitions!$AE10 -> P58.14.9 | C153: =L!$A2172 -> % loans with disbursed amount >500% GNI pc | D153: =General!$M$5 -> 2025-12-31 | K153: P58.14.9 | L153: =L!$A2172 -> % loans with disbursed amount >500% GNI pc | M153: =General!$M$5 -> 2025-12-31 | Y153: =Definitions!$AC$15&Definitions!$AE10 -> .14.9 | Z153: =L!$A2172 -> % loans with disbursed amount >500% GNI pc | AA153: =General!$M$5 -> 2025-12-31
B154: =B$144&Definitions!$AC$15&Definitions!$AE11 -> P58.14.10 | C154: =L!$A$2173 -> % loans with disbursed amount <= GNI pc | D154: =General!$M$5 -> 2025-12-31 | E154: =IF(AND(E145="",E146="",E147="",E148="",E149="",E150=""),"",SUM(E145:E150)) ->  | F154: =IF(AND(F145="",F146="",F147="",F148="",F149="",F150=""),"",SUM(F145:F150)) ->  | G154: =IF(AND(G145="",G146="",G147="",G148="",G149="",G150=""),"",SUM(G145:G150)) ->  | H154: =IF(AND(H145="",H146="",H147="",H148="",H149="",H150=""),"",SUM(H145:H150)) ->  | I154: =IF(AND(I145="",I146="",I147="",I148="",I149="",I150=""),"",SUM(I145:I150)) ->  | K154: P58.14.10 | L154: =L!$A$2173 -> % loans with disbursed amount <= GNI pc | M154: =General!$M$5 -> 2025-12-31 | N154: =IF(AND(N145="",N146="",N147="",N148="",N149="",N150=""),"",SUM(N145:N150)) ->  | Y154: =Definitions!$AC$15&Definitions!$AE11 -> .14.10 | Z154: =L!$A$2173 -> % loans with disbursed amount <= GNI pc | AA154: =General!$M$5 -> 2025-12-31 | AB154: =IF(AND(AB145="",AB146="",AB147="",AB148="",AB149="",AB150=""),"",SUM(AB145:AB150)) -> 
B155: =B$144&Definitions!$AC$15&Definitions!$AE12 -> P58.14.11 | C155: =L!$A$2174 -> % loans with disbursed amount > GNI pc | D155: =General!$M$5 -> 2025-12-31 | E155: =IF(AND(E151="",E152="",E153=""),"",SUM(E151:E153)) ->  | F155: =IF(AND(F151="",F152="",F153=""),"",SUM(F151:F153)) ->  | G155: =IF(AND(G151="",G152="",G153=""),"",SUM(G151:G153)) ->  | H155: =IF(AND(H151="",H152="",H153=""),"",SUM(H151:H153)) ->  | I155: =IF(AND(I151="",I152="",I153=""),"",SUM(I151:I153)) ->  | K155: P58.14.11 | L155: =L!$A$2174 -> % loans with disbursed amount > GNI pc | M155: =General!$M$5 -> 2025-12-31 | N155: =IF(AND(N151="",N152="",N153=""),"",SUM(N151:N153)) ->  | Y155: =Definitions!$AC$15&Definitions!$AE12 -> .14.11 | Z155: =L!$A$2174 -> % loans with disbursed amount > GNI pc | AA155: =General!$M$5 -> 2025-12-31 | AB155: =IF(AND(AB151="",AB152="",AB153=""),"",SUM(AB151:AB153)) -> 
B156: =$B$101 -> P58 | C156: =L!$A2190 -> % loans by term, total | D156: =General!$M$5 -> 2025-12-31 | E156: =IF(AND(E157="",E158="",E159="",E160="",E161="",E162=""),"",SUM(E157:E162)) ->  | F156: =IF(AND(F157="",F158="",F159="",F160="",F161="",F162=""),"",SUM(F157:F162)) ->  | G156: =IF(AND(G157="",G158="",G159="",G160="",G161="",G162=""),"",SUM(G157:G162)) ->  | H156: =IF(AND(H157="",H158="",H159="",H160="",H161="",H162=""),"",SUM(H157:H162)) ->  | I156: =IF(AND(I157="",I158="",I159="",I160="",I161="",I162=""),"",SUM(I157:I162)) ->  | K156: P58 | L156: =L!$A2190 -> % loans by term, total | M156: =General!$M$5 -> 2025-12-31 | N156: =IF(AND(N157="",N158="",N159="",N160="",N161="",N162=""),"",SUM(N157:N162)) ->  | Y156: P58 | Z156: =L!$A2190 -> % loans by term, total | AA156: =General!$M$5 -> 2025-12-31 | AB156: =IF(AND(AB157="",AB158="",AB159="",AB160="",AB161="",AB162=""),"",SUM(AB157:AB162)) ->  | AC156: =IF(AND(AC157="",AC158="",AC159="",AC160="",AC161="",AC162=""),"",SUM(AC157:AC162)) ->  | AD156: =IF(OR(AC156="",General!M7=""),"",AC156/General!M7) -> 
B157: =B$156&Definitions!$AC$16&Definitions!$AE2 -> P58.15.1 | C157: =L!$A2192 -> % loans with term ≤3 months | D157: =General!$M$5 -> 2025-12-31 | K157: P58.15.1 | L157: =L!$A2192 -> % loans with term ≤3 months | M157: =General!$M$5 -> 2025-12-31 | Y157: =Definitions!$AC$16&Definitions!$AE2 -> .15.1 | Z157: =L!$A2192 -> % loans with term ≤3 months | AA157: =General!$M$5 -> 2025-12-31 | AB157: =IF(AND(E157="",F157="",G157="",H157="",I157=""),"",AVERAGE(E157:I157,N157:W157)) ->  | AD157: =IF(OR(AC157="",E157="",E$15="",E157=0),"",AC157/(E157*E$15)) -> 
B158: =B$156&Definitions!$AC$16&Definitions!$AE3 -> P58.15.2 | C158: =L!$A2193 -> % loans with term 4-6 months | D158: =General!$M$5 -> 2025-12-31 | K158: P58.15.2 | L158: =L!$A2193 -> % loans with term 4-6 months | M158: =General!$M$5 -> 2025-12-31 | Y158: =Definitions!$AC$16&Definitions!$AE3 -> .15.2 | Z158: =L!$A2193 -> % loans with term 4-6 months | AA158: =General!$M$5 -> 2025-12-31
B159: =B$156&Definitions!$AC$16&Definitions!$AE4 -> P58.15.3 | C159: =L!$A2194 -> % loans with term 7-9 months | D159: =General!$M$5 -> 2025-12-31 | K159: P58.15.3 | L159: =L!$A2194 -> % loans with term 7-9 months | M159: =General!$M$5 -> 2025-12-31 | Y159: =Definitions!$AC$16&Definitions!$AE4 -> .15.3 | Z159: =L!$A2194 -> % loans with term 7-9 months | AA159: =General!$M$5 -> 2025-12-31
B160: =B$156&Definitions!$AC$16&Definitions!$AE5 -> P58.15.4 | C160: =L!$A2195 -> % loans with term 10-12 months | D160: =General!$M$5 -> 2025-12-31 | K160: P58.15.4 | L160: =L!$A2195 -> % loans with term 10-12 months | M160: =General!$M$5 -> 2025-12-31 | Y160: =Definitions!$AC$16&Definitions!$AE5 -> .15.4 | Z160: =L!$A2195 -> % loans with term 10-12 months | AA160: =General!$M$5 -> 2025-12-31
B161: =B$156&Definitions!$AC$16&Definitions!$AE6 -> P58.15.5 | C161: =L!$A2196 -> % loans with term 13-18 months | D161: =General!$M$5 -> 2025-12-31 | K161: P58.15.5 | L161: =L!$A2196 -> % loans with term 13-18 months | M161: =General!$M$5 -> 2025-12-31 | Y161: =Definitions!$AC$16&Definitions!$AE6 -> .15.5 | Z161: =L!$A2196 -> % loans with term 13-18 months | AA161: =General!$M$5 -> 2025-12-31
B162: =B$156&Definitions!$AC$16&Definitions!$AE7 -> P58.15.6 | C162: =L!$A2197 -> % loans with term >18 months | D162: =General!$M$5 -> 2025-12-31 | K162: =B162 -> P58.15.6 | L162: =L!$A2197 -> % loans with term >18 months | M162: =General!$M$5 -> 2025-12-31 | Y162: =Definitions!$AC$16&Definitions!$AE7 -> .15.6 | Z162: =L!$A2197 -> % loans with term >18 months | AA162: =General!$M$5 -> 2025-12-31
B163: P61 | C163: =L!$A$2028 -> Collateral | D163: =General!$M$5 -> 2025-12-31 | E163: =BS37&BS38&BS39&BS40&BS41&BS42&BS43&BS44 ->  | F163: =BT37&BT38&BT39&BT40&BT41&BT42&BT43&BT44 ->  | G163: =BU37&BU38&BU39&BU40&BU41&BU42&BU43&BU44 ->  | H163: =BV37&BV38&BV39&BV40&BV41&BV42&BV43&BV44 ->  | I163: =BW37&BW38&BW39&BW40&BW41&BW42&BW43&BW44 ->  | K163: =B163 -> P61 | L163: =L!$A$2028 -> Collateral | M163: =General!$M$5 -> 2025-12-31 | N163: =BX37&BX38&BX39&BX40&BX41&BX42&BX43&BX44 ->  | Y163: =B163 -> P61 | Z163: =L!$A$2028 -> Collateral | AA163: =General!$M$5 -> 2025-12-31 | AB163: =CH37&CI37&CH38&CI38&CH39&CI39&CH40&CI40&CH41&CI41&CH42&CI42&CH43&CI43&CH44&CI44 -> 
B164: =General!$F$7 -> G11 | C164: =L!$A$2029 -> Portfolio by collateral | D164: =General!$M$5 -> 2025-12-31 | K164: G11 | L164: =L!$A$2029 -> Portfolio by collateral | M164: =General!$M$5 -> 2025-12-31 | Y164: G11 | Z164: =L!$A$2029 -> Portfolio by collateral | AA164: =General!$M$5 -> 2025-12-31 | AB164: =IF(AND(AB165="",AB166="",AB167="",AB168="",AB169="",AB170="",AB171="",AB172=""),"",SUM(AB165:AB172)) ->  | AC164: =IF(AND(AC165="",AC166="",AC167="",AC168="",AC169="",AC170="",AC171="",AC172=""),"",SUM(AC165:AC172)) ->  | AD164: =IF(OR(AC164="",AB164="",AB164=0),"",AC164/AB164) -> 
B165: =$B$164&Definitions!$AC$20&Definitions!$AE2 -> G11.19.1 | C165: =L!$A$2067 -> Mortgage | D165: =General!$M$5 -> 2025-12-31 | E165: =IF(AND(BD37=TRUE,E$15<>""),E$15*1/COUNTIF(BD$37:BD$44,TRUE),IF(E$15="","",IF(OR(BD$37=TRUE,BD$38=TRUE,BD$39=TRUE,BD$40=TRUE,BD$41=TRUE,BD$42=TRUE,BD$43=TRUE,BD$44=TRUE),0,""))) ->  | K165: =$B$164&Definitions!$AC$20&Definitions!$AE2 -> G11.19.1 | L165: =L!$A$2067 -> Mortgage | M165: =General!$M$5 -> 2025-12-31 | N165: =IF(AND(BI37=TRUE,N$15<>""),N$15*1/COUNTIF(BI$37:BI$44,TRUE),IF(N$15="","",IF(OR(BI$37=TRUE,BI$38=TRUE,BI$39=TRUE,BI$40=TRUE,BI$41=TRUE,BI$42=TRUE,BI$43=TRUE,APU$44=TRUE),0,""))) ->  | Y165: =Definitions!$AC$20&Definitions!$AE2 -> .19.1 | Z165: =L!$A$2067 -> Mortgage | AA165: =General!$M$5 -> 2025-12-31 | AB165: =IF(AB174="","",AB174*AB$15) ->  | AD165: =IF(OR(AC165="",AB165="",AB165=0),"",AC165/AB165) -> 
B166: =$B$164&Definitions!$AC$20&Definitions!$AE3 -> G11.19.2 | C166: =L!$A$2068 -> Deposits | D166: =General!$M$5 -> 2025-12-31 | K166: =$B$164&Definitions!$AC$20&Definitions!$AE3 -> G11.19.2 | L166: =L!$A$2068 -> Deposits | M166: =General!$M$5 -> 2025-12-31 | Y166: =Definitions!$AC$20&Definitions!$AE3 -> .19.2 | Z166: =L!$A$2068 -> Deposits | AA166: =General!$M$5 -> 2025-12-31 | AB166: =IF(AB175="","",AB175*AB$15) ->  | AD166: =IF(OR(AC166="",AB166="",AB166=0),"",AC166/AB166) -> 
B167: =$B$164&Definitions!$AC$20&Definitions!$AE4 -> G11.19.3 | C167: =L!$A$2069 -> Guarantee fund | D167: =General!$M$5 -> 2025-12-31 | K167: =$B$164&Definitions!$AC$20&Definitions!$AE4 -> G11.19.3 | L167: =L!$A$2069 -> Guarantee fund | M167: =General!$M$5 -> 2025-12-31 | Y167: =Definitions!$AC$20&Definitions!$AE4 -> .19.3 | Z167: =L!$A$2069 -> Guarantee fund | AA167: =General!$M$5 -> 2025-12-31
B168: =$B$164&Definitions!$AC$20&Definitions!$AE5 -> G11.19.4 | C168: =L!$A$2070 -> Pledge | D168: =General!$M$5 -> 2025-12-31 | K168: =$B$164&Definitions!$AC$20&Definitions!$AE5 -> G11.19.4 | L168: =L!$A$2070 -> Pledge | M168: =General!$M$5 -> 2025-12-31 | Y168: =Definitions!$AC$20&Definitions!$AE5 -> .19.4 | Z168: =L!$A$2070 -> Pledge | AA168: =General!$M$5 -> 2025-12-31
B169: =$B$164&Definitions!$AC$20&Definitions!$AE6 -> G11.19.5 | C169: =L!$A$2071 -> Salary deduction | D169: =General!$M$5 -> 2025-12-31 | K169: =$B$164&Definitions!$AC$20&Definitions!$AE6 -> G11.19.5 | L169: =L!$A$2071 -> Salary deduction | M169: =General!$M$5 -> 2025-12-31 | Y169: =Definitions!$AC$20&Definitions!$AE6 -> .19.5 | Z169: =L!$A$2071 -> Salary deduction | AA169: =General!$M$5 -> 2025-12-31
B170: =$B$164&Definitions!$AC$20&Definitions!$AE7 -> G11.19.6 | C170: =L!$A$2072 -> Personal | D170: =General!$M$5 -> 2025-12-31 | K170: =$B$164&Definitions!$AC$20&Definitions!$AE7 -> G11.19.6 | L170: =L!$A$2072 -> Personal | M170: =General!$M$5 -> 2025-12-31 | Y170: =Definitions!$AC$20&Definitions!$AE7 -> .19.6 | Z170: =L!$A$2072 -> Personal | AA170: =General!$M$5 -> 2025-12-31
B171: =$B$164&Definitions!$AC$20&Definitions!$AE8 -> G11.19.7 | C171: =L!$A$2073 -> Unsecured | D171: =General!$M$5 -> 2025-12-31 | K171: =$B$164&Definitions!$AC$20&Definitions!$AE8 -> G11.19.7 | L171: =L!$A$2073 -> Unsecured | M171: =General!$M$5 -> 2025-12-31 | Y171: =Definitions!$AC$20&Definitions!$AE8 -> .19.7 | Z171: =L!$A$2073 -> Unsecured | AA171: =General!$M$5 -> 2025-12-31
B172: =$B$164&Definitions!$AC$20&Definitions!$AE9 -> G11.19.8 | C172: =L!$A$2066 -> Other collateral | D172: =General!$M$5 -> 2025-12-31 | K172: =$B$164&Definitions!$AC$20&Definitions!$AE9 -> G11.19.8 | L172: =L!$A$2066 -> Other collateral | M172: =General!$M$5 -> 2025-12-31 | Y172: =Definitions!$AC$20&Definitions!$AE9 -> .19.8 | Z172: =L!$A$2066 -> Other collateral | AA172: =General!$M$5 -> 2025-12-31
B173: =$B$99 -> P56 | C173: =L!$A$2030 -> % portfolio by collateral | D173: =General!$M$5 -> 2025-12-31 | K173: P56 | L173: =L!$A$2030 -> % portfolio by collateral | M173: =General!$M$5 -> 2025-12-31 | Y173: P56 | Z173: =L!$A$2030 -> % portfolio by collateral | AA173: =General!$M$5 -> 2025-12-31
B174: =$B$173&Definitions!$AC$20&Definitions!$AE2 -> P56.19.1 | C174: =L!$A$2067 -> Mortgage | D174: =General!$M$5 -> 2025-12-31 | E174: =IF(AND(E165="",E166="",E167="",E168="",E169="",E170="",E171="",E172),"",E165/SUM(E$165:E$172)) ->  | K174: =$B$173&Definitions!$AC$20&Definitions!$AE2 -> P56.19.1 | L174: =L!$A$2067 -> Mortgage | M174: =General!$M$5 -> 2025-12-31 | N174: =IF(AND(N165="",N166="",N167="",N168="",N169="",N170="",N171="",N172),"",N165/SUM(N$165:N$172)) ->  | O174: =IF(AND(O165="",O166="",O167="",O168="",O169="",O170="",O171="",O172),"",O165/SUM(O$165:O$172)) ->  | Y174: =$B$173&Definitions!$AC$20&Definitions!$AE2 -> P56.19.1 | Z174: =L!$A$2067 -> Mortgage | AA174: =General!$M$5 -> 2025-12-31 | AB174: =IF(AND(E165="",E166="",E167="",E168="",E169="",E170="",E171="",E172="",F165="",F166="",F167="",F168="",F169="",F170="",F171="",F172="",G165="",G166="",G167="",G168="",G169="",G170="",G171="",G172="",H165="",H166="",H167="",H168="",H169="",H170="",H171="",H172="",I165="",I166="",I167="",I168="",I169="",I170="",I171="",I172=""),"",SUM($E165:$I165,$N165:$W165)/SUM($E$165:$I$172,$N$165:$W$172)) -> 
B175: =$B$173&Definitions!$AC$20&Definitions!$AE3 -> P56.19.2 | C175: =L!$A$2068 -> Deposits | D175: =General!$M$5 -> 2025-12-31 | K175: =$B$173&Definitions!$AC$20&Definitions!$AE3 -> P56.19.2 | L175: =L!$A$2068 -> Deposits | M175: =General!$M$5 -> 2025-12-31 | N175: =IF(AND(N166="",N167="",N168="",N169="",N170="",N171="",N172="",N173),"",N166/SUM(N$165:N$172)) ->  | Y175: =$B$173&Definitions!$AC$20&Definitions!$AE3 -> P56.19.2 | Z175: =L!$A$2068 -> Deposits | AA175: =General!$M$5 -> 2025-12-31 | AB175: =IF(AND(E165="",E166="",E167="",E168="",E169="",E170="",E171="",E172="",F165="",F166="",F167="",F168="",F169="",F170="",F171="",F172="",G165="",G166="",G167="",G168="",G169="",G170="",G171="",G172="",H165="",H166="",H167="",H168="",H169="",H170="",H171="",H172="",I165="",I166="",I167="",I168="",I169="",I170="",I171="",I172=""),"",SUM($E166:$I166,$N166:$W166)/SUM($E$165:$I$172,$N$165:$W$172)) -> 
B176: =$B$173&Definitions!$AC$20&Definitions!$AE4 -> P56.19.3 | C176: =L!$A$2069 -> Guarantee fund | D176: =General!$M$5 -> 2025-12-31 | K176: =$B$173&Definitions!$AC$20&Definitions!$AE4 -> P56.19.3 | L176: =L!$A$2069 -> Guarantee fund | M176: =General!$M$5 -> 2025-12-31 | N176: =IF(AND(N167="",N168="",N169="",N170="",N171="",N172="",N173="",N174),"",N167/SUM(N$165:N$172)) ->  | Y176: =$B$173&Definitions!$AC$20&Definitions!$AE4 -> P56.19.3 | Z176: =L!$A$2069 -> Guarantee fund | AA176: =General!$M$5 -> 2025-12-31 | AB176: =IF(AND(E165="",E166="",E167="",E168="",E169="",E170="",E171="",E172="",F165="",F166="",F167="",F168="",F169="",F170="",F171="",F172="",G165="",G166="",G167="",G168="",G169="",G170="",G171="",G172="",H165="",H166="",H167="",H168="",H169="",H170="",H171="",H172="",I165="",I166="",I167="",I168="",I169="",I170="",I171="",I172=""),"",SUM($E167:$I167,$N167:$W167)/SUM($E$165:$I$172,$N$165:$W$172)) -> 
B177: =$B$173&Definitions!$AC$20&Definitions!$AE5 -> P56.19.4 | C177: =L!$A$2070 -> Pledge | D177: =General!$M$5 -> 2025-12-31 | K177: =$B$173&Definitions!$AC$20&Definitions!$AE5 -> P56.19.4 | L177: =L!$A$2070 -> Pledge | M177: =General!$M$5 -> 2025-12-31 | N177: =IF(AND(N168="",N169="",N170="",N171="",N172="",N173="",N174="",N175),"",N168/SUM(N$165:N$172)) ->  | Y177: =$B$173&Definitions!$AC$20&Definitions!$AE5 -> P56.19.4 | Z177: =L!$A$2070 -> Pledge | AA177: =General!$M$5 -> 2025-12-31 | AB177: =IF(AND(E165="",E166="",E167="",E168="",E169="",E170="",E171="",E172="",F165="",F166="",F167="",F168="",F169="",F170="",F171="",F172="",G165="",G166="",G167="",G168="",G169="",G170="",G171="",G172="",H165="",H166="",H167="",H168="",H169="",H170="",H171="",H172="",I165="",I166="",I167="",I168="",I169="",I170="",I171="",I172=""),"",SUM($E168:$I168,$N168:$W168)/SUM($E$165:$I$172,$N$165:$W$172)) -> 
B178: =$B$173&Definitions!$AC$20&Definitions!$AE6 -> P56.19.5 | C178: =L!$A$2071 -> Salary deduction | D178: =General!$M$5 -> 2025-12-31 | K178: =$B$173&Definitions!$AC$20&Definitions!$AE6 -> P56.19.5 | L178: =L!$A$2071 -> Salary deduction | M178: =General!$M$5 -> 2025-12-31 | N178: =IF(AND(N169="",N170="",N171="",N172="",N173="",N174="",N175="",N176),"",N169/SUM(N$165:N$172)) ->  | Y178: =$B$173&Definitions!$AC$20&Definitions!$AE6 -> P56.19.5 | Z178: =L!$A$2071 -> Salary deduction | AA178: =General!$M$5 -> 2025-12-31 | AB178: =IF(AND(E165="",E166="",E167="",E168="",E169="",E170="",E171="",E172="",F165="",F166="",F167="",F168="",F169="",F170="",F171="",F172="",G165="",G166="",G167="",G168="",G169="",G170="",G171="",G172="",H165="",H166="",H167="",H168="",H169="",H170="",H171="",H172="",I165="",I166="",I167="",I168="",I169="",I170="",I171="",I172=""),"",SUM($E169:$I169,$N169:$W169)/SUM($E$165:$I$172,$N$165:$W$172)) -> 
B179: =$B$173&Definitions!$AC$20&Definitions!$AE7 -> P56.19.6 | C179: =L!$A$2072 -> Personal | D179: =General!$M$5 -> 2025-12-31 | K179: =$B$173&Definitions!$AC$20&Definitions!$AE7 -> P56.19.6 | L179: =L!$A$2072 -> Personal | M179: =General!$M$5 -> 2025-12-31 | N179: =IF(AND(N170="",N171="",N172="",N173="",N174="",N175="",N176="",N177),"",N170/SUM(N$165:N$172)) ->  | Y179: =$B$173&Definitions!$AC$20&Definitions!$AE7 -> P56.19.6 | Z179: =L!$A$2072 -> Personal | AA179: =General!$M$5 -> 2025-12-31 | AB179: =IF(AND(E165="",E166="",E167="",E168="",E169="",E170="",E171="",E172="",F165="",F166="",F167="",F168="",F169="",F170="",F171="",F172="",G165="",G166="",G167="",G168="",G169="",G170="",G171="",G172="",H165="",H166="",H167="",H168="",H169="",H170="",H171="",H172="",I165="",I166="",I167="",I168="",I169="",I170="",I171="",I172=""),"",SUM($E170:$I170,$N170:$W170)/SUM($E$165:$I$172,$N$165:$W$172)) -> 
B180: =$B$173&Definitions!$AC$20&Definitions!$AE8 -> P56.19.7 | C180: =L!$A$2073 -> Unsecured | D180: =General!$M$5 -> 2025-12-31 | K180: =$B$173&Definitions!$AC$20&Definitions!$AE8 -> P56.19.7 | L180: =L!$A$2073 -> Unsecured | M180: =General!$M$5 -> 2025-12-31 | N180: =IF(AND(N171="",N172="",N173="",N174="",N175="",N176="",N177="",N178),"",N171/SUM(N$165:N$172)) ->  | Y180: =$B$173&Definitions!$AC$20&Definitions!$AE8 -> P56.19.7 | Z180: =L!$A$2073 -> Unsecured | AA180: =General!$M$5 -> 2025-12-31 | AB180: =IF(AND(E165="",E166="",E167="",E168="",E169="",E170="",E171="",E172="",F165="",F166="",F167="",F168="",F169="",F170="",F171="",F172="",G165="",G166="",G167="",G168="",G169="",G170="",G171="",G172="",H165="",H166="",H167="",H168="",H169="",H170="",H171="",H172="",I165="",I166="",I167="",I168="",I169="",I170="",I171="",I172=""),"",SUM($E171:$I171,$N171:$W171)/SUM($E$165:$I$172,$N$165:$W$172)) -> 
B181: =$B$173&Definitions!$AC$20&Definitions!$AE9 -> P56.19.8 | C181: =L!$A$2066 -> Other collateral | D181: =General!$M$5 -> 2025-12-31 | K181: =$B$173&Definitions!$AC$20&Definitions!$AE9 -> P56.19.8 | L181: =L!$A$2066 -> Other collateral | M181: =General!$M$5 -> 2025-12-31 | N181: =IF(AND(N172="",N173="",N174="",N175="",N176="",N177="",N178="",N179),"",N172/SUM(N$165:N$172)) ->  | Y181: =$B$173&Definitions!$AC$20&Definitions!$AE9 -> P56.19.8 | Z181: =L!$A$2066 -> Other collateral | AA181: =General!$M$5 -> 2025-12-31 | AB181: =IF(AND(E165="",E166="",E167="",E168="",E169="",E170="",E171="",E172="",F165="",F166="",F167="",F168="",F169="",F170="",F171="",F172="",G165="",G166="",G167="",G168="",G169="",G170="",G171="",G172="",H165="",H166="",H167="",H168="",H169="",H170="",H171="",H172="",I165="",I166="",I167="",I168="",I169="",I170="",I171="",I172=""),"",SUM($E172:$I172,$N172:$W172)/SUM($E$165:$I$172,$N$165:$W$172)) -> 
B182: =Social!$F$285 -> S78 | C182: =L!$A2175 -> Average disbursed loan amount | D182: =General!$M$5 -> 2025-12-31 | E182: =IF(AND(E30="",E31=""),"",AVERAGE(E30:E31)) ->  | F182: =IF(AND(F30="",F31=""),"",AVERAGE(F30:F31)) ->  | G182: =IF(AND(G30="",G31=""),"",AVERAGE(G30:G31)) ->  | H182: =IF(AND(H30="",H31=""),"",AVERAGE(H30:H31)) ->  | I182: =IF(AND(I30="",I31=""),"",AVERAGE(I30:I31)) ->  | K182: S78 | L182: =L!$A2175 -> Average disbursed loan amount | M182: =General!$M$5 -> 2025-12-31 | N182: =IF(AND(N30="",N31=""),"",AVERAGE(N30:N31)) ->  | Y182: S78 | Z182: =L!$A2175 -> Average disbursed loan amount | AA182: =General!$M$5 -> 2025-12-31 | AB182: =IF(AND(E182="",F182="",G182="",H182="",I182=""),"",IF(AB201=AM195,AVERAGE(E182:I182,N182:W182),SUMPRODUCT(E182:W182,E203:W203))) -> 
B183: P62 | C183: =L!$A$2189 -> Average loan term | D183: =General!$M$5 -> 2025-12-31 | E183: =IF(AND(E32="",E33=""),"",AVERAGE(E32:E33)) ->  | F183: =IF(AND(F32="",F33=""),"",AVERAGE(F32:F33)) ->  | G183: =IF(AND(G32="",G33=""),"",AVERAGE(G32:G33)) ->  | H183: =IF(AND(H32="",H33=""),"",AVERAGE(H32:H33)) ->  | I183: =IF(AND(I32="",I33=""),"",AVERAGE(I32:I33)) ->  | K183: P62 | L183: =L!$A$2189 -> Average loan term | M183: =General!$M$5 -> 2025-12-31 | N183: =IF(AND(N32="",N33=""),"",AVERAGE(N32:N33)) ->  | Y183: P62 | Z183: =L!$A$2189 -> Average loan term | AA183: =General!$M$5 -> 2025-12-31 | AB183: =IF(AND(E183="",F183="",G183="",H183="",I183=""),"",IF(AB204=AM195,AVERAGE(E183:I183,N183:W183),SUMPRODUCT(E183:W183,E206:W206))) -> 
B184: P63 | C184: =L!$A2198 -> Number of payments | D184: =General!$M$5 -> 2025-12-31 | E184: =IF(E274="","",AVERAGE(E274:E305)) ->  | F184: =IF(F274="","",AVERAGE(F274:F305)) ->  | G184: =IF(G274="","",AVERAGE(G274:G305)) ->  | H184: =IF(H274="","",AVERAGE(H274:H305)) ->  | I184: =IF(I274="","",AVERAGE(I274:I305)) ->  | K184: P63 | L184: =L!$A2198 -> Number of payments | M184: =General!$M$5 -> 2025-12-31 | Y184: P63 | Z184: =L!$A2198 -> Number of payments | AA184: =General!$M$5 -> 2025-12-31 | AB184: =IF(AND(E184="",F184="",G184="",H184="",I184=""),"",AVERAGE(E184:I184,N184:W184)) -> 
B185: P64 | C185: =L!$A2199 -> Partial APR | D185: =General!$M$5 -> 2025-12-31 | E185: =IF(E594="","",AVERAGE(E594:E625)) ->  | F185: =IF(F594="","",AVERAGE(F594:F625)) ->  | G185: =IF(G594="","",AVERAGE(G594:G625)) ->  | H185: =IF(H594="","",AVERAGE(H594:H625)) ->  | I185: =IF(I594="","",AVERAGE(I594:I625)) ->  | K185: P64 | L185: =L!$A2199 -> Partial APR | M185: =General!$M$5 -> 2025-12-31 | Y185: P64 | Z185: =L!$A2199 -> Partial APR | AA185: =General!$M$5 -> 2025-12-31 | AB185: =IF(AND(E185="",F185="",G185="",H185="",I185=""),"",AVERAGE(E185:I185,N185:W185)) -> 
B186: P65 | C186: =L!$A2200 -> Real APR | D186: =General!$M$5 -> 2025-12-31 | E186: =IF(OR(E17="",General!$M$105=""),"",(E17-General!$M$105)/(1+General!$M$105)) ->  | F186: =IF(OR(F17="",General!$M$105=""),"",(F17-General!$M$105)/(1+General!$M$105)) ->  | G186: =IF(OR(G17="",General!$M$105=""),"",(G17-General!$M$105)/(1+General!$M$105)) ->  | H186: =IF(OR(H17="",General!$M$105=""),"",(H17-General!$M$105)/(1+General!$M$105)) ->  | I186: =IF(OR(I17="",General!$M$105=""),"",(I17-General!$M$105)/(1+General!$M$105)) ->  | K186: P65 | L186: =L!$A2200 -> Real APR | M186: =General!$M$5 -> 2025-12-31 | N186: =IF(OR(N17="",General!$M$105=""),"",(N17-General!$M$105)/(1+General!$M$105)) ->  | O186: =IF(OR(O17="",General!$M$105=""),"",(O17-General!$M$105)/(1+General!$M$105)) ->  | P186: =IF(OR(P17="",General!$M$105=""),"",(P17-General!$M$105)/(1+General!$M$105)) ->  | Q186: =IF(OR(Q17="",General!$M$105=""),"",(Q17-General!$M$105)/(1+General!$M$105)) ->  | R186: =IF(OR(R17="",General!$M$105=""),"",(R17-General!$M$105)/(1+General!$M$105)) ->  | S186: =IF(OR(S17="",General!$M$105=""),"",(S17-General!$M$105)/(1+General!$M$105)) ->  | T186: =IF(OR(T17="",General!$M$105=""),"",(T17-General!$M$105)/(1+General!$M$105)) ->  | U186: =IF(OR(U17="",General!$M$105=""),"",(U17-General!$M$105)/(1+General!$M$105)) ->  | V186: =IF(OR(V17="",General!$M$105=""),"",(V17-General!$M$105)/(1+General!$M$105)) ->  | W186: =IF(OR(W17="",General!$M$105=""),"",(W17-General!$M$105)/(1+General!$M$105)) ->  | Y186: P65 | Z186: =L!$A2200 -> Real APR | AA186: =General!$M$5 -> 2025-12-31 | AB186: =IF(AND(E186="",F186="",G186="",H186="",I186=""),"",AVERAGE(E186:I186,N186:W186)) -> 
B187: P66 | C187: =L!$A2201 -> Incremental price, interest | D187: =General!$M$5 -> 2025-12-31 | E187: =IF(E370="","",AVERAGE(E370:E401)) ->  | F187: =IF(F370="","",AVERAGE(F370:F401)) ->  | G187: =IF(G370="","",AVERAGE(G370:G401)) ->  | H187: =IF(H370="","",AVERAGE(H370:H401)) ->  | I187: =IF(I370="","",AVERAGE(I370:I401)) ->  | K187: P66 | L187: =L!$A2201 -> Incremental price, interest | M187: =General!$M$5 -> 2025-12-31 | Y187: P66 | Z187: =L!$A2201 -> Incremental price, interest | AA187: =General!$M$5 -> 2025-12-31 | AB187: =IF(AND(E187="",F187="",G187="",H187="",I187=""),"",AVERAGE(E187:I187,N187:W187)) -> 
B188: P67 | C188: =L!$A2202 -> Incremental price, fee | D188: =General!$M$5 -> 2025-12-31 | E188: =IF(E402="","",AVERAGE(E402:E433)) ->  | F188: =IF(F402="","",AVERAGE(F402:F433)) ->  | G188: =IF(G402="","",AVERAGE(G402:G433)) ->  | H188: =IF(H402="","",AVERAGE(H402:H433)) ->  | I188: =IF(I402="","",AVERAGE(I402:I433)) ->  | K188: P67 | L188: =L!$A2202 -> Incremental price, fee | M188: =General!$M$5 -> 2025-12-31 | Y188: P67 | Z188: =L!$A2202 -> Incremental price, fee | AA188: =General!$M$5 -> 2025-12-31
B189: P68 | C189: =L!$A2203 -> Incremental price, insurance | D189: =General!$M$5 -> 2025-12-31 | E189: =IF(E434="","",AVERAGE(E434:E465)) ->  | F189: =IF(F434="","",AVERAGE(F434:F465)) ->  | G189: =IF(G434="","",AVERAGE(G434:G465)) ->  | H189: =IF(H434="","",AVERAGE(H434:H465)) ->  | I189: =IF(I434="","",AVERAGE(I434:I465)) ->  | K189: P68 | L189: =L!$A2203 -> Incremental price, insurance | M189: =General!$M$5 -> 2025-12-31 | Y189: P68 | Z189: =L!$A2203 -> Incremental price, insurance | AA189: =General!$M$5 -> 2025-12-31
B190: P69 | C190: =L!$A2204 -> Incremental price, tax | D190: =General!$M$5 -> 2025-12-31 | E190: =IF(E466="","",AVERAGE(E466:E497)) ->  | F190: =IF(F466="","",AVERAGE(F466:F497)) ->  | G190: =IF(G466="","",AVERAGE(G466:G497)) ->  | H190: =IF(H466="","",AVERAGE(H466:H497)) ->  | I190: =IF(I466="","",AVERAGE(I466:I497)) ->  | K190: P69 | L190: =L!$A2204 -> Incremental price, tax | M190: =General!$M$5 -> 2025-12-31 | Y190: P69 | Z190: =L!$A2204 -> Incremental price, tax | AA190: =General!$M$5 -> 2025-12-31
B191: P70 | C191: =L!$A2205 -> Incremental price, deposit | D191: =General!$M$5 -> 2025-12-31 | E191: =IF(E498="","",AVERAGE(E498:E529)) ->  | F191: =IF(F498="","",AVERAGE(F498:F529)) ->  | G191: =IF(G498="","",AVERAGE(G498:G529)) ->  | H191: =IF(H498="","",AVERAGE(H498:H529)) ->  | I191: =IF(I498="","",AVERAGE(I498:I529)) ->  | K191: P70 | L191: =L!$A2205 -> Incremental price, deposit | M191: =General!$M$5 -> 2025-12-31 | Y191: P70 | Z191: =L!$A2205 -> Incremental price, deposit | AA191: =General!$M$5 -> 2025-12-31
B192: P71 | C192: =L!$A2206 -> Interest transparency index | D192: =General!$M$5 -> 2025-12-31 | E192: =IF(OR(E142="",E17=""),"",E142/E17*100) ->  | F192: =IF(OR(F142="",F17=""),"",F142/F17*100) ->  | G192: =IF(OR(G142="",G17=""),"",G142/G17*100) ->  | H192: =IF(OR(H142="",H17=""),"",H142/H17*100) ->  | I192: =IF(OR(I142="",I17=""),"",I142/I17*100) ->  | K192: P71 | L192: =L!$A2206 -> Interest transparency index | M192: =General!$M$5 -> 2025-12-31 | N192: =IF(OR(N142="",N17=""),"",N142/N17*100) ->  | Y192: P71 | Z192: =L!$A2206 -> Interest transparency index | AA192: =General!$M$5 -> 2025-12-31
B193: P72 | C193: =L!$A2157 -> Launch Date | K193: P72 | L193: =L!$A2157 -> Launch Date | Y193: P72 | Z193: =L!$A2157 -> Launch Date | AA193: =General!$M$5 -> 2025-12-31 | AB193: =IF(AND(E193="",F193="",G193="",H193="",I193=""),"",MIN(E193:I193,N193:W193)) -> 
B194: P73 | C194: =L!$A2160 -> Target population | K194: P73 | L194: =L!$A2160 -> Target population | Y194: P73 | Z194: =L!$A2160 -> Target population | AA194: =General!$M$5 -> 2025-12-31 | AB194: =E194&F194&G194&H194&I194&N194&O194&P194&Q194&R194&S194&T194&U194&V194&W194 -> 
C195: =L!$A$2210 -> APR portfolio weighting possible | E195: =IF(E17="","",IF(AND(E15>0,E17<>""),$AL$195,$AM$195)) ->  | F195: =IF(F17="","",IF(AND(F15>0,F17<>""),$AL$195,$AM$195)) ->  | G195: =IF(G17="","",IF(AND(G15>0,G17<>""),$AL$195,$AM$195)) ->  | H195: =IF(H17="","",IF(AND(H15>0,H17<>""),$AL$195,$AM$195)) ->  | I195: =IF(I17="","",IF(AND(I15>0,I17<>""),$AL$195,$AM$195)) ->  | L195: =L!$A$2210 -> APR portfolio weighting possible | N195: =IF(N17="","",IF(AND(N15>0,N17<>""),$AL$195,$AM$195)) ->  | Z195: =L!$A$2210 -> APR portfolio weighting possible | AB195: =IF(AND(E195="",F195="",G195="",H195="",I195="",N195="",O195="",P195="",Q195="",R195="",S195="",T195="",U195="",V195="",W195=""),"",IF(OR(E195=$AM$195,F195=$AM$195,G195=$AM$195,H195=$AM$195,I195=$AM$195,N195=$AM$195,O195=$AM$195,P195=$AM$195,Q195=$AM$195,R195=$AM$195,S195=$AM$195,T195=$AM$195,U195=$AM$195,V195=$AM$195,W195=$AM$195),$AM$195,$AL$195)) ->  | AL195: =L!$A$12 -> Yes | AM195: =L!$A$13 -> No
C196: =L!$A$2211 -> APR portfolio weight amount | E196: =IF(AND(E15>0,E17<>""),E15,"") ->  | F196: =IF(AND(F15>0,F17<>""),F15,"") ->  | G196: =IF(AND(G15>0,G17<>""),G15,"") ->  | H196: =IF(AND(H15>0,H17<>""),H15,"") ->  | I196: =IF(AND(I15>0,I17<>""),I15,"") ->  | L196: =L!$A$2211 -> APR portfolio weight amount | N196: =IF(AND(N15>0,N17<>""),N15,"") ->  | Z196: =L!$A$2211 -> APR portfolio weight amount | AB196: =IF(AND(E196="",F196="",G196="",H196="",I196=""),"",SUM(E196:I196,N196:W196)) -> 
C197: =L!$A$2212 -> APR portfolio weight % | E197: =IF(E196="","",E196/SUM($E196,$F196,$G196,$H196,$I196,$N196,$O196,$P196,$Q196,$R196,$S196,$T196,$U196,$V196,$W196)) ->  | F197: =IF(F196="","",F196/SUM($E196,$F196,$G196,$H196,$I196,$N196,$O196,$P196,$Q196,$R196,$S196,$T196,$U196,$V196,$W196)) ->  | G197: =IF(G196="","",G196/SUM($E196,$F196,$G196,$H196,$I196,$N196,$O196,$P196,$Q196,$R196,$S196,$T196,$U196,$V196,$W196)) ->  | H197: =IF(H196="","",H196/SUM($E196,$F196,$G196,$H196,$I196,$N196,$O196,$P196,$Q196,$R196,$S196,$T196,$U196,$V196,$W196)) ->  | I197: =IF(I196="","",I196/SUM($E196,$F196,$G196,$H196,$I196,$N196,$O196,$P196,$Q196,$R196,$S196,$T196,$U196,$V196,$W196)) ->  | L197: =L!$A$2212 -> APR portfolio weight % | N197: =IF(N196="","",N196/SUM($E196,$F196,$G196,$H196,$I196,$N196,$O196,$P196,$Q196,$R196,$S196,$T196,$U196,$V196,$W196)) ->  | O197: =IF(O196="","",O196/SUM($E196,$F196,$G196,$H196,$I196,$N196,$O196,$P196,$Q196,$R196,$S196,$T196,$U196,$V196,$W196)) ->  | Z197: =L!$A$2212 -> APR portfolio weight % | AB197: =IF(AND(E197="",F197="",G197="",H197="",I197=""),"",SUM(E197:I197,N197:W197)) -> 
C198: =L!$A$2213 -> Nominal interest portfolio weighting possible | E198: =IF(OR(E25="",E26=""),"",IF(AND(E15>0,OR(E25<>"",E26<>"")),$AL$195,$AM$195)) ->  | F198: =IF(OR(F25="",F26=""),"",IF(AND(F15>0,OR(F25<>"",F26<>"")),$AL$195,$AM$195)) ->  | G198: =IF(OR(G25="",G26=""),"",IF(AND(G15>0,OR(G25<>"",G26<>"")),$AL$195,$AM$195)) ->  | H198: =IF(OR(H25="",H26=""),"",IF(AND(H15>0,OR(H25<>"",H26<>"")),$AL$195,$AM$195)) ->  | I198: =IF(OR(I25="",I26=""),"",IF(AND(I15>0,OR(I25<>"",I26<>"")),$AL$195,$AM$195)) ->  | L198: =L!$A$2213 -> Nominal interest portfolio weighting possible | N198: =IF(OR(N25="",N26=""),"",IF(AND(N15>0,OR(N25<>"",N26<>"")),$AL$195,$AM$195)) ->  | Z198: =L!$A$2213 -> Nominal interest portfolio weighting possible | AB198: =IF(AND(E198="",F198="",G198="",H198="",I198="",N198="",O198="",P198="",Q198="",R198="",S198="",T198="",U198="",V198="",W198=""),"",IF(OR(E198=$AM$195,F198=$AM$195,G198=$AM$195,H198=$AM$195,I198=$AM$195,N198=$AM$195,O198=$AM$195,P198=$AM$195,Q198=$AM$195,R198=$AM$195,S198=$AM$195,T198=$AM$195,U198=$AM$195,V198=$AM$195,W198=$AM$195),$AM$195,$AL$195)) -> 
C199: =L!$A$2214 -> Nominal interest portfolio weigh amount | E199: =IF(AND(E15>0,OR(E25<>"",E26<>"")),E15,"") ->  | F199: =IF(AND(F15>0,OR(F25<>"",F26<>"")),F15,"") ->  | G199: =IF(AND(G15>0,OR(G25<>"",G26<>"")),G15,"") ->  | H199: =IF(AND(H15>0,OR(H25<>"",H26<>"")),H15,"") ->  | I199: =IF(AND(I15>0,OR(I25<>"",I26<>"")),I15,"") ->  | L199: =L!$A$2214 -> Nominal interest portfolio weigh amount | N199: =IF(AND(N15>0,OR(N25<>"",N26<>"")),N15,"") ->  | Z199: =L!$A$2214 -> Nominal interest portfolio weigh amount | AB199: =IF(AND(E199="",F199="",G199="",H199="",I199=""),"",SUM(E199:I199,N199:W199)) -> 
C200: =L!$A$2215 -> Nominal interest portfolio weight % | E200: =IF(E199="","",E199/SUM($E199,$F199,$G199,$H199,$I199,$N199,$O199,$P199,$Q199,$R199,$S199,$T199,$U199,$V199,$W199)) ->  | F200: =IF(F199="","",F199/SUM($E199,$F199,$G199,$H199,$I199,$N199,$O199,$P199,$Q199,$R199,$S199,$T199,$U199,$V199,$W199)) ->  | G200: =IF(G199="","",G199/SUM($E199,$F199,$G199,$H199,$I199,$N199,$O199,$P199,$Q199,$R199,$S199,$T199,$U199,$V199,$W199)) ->  | H200: =IF(H199="","",H199/SUM($E199,$F199,$G199,$H199,$I199,$N199,$O199,$P199,$Q199,$R199,$S199,$T199,$U199,$V199,$W199)) ->  | I200: =IF(I199="","",I199/SUM($E199,$F199,$G199,$H199,$I199,$N199,$O199,$P199,$Q199,$R199,$S199,$T199,$U199,$V199,$W199)) ->  | L200: =L!$A$2215 -> Nominal interest portfolio weight % | N200: =IF(N199="","",N199/SUM($E199,$F199,$G199,$H199,$I199,$N199,$O199,$P199,$Q199,$R199,$S199,$T199,$U199,$V199,$W199)) ->  | Z200: =L!$A$2215 -> Nominal interest portfolio weight % | AB200: =IF(AND(E200="",F200="",G200="",H200="",I200=""),"",SUM(E200:I200,N200:W200)) -> 
C201: =L!$A$2216 -> Disbursed amount portfolio weighting possible | E201: =IF(E182="","",IF(E15>0,$AL$195,$AM$195)) ->  | F201: =IF(F182="","",IF(F15>0,$AL$195,$AM$195)) ->  | G201: =IF(G182="","",IF(G15>0,$AL$195,$AM$195)) ->  | H201: =IF(H182="","",IF(H15>0,$AL$195,$AM$195)) ->  | I201: =IF(I182="","",IF(I15>0,$AL$195,$AM$195)) ->  | L201: =L!$A$2216 -> Disbursed amount portfolio weighting possible | N201: =IF(N182="","",IF(N15>0,$AL$195,$AM$195)) ->  | Z201: =L!$A$2216 -> Disbursed amount portfolio weighting possible | AB201: =IF(AND(E201="",F201="",G201="",H201="",I201="",N201="",O201="",P201="",Q201="",R201="",S201="",T201="",U201="",V201="",W201=""),"",IF(OR(E201=$AM$195,F201=$AM$195,G201=$AM$195,H201=$AM$195,I201=$AM$195,N201=$AM$195,O201=$AM$195,P201=$AM$195,Q201=$AM$195,R201=$AM$195,S201=$AM$195,T201=$AM$195,U201=$AM$195,V201=$AM$195,W201=$AM$195),$AM$195,$AL$195)) ->  | AL201: =L!$A$12 -> Yes | AM201: =L!$A$13 -> No
C202: =L!$A$2217 -> Disbursed amount portfolio weigh amount | E202: =IF(AND(E15>0,E182<>""),E15,"") ->  | F202: =IF(AND(F15>0,F182<>""),F15,"") ->  | G202: =IF(AND(G15>0,G182<>""),G15,"") ->  | H202: =IF(AND(H15>0,H182<>""),H15,"") ->  | I202: =IF(AND(I15>0,I182<>""),I15,"") ->  | L202: =L!$A$2217 -> Disbursed amount portfolio weigh amount | N202: =IF(AND(N15>0,N182<>""),N15,"") ->  | Z202: =L!$A$2217 -> Disbursed amount portfolio weigh amount | AB202: =IF(AND(E202="",F202="",G202="",H202="",I202=""),"",SUM(E202:I202,N202:W202)) -> 
C203: =L!$A$2218 -> Disbursed amount portfolio weight % | E203: =IF(E202="","",E202/SUM($E202,$F202,$G202,$H202,$I202,$N202,$O202,$P202,$Q202,$R202,$S202,$T202,$U202,$V202,$W202)) ->  | F203: =IF(F202="","",F202/SUM($E202,$F202,$G202,$H202,$I202,$N202,$O202,$P202,$Q202,$R202,$S202,$T202,$U202,$V202,$W202)) ->  | G203: =IF(G202="","",G202/SUM($E202,$F202,$G202,$H202,$I202,$N202,$O202,$P202,$Q202,$R202,$S202,$T202,$U202,$V202,$W202)) ->  | H203: =IF(H202="","",H202/SUM($E202,$F202,$G202,$H202,$I202,$N202,$O202,$P202,$Q202,$R202,$S202,$T202,$U202,$V202,$W202)) ->  | I203: =IF(I202="","",I202/SUM($E202,$F202,$G202,$H202,$I202,$N202,$O202,$P202,$Q202,$R202,$S202,$T202,$U202,$V202,$W202)) ->  | L203: =L!$A$2218 -> Disbursed amount portfolio weight % | N203: =IF(N202="","",N202/SUM($E202,$F202,$G202,$H202,$I202,$N202,$O202,$P202,$Q202,$R202,$S202,$T202,$U202,$V202,$W202)) ->  | Z203: =L!$A$2218 -> Disbursed amount portfolio weight % | AB203: =IF(AND(E203="",F203="",G203="",H203="",I203=""),"",SUM(E203:I203,N203:W203)) -> 
C204: =L!$A$2219 -> Term portfolio weighting possible | E204: =IF(E183="","",IF(E15>0,$AL$195,$AM$195)) ->  | F204: =IF(F183="","",IF(F15>0,$AL$195,$AM$195)) ->  | G204: =IF(G183="","",IF(G15>0,$AL$195,$AM$195)) ->  | H204: =IF(H183="","",IF(H15>0,$AL$195,$AM$195)) ->  | I204: =IF(I183="","",IF(I15>0,$AL$195,$AM$195)) ->  | L204: =L!$A$2219 -> Term portfolio weighting possible | N204: =IF(N183="","",IF(N15>0,$AL$195,$AM$195)) ->  | Z204: =L!$A$2219 -> Term portfolio weighting possible | AB204: =IF(AND(E204="",F204="",G204="",H204="",I204="",N204="",O204="",P204="",Q204="",R204="",S204="",T204="",U204="",V204="",W204=""),"",IF(OR(E204=$AM$195,F204=$AM$195,G204=$AM$195,H204=$AM$195,I204=$AM$195,N204=$AM$195,O204=$AM$195,P204=$AM$195,Q204=$AM$195,R204=$AM$195,S204=$AM$195,T204=$AM$195,U204=$AM$195,V204=$AM$195,W204=$AM$195),$AM$195,$AL$195)) -> 
C205: =L!$A$2220 -> Term portfolio weigh amount | E205: =IF(AND(E15>0,E183<>""),E15,"") ->  | F205: =IF(AND(F15>0,F183<>""),F15,"") ->  | G205: =IF(AND(G15>0,G183<>""),G15,"") ->  | H205: =IF(AND(H15>0,H183<>""),H15,"") ->  | I205: =IF(AND(I15>0,I183<>""),I15,"") ->  | L205: =L!$A$2220 -> Term portfolio weigh amount | N205: =IF(AND(N15>0,N183<>""),N15,"") ->  | Z205: =L!$A$2220 -> Term portfolio weigh amount | AB205: =IF(AND(E205="",F205="",G205="",H205="",I205=""),"",SUM(E205:I205,N205:W205)) -> 
... 516 more rows

Sheet Social
C2: =L!$A$206 -> Please complete these optional data | G2: =L!$A$206 -> Please complete these optional data | H2: =L!$A$2732 -> Year | I2: =L!$A$2732 -> Year | J2: =L!$A$2732 -> Year | K2: =IF(General!$M$64=12,"",L!$A$2737) ->  | L2: =L!$A$2732 -> Year | M2: =IF(General!$M$64=12,L!$A$2732,L!$A$2737) -> Year | N2: =L!$A$2732 -> Year | O2: =IF(O4="","",L!$A$2737) -> Year to date | P2: =IF(P4="","",L!$A$2737) -> Year to date | Q2: =IF(Q4="","",L!$A$2737) -> Year to date | R2: =IF(R4="","",L!$A$2737) -> Year to date | S2: =IF(S4="","",L!$A$2737) -> Year to date | T2: =IF(T4="","",L!$A$2737) -> Year to date | U2: =IF(U4="","",L!$A$2737) -> Year to date | V2: =IF(V4="","",L!$A$2737) -> Year to date | W2: =IF(W4="","",L!$A$2737) -> Year to date | X2: =IF(X4="","",L!$A$2737) -> Year to date | Y2: =IF(Y4="","",L!$A$2737) -> Year to date | Z2: =IF(Z4="","",L!$A$2737) ->  | AA2: =IF(AA4="","",L!$A$2736) -> Month | AB2: =IF(AB4="","",L!$A$2736) -> Month | AC2: =IF(AC4="","",L!$A$2736) -> Month | AD2: =IF(AD4="","",L!$A$2736) -> Month | AE2: =IF(AE4="","",L!$A$2736) -> Month | AF2: =IF(AF4="","",L!$A$2736) -> Month | AG2: =IF(AG4="","",L!$A$2736) -> Month | AH2: =IF(AH4="","",L!$A$2736) -> Month | AI2: =IF(AI4="","",L!$A$2736) -> Month | AJ2: =IF(AJ4="","",L!$A$2736) -> Month | AK2: =IF(AK4="","",L!$A$2736) -> Month | AL2: =IF(AL4="","",L!$A$2736) -> Month | AM2: =IF(AM4="","",L!$A$2733) -> Quarter | AN2: =IF(AN4="","",L!$A$2733) -> Quarter | AO2: =IF(AO4="","",L!$A$2733) -> Quarter | AP2: =IF(AP4="","",L!$A$2733) -> Quarter | AS2: =L!$A$206 -> Please complete these optional data | AX2: =L!$A$208 -> If possible, please complete this optional information | BO2: =L!$A$215 -> Additional data
C3: =L!A1718 -> Most recent Social Rating, if any | G3: =L!A698 -> Gender, area, sector | AS3: =L!$A$1868 -> Regions | AX3: =L!$A$1876 -> Poverty, employment, outcomes | BA3: =Definitions!$AC$30&Definitions!$AE$2 -> .29.1 | BB3: =Definitions!$AC$30&Definitions!$AE$3 -> .29.2 | BC3: =Definitions!$AC$30&Definitions!$AE$4 -> .29.3 | BD3: =Definitions!$AC$30&Definitions!$AE$5 -> .29.4 | BE3: =Definitions!$AC$30&Definitions!$AE$6 -> .29.5 | BO3: =L!A698 -> Gender, area, sector
